Workbook

Sheet Zmeny
B1: Změna
A2: Datum | B2: Rev | C2: Popis
A3: 2024-12-20 | B3: 00 | C3: První draft
A4: 2025-01-19 | B4: 01 | C4: Druhý draft
A5: 2025-01-21 | B5: 02 | C5: Třetí draft
A6: 2025-02-05 | B6: 03 | C6: Final: opravy od soutěžících, přidáno WGC 2024 v Uvalde, odstraněno HOP 2024

Sheet Soutez
A1: Soutěž | B1: Stát | C1: Rok | D1: Místo | E1: Termín | F1: Poč. disc. | G1: Poč. pilotů | H1: Ki | I1: Kn1 | J1: Kn2 | K1: Kp | L1: Kinp | M1: dKinp | N1: Poznámka | O1: Results
A2: Zařazené soutěže 2022:
A3: PMČR 2022 - Klub | B3: CZ | C3: 2022 | D3: Zbraslavice | E3: 22.5.-4.6.22 | F3: 9 | G3: 16 | H3: 1 | I3: 0.025 | J3: 0 | K3: =VLOOKUP(F3,Kp!$A$4:$B$24,2,FALSE) -> 0.025 | L3: =IF(H3=0,0,IF(OR(F3=0,F3=1,F3=2),0,IF(G3<10,0,SUM(H3:K3)))) -> 1.05 | M3: =L3-H3 -> 0.05 | O3: https://www.soaringspot.com/en_gb/plachtarske-mistrovstvi-ceske-republiky-2022-zbraslavice-2022/results/klub#
A4: PMČR 2022 - Kombi 15m | B4: CZ | C4: 2022 | D4: Zbraslavice | E4: 22.5.-4.6.22 | F4: 8 | G4: 13 | H4: 1 | I4: 0.02 | J4: 0.02 | K4: =VLOOKUP(F4,Kp!$A$4:$B$24,2,FALSE) -> 0.02 | L4: =IF(H4=0,0,IF(OR(F4=0,F4=1,F4=2),0,IF(G4<10,0,SUM(H4:K4)))) -> 1.06 | M4: 0.06 | O4: https://www.soaringspot.com/en_gb/plachtarske-mistrovstvi-ceske-republiky-2022-zbraslavice-2022/results/kombi-15#
A5: PMČR 2022 - Kombi Open | B5: CZ | C5: 2022 | D5: Zbraslavice | E5: 22.5.-4.6.22 | F5: 7 | G5: 19 | H5: 1 | I5: 0.05 | J5: 0.01 | K5: =VLOOKUP(F5,Kp!$A$4:$B$24,2,FALSE) -> 0.015 | L5: 1.075 | M5: 0.075 | O5: https://www.soaringspot.com/en_gb/plachtarske-mistrovstvi-ceske-republiky-2022-zbraslavice-2022/results/kombi-open#
A6: JPJ 2022 - Klub | B6: CZ | C6: 2022 | D6: Šumperk | E6: 7.5.-14.5.22 | F6: 5 | G6: 39 | H6: 0.9 | I6: 0 | J6: 0 | K6: =VLOOKUP(F6,Kp!$A$4:$B$24,2,FALSE) -> 0.005 | L6: 0.905 | M6: 0.005 | O6: https://www.soaringspot.com/en_gb/jpj2022/results/klubova-trida#
A7: JPJ 2022 - Kombi | B7: CZ | C7: 2022 | D7: Šumperk | E7: 7.5.-14.5.22 | F7: 5 | G7: 20 | H7: 0.9 | I7: 0.005 | J7: 0 | K7: =VLOOKUP(F7,Kp!$A$4:$B$24,2,FALSE) -> 0.005 | L7: 0.91 | M7: 0.01 | O7: https://www.soaringspot.com/en_gb/jpj2022/results/kombi-trida#
A8: PMRg 2022 - Klub | B8: CZ | C8: 2022 | D8: Hodkovice | E8: 14.8.-26.8.22 | F8: 6 | G8: 13 | H8: 0.9 | I8: 0.005 | J8: 0 | K8: =VLOOKUP(F8,Kp!$A$4:$B$24,2,FALSE) -> 0.01 | L8: 0.915 | M8: 0.015 | O8: https://www.soaringspot.com/en_gb/mistrovstvi-ceske-republiky-regionu-2022-hodkovice-2022/results/klubova-trida#
A9: PMRg 2022 - Kombi | B9: CZ | C9: 2022 | D9: Hodkovice | E9: 14.8.-26.8.22 | F9: 6 | G9: 11 | H9: 0.9 | I9: 0 | J9: 0 | K9: =VLOOKUP(F9,Kp!$A$4:$B$24,2,FALSE) -> 0.01 | L9: 0.91 | M9: 0.01 | O9: https://www.soaringspot.com/en_gb/mistrovstvi-ceske-republiky-regionu-2022-hodkovice-2022/results/kombi-open#
A10: PMČRj 2022 - Klub | B10: CZ | C10: 2022 | D10: Hodkovice | E10: 3.7.-16.7.22 | F10: 6 | G10: 29 | H10: 0.9 | I10: 0.005 | J10: 0 | K10: =VLOOKUP(F10,Kp!$A$4:$B$24,2,FALSE) -> 0.01 | L10: 0.915 | M10: 0.015 | O10: https://www.soaringspot.com/en_gb/plachtarske-mistrovstvi-cr-junioru-hodkovice-nad-mohelkou-2022/results/klubova-trida#
A11: GGP MB 2022 - Klub GP | B11: CZ | C11: 2022 | D11: Mladá Boleslav | E11: 27.8.-3.9.22 | F11: 5 | G11: 15 | H11: 0.9 | I11: 0.005 | J11: 0 | K11: =VLOOKUP(F11,Kp!$A$4:$B$24,2,FALSE) -> 0.005 | L11: 0.905 | M11: 0.005 | O11: https://www.soaringspot.com/en_gb/ggp2022/results/club-gp
A12: GGP MB 2022 - Pohár MV - Kombi | B12: CZ | C12: 2022 | D12: Mladá Boleslav | E12: 27.8.-3.9.22 | F12: 5 | G12: 11 | H12: 0.9 | I12: 0.01 | J12: 0 | K12: =VLOOKUP(F12,Kp!$A$4:$B$24,2,FALSE) -> 0.005 | L12: 0.915 | M12: 0.015 | O12: https://www.soaringspot.com/en_gb/ggp2022/results/pohar-metodeje-vlach#
A13: Rakovnická Dlaždice 2022 - Klub | B13: CZ | C13: 2022 | D13: Rakovník | E13: 6.8-14.8.22 | F13: 6 | G13: 14 | H13: 0 | I13: 0 | J13: 0 | K13: =VLOOKUP(F13,Kp!$A$4:$B$24,2,FALSE) -> 0.01 | L13: 0 | M13: =L13-H13 -> 0 | N13: Rozhodnutím PK AeČR | O13: https://www.soaringspot.com/en_gb/rakovnicka-dlazdice-2022-rakovnik1-2022/results/open#
A14: HOP 2022 - Klub | B14: CZ | C14: 2022 | D14: Velké Poříčí | E14: 13.8.-20.8.22 | F14: 4 | G14: 23 | H14: 0.75 | I14: 0.005 | J14: 0 | K14: =VLOOKUP(F14,Kp!$A$4:$B$24,2,FALSE) -> 0 | L14: 0.755 | M14: 0.005 | O14: https://www.soaringspot.com/en_gb/21-hop-2022-velke-porici-2022/results/klub-hop#
A15: HOP 2022 - Kombi | B15: CZ | C15: 2022 | D15: Velké Poříčí | E15: 13.8.-20.8.22 | F15: 4 | G15: 19 | H15: 0.75 | I15: 0.005 | J15: 0 | K15: =VLOOKUP(F15,Kp!$A$4:$B$24,2,FALSE) -> 0 | L15: 0.75 | M15: 0 | O15: https://www.soaringspot.com/en_gb/21-hop-2022-velke-porici-2022/results/kombi-ppf
A16: Pohár Českého Ráje 2022 - Klub | B16: CZ | C16: 2022 | D16: Jičín | E16: 23.7.-30.7.22 | F16: 3 | G16: 17 | H16: 0 | I16: 0 | J16: 0 | K16: =VLOOKUP(F16,Kp!$A$4:$B$24,2,FALSE) -> -0.02 | L16: 0 | M16: 0 | N16: Rozhodnutím PK AeČR | O16: https://www.soaringspot.com/en_gb/pohar-ceskeho-raje-2022-jicin-2022/results/klub#
A17: Ranský pohár 2022 - Klub | B17: CZ | C17: 2022 | D17: Jičín | E17: 30.7.-6.8.22 | F17: 6 | G17: 21 | H17: 0 | I17: 0 | J17: 0 | K17: =VLOOKUP(F17,Kp!$A$4:$B$24,2,FALSE) -> 0.01 | L17: 0 | M17: 0 | N17: Rozhodnutím PK AeČR | O17: https://www.soaringspot.com/en_gb/ransky-pohar-2022-rana-loumy-2022/results/combi#
A18: Ranský pohár 2022 - Kombi | B18: CZ | C18: 2022 | D18: Raná | E18: 30.7.-6.8.22 | F18: 6 | G18: 7 | H18: 0 | I18: 0 | J18: 0 | K18: =VLOOKUP(F18,Kp!$A$4:$B$24,2,FALSE) -> 0.01 | L18: 0 | M18: 0 | N18: Rozhodnutím PK AeČR, méně jak 10 soutěžících ve třídě | O18: https://www.soaringspot.com/en_gb/ransky-pohar-2022-rana-loumy-2022/results/super-combi
A19: Safari 2022 - Duo | B19: CZ | C19: 2022 | D19: Dvůr Králové | E19: 2.7.-16.7.22 | F19: 4 | G19: 9 | H19: 0 | I19: 0 | J19: 0 | K19: =VLOOKUP(F19,Kp!$A$4:$B$24,2,FALSE) -> 0 | L19: 0 | M19: =L19-H19 -> 0 | N19: Rozhodnutím PK AeČR, méně jak 10 soutěžících ve třídě | O19: https://www.soaringspot.com/en_gb/safari-cup-2022-dvur-kralove-nad-labem-2022/results/duo#
A20: Safari 2022 - Klub | B20: CZ | C20: 2022 | D20: Dvůr Králové | E20: 2.7.-16.7.22 | F20: 5 | G20: 26 | H20: 0.75 | I20: 0 | J20: 0 | K20: =VLOOKUP(F20,Kp!$A$4:$B$24,2,FALSE) -> 0.005 | L20: 0.755 | M20: 0.005 | O20: https://www.soaringspot.com/en_gb/safari-cup-2022-dvur-kralove-nad-labem-2022/results/klub
A21: Safari 2022 - Kombi | B21: CZ | C21: 2022 | D21: Dvůr Králové | E21: 2.7.-16.7.22 | F21: 5 | G21: 10 | H21: 0.75 | I21: 0 | J21: 0 | K21: =VLOOKUP(F21,Kp!$A$4:$B$24,2,FALSE) -> 0.005 | L21: 0.755 | M21: 0.005 | O21: https://www.soaringspot.com/en_gb/safari-cup-2022-dvur-kralove-nad-labem-2022/results/volna
A22: Toužim Cup 2022 - Klub | B22: CZ | C22: 2022 | D22: Toužim | E22: 9.7.-17.7.22 | F22: 5 | G22: 26 | H22: 0.9 | I22: 0.01 | J22: 0 | K22: =VLOOKUP(F22,Kp!$A$4:$B$24,2,FALSE) -> 0.005 | L22: 0.915 | M22: 0.015 | O22: https://www.soaringspot.com/en_gb/t-cup-2022-touzim-2022/results/club#
A23: Toužim Cup 2022 - Kombi | B23: CZ | C23: 2022 | D23: Toužim | E23: 9.7.-17.7.22 | F23: 5 | G23: 26 | H23: 0.9 | I23: 0.005 | J23: 0 | K23: =VLOOKUP(F23,Kp!$A$4:$B$24,2,FALSE) -> 0.005 | L23: 0.91 | M23: 0.01 | O23: https://www.soaringspot.com/en_gb/t-cup-2022-touzim-2022/results/kombi
A24: FL 2022 - Kombi | B24: CZ | C24: 2022 | D24: Frýdlant n/Ostr. | E24: 1.7.-9.7.22 | F24: 3 | G24: 15 | H24: 0.75 | I24: 0.005 | J24: 0 | K24: =VLOOKUP(F24,Kp!$A$4:$B$24,2,FALSE) -> -0.02 | L24: 0.735 | M24: -0.015 | O24: https://www.soaringspot.com/en_gb/fl-2022-adrenalin-grand-prix-frydlant-2022/results/fl#
A25: Adrenalin GP 2022 - Klub GP | B25: CZ | C25: 2022 | D25: Frýdlant n/Ostr. | E25: 1.7.-9.7.22 | F25: 4 | G25: 12 | H25: 0.9 | I25: 0 | J25: 0 | K25: =VLOOKUP(F25,Kp!$A$4:$B$24,2,FALSE) -> 0 | L25: 0.9 | M25: 0 | O25: https://www.soaringspot.com/en_gb/fl-2022-adrenalin-grand-prix-frydlant-2022/results/adrenalin-grand-prix
A26: Ulfův memoriál | B26: CZ | C26: 2022 | D26: Raná | E26: 21.5.-28.5.22 | F26: 3 | G26: 10 | H26: 0 | I26: 0 | J26: 0 | K26: =VLOOKUP(F26,Kp!$A$4:$B$24,2,FALSE) -> -0.02 | L26: =IF(H26=0,0,IF(OR(F26=0,F26=1,F26=2),0,IF(G26<10,0,SUM(H26:K26)))) -> 0 | M26: 0 | N26: Rozhodnutím PK AeČR | O26: https://www.soaringspot.com/en_gb/ulfuv-memorial-zavody-historickych-kluzaku-rana-loumy-2022/results/oldtimer
A27: Podbrdský pohár | B27: CZ | C27: 2022 | D27: Letkov | E27: 30.4.-7.5.22 | F27: 4 | G27: 20 | H27: 0 | I27: 0 | J27: 0 | K27: =VLOOKUP(F27,Kp!$A$4:$B$24,2,FALSE) -> 0 | L27: 0 | M27: 0 | N27: Rozhodnutím PK AeČR | O27: https://www.soaringspot.com/en_gb/pp2022/results/kombi#
A28: AZ Cup 2022 - Klub | B28: CZ | C28: 2022 | D28: Zbraslavice | E28: 22.4.-30.4.22 | F28: 6 | G28: 22 | H28: 0.9 | I28: 0.005 | J28: 0 | K28: =VLOOKUP(F28,Kp!$A$4:$B$24,2,FALSE) -> 0.01 | L28: 0.915 | M28: 0.015 | O28: https://www.soaringspot.com/en_gb/az-cup-2022-zbraslavice-2022/results/klub#
A29: AZ Cup 2022 - Kombi | B29: CZ | C29: 2022 | D29: Zbraslavice | E29: 22.4.-30.4.22 | F29: 6 | G29: 24 | H29: 0.9 | I29: 0.035 | J29: 0.01 | K29: =VLOOKUP(F29,Kp!$A$4:$B$24,2,FALSE) -> 0.01 | L29: 0.955 | M29: 0.055 | O29: https://www.soaringspot.com/en_gb/az-cup-2022-zbraslavice-2022/results/kombi-a
A30: PPV 2022 - Klub | B30: CZ | C30: 2022 | D30: Havlíčkův Brod | E30: 23.7-30.7.22 | F30: 3 | G30: 37 | H30: 0.9 | I30: 0.005 | J30: 0 | K30: =VLOOKUP(F30,Kp!$A$4:$B$24,2,FALSE) -> -0.02 | L30: 0.885 | M30: -0.015 | O30: https://www.soaringspot.com/en_gb/ppv-2022-lkhb/results/klub#
A31: PPV 2022 - Kombi | B31: CZ | C31: 2022 | D31: Havlíčkův Brod | E31: 23.7-30.7.22 | F31: 4 | G31: 25 | H31: 0.9 | I31: 0.02 | J31: 0 | K31: =VLOOKUP(F31,Kp!$A$4:$B$24,2,FALSE) -> 0 | L31: 0.92 | M31: 0.02 | O31: https://www.soaringspot.com/en_gb/ppv-2022-lkhb/results/kombi
A32: WGC 2022 - 18m | B32: HU | C32: 2022 | D32: Szeged | E32: 24.7.-5.8.22 | F32: 10 | G32: 42 | H32: 1 | I32: 0.05 | J32: 0.01 | K32: =VLOOKUP(F32,Kp!$A$4:$B$24,2,FALSE) -> 0.03 | L32: 1.09 | M32: =L32-H32 -> 0.09 | O32: https://www.soaringspot.com/en_gb/37th-fai-world-gliding-championships-2022-szeged-2022/results/18m#
A33: WGC 2022 - Open | B33: HU | C33: 2022 | D33: Szeged | E33: 24.7.-5.8.22 | F33: 10 | G33: 22 | H33: 1 | I33: 0.05 | J33: 0.02 | K33: =VLOOKUP(F33,Kp!$A$4:$B$24,2,FALSE) -> 0.03 | L33: 1.1 | M33: 0.1 | O33: https://www.soaringspot.com/en_gb/37th-fai-world-gliding-championships-2022-szeged-2022/results/open#
A34: WGC 2022 - Duo 20m | B34: HU | C34: 2022 | D34: Szeged | E34: 24.7.-5.8.22 | F34: 10 | G34: 19 | H34: 1 | I34: 0.05 | J34: 0.01 | K34: =VLOOKUP(F34,Kp!$A$4:$B$24,2,FALSE) -> 0.03 | L34: 1.09 | M34: 0.09 | O34: https://www.soaringspot.com/en_gb/37th-fai-world-gliding-championships-2022-szeged-2022/results/20m-multi-seat
A35: EGC 2022 - Klub | B35: LT | C35: 2022 | D35: Pociunai | E35: 3.7.-15.7.22 | F35: 8 | G35: 28 | H35: 1 | I35: 0.035 | J35: 0.02 | K35: =VLOOKUP(F35,Kp!$A$4:$B$24,2,FALSE) -> 0.02 | L35: 1.075 | M35: 0.075 | O35: https://www.soaringspot.com/en_gb/21st-fai-european-gliding-championships-pociunai-2022/results/club#
A36: EGC 2022 - Std | B36: LT | C36: 2022 | D36: Pociunai | E36: 3.7.-15.7.22 | F36: 7 | G36: 28 | H36: 1 | I36: 0.045 | J36: 0.03 | K36: =VLOOKUP(F36,Kp!$A$4:$B$24,2,FALSE) -> 0.015 | L36: 1.09 | M36: 0.09 | O36: https://www.soaringspot.com/en_gb/21st-fai-european-gliding-championships-pociunai-2022/results/standard#
A37: EGC 2022 - 15m | B37: LT | C37: 2022 | D37: Pociunai | E37: 3.7.-15.7.22 | F37: 8 | G37: 26 | H37: 1 | I37: 0.02 | J37: 0.02 | K37: =VLOOKUP(F37,Kp!$A$4:$B$24,2,FALSE) -> 0.02 | L37: 1.06 | M37: 0.06 | O37: https://www.soaringspot.com/en_gb/21st-fai-european-gliding-championships-pociunai-2022/results/15-meter#
A38: JWGC 2022 - Klub | B38: CZ | C38: 2022 | D38: Tabor | E38: 30.7.-12.8.22 | F38: 10 | G38: 45 | H38: 1 | I38: 0.015 | J38: 0.03 | K38: =VLOOKUP(F38,Kp!$A$4:$B$24,2,FALSE) -> 0.03 | L38: 1.075 | M38: 0.075 | O38: https://www.soaringspot.com/en_gb/junior-world-gliding-championships-2022-tabor-2022/results/class-club#
A39: JWGC 2022 - Std | B39: CZ | C39: 2022 | D39: Tabor | E39: 30.7.-12.8.22 | F39: 10 | G39: 29 | H39: 1 | I39: 0.015 | J39: 0.03 | K39: =VLOOKUP(F39,Kp!$A$4:$B$24,2,FALSE) -> 0.03 | L39: 1.075 | M39: 0.075 | O39: https://www.soaringspot.com/en_gb/junior-world-gliding-championships-2022-tabor-2022/results/class-standard#
A40: WWGC 2022 - Klub | B40: UK | C40: 2022 | D40: Husbands Bosworth | E40: 14.8.-26.8.22 | F40: 6 | G40: 18 | H40: 1 | I40: 0.01 | J40: 0.02 | K40: =VLOOKUP(F40,Kp!$A$4:$B$24,2,FALSE) -> 0.01 | L40: 1.04 | M40: 0.04 | O40: https://www.soaringspot.com/en_gb/11th-fai-womens-world-gliding-championship-2022/results/club#
A41: WWGC 2022 - Std | B41: UK | C41: 2022 | D41: Husbands Bosworth | E41: 14.8.-26.8.22 | F41: 8 | G41: 13 | H41: 1 | I41: 0.005 | J41: 0.01 | K41: =VLOOKUP(F41,Kp!$A$4:$B$24,2,FALSE) -> 0.02 | L41: 1.035 | M41: 0.035 | O41: https://www.soaringspot.com/en_gb/11th-fai-womens-world-gliding-championship-2022/results/standard#
A42: WWGC 2022 - 18m | B42: UK | C42: 2022 | D42: Husbands Bosworth | E42: 14.8.-26.8.22 | F42: 8 | G42: 12 | H42: 1 | I42: 0.005 | J42: 0.03 | K42: =VLOOKUP(F42,Kp!$A$4:$B$24,2,FALSE) -> 0.02 | L42: 1.055 | M42: 0.055 | O42: https://www.soaringspot.com/en_gb/11th-fai-womens-world-gliding-championship-2022/results/18-meter
A43: PMSR 2022 - Klub | B43: SK | C43: 2022 | D43: Martin | E43: 12.6.-26.6.22 | F43: 11 | G43: 16 | H43: 0.9 | I43: 0.005 | J43: 0 | K43: =VLOOKUP(F43,Kp!$A$4:$B$24,2,FALSE) -> 0.03 | L43: 0.935 | M43: 0.035 | O43: https://www.soaringspot.com/en_gb/65majstrovstva-sr-v-bezmotorovom-lietani-2022-martin-2022/results/klubova-trieda#
A44: PMSR 2022 - Kombi A+B | B44: SK | C44: 2022 | D44: Martin | E44: 12.6.-26.6.22 | F44: 10 | G44: 24 | H44: 0.9 | I44: 0.005 | J44: 0 | K44: =VLOOKUP(F44,Kp!$A$4:$B$24,2,FALSE) -> 0.03 | L44: 0.935 | M44: 0.035 | O44: https://www.soaringspot.com/en_gb/65majstrovstva-sr-v-bezmotorovom-lietani-2022-martin-2022/results/kombinovana-b-trieda#
A45: Oldtimer Pribina Star 2022 - Klub | B45: SK | C45: 2022 | D45: Nitra | E45: 6.8.-13.8.22 | F45: 4 | G45: 16 | H45: 0.75 | I45: 0 | J45: 0 | K45: =VLOOKUP(F45,Kp!$A$4:$B$24,2,FALSE) -> 0 | L45: 0.75 | M45: 0 | O45: https://www.soaringspot.com/en_gb/oldtimer-pribina-star-2022-nitra-2022/results/club#
A46: Fatraglide 2022 - Klub | B46: SK | C46: 2022 | D46: Martin | E46: 21.5.-28.5.22 | F46: 6 | G46: 16 | H46: 0.75 | I46: 0 | J46: 0 | K46: =VLOOKUP(F46,Kp!$A$4:$B$24,2,FALSE) -> 0.01 | L46: 0.76 | M46: 0.01 | O46: https://www.soaringspot.com/en_gb/20-fatraglide-2022-martin-2022/results/club#
A47: Fatraglide 2022 - Kombi | B47: SK | C47: 2022 | D47: Martin | E47: 21.5.-28.5.22 | F47: 6 | G47: 10 | H47: 0.75 | I47: 0.005 | J47: 0 | K47: =VLOOKUP(F47,Kp!$A$4:$B$24,2,FALSE) -> 0.01 | L47: 0.765 | M47: 0.015 | O47: https://www.soaringspot.com/en_gb/20-fatraglide-2022-martin-2022/results/kombinovana-trieda#
A48: FCC 2022 - Klub | B48: SK | C48: 2022 | D48: Prievidza | E48: 24.4.-5.5.22 | F48: 7 | G48: 43 | H48: 0.9 | I48: 0.015 | J48: 0.01 | K48: =VLOOKUP(F48,Kp!$A$4:$B$24,2,FALSE) -> 0.015 | L48: 0.94 | M48: 0.04 | O48: https://www.soaringspot.com/en_gb/fcc-gliding-2022-prievidza-2022/results/club
A49: FCC 2022 - Kombi 15m | B49: SK | C49: 2022 | D49: Prievidza | E49: 24.4.-5.5.22 | F49: 7 | G49: 28 | H49: 0.9 | I49: 0.015 | J49: 0.03 | K49: =VLOOKUP(F49,Kp!$A$4:$B$24,2,FALSE) -> 0.015 | L49: 0.96 | M49: 0.06 | O49: https://www.soaringspot.com/en_gb/fcc-gliding-2022-prievidza-2022/results/15m#
A50: FCC 2022 - Kombi Open | B50: SK | C50: 2022 | D50: Prievidza | E50: 24.4.-5.5.22 | F50: 7 | G50: 45 | H50: 0.9 | I50: 0.03 | J50: 0.02 | K50: =VLOOKUP(F50,Kp!$A$4:$B$24,2,FALSE) -> 0.015 | L50: 0.965 | M50: 0.065 | O50: https://www.soaringspot.com/en_gb/fcc-gliding-2022-prievidza-2022/results/combi#
A51: Pribina Cup 2022 - Klub | B51: SK | C51: 2022 | D51: Nitra | E51: 15.4.-23.4.22 | F51: 5 | G51: 28 | H51: 0.9 | I51: 0.025 | J51: 0.01 | K51: =VLOOKUP(F51,Kp!$A$4:$B$24,2,FALSE) -> 0.005 | L51: 0.94 | M51: 0.04 | O51: https://www.soaringspot.com/en_gb/pribina-cup-2022-nitra-2022/results/club#
A52: Pribina Cup 2022 - Kombi 15m | B52: SK | C52: 2022 | D52: Nitra | E52: 15.4.-23.4.22 | F52: 5 | G52: 26 | H52: 0.9 | I52: 0.015 | J52: 0.01 | K52: =VLOOKUP(F52,Kp!$A$4:$B$24,2,FALSE) -> 0.005 | L52: 0.93 | M52: 0.03 | O52: https://www.soaringspot.com/en_gb/pribina-cup-2022-nitra-2022/results/15-meter#
A53: Pribina Cup 2022 - Kombi Open | B53: SK | C53: 2022 | D53: Nitra | E53: 15.4.-23.4.22 | F53: 5 | G53: 46 | H53: 0.9 | I53: 0.045 | J53: 0 | K53: =VLOOKUP(F53,Kp!$A$4:$B$24,2,FALSE) -> 0.005 | L53: 0.95 | M53: 0.05 | O53: https://www.soaringspot.com/en_gb/pribina-cup-2022-nitra-2022/results/open#
A54: Flatland Cup 2022 - Klub | B54: SK | C54: 2022 | D54: Szeged | E54: 1.7.-9.7.22 | F54: 6 | G54: 33 | H54: 0.9 | I54: 0.03 | J54: 0 | K54: =VLOOKUP(F54,Kp!$A$4:$B$24,2,FALSE) -> 0.01 | L54: 0.94 | M54: =L54-H54 -> 0.04 | O54: https://www.soaringspot.com/en_gb/xii-flatland-cup-szeged-2022/results/fai-club#
A55: Flatland Cup 2022 - Kombi Open | B55: SK | C55: 2022 | D55: Szeged | E55: 1.7.-9.7.22 | F55: 7 | G55: 22 | H55: 0.9 | I55: 0.03 | J55: 0 | K55: =VLOOKUP(F55,Kp!$A$4:$B$24,2,FALSE) -> 0.015 | L55: 0.945 | M55: 0.045 | O55: https://www.soaringspot.com/en_gb/xii-flatland-cup-szeged-2022/results/mixed-15m#
A56: SGP Sweden 2022 - 18m GP | B56: SE | C56: 2022 | D56: Boras | E56: 8.5.-14.5.22 | F56: 3 | G56: 15 | H56: 0.9 | I56: 0.005 | J56: 0 | K56: =VLOOKUP(F56,Kp!$A$4:$B$24,2,FALSE) -> -0.02 | L56: 0.885 | M56: -0.015 | O56: https://sweden22.sgp.aero/race-results
A57: Zařazené soutěže 2023:
A58: SGP Final 2023 | B58: IT | C58: 2023 | D58: Pavullo | E58: 16.4.-27.4.23 | F58: 4 | G58: 19 | H58: 1 | I58: 0.035 | J58: 0.03 | K58: =VLOOKUP(F58,Kp!$A$4:$B$24,2,FALSE) -> 0 | L58: =IF(H58=0,0,IF(OR(F58=0,F58=1,F58=2),0,IF(G58<10,0,SUM(H58:K58)))) -> 1.065 | M58: =L58-H58 -> 0.065 | O58: https://sgpfinal23.sgp.aero/results
A59: FCC Gliding 2023 - Klub | B59: SK | C59: 2023 | D59: Prievidza | E59: 16.4.-27.4.23 | F59: 7 | G59: 21 | H59: 0.9 | I59: 0.01 | J59: 0.01 | K59: =VLOOKUP(F59,Kp!$A$4:$B$24,2,FALSE) -> 0.015 | L59: 0.935 | M59: 0.035 | O59: https://www.soaringspot.com/cs/fcc-gliding-2023-prievidza-2023/results/club
A60: FCC Gliding 2023 - Kombi 15m | B60: SK | C60: 2023 | D60: Prievidza | E60: 16.4.-27.4.23 | F60: 7 | G60: 31 | H60: 0.9 | I60: 0.05 | J60: 0.02 | K60: =VLOOKUP(F60,Kp!$A$4:$B$24,2,FALSE) -> 0.015 | L60: 0.985 | M60: 0.085 | O60: https://www.soaringspot.com/cs/fcc-gliding-2023-prievidza-2023/results/15m
A61: FCC Gliding 2023 - Kombi Open | B61: SK | C61: 2023 | D61: Prievidza | E61: 16.4.-27.4.23 | F61: 7 | G61: 39 | H61: 0.9 | I61: 0.02 | J61: 0.02 | K61: =VLOOKUP(F61,Kp!$A$4:$B$24,2,FALSE) -> 0.015 | L61: 0.955 | M61: 0.055 | O61: https://www.soaringspot.com/cs/fcc-gliding-2023-prievidza-2023/results/combi
A62: Fatraglide 2023 - Klub | B62: SK | C62: 2023 | D62: Martin | E62: 29.4.-6.5.23 | F62: 4 | G62: 19 | H62: 0.75 | I62: 0.005 | J62: 0 | K62: =VLOOKUP(F62,Kp!$A$4:$B$24,2,FALSE) -> 0 | L62: 0.755 | M62: 0.005 | O62: https://www.soaringspot.com/cs/21-fatraglide-2023-martin-2023/results/klubova-trieda
A63: Fatraglide 2023 - Kombi | B63: SK | C63: 2023 | D63: Martin | E63: 29.4.-6.5.23 | F63: 4 | G63: 15 | H63: 0.75 | I63: 0.005 | J63: 0 | K63: =VLOOKUP(F63,Kp!$A$4:$B$24,2,FALSE) -> 0 | L63: 0.755 | M63: 0.005 | O63: https://www.soaringspot.com/cs/21-fatraglide-2023-martin-2023/results/kombi-trieda
A64: AZ Cup 2023 - Klub | B64: CZ | C64: 2023 | D64: Zbraslavice | E64: 25.5.-3.6.23 | F64: 9 | G64: 27 | H64: 0.9 | I64: 0.02 | J64: 0.01 | K64: =VLOOKUP(F64,Kp!$A$4:$B$24,2,FALSE) -> 0.025 | L64: 0.955 | M64: 0.055 | O64: https://www.soaringspot.com/en_gb/azcup/results/klub
A65: AZ Cup 2023 - Kombi | B65: CZ | C65: 2023 | D65: Zbraslavice | E65: 25.5.-3.6.23 | F65: 9 | G65: 32 | H65: 0.9 | I65: 0.045 | J65: 0.03 | K65: =VLOOKUP(F65,Kp!$A$4:$B$24,2,FALSE) -> 0.025 | L65: 1 | M65: 0.1 | O65: https://www.soaringspot.com/en_gb/azcup/results/kombi
A66: FL 2023 - Kombi | B66: CZ | C66: 2023 | D66: Frýdlant n/Ostr. | E66: 30.6.-9.7.23 | F66: 7 | G66: 11 | H66: 0.9 | I66: 0 | J66: 0 | K66: =VLOOKUP(F66,Kp!$A$4:$B$24,2,FALSE) -> 0.015 | L66: 0.915 | M66: 0.015 | O66: https://www.soaringspot.com/cs/fl-2023-frydlant-2023/results/fl-kombi
A67: FL 2023 - Klub | B67: CZ | C67: 2023 | D67: Frýdlant n/Ostr. | E67: 30.6.-9.7.23 | F67: 7 | G67: 9 | H67: 0 | I67: 0 | J67: 0 | K67: =VLOOKUP(F67,Kp!$A$4:$B$24,2,FALSE) -> 0.015 | L67: 0 | M67: 0 | O67: https://www.soaringspot.com/cs/fl-2023-frydlant-2023/results/fl-klub
A68: JPJ 2023 - Klub | B68: CZ | C68: 2023 | D68: Šumperk | E68: 6.5.-13.5.23 | F68: 4 | G68: 40 | H68: 0.9 | I68: 0.005 | J68: 0 | K68: =VLOOKUP(F68,Kp!$A$4:$B$24,2,FALSE) -> 0 | L68: 0.905 | M68: 0.005 | O68: https://www.soaringspot.com/cs/jpj2023/results/klubova-trida
A69: JPJ 2023 - Kombi | B69: CZ | C69: 2023 | D69: Šumperk | E69: 6.5.-13.5.23 | F69: 4 | G69: 19 | H69: 0.9 | I69: 0.005 | J69: 0.01 | K69: =VLOOKUP(F69,Kp!$A$4:$B$24,2,FALSE) -> 0 | L69: 0.915 | M69: 0.015 | O69: https://www.soaringspot.com/cs/jpj2023/results/kombi-trida
A70: Alpe Adria Cup 2023 - 113 | B70: AT | C70: 2023 | D70: Feldkirchen | E70: 10.6.-17.6.23 | F70: 5 | G70: 17 | H70: 0.75 | I70: 0 | J70: 0 | K70: =VLOOKUP(F70,Kp!$A$4:$B$24,2,FALSE) -> 0.005 | L70: =IF(H70=0,0,IF(OR(F70=0,F70=1,F70=2),0,IF(G70<10,0,SUM(H70:K70)))) -> 0.755 | M70: =L70-H70 -> 0.005 | O70: https://www.soaringspot.com/en_gb/aac2023/results/113er
A71: Alpe Adria Cup 2023 - Kombi Open | B71: AT | C71: 2023 | D71: Feldkirchen | E71: 10.6.-17.6.23 | F71: 5 | G71: 24 | H71: 0.75 | I71: 0 | J71: 0 | K71: =VLOOKUP(F71,Kp!$A$4:$B$24,2,FALSE) -> 0.005 | L71: =IF(H71=0,0,IF(OR(F71=0,F71=1,F71=2),0,IF(G71<10,0,SUM(H71:K71)))) -> 0.755 | M71: =L71-H71 -> 0.005 | O71: https://www.soaringspot.com/en_gb/aac2023/results/offene
A72: PMRg 2023 - Klub | B72: CZ | C72: 2023 | D72: Hosín | E72: 1.7.-15.7.23 | F72: 10 | G72: 13 | H72: 0.9 | I72: 0 | J72: 0 | K72: =VLOOKUP(F72,Kp!$A$4:$B$24,2,FALSE) -> 0.03 | L72: 0.93 | M72: 0.03 | O72: https://www.soaringspot.com/cs/plachtarske-mistrovstvi-regionu-cr-2023-hosin-2023/results/klub
A73: PMRg, PMČRj 2023 - Kombi | B73: CZ | C73: 2023 | D73: Hosín | E73: 1.7.-15.7.23 | F73: 10 | G73: 11 | H73: 0.9 | I73: 0.02 | J73: 0 | K73: =VLOOKUP(F73,Kp!$A$4:$B$24,2,FALSE) -> 0.03 | L73: 0.95 | M73: 0.05 | O73: https://www.soaringspot.com/cs/plachtarske-mistrovstvi-regionu-cr-2023-hosin-2023/results/kombi
A74: PMČRj 2023 - Klub | B74: CZ | C74: 2023 | D74: Hosín | E74: 1.7.-15.7.23 | F74: 10 | G74: 25 | H74: 0.9 | I74: 0.01 | J74: 0 | K74: =VLOOKUP(F74,Kp!$A$4:$B$24,2,FALSE) -> 0.03 | L74: 0.94 | M74: 0.04 | O74: https://www.soaringspot.com/en_gb/plachtarske-mistrovstvi-cr-junioru-2023-hosin-2023/results/klub
A75: WWGC 2023 - Klub | B75: SP | C75: 2023 | D75: Garray | E75: 2.7.-14.7.23 | F75: 8 | G75: 19 | H75: 1 | I75: 0.015 | J75: 0.01 | K75: =VLOOKUP(F75,Kp!$A$4:$B$24,2,FALSE) -> 0.02 | L75: 1.045 | M75: 0.045 | O75: https://www.soaringspot.com/cs/12th-fai-womens-world-gliding-championship-garray-2023/results/club
A76: WWGC 2023 - Std | B76: SP | C76: 2023 | D76: Garray | E76: 2.7.-14.7.23 | F76: 10 | G76: 16 | H76: 1 | I76: 0.015 | J76: 0.01 | K76: =VLOOKUP(F76,Kp!$A$4:$B$24,2,FALSE) -> 0.03 | L76: 1.055 | M76: 0.055 | O76: https://www.soaringspot.com/cs/12th-fai-womens-world-gliding-championship-garray-2023/results/standard
A77: WWGC 2023 - 18m | B77: SP | C77: 2023 | D77: Garray | E77: 2.7.-14.7.23 | F77: 10 | G77: 12 | H77: 1 | I77: 0.01 | J77: 0, 03 | K77: =VLOOKUP(F77,Kp!$A$4:$B$24,2,FALSE) -> 0.03 | L77: 1.04 | M77: 0.04 | O77: https://www.soaringspot.com/cs/12th-fai-womens-world-gliding-championship-garray-2023/results/18-meter
A78: Safari Cup 2023 - Klub | B78: CZ | C78: 2023 | D78: Dvůr Králové | E78: 2.7.-15.7.23 | F78: 9 | G78: 25 | H78: 0.75 | I78: 0 | J78: 0 | K78: =VLOOKUP(F78,Kp!$A$4:$B$24,2,FALSE) -> 0.025 | L78: =IF(H78=0,0,IF(OR(F78=0,F78=1,F78=2),0,IF(G78<10,0,SUM(H78:K78)))) -> 0.775 | M78: =L78-H78 -> 0.025 | O78: https://www.soaringspot.com/en_gb/safari-and-blanik-cup-dvur-kralove-nad-labem-2023/results/dvousedadlovky
A79: Safari Cup 2023 - Kombi | B79: CZ | C79: 2023 | D79: Dvůr Králové | E79: 2.7.-15.7.23 | F79: 9 | G79: 10 | H79: 0.75 | I79: 0 | J79: 0 | K79: =VLOOKUP(F79,Kp!$A$4:$B$24,2,FALSE) -> 0.025 | L79: =IF(H79=0,0,IF(OR(F79=0,F79=1,F79=2),0,IF(G79<10,0,SUM(H79:K79)))) -> 0.775 | M79: =L79-H79 -> 0.025 | O79: https://www.soaringspot.com/en_gb/safari-and-blanik-cup-dvur-kralove-nad-labem-2023/results/unknown
A80: Toužim Cup 2023 - Klub | B80: CZ | C80: 2023 | D80: Toužim | E80: 8.7.-16.7.23 | F80: 6 | G80: 18 | H80: 0.9 | I80: 0.005 | J80: 0 | K80: =VLOOKUP(F80,Kp!$A$4:$B$24,2,FALSE) -> 0.01 | L80: =IF(H80=0,0,IF(OR(F80=0,F80=1,F80=2),0,IF(G80<10,0,SUM(H80:K80)))) -> 0.915 | M80: =L80-H80 -> 0.015 | O80: https://www.soaringspot.com/en_gb/tcup2023/results/klub
A81: Toužim Cup 2023 - Kombi | B81: CZ | C81: 2023 | D81: Toužim | E81: 8.7.-16.7.23 | F81: 6 | G81: 26 | H81: 0.9 | I81: 0.015 | J81: 0 | K81: =VLOOKUP(F81,Kp!$A$4:$B$24,2,FALSE) -> 0.01 | L81: 0.925 | M81: 0.025 | O81: https://www.soaringspot.com/en_gb/tcup2023/results/kombi
A82: PMSR 2023 - Kombi Open | B82: SK | C82: 2023 | D82: Prievidza | E82: 9.7.-22.7.23 | F82: 10 | G82: 14 | H82: 0.9 | I82: 0.02 | J82: 0 | K82: =VLOOKUP(F82,Kp!$A$4:$B$24,2,FALSE) -> 0.03 | L82: =IF(H82=0,0,IF(OR(F82=0,F82=1,F82=2),0,IF(G82<10,0,SUM(H82:K82)))) -> 0.95 | M82: =L82-H82 -> 0.05 | O82: https://www.soaringspot.com/cs/slovak-gliding-nationals-pmsr-2023-prievidza-2023/results/kombi-b
A83: Cirrus GP 2023 - Klub | B83: CZ | C83: 2023 | D83: Křižanov | E83: 15.7.-22.7.23 | F83: 5 | G83: 12 | H83: 0.75 | I83: 0 | J83: 0 | K83: =VLOOKUP(F83,Kp!$A$4:$B$24,2,FALSE) -> 0.005 | L83: 0.755 | M83: 0.005 | O83: https://www.soaringspot.com/en_gb/cgp2023/results/cirrus-grand-prix
A84: Cirrus GP 2023 - Kombi 15m | B84: CZ | C84: 2023 | D84: Křižanov | E84: 15.7.-22.7.23 | F84: 4 | G84: 9 | H84: 0 | I84: 0 | J84: 0 | K84: =VLOOKUP(F84,Kp!$A$4:$B$24,2,FALSE) -> 0 | L84: =IF(H84=0,0,IF(OR(F84=0,F84=1,F84=2),0,IF(G84<10,0,SUM(H84:K84)))) -> 0 | M84: =L84-H84 -> 0 | O84: https://www.soaringspot.com/en_gb/cgp2023/results/15m-grand-prix
A85: PPV 2023 - Klub | B85: CZ | C85: 2023 | D85: Havlíčkův Brod | E85: 22.7-30.7.23 | F85: 4 | G85: 42 | H85: 0.9 | I85: 0 | J85: 0 | K85: =VLOOKUP(F85,Kp!$A$4:$B$24,2,FALSE) -> 0 | L85: 0.9 | M85: 0 | O85: https://www.soaringspot.com/en_gb/ppv2023-lkhb/results/klub
A86: PPV 2023 - Kombi | B86: CZ | C86: 2023 | D86: Havlíčkův Brod | E86: 22.7-30.7.23 | F86: 4 | G86: 19 | H86: 0.9 | I86: 0.02 | J86: 0 | K86: =VLOOKUP(F86,Kp!$A$4:$B$24,2,FALSE) -> 0 | L86: 0.92 | M86: 0.02 | O86: https://www.soaringspot.com/en_gb/ppv2023-lkhb/results/kombi
A87: EGC 2023 - 18m | B87: PL | C87: 2023 | D87: Leszno | E87: 26.7.-11.8.23 | F87: 7 | G87: 36 | H87: 1 | I87: 0.06 | J87: 0.02 | K87: =VLOOKUP(F87,Kp!$A$4:$B$24,2,FALSE) -> 0.015 | L87: 1.095 | M87: 0.095 | O87: https://www.soaringspot.com/cs/egc2023/results/18m
A88: EGC 2023 - Open | B88: PL | C88: 2023 | D88: Leszno | E88: 26.7.-11.8.23 | F88: 8 | G88: 15 | H88: 1 | I88: 0.03 | J88: 0.01 | K88: =VLOOKUP(F88,Kp!$A$4:$B$24,2,FALSE) -> 0.02 | L88: =IF(H88=0,0,IF(OR(F88=0,F88=1,F88=2),0,IF(G88<10,0,SUM(H88:K88)))) -> 1.06 | M88: =L88-H88 -> 0.06 | O88: https://www.soaringspot.com/cs/egc2023/results/open
A89: EGC 2023 - Duo 20m | B89: PL | C89: 2023 | D89: Leszno | E89: 26.7.-11.8.23 | F89: 8 | G89: 22 | H89: 1 | I89: 0.035 | J89: 0.03 | K89: =VLOOKUP(F89,Kp!$A$4:$B$24,2,FALSE) -> 0.02 | L89: 1.085 | M89: 0.085 | O89: https://www.soaringspot.com/cs/egc2023/results/20m-multi-seat
A90: JEGC 2023 - Klub | B90: DK | C90: 2023 | D90: Arnborg | E90: 29.7.-12.8.23 | F90: 4 | G90: 36 | H90: 1 | I90: 0.01 | J90: 0.01 | K90: =VLOOKUP(F90,Kp!$A$4:$B$24,2,FALSE) -> 0 | L90: 1.02 | M90: 0.02 | O90: https://www.soaringspot.com/cs/6th-fai-junior-european-gliding-championship-2023/results/club
A91: JEGC 2023 - Std | B91: DK | C91: 2023 | D91: Arnborg | E91: 29.7.-12.8.23 | F91: 4 | G91: 20 | H91: 1 | I91: 0 | J91: 0.02 | K91: =VLOOKUP(F91,Kp!$A$4:$B$24,2,FALSE) -> 0 | L91: 1.02 | M91: 0.02 | O91: https://www.soaringspot.com/cs/6th-fai-junior-european-gliding-championship-2023/results/standard
A92: PMČR 2023 - Klub | B92: CZ | C92: 2023 | D92: Moravská Třebová | E92: 14.8.-25.8.23 | F92: 9 | G92: 16 | H92: 1 | I92: 0.015 | J92: 0.01 | K92: =VLOOKUP(F92,Kp!$A$4:$B$24,2,FALSE) -> 0.025 | L92: 1.05 | M92: 0.05 | O92: https://www.soaringspot.com/en_gb/plachtarske-mistrovstvi-cr-2023-moravska-trebova-2023/results/klubova-trida
A93: PMČR 2023 - Kombi 15m | B93: CZ | C93: 2023 | D93: Moravská Třebová | E93: 14.8.-25.8.23 | F93: 9 | G93: 10 | H93: 1 | I93: 0.02 | J93: 0 | K93: =VLOOKUP(F93,Kp!$A$4:$B$24,2,FALSE) -> 0.025 | L93: 1.045 | M93: 0.045 | O93: https://www.soaringspot.com/en_gb/plachtarske-mistrovstvi-cr-2023-moravska-trebova-2023/results/kombi-15m
A94: PMČR 2023 - Kombi Open | B94: CZ | C94: 2023 | D94: Moravská Třebová | E94: 14.8.-25.8.23 | F94: 9 | G94: 11 | H94: 1 | I94: 0.025 | J94: 0.01 | K94: =VLOOKUP(F94,Kp!$A$4:$B$24,2,FALSE) -> 0.025 | L94: 1.06 | M94: 0.06 | O94: https://www.soaringspot.com/en_gb/plachtarske-mistrovstvi-cr-2023-moravska-trebova-2023/results/kombi-open
A95: WGC 2023 - Klub | B95: AU | C95: 2023 | D95: Narromine | E95: 2.12.-17.12.23 | F95: 10 | G95: 30 | H95: 1 | I95: 0.05 | J95: 0.03 | K95: =VLOOKUP(F95,Kp!$A$4:$B$24,2,FALSE) -> 0.03 | L95: 1.11 | M95: 0.11 | O95: https://www.soaringspot.com/cs/37th-fai-world-gliding-championships-narromine-2023/results/club
A96: WGC 2023 - Std | B96: AU | C96: 2023 | D96: Narromine | E96: 2.12.-17.12.23 | F96: 10 | G96: 21 | H96: 1 | I96: 0.045 | J96: 0.03 | K96: =VLOOKUP(F96,Kp!$A$4:$B$24,2,FALSE) -> 0.03 | L96: 1.105 | M96: 0.105 | O96: https://www.soaringspot.com/cs/37th-fai-world-gliding-championships-narromine-2023/results/standard
A97: WGC 2023 - 15m | B97: AU | C97: 2023 | D97: Narromine | E97: 2.12.-17.12.23 | F97: 10 | G97: 27 | H97: 1 | I97: 0.065 | J97: 0.03 | K97: =VLOOKUP(F97,Kp!$A$4:$B$24,2,FALSE) -> 0.03 | L97: 1.125 | M97: 0.125 | O97: https://www.soaringspot.com/cs/37th-fai-world-gliding-championships-narromine-2023/results/15m
A98: Zařazené soutěže 2024:
A99: Podbrdský pohár 2024 - Kombi | B99: CZ | C99: 2024 | D99: Letkov | E99: 27.4.-4.5.24 | F99: 3 | G99: 10 | H99: 0.75 | I99: 0 | J99: 0 | K99: =VLOOKUP(F99,Kp!$A$4:$B$24,2,FALSE) -> -0.02 | L99: =IF(H99=0,0,IF(OR(F99=0,F99=1,F99=2),0,IF(G99<10,0,SUM(H99:K99)))) -> 0.73 | M99: =L99-H99 -> -0.02 | O99: https://www.soaringspot.com/en_gb/pp2024/results/kombi
A100: JPJ 2024 - Klub | B100: CZ | C100: 2024 | D100: Šumperk | E100: 4.5.-11.5.24 | F100: 4 | G100: 32 | H100: 0.9 | I100: 0 | J100: 0 | K100: =VLOOKUP(F100,Kp!$A$4:$B$24,2,FALSE) -> 0 | L100: 0.9 | M100: 0 | O100: https://www.soaringspot.com/en_gb/jpj2024/results/klubova-trida
A101: JPJ 2024 - Kombi | B101: CZ | C101: 2024 | D101: Šumperk | E101: 4.5.-11.5.24 | F101: 5 | G101: 24 | H101: 0.9 | I101: 0.01 | J101: 0.01 | K101: =VLOOKUP(F101,Kp!$A$4:$B$24,2,FALSE) -> 0.005 | L101: 0.925 | M101: 0.025 | O101: https://www.soaringspot.com/en_gb/jpj2024/results/kombi-trida
A102: AZ Cup 2024 - Klub | B102: CZ | C102: 2024 | D102: Zbraslavice | E102: 24.5.-1.6.24 | F102: 3 | G102: 28 | H102: 0.9 | I102: 0.02 | J102: 0.02 | K102: =VLOOKUP(F102,Kp!$A$4:$B$24,2,FALSE) -> -0.02 | L102: 0.92 | M102: 0.02 | O102: https://www.soaringspot.com/en_gb/az-cup-2024-zbraslavice-2024/results/club
A103: AZ Cup 2024 - Kombi 15m | B103: CZ | C103: 2024 | D103: Zbraslavice | E103: 24.5.-1.6.24 | F103: 3 | G103: 15 | H103: 0.9 | I103: 0.015 | J103: 0.03 | K103: =VLOOKUP(F103,Kp!$A$4:$B$24,2,FALSE) -> -0.02 | L103: 0.925 | M103: 0.025 | O103: https://www.soaringspot.com/en_gb/az-cup-2024-zbraslavice-2024/results/klub
A104: AZ Cup 2024 - Kombi Open | B104: CZ | C104: 2024 | D104: Zbraslavice | E104: 24.5.-1.6.24 | F104: 2 | G104: 39 | H104: 0 | I104: 0 | J104: 0 | K104: =VLOOKUP(F104,Kp!$A$4:$B$24,2,FALSE) -> 0 | L104: 0 | M104: 0 | O104: https://www.soaringspot.com/en_gb/az-cup-2024-zbraslavice-2024/results/open-mixed
A105: PMČR 2024 - Klub | B105: CZ | C105: 2024 | D105: Toužim | E105: 8.6.-21.6.24 | F105: 6 | G105: 27 | H105: 1 | I105: 0.03 | J105: 0.02 | K105: =VLOOKUP(F105,Kp!$A$4:$B$24,2,FALSE) -> 0.01 | L105: 1.06 | M105: 0.06 | O105: https://www.soaringspot.com/en_gb/plachtarske-mistrovstvi-cr-2024-touzim-2024/results/klub
A106: PMČR 2024 - Kombi 15m | B106: CZ | C106: 2024 | D106: Toužim | E106: 8.6.-21.6.24 | F106: 6 | G106: 11 | H106: 1 | I106: 0.025 | J106: 0.01 | K106: =VLOOKUP(F106,Kp!$A$4:$B$24,2,FALSE) -> 0.01 | L106: 1.045 | M106: 0.045 | O106: https://www.soaringspot.com/en_gb/plachtarske-mistrovstvi-cr-2024-touzim-2024/results/15m
A107: PMČR 2024 - Kombi Open | B107: CZ | C107: 2024 | D107: Toužim | E107: 8.6.-21.6.24 | F107: 6 | G107: 21 | H107: 1 | I107: 0.05 | J107: 0.03 | K107: =VLOOKUP(F107,Kp!$A$4:$B$24,2,FALSE) -> 0.01 | L107: 1.09 | M107: 0.09 | O107: https://www.soaringspot.com/en_gb/plachtarske-mistrovstvi-cr-2024-touzim-2024/results/open
A108: PMRg 2024 - Klub | B108: CZ | C108: 2024 | D108: Hodkovice | E108: 27.6.-6.7.24 | F108: 3 | G108: 23 | H108: 0.9 | I108: 0 | J108: 0 | K108: =VLOOKUP(F108,Kp!$A$4:$B$24,2,FALSE) -> -0.02 | L108: =IF(H108=0,0,IF(OR(F108=0,F108=1,F108=2),0,IF(G108<10,0,SUM(H108:K108)))) -> 0.88 | M108: =L108-H108 -> -0.02 | O108: https://www.soaringspot.com/en_gb/mistrovstvi-ceske-republiky-regionu-2024-hodkovice/results/klubova-trida
A109: PMRg 2024 - Kombi | B109: CZ | C109: 2024 | D109: Hodkovice | E109: 27.6.-6.7.24 | F109: 3 | G109: 10 | H109: 0.9 | I109: 0.02 | J109: 0 | K109: =VLOOKUP(F109,Kp!$A$4:$B$24,2,FALSE) -> -0.02 | L109: =IF(H109=0,0,IF(OR(F109=0,F109=1,F109=2),0,IF(G109<10,0,SUM(H109:K109)))) -> 0.9 | M109: =L109-H109 -> 0 | O109: https://www.soaringspot.com/en_gb/mistrovstvi-ceske-republiky-regionu-2024-hodkovice/results/kombi-open
A110: PMČRj 2024 - Klub | B110: CZ | C110: 2024 | D110: Hodkovice | E110: 27.6.-6.7.24 | F110: 3 | G110: 34 | H110: 0.9 | I110: 0.01 | J110: 0.02 | K110: =VLOOKUP(F110,Kp!$A$4:$B$24,2,FALSE) -> -0.02 | L110: 0.91 | M110: 0.01 | O110: https://www.soaringspot.com/en_gb/plachtarske-mistrovstvi-cr-junioru-2024-hodkovice/results/klubova-trida
A111: FL 2024 - Klub | B111: CZ | C111: 2024 | D111: Frýdlant n/Ostr. | E111: 28.6.-6.7.24 | F111: 5 | G111: 16 | H111: 0.75 | I111: 0 | J111: 0 | K111: =VLOOKUP(F111,Kp!$A$4:$B$24,2,FALSE) -> 0.005 | L111: =IF(H111=0,0,IF(OR(F111=0,F111=1,F111=2),0,IF(G111<10,0,SUM(H111:K111)))) -> 0.755 | M111: =L111-H111 -> 0.005 | O111: https://www.soaringspot.com/en_gb/fl-2024-frydlant-2024/results/fl-klub
A112: FL 2024 - Kombi | B112: CZ | C112: 2024 | D112: Frýdlant n/Ostr. | E112: 28.6.-6.7.24 | F112: 3 | G112: 7 | H112: 0 | I112: 0.01 | J112: 0 | K112: =VLOOKUP(F112,Kp!$A$4:$B$24,2,FALSE) -> -0.02 | L112: 0 | M112: 0 | O112: https://www.soaringspot.com/en_gb/fl-2024-frydlant-2024/results/fl-kombi
A113: Safari Cup 2024 - Klub | B113: CZ | C113: 2024 | D113: Dvůr Králové | E113: 4.7.-14.7.24 | F113: 3 | G113: 27 | H113: 0.75 | I113: 0 | J113: 0 | K113: =VLOOKUP(F113,Kp!$A$4:$B$24,2,FALSE) -> -0.02 | L113: =IF(H113=0,0,IF(OR(F113=0,F113=1,F113=2),0,IF(G113<10,0,SUM(H113:K113)))) -> 0.73 | M113: =L113-H113 -> -0.02 | O113: https://www.soaringspot.com/en_gb/safari-2024-dvur-kralove-nad-labem-2024/results/klub
A114: Safari Cup 2024 - Kombi | B114: CZ | C114: 2024 | D114: Dvůr Králové | E114: 4.7.-14.7.24 | F114: 4 | G114: 10 | H114: 0.75 | I114: 0 | J114: 0 | K114: =VLOOKUP(F114,Kp!$A$4:$B$24,2,FALSE) -> 0 | L114: =IF(H114=0,0,IF(OR(F114=0,F114=1,F114=2),0,IF(G114<10,0,SUM(H114:K114)))) -> 0.75 | M114: =L114-H114 -> 0 | O114: https://www.soaringspot.com/en_gb/safari-2024-dvur-kralove-nad-labem-2024/results/volna
A115: Toužim Cup 2024 - Klub | B115: CZ | C115: 2024 | D115: Toužim | E115: 5.7.-13.7.24 | F115: 4 | G115: 23 | H115: 0.9 | I115: 0.01 | J115: 0 | K115: =VLOOKUP(F115,Kp!$A$4:$B$24,2,FALSE) -> 0 | L115: =IF(H115=0,0,IF(OR(F115=0,F115=1,F115=2),0,IF(G115<10,0,SUM(H115:K115)))) -> 0.91 | M115: =L115-H115 -> 0.01 | O115: https://www.soaringspot.com/en_gb/tcup2024/results/klub
A116: Toužim Cup 2024 - Kombi | B116: CZ | C116: 2024 | D116: Toužim | E116: 5.7.-13.7.24 | F116: 4 | G116: 32 | H116: 0.9 | I116: 0.015 | J116: 0 | K116: =VLOOKUP(F116,Kp!$A$4:$B$24,2,FALSE) -> 0 | L116: =IF(H116=0,0,IF(OR(F116=0,F116=1,F116=2),0,IF(G116<10,0,SUM(H116:K116)))) -> 0.915 | M116: =L116-H116 -> 0.015 | O116: https://www.soaringspot.com/en_gb/tcup2024/results/kombi
A117: PPV 2024 - Klub | B117: CZ | C117: 2024 | D117: Havlíčkův Brod | E117: 20.7.-27.7.24 | F117: 6 | G117: 30 | H117: 0.9 | I117: 0.05 | J117: 0 | K117: =VLOOKUP(F117,Kp!$A$4:$B$24,2,FALSE) -> 0.01 | L117: =IF(H117=0,0,IF(OR(F117=0,F117=1,F117=2),0,IF(G117<10,0,SUM(H117:K117)))) -> 0.96 | M117: =L117-H117 -> 0.06 | O117: https://www.soaringspot.com/en_gb/plachtarsky-pohar-vysociny-2024-havlickuv-brod-2024/results/klubova-trida
A118: PPV 2024 - Kombi | B118: CZ | C118: 2024 | D118: Havlíčkův Brod | E118: 20.7.-27.7.24 | F118: 6 | G118: 31 | H118: 0.9 | I118: 0.015 | J118: 0 | K118: =VLOOKUP(F118,Kp!$A$4:$B$24,2,FALSE) -> 0.01 | L118: 0.925 | M118: 0.025 | O118: https://www.soaringspot.com/en_gb/plachtarsky-pohar-vysociny-2024-havlickuv-brod-2024/results/kombinovana-trida
A119: Pohár Českého Ráje 2024 - Klub | B119: CZ | C119: 2024 | D119: Jičín | E119: 26.7.-3.8.24 | F119: 3 | G119: 14 | H119: 0.75 | I119: 0 | J119: 0 | K119: =VLOOKUP(F119,Kp!$A$4:$B$24,2,FALSE) -> -0.02 | L119: =IF(H119=0,0,IF(OR(F119=0,F119=1,F119=2),0,IF(G119<10,0,SUM(H119:K119)))) -> 0.73 | M119: =L119-H119 -> -0.02 | O119: https://www.soaringspot.com/en_gb/pohar-ceskeho-raje-2024-jicin-2024/results/club
A120: Ranský pohár 2024 - Klub | B120: CZ | C120: 2024 | D120: Raná | E120: 27.7.-3.8.24 | F120: 7 | G120: 22 | H120: 0.75 | I120: 0 | J120: 0 | K120: =VLOOKUP(F120,Kp!$A$4:$B$24,2,FALSE) -> 0.015 | L120: =IF(H120=0,0,IF(OR(F120=0,F120=1,F120=2),0,IF(G120<10,0,SUM(H120:K120)))) -> 0.765 | M120: =L120-H120 -> 0.015 | O120: https://www.soaringspot.com/en_gb/ransky-pohar-2024-rana-loumy-2024/results/combi
A121: Rakovnická Dlaždice 2024 - Kombi | B121: CZ | C121: 2024 | D121: Rakovník | E121: 3.8.-10.8.24 | F121: 5 | G121: 20 | H121: 0.75 | I121: 0 | J121: 0 | K121: =VLOOKUP(F121,Kp!$A$4:$B$24,2,FALSE) -> 0.005 | L121: =IF(H121=0,0,IF(OR(F121=0,F121=1,F121=2),0,IF(G121<10,0,SUM(H121:K121)))) -> 0.755 | M121: =L121-H121 -> 0.005 | O121: https://www.soaringspot.com/en_gb/rakovnicka-dlazdice-2024-rakovnik-2024/results/club
A122: EGC 2024 - Klub | B122: CZ | C122: 2024 | D122: Tábor | E122: 3.8.-17.8.24 | F122: 11 | G122: 40 | H122: 1 | I122: 0.05 | J122: 0.02 | K122: =VLOOKUP(F122,Kp!$A$4:$B$24,2,FALSE) -> 0.03 | L122: =IF(H122=0,0,IF(OR(F122=0,F122=1,F122=2),0,IF(G122<10,0,SUM(H122:K122)))) -> 1.1 | M122: =L122-H122 -> 0.1 | O122: https://www.soaringspot.com/en_gb/22nd-fai-european-gliding-championships-tabor-2024/results/club
A123: EGC 2024 - Std | B123: CZ | C123: 2024 | D123: Tábor | E123: 3.8.-17.8.24 | F123: 11 | G123: 33 | H123: 1 | I123: 0.065 | J123: 0.03 | K123: =VLOOKUP(F123,Kp!$A$4:$B$24,2,FALSE) -> 0.03 | L123: =IF(H123=0,0,IF(OR(F123=0,F123=1,F123=2),0,IF(G123<10,0,SUM(H123:K123)))) -> 1.125 | M123: =L123-H123 -> 0.125 | O123: https://www.soaringspot.com/en_gb/22nd-fai-european-gliding-championships-tabor-2024/results/standard
A124: EGC 2024 - 15m | B124: CZ | C124: 2024 | D124: Tábor | E124: 3.8.-17.8.24 | F124: 11 | G124: 27 | H124: 1 | I124: 0.03 | J124: 0.03 | K124: =VLOOKUP(F124,Kp!$A$4:$B$24,2,FALSE) -> 0.03 | L124: 1.09 | M124: 0.09 | O124: https://www.soaringspot.com/en_gb/22nd-fai-european-gliding-championships-tabor-2024/results/15-meter
A125: GGP MB 2024 - Klub GP | B125: CZ | C125: 2024 | D125: Mladá Boleslav | E125: 24.8.-31.8.24 | F125: 3 | G125: 12 | H125: 0.9 | I125: 0 | J125: 0 | K125: =VLOOKUP(F125,Kp!$A$4:$B$24,2,FALSE) -> -0.02 | L125: =IF(H125=0,0,IF(OR(F125=0,F125=1,F125=2),0,IF(G125<10,0,SUM(H125:K125)))) -> 0.88 | M125: =L125-H125 -> -0.02 | O125: https://www.soaringspot.com/en_gb/ggp2024/results/club-gp
A126: GGP MB 2024 - Pohár MV - Kombi | B126: CZ | C126: 2024 | D126: Mladá Boleslav | E126: 24.8.-31.8.24 | F126: 3 | G126: 13 | H126: 0.75 | I126: 0.015 | J126: 0 | K126: =VLOOKUP(F126,Kp!$A$4:$B$24,2,FALSE) -> -0.02 | L126: =IF(H126=0,0,IF(OR(F126=0,F126=1,F126=2),0,IF(G126<10,0,SUM(H126:K126)))) -> 0.745 | M126: =L126-H126 -> -0.005 | O126: https://www.soaringspot.com/en_gb/ggp2024/results/pohar-metodeje-vlach
A127: JWGC 2024 - Klub | B127: PL | C127: 2024 | D127: Ostrow Wielkopolski | E127: 14.7.-26.7.24 | F127: 11 | G127: 44 | H127: 1 | I127: 0.01 | J127: 0.03 | K127: =VLOOKUP(F127,Kp!$A$4:$B$24,2,FALSE) -> 0.03 | L127: =IF(H127=0,0,IF(OR(F127=0,F127=1,F127=2),0,IF(G127<10,0,SUM(H127:K127)))) -> 1.07 | M127: =L127-H127 -> 0.07 | O127: https://www.soaringspot.com/en_gb/jwgc2024/results/club
A128: JWGC 2024 - Std | B128: PL | C128: 2024 | D128: Ostrow Wielkopolski | E128: 14.7.-26.7.24 | F128: 11 | G128: 23 | H128: 1 | I128: 0.03 | J128: 0.03 | K128: =VLOOKUP(F128,Kp!$A$4:$B$24,2,FALSE) -> 0.03 | L128: 1.09 | M128: 0.09 | O128: https://www.soaringspot.com/en_gb/jwgc2024/results/standard
A129: Pribina Cup 2024 - Klub | B129: SK | C129: 2024 | D129: Nitra | E129: 29.3.-6.4.24 | F129: 6 | G129: 11 | H129: 0.9 | I129: 0.005 | J129: 0 | K129: =VLOOKUP(F129,Kp!$A$4:$B$24,2,FALSE) -> 0.01 | L129: =IF(H129=0,0,IF(OR(F129=0,F129=1,F129=2),0,IF(G129<10,0,SUM(H129:K129)))) -> 0.915 | M129: =L129-H129 -> 0.015 | O129: https://www.soaringspot.com/en_gb/pribina-cup-2024-nitra-2024/results/15-meter
A130: Pribina Cup 2024 - Kombi Open | B130: SK | C130: 2024 | D130: Nitra | E130: 29.3.-6.4.24 | F130: 6 | G130: 21 | H130: 0.9 | I130: 0.03 | J130: 0.01 | K130: =VLOOKUP(F130,Kp!$A$4:$B$24,2,FALSE) -> 0.01 | L130: =IF(H130=0,0,IF(OR(F130=0,F130=1,F130=2),0,IF(G130<10,0,SUM(H130:K130)))) -> 0.95 | M130: =L130-H130 -> 0.05 | O130: https://www.soaringspot.com/en_gb/pribina-cup-2024-nitra-2024/results/open
A131: Fatraglide 2024 - Klub | B131: SK | C131: 2024 | D131: Martin | E131: 28.4.-7.5.24 | F131: 7 | G131: 29 | H131: 0.75 | I131: 0 | J131: 0 | K131: =VLOOKUP(F131,Kp!$A$4:$B$24,2,FALSE) -> 0.015 | L131: =IF(H131=0,0,IF(OR(F131=0,F131=1,F131=2),0,IF(G131<10,0,SUM(H131:K131)))) -> 0.765 | M131: =L131-H131 -> 0.015 | O131: https://www.soaringspot.com/en_gb/fatraglide24/results/club
A132: Fatraglide 2024 - Kombi | B132: SK | C132: 2024 | D132: Martin | E132: 28.4.-7.5.24 | F132: 7 | G132: 28 | H132: 0.75 | I132: 0 | J132: 0 | K132: =VLOOKUP(F132,Kp!$A$4:$B$24,2,FALSE) -> 0.015 | L132: =IF(H132=0,0,IF(OR(F132=0,F132=1,F132=2),0,IF(G132<10,0,SUM(H132:K132)))) -> 0.765 | M132: =L132-H132 -> 0.015 | O132: https://www.soaringspot.com/en_gb/fatraglide24/results/combi
A133: PMSR 2024 - Kombi | B133: SK | C133: 2024 | D133: Prievidza | E133: 23.6.-6.7.24 | F133: 8 | G133: 20 | H133: 0.9 | I133: 0.005 | J133: 0.01 | K133: =VLOOKUP(F133,Kp!$A$4:$B$24,2,FALSE) -> 0.02 | L133: =IF(H133=0,0,IF(OR(F133=0,F133=1,F133=2),0,IF(G133<10,0,SUM(H133:K133)))) -> 0.935 | M133: =L133-H133 -> 0.035 | O133: https://www.soaringspot.com/en_gb/slovak-gliding-nationals-pmsr-2024-pre-jegc2025-prievidza/results/kombi
A134: Lilienthal Glide 2024 - Duo 20m | B134: DE | C134: 2024 | D134: Lüsse | E134: 3.8.-11.8.24 | F134: 5 | G134: 28 | H134: 0.75 | I134: 0.005 | J134: 0 | K134: =VLOOKUP(F134,Kp!$A$4:$B$24,2,FALSE) -> 0.005 | L134: =IF(H134=0,0,IF(OR(F134=0,F134=1,F134=2),0,IF(G134<10,0,SUM(H134:K134)))) -> 0.76 | M134: =L134-H134 -> 0.01 | O134: https://www.soaringspot.com/en_gb/lilienthal-glide-2024/results/doppelsitzer-klasse
A135: Hahnweide 2024 - Duo 20m | B135: DE | C135: 2024 | D135: Hahnweide | E135: 4.5.-11.5.24 | F135: 4 | G135: 20 | H135: 0.9 | I135: 0.03 | J135: 0 | K135: =VLOOKUP(F135,Kp!$A$4:$B$24,2,FALSE) -> 0 | L135: 0.93 | M135: 0.03 | O135: https://www.soaringspot.com/en_gb/56-hww/results/dosi
A136: WGC 2024 - 18m | B136: US | C136: 2024 | D136: Uvalde | E136: 18.8.-31.8.24 | F136: 11 | G136: 32 | H136: 1 | I136: 0.075 | J136: 0.03 | K136: =VLOOKUP(F136,Kp!$A$4:$B$24,2,FALSE) -> 0.03 | L136: =IF(H136=0,0,IF(OR(F136=0,F136=1,F136=2),0,IF(G136<10,0,SUM(H136:K136)))) -> 1.135 | M136: =L136-H136 -> 0.135 | O136: https://www.soaringspot.com/en_gb/38th-fai-world-gliding-championship-uvalde-garner-field-2024/results/18-meter
A137: WGC 2024 - Duo 20m | B137: US | C137: 2024 | D137: Uvalde | E137: 18.8.-31.8.24 | F137: 11 | G137: 16 | H137: 1 | I137: 0.02 | J137: 0.035 | K137: =VLOOKUP(F137,Kp!$A$4:$B$24,2,FALSE) -> 0.03 | L137: 1.085 | M137: 0.085 | O137: https://www.soaringspot.com/en_gb/38th-fai-world-gliding-championship-uvalde-garner-field-2024/results/double-seater
A138: WGC 2024 - Open | B138: US | C138: 2024 | D138: Uvalde | E138: 18.8.-31.8.24 | F138: 12 | G138: 17 | H138: 1 | I138: 0.03 | J138: 0.03 | K138: =VLOOKUP(F138,Kp!$A$4:$B$24,2,FALSE) -> 0.03 | L138: 1.09 | M138: 0.09 | O138: https://www.soaringspot.com/en_gb/38th-fai-world-gliding-championship-uvalde-garner-field-2024/results/open

Sheet Kp (hidden)
A1: Korekce na počet platných disciplín
A3: Počet platných disciplín | B3: Korekce Kp
A4: 0 | B4: 0
A5: 1 | B5: 0
A6: 2 | B6: 0
A7: 3 | B7: -0.02
A8: 4 | B8: 0
A9: 5 | B9: 0.005
A10: 6 | B10: 0.01
A11: 7 | B11: 0.015
A12: 8 | B12: 0.02
A13: 9 | B13: 0.025
A14: 10 | B14: 0.03
A15: 11 | B15: 0.03
A16: 12 | B16: 0.03
A17: 13 | B17: 0.03
A18: 14 | B18: 0.03
A19: 15 | B19: 0.03
A20: 16 | B20: 0.03
A21: 17 | B21: 0.03
A22: 18 | B22: 0.03
A23: 19 | B23: 0.03
A24: 20 | B24: 0.03

Sheet Pilot
A1: Jmeno | B1: Rok nar. | C1: Aeroklub | D1: Region | E1: M/F | F1: Junior v roce | G1: 2025 | H1: Hranice pro juniory: / Poznámka: | I1: =G1-25 -> 2000 | J1: Počet Jun: | K1: =COUNTIF(F2:F2226,"Junior v roce "&G1) -> 67 | L1: Počet F: | M1: =COUNTIF(E2:E2226,"F") -> 78 | N1: Počet M: | O1: =COUNTIF(E2:E2226,"M") -> 980 | P1: Počet celk: | Q1: =COUNTIF(A2:A2226,"<>") -> 1059
A2: - | D2: Region
A3: Adam Hepal | B3: 2004 | C3: Moravská Třebová | D3: =VLOOKUP(C3,Region,2,0) -> CZ/M | E3: M | F3: =IF(A3="(prázdné)","",IF(($G$1-B3)>25,"","Junior v roce "&$G$1)) -> Junior v roce 2025 | H3: Kolín do 2022
A4: Adam Jandora | B4: 1992 | C4: Medlánky | D4: =VLOOKUP(C4,Region,2,0) -> CZ/M | E4: M | F4: =IF(A4="(prázdné)","",IF(($G$1-B4)>25,"","Junior v roce "&$G$1)) -> 
A5: Adam Laburda | B5: 2005 | C5: Raná | D5: =VLOOKUP(C5,Region,2,0) -> CZ/C2 | E5: M | F5: =IF(A5="(prázdné)","",IF(($G$1-B5)>25,"","Junior v roce "&$G$1)) -> Junior v roce 2025
A6: Adam Olejar | B6: 1991 | C6: Medlánky | D6: CZ/M | E6: M | F6: =IF(A6="(prázdné)","",IF(($G$1-B6)>25,"","Junior v roce "&$G$1)) -> 
A7: Adam Pergner | B7: 2002 | C7: Rakovník | D7: =VLOOKUP(C7,Region,2,0) -> CZ/C1 | E7: M | F7: =IF(A7="(prázdné)","",IF(($G$1-B7)>25,"","Junior v roce "&$G$1)) -> Junior v roce 2025
A8: Adam Sostaric | B8: 1991 | C8: Chrudim | D8: CZ/C2 | E8: M
A9: Adam Sugl | B9: 1987 | C9: Vyškov | D9: CZ/M | E9: M
A10: Albert Schneider | B10: 1967 | C10: Hranice | D10: =VLOOKUP(C10,Region,2,0) -> CZ/M | E10: M
A11: Alena Netusilova | B11: 1970 | C11: Zbraslavice | D11: CZ/C1 | E11: F
A12: Ales Cervenka | B12: 1981 | C12: Soběslav | D12: CZ/C1 | E12: M
A13: Ales Hajek | B13: 1958 | C13: Mladá Boleslav | D13: CZ/C1 | E13: M
A14: Ales Hala | B14: 1994 | C14: Tábor | D14: CZ/C1 | E14: M
A15: Ales Holoubek | B15: 1966 | C15: Jičín | D15: CZ/C2 | E15: M
A16: Ales Nestrojil | B16: 1980 | C16: Medlánky | D16: =VLOOKUP(C16,Region,2,0) -> CZ/M | E16: M | F16: =IF(A16="(prázdné)","",IF(($G$1-B16)>25,"","Junior v roce "&$G$1)) -> 
A17: Ales Tresl | B17: 1958 | C17: Raná | D17: CZ/C2 | E17: M
A18: Ales Vorac | B18: 1985 | C18: Křižanov | D18: CZ/M | E18: M
A19: Ales Vyhnal | B19: 1989 | C19: Kralupy | D19: CZ/C1 | E19: M
A20: Alex Gulich | B20: 2005 | C20: Slaný | D20: =VLOOKUP(C20,Region,2,0) -> CZ/C1 | E20: M | F20: Junior v roce 2025
A21: Alexander Nerandzic | B21: 1966 | C21: Raná | D21: CZ/C2 | E21: M
A22: Alois Cmajdalka | B22: 1963 | C22: Kunovice | D22: CZ/M | E22: M
A23: Alois Sohr | B23: 1939 | C23: Hranice | D23: CZ/M | E23: M
A24: Andrea Bensova | B24: 1978 | C24: Zbraslavice | D24: CZ/C1 | E24: F
A25: Aneta Prachtova | B25: 1991 | C25: Kralupy | D25: CZ/C1 | E25: F
A26: Anna Bordovska | B26: 1989 | C26: Mladá Boleslav | D26: CZ/C1 | E26: F
A27: Anna Lanzendorfova | B27: 2005 | C27: Letkov | D27: =VLOOKUP(C27,Region,2,0) -> CZ/C1 | E27: F | F27: =IF(A27="(prázdné)","",IF(($G$1-B27)>25,"","Junior v roce "&$G$1)) -> Junior v roce 2025
A28: Antonin Bordovsky | B28: 1951 | C28: Krnov | D28: CZ/M | E28: M
A29: Antonin Bruna | B29: 1945 | C29: GAC Benešov | D29: CZ/C1 | E29: M
A30: Antonin Burger | B30: 1943 | C30: Panenský Týnec | D30: CZ/C1 | E30: M
A31: Antonin Konicek | B31: 1973 | C31: Kunovice | D31: CZ/M | E31: M
A32: Antonin Kutalek | B32: 1943 | C32: Zábřeh | D32: CZ/M | E32: M
A33: Antonin Novotny | B33: 1972 | C33: Luhačovice | D33: CZ/M | E33: M
A34: Antonin Otrusina | B34: 1948 | C34: Křižanov | D34: CZ/M | E34: M
A35: Antonin Pilat | B35: 1971 | C35: Vyškov | D35: CZ/M | E35: M
A36: Antonin Teichmann | B36: 1965 | C36: Hronov | D36: CZ/C2 | E36: M
A37: Barbora Kubickova | B37: 1993 | C37: Medlánky | D37: CZ/M | E37: F
A38: Barbora Moravcova | B38: 1994 | C38: Zbraslavice | D38: CZ/C1 | E38: F
A39: Barbora Nahodilova | B39: 1989 | C39: Hosín | D39: CZ/C1 | E39: F
A40: Beat Albrecht | B40: 1953 | C40: Šumperk | D40: =VLOOKUP(C40,Region,2,0) -> CZ/M | E40: M | F40: =IF(A40="(prázdné)","",IF(($G$1-B40)>25,"","Junior v roce "&$G$1)) -> 
A41: Bedrich Honzicek | B41: 1972 | C41: Letňany | D41: =VLOOKUP(C41,Region,2,0) -> CZ/C1 | E41: M
A42: Bedrich Prochazka | B42: 1957 | C42: Rakovník | D42: CZ/C1 | E42: M
A43: Bohdan Sebestik | B43: 1957 | C43: Kroměříž | D43: CZ/M | E43: M
A44: Bohumil Kunc | B44: 1983 | C44: Kunovice | D44: CZ/M | E44: M
A45: Bohumil Rikal | B45: 1946 | C45: Hronov | D45: CZ/C2 | E45: M
A46: Bohumil Svec | B46: 1985 | C46: Roudnice | D46: CZ/C2 | E46: M
A47: Bohumir Zajdl | B47: 1950 | C47: Dvůr Králové | D47: CZ/C2 | E47: M
A48: Bohus Marcinik | B48: 1947 | C48: Příbram | D48: CZ/C1 | E48: M
A49: Boris Bachraty | B49: 1974 | C49: Kyjov | D49: CZ/M | E49: M | H49: Dříve Břeclav
A50: Boris Guic | B50: 1966 | C50: Zbraslavice | D50: =VLOOKUP(C50,Region,2,0) -> CZ/C1 | E50: M | F50: =IF(A50="(prázdné)","",IF(($G$1-B50)>25,"","Junior v roce "&$G$1)) -> 
A51: Bronislav Smatana | B51: 1970 | C51: Zbraslavice | D51: CZ/C1 | E51: M
A52: Carsten Tietz | B52: 1966 | C52: Hronov | D52: =VLOOKUP(C52,Region,2,0) -> CZ/C2 | E52: M
A53: Christof Madoery | B53: 1958 | C53: Šumperk | D53: =VLOOKUP(C53,Region,2,0) -> CZ/M | E53: M
A54: Dalibor Daricek | B54: 1993 | C54: Kunovice | D54: CZ/M | E54: M
A55: Dalibor Fencl | B55: 1966 | C55: Zbraslavice | D55: CZ/C1 | E55: M
A56: Dalibor Pek | B56: 1968 | C56: Raná | D56: CZ/C2 | E56: M
A57: Dana Novakova | B57: 1965 | C57: Mladá Boleslav | D57: CZ/C1 | E57: F
A58: Danes Grula | B58: 1961 | C58: Medlánky | D58: CZ/M | E58: M
A59: Daniel Adamec | B59: 1977 | C59: Hranice | D59: CZ/M | E59: M
A60: Daniel Brichta | B60: 1962 | C60: GAC Benešov | D60: =VLOOKUP(C60,Region,2,0) -> CZ/C1 | E60: M
A61: Daniel Devecka | B61: 1981 | C61: Vlašim | D61: =VLOOKUP(C61,Region,2,0) -> CZ/C1 | E61: M | F61: =IF(A61="(prázdné)","",IF(($G$1-B61)>25,"","Junior v roce "&$G$1)) -> 
A62: Daniel Dvorak | B62: 1980 | C62: Letkov | D62: CZ/C1 | E62: M
A63: Daniel Krasnicky | B63: 1984 | C63: Příbram | D63: CZ/C1 | E63: M
A64: Daniel Marek | B64: 1983 | C64: Hosín | D64: =VLOOKUP(C64,Region,2,0) -> CZ/C1 | E64: M
A65: Daniel Moravek | B65: 1973 | C65: Hodkovice | D65: CZ/C2 | E65: M
A66: Daniel Novak | B66: 1971 | C66: Letkov | D66: CZ/C1 | E66: M
A67: Daniel Ryba | B67: 1994 | C67: Dvůr Králové | D67: CZ/C2 | E67: M
A68: Daniel Suchy | B68: 1995 | C68: Hranice | D68: CZ/M | E68: M
A69: Daniela Frankova | B69: 1997 | C69: Jaroměř | D69: CZ/C2 | E69: M
A70: Daniela Stepankova | B70: 1988 | C70: Hosín | D70: CZ/C1 | E70: F
A71: David Benda | B71: 1974 | C71: Letňany | D71: =VLOOKUP(C71,Region,2,0) -> CZ/C1 | E71: M | F71: =IF(A71="(prázdné)","",IF(($G$1-B71)>25,"","Junior v roce "&$G$1)) -> 
A72: David Cisar | B72: 1987 | C72: Křižanov | D72: CZ/M | E72: M
A73: David Darnady | B73: 1987 | C73: Zbraslavice | D73: =VLOOKUP(C73,Region,2,0) -> CZ/C1 | E73: M | F73: =IF(A73="(prázdné)","",IF(($G$1-B73)>25,"","Junior v roce "&$G$1)) -> 
A74: David Kaspar | B74: 1993 | C74: Jaroměř | D74: =VLOOKUP(C74,Region,2,0) -> CZ/C2 | E74: M
A75: David Kraus | B75: 1990 | C75: Olomouc | D75: =VLOOKUP(C75,Region,2,0) -> CZ/M | E75: M | F75: =IF(A75="(prázdné)","",IF(($G$1-B75)>25,"","Junior v roce "&$G$1)) -> 
A76: David Krcil | B76: 1976 | C76: Raná | D76: =VLOOKUP(C76,Region,2,0) -> CZ/C2 | E76: M
A77: David Londa | B77: 1973 | C77: Mladá Boleslav | D77: CZ/C1 | E77: M
A78: David Mach | B78: 1994 | C78: Hronov | D78: CZ/C2 | E78: M
A79: David Marek | B79: 1991 | C79: Křižanov | D79: CZ/M | E79: M
A80: David Nenicka | B80: 2005 | C80: Hranice | D80: =VLOOKUP(C80,Region,2,0) -> CZ/M | E80: M | F80: =IF(A80="(prázdné)","",IF(($G$1-B80)>25,"","Junior v roce "&$G$1)) -> Junior v roce 2025
A81: David Novotny | B81: 1984 | C81: Polička | D81: CZ/C2 | E81: M
A82: David Popovsky | B82: 1976 | C82: Rakovník | D82: CZ/C1 | E82: M | F82: =IF(A82="(prázdné)","",IF(($G$1-B82)>25,"","Junior v roce "&$G$1)) -> 
A83: David Prihoda | B83: 1994 | C83: Hranice | D83: CZ/M | E83: M
A84: David Rozporka | B84: 1994 | C84: Hronov | D84: CZ/C2 | E84: M
A85: David Rytina | B85: 1983 | C85: Zbraslavice | D85: CZ/C1 | E85: M
A86: David Riha | B86: 1983 | C86: Vlašim | D86: CZ/C1 | E86: M
A87: David Sachl | B87: 1978 | C87: Kralupy | D87: CZ/C1 | E87: M
A88: David Tejnora | B88: 1982 | C88: Jaroměř | D88: CZ/C2 | E88: M
A89: David Trnecka | B89: 1979 | C89: Medlánky | D89: CZ/M | E89: M
A90: David Vrchota | B90: 1976 | C90: Jaroměř | D90: =VLOOKUP(C90,Region,2,0) -> CZ/C2 | E90: M
A91: David Zapletal | B91: 1970 | C91: Mladá Boleslav | D91: CZ/C1 | E91: M
A92: David Zatecka | B92: 1993 | C92: GAC Benešov | D92: =VLOOKUP(C92,Region,2,0) -> CZ/C1 | E92: M
A93: Dusan Gadas | B93: 1960 | C93: Hranice | D93: CZ/M | E93: M
A94: Dusan Kmet | B94: 1972 | C94: Křižanov | D94: CZ/M | E94: M
A95: Dusan Patocka | B95: 1972 | C95: Vrchlabí | D95: =VLOOKUP(C95,Region,2,0) -> CZ/C2 | E95: M | F95: =IF(A95="(prázdné)","",IF(($G$1-B95)>25,"","Junior v roce "&$G$1)) -> 
A96: Dusan Sys | B96: 1977 | C96: Šumperk | D96: CZ/M | E96: M
A97: Dusan Zerzan | B97: 1970 | C97: Šumperk | D97: CZ/M | E97: M
A98: Eduard Niko | B98: 1988 | C98: Zbraslavice | D98: =VLOOKUP(C98,Region,2,0) -> CZ/C1 | E98: M | F98: =IF(A98="(prázdné)","",IF(($G$1-B98)>25,"","Junior v roce "&$G$1)) -> 
A99: Eduard Svoboda | B99: 1957 | C99: Raná | D99: CZ/C2 | E99: M
A100: Eliska Bohunovska | B100: 2001 | C100: Hranice | D100: =VLOOKUP(C100,Region,2,0) -> CZ/M | E100: F | F100: Junior v roce 2025
A101: Eliska Kudejova | B101: 2006 | C101: Strakonice | D101: =VLOOKUP(C101,Region,2,0) -> CZ/C1 | E101: F | F101: =IF(A101="(prázdné)","",IF(($G$1-B101)>25,"","Junior v roce "&$G$1)) -> Junior v roce 2025
A102: Eva Cerna | B102: 1964 | C102: Příbram | D102: CZ/C1 | E102: F
A103: Eva Klapkova | B103: 1993 | C103: Raná | D103: =VLOOKUP(C103,Region,2,0) -> CZ/C2 | E103: F | F103: =IF(A103="(prázdné)","",IF(($G$1-B103)>25,"","Junior v roce "&$G$1)) -> 
A104: Evzen Skala | B104: 1954 | C104: Vrchlabí | D104: CZ/C2 | E104: M
A105: Fabian Curda | B105: 2004 | C105: Zábřeh | D105: =VLOOKUP(C105,Region,2,0) -> CZ/M | E105: M | F105: Junior v roce 2025
A106: Filip Borůvka | B106: 2004 | C106: Nové Město nad Metují | D106: =VLOOKUP(C106,Region,2,0) -> CZ/C2 | E106: M | F106: =IF(A106="(prázdné)","",IF(($G$1-B106)>25,"","Junior v roce "&$G$1)) -> Junior v roce 2025
A107: Filip Graf | B107: 1981 | C107: Křižanov | D107: CZ/M | E107: M
A108: Filip Malik | B108: 2001 | C108: Letňany | D108: =VLOOKUP(C108,Region,2,0) -> CZ/C1 | E108: M | F108: Junior v roce 2025
A109: Filip Mrstny | B109: 2006 | C109: Beroun | D109: =VLOOKUP(C109,Region,2,0) -> CZ/C1 | E109: M | F109: Junior v roce 2025
A110: Filip Neumann | B110: 1977 | C110: GAC Benešov | D110: CZ/C1 | E110: M
A111: Filip Riabec | B111: 2006 | C111: Broumov | D111: =VLOOKUP(C111,Region,2,0) -> CZ/C2 | E111: M | F111: =IF(A111="(prázdné)","",IF(($G$1-B111)>25,"","Junior v roce "&$G$1)) -> Junior v roce 2025
A112: Filip Sklenar | B112: 1990 | C112: Žamberk | D112: CZ/C2 | E112: M
A113: Filip Sirc | B113: 1993 | C113: Letňany | D113: CZ/C1 | E113: M
A114: Filip Vita | B114: 2001 | C114: Kroměříž | D114: CZ/M | E114: M | F114: Junior v roce 2025
A115: Frantisek Brozman | B115: 1960 | C115: Tachov | D115: CZ/C1 | E115: M
A116: Frantisek Filandr | B116: 1956 | C116: Most | D116: CZ/C2 | E116: M
A117: Frantisek Hubacek | B117: 1978 | C117: Točná | D117: CZ/C1 | E117: M
A118: Frantisek Komarek | B118: 1985 | C118: Zbraslavice | D118: CZ/C1 | E118: M
A119: Frantisek Kriz | B119: 1961 | C119: Toužim | D119: CZ/C1 | E119: M
A120: Frantisek Marek | B120: 1960 | C120: Křižanov | D120: CZ/M | E120: M
A121: Frantisek Matousek | B121: 1937 | C121: Nové Město nad Metují | D121: CZ/C2 | E121: M
A122: Frantisek Myska | B122: 1968 | C122: Most | D122: CZ/C2 | E122: M
A123: Frantisek Pycha | B123: 1972 | C123: Chrudim | D123: CZ/C2 | E123: M
A124: Frantisek Soucek | B124: 1945 | C124: Dvůr Králové | D124: CZ/C2 | E124: M
A125: Frantisek Sindelar | B125: 1954 | C125: Kralupy | D125: CZ/C1 | E125: M
A126: Frantisek Suna | B126: 1983 | C126: Hosín | D126: =VLOOKUP(C126,Region,2,0) -> CZ/C1 | E126: M
A127: Frantisek Vancura | B127: 1966 | C127: Hranice | D127: CZ/M | E127: M
A128: Gabriela Cervena | B128: 1966 | C128: Jaroměř | D128: CZ/C2 | E128: F
A129: Gustav Vrbacky | B129: 1933 | C129: Medlánky | D129: CZ/M | E129: M
A130: Hana Treslova | B130: 1991 | C130: Raná | D130: CZ/C2 | E130: F
A131: Hana Vokrinkova | B131: 1958 | C131: Hodkovice | D131: CZ/C2 | E131: F
A132: Hynek Pokorny | B132: 1991 | C132: Letňany | D132: CZ/C1 | E132: M
A133: Christof Madory | B133: 1958 | C133: Šumperk | D133: CZ/M | E133: M
A134: Ilja Kopacek | B134: 1943 | C134: Jičín | D134: =VLOOKUP(C134,Region,2,0) -> CZ/C2 | E134: M
A135: Ivan Filakovsky | B135: 1965 | C135: Medlánky | D135: CZ/M | E135: M
A136: Ivan Harasta 65 | B136: 1965 | C136: Toužim | D136: CZ/C1 | E136: M
A137: Ivan Harasta 98 | B137: 1998 | C137: Toužim | D137: CZ/C1 | E137: M
A138: Ivan Kuzelka | B138: 1945 | C138: Havlíčkův Brod | D138: CZ/C2 | E138: M
A139: Ivan Ladr | B139: 1940 | C139: Dvůr Králové | D139: CZ/C2 | E139: M
A140: Ivan Morkovsky | B140: 2008 | C140: Polička | D140: =VLOOKUP(C140,Region,2,0) -> CZ/C2 | E140: M | F140: =IF(A140="(prázdné)","",IF(($G$1-B140)>25,"","Junior v roce "&$G$1)) -> Junior v roce 2025
A141: Ivan Novak | B141: 1962 | C141: Mladá Boleslav | D141: CZ/C1 | E141: M
A142: Ivan Tvrdik | B142: 1997 | C142: Letňany | D142: CZ/C1 | E142: M
A143: Ivo Burda | B143: 1962 | C143: Zbraslavice | D143: CZ/C1 | E143: M
A144: Ivo Nezval | B144: 1964 | C144: Šumperk | D144: CZ/M | E144: M
A145: Ivo Vudarcik | B145: 1994 | C145: Rakovník | D145: CZ/C1 | E145: M
A146: Jacek Kerum | B146: 1943 | C146: Příbram | D146: CZ/C1 | E146: M
A147: Jakub Brotanek | B147: 1985 | C147: Roudnice | D147: CZ/C2 | E147: M
A148: Jakub Hlavacek | B148: 1991 | C148: Letkov | D148: CZ/C1 | E148: M
A149: Jakub Jezek | B149: 2002 | C149: Ústí nad Orlicí | D149: =VLOOKUP(C149,Region,2,0) -> CZ/C2 | E149: M | F149: =IF(A149="(prázdné)","",IF(($G$1-B149)>25,"","Junior v roce "&$G$1)) -> Junior v roce 2025
A150: Jakub Kmosek | B150: 1978 | C150: Zbraslavice | D150: CZ/C1 | E150: M
A151: Jakub Kohn | B151: 1992 | C151: Prostějov | D151: CZ/M | E151: M
A152: Jakub Koudelka | B152: 2000 | C152: Křižanov | D152: =VLOOKUP(C152,Region,2,0) -> CZ/M | E152: M | F152: Junior v roce 2025
A153: Jakub Malik | B153: 1999 | C153: Letňany | D153: CZ/C1 | E153: M
A154: Jakub Michalicka | B154: 1993 | C154: Rakovník | D154: CZ/C1 | E154: M
A155: Jakub Safar | B155: 1990 | C155: Olomouc | D155: =VLOOKUP(C155,Region,2,0) -> CZ/M | E155: M | F155: =IF(A155="(prázdné)","",IF(($G$1-B155)>25,"","Junior v roce "&$G$1)) -> 
A156: Jakub Sachl | B156: 2006 | C156: Kralupy | D156: =VLOOKUP(C156,Region,2,0) -> CZ/C1 | E156: M | F156: =IF(A156="(prázdné)","",IF(($G$1-B156)>25,"","Junior v roce "&$G$1)) -> Junior v roce 2025
A157: Jakub Spanger | B157: 2002 | C157: Jeseník | D157: =VLOOKUP(C157,Region,2,0) -> CZ/M | E157: M | F157: Junior v roce 2025
A158: Jakub Tiller | B158: 1987 | C158: Broumov | D158: CZ/C2 | E158: M
A159: Jakub Vimr | B159: 1975 | C159: GAC Benešov | D159: CZ/C1 | E159: M | F159: =IF(A159="(prázdné)","",IF(($G$1-B159)>25,"","Junior v roce "&$G$1)) -> 
A160: Jan Adam | B160: 2002 | C160: Podhořany | D160: =VLOOKUP(C160,Region,2,0) -> CZ/C2 | E160: M | F160: Junior v roce 2025
A161: Jan Bejdl | B161: 1978 | C161: Zbraslavice | D161: =VLOOKUP(C161,Region,2,0) -> CZ/C1 | E161: M
A162: Jan Belina | B162: 1979 | C162: Hořice | D162: CZ/C2 | E162: M
A163: Jan Beran | B163: 1999 | C163: Kladno | D163: =VLOOKUP(C163,Region,2,0) -> CZ/C1 | E163: M
A164: Jan Beranek | B164: 1976 | C164: Jihlava | D164: CZ/M | E164: M
A165: Jan Blaha | B165: 1983 | C165: Kyjov | D165: =VLOOKUP(C165,Region,2,0) -> CZ/M | E165: M | F165: =IF(A165="(prázdné)","",IF(($G$1-B165)>25,"","Junior v roce "&$G$1)) -> 
A166: Jan Boruvka | B166: 1984 | C166: Jičín | D166: CZ/C2 | E166: M
A167: Jan Camr | B167: 2002 | C167: Jaroměř | D167: =VLOOKUP(C167,Region,2,0) -> CZ/C2 | E167: M | F167: Junior v roce 2025
A168: Jan Cerveny | B168: 1984 | C168: Jaroměř | D168: CZ/C2 | E168: M
A169: Jan Cibulka | B169: 2002 | C169: Letňany | D169: =VLOOKUP(C169,Region,2,0) -> CZ/C1 | E169: M | F169: Junior v roce 2025
A170: Jan Dersak 69 | B170: 1969 | C170: Kralupy | D170: CZ/C1 | E170: M
A171: Jan Dersak 92 | B171: 1992 | C171: Kralupy | D171: CZ/C1 | E171: M
A172: Jan Drahota | B172: 1988 | C172: Rakovník | D172: CZ/C1 | E172: M
A173: Jan Drbohlav | B173: 1999 | C173: Hodkovice | D173: =VLOOKUP(C173,Region,2,0) -> CZ/C2 | E173: M
A174: Jan Florian | B174: 1992 | C174: Zbraslavice | D174: CZ/C1 | E174: M
A175: Jan Habermann | B175: 1975 | C175: Vlašim | D175: =VLOOKUP(C175,Region,2,0) -> CZ/C1 | E175: M
A176: Jan Hejret | B176: 1976 | C176: Jaroměř | D176: CZ/C2 | E176: M
A177: Jan Heroudek | B177: 1970 | C177: Rakovník | D177: =VLOOKUP(C177,Region,2,0) -> CZ/C1 | E177: M
A178: Jan Hlavacek 65 | B178: 1965 | C178: Rakovník | D178: CZ/C1 | E178: M
A179: Jan Hlavacek 04 | B179: 2004 | C179: Hosín | D179: =VLOOKUP(C179,Region,2,0) -> CZ/C1 | E179: M | F179: =IF(A179="(prázdné)","",IF(($G$1-B179)>25,"","Junior v roce "&$G$1)) -> Junior v roce 2025
A180: Jan Horak | B180: 1971 | C180: Zbraslavice | D180: CZ/C1 | E180: M
A181: Jan Horky | B181: 1968 | C181: Medlánky | D181: CZ/M | E181: M
A182: Jan Hrbatsch | B182: 1989 | C182: Hodkovice | D182: CZ/C2 | E182: M
A183: Jan Hruska | B183: 1988 | C183: Tábor | D183: CZ/C1 | E183: M
A184: Jan Hybner | B184: 1977 | C184: Liberec | D184: =VLOOKUP(C184,Region,2,0) -> CZ/C2 | E184: M
A185: Jan Jicha | B185: 1984 | C185: Podhořany | D185: CZ/C2 | E185: M
A186: Jan Jindra | B186: 1981 | C186: Roudnice | D186: CZ/C2 | E186: M
A187: Jan Kantor | B187: 1983 | C187: Letňany | D187: CZ/C1 | E187: M
A188: Jan Kapralek | B188: 1991 | C188: Kladno | D188: CZ/C1 | E188: M
A189: Jan Karabec | B189: 2000 | C189: Podhořany | D189: =VLOOKUP(C189,Region,2,0) -> CZ/C2 | E189: M | F189: Junior v roce 2025
A190: Jan Karas | B190: 1985 | C190: Jihlava | D190: CZ/M | E190: M
A191: Jan Karnik | B191: 1976 | C191: Letkov | D191: =VLOOKUP(C191,Region,2,0) -> CZ/C1 | E191: M
A192: Jan Kaspar | B192: 1994 | C192: Letňany | D192: =VLOOKUP(C192,Region,2,0) -> CZ/C1 | E192: M
A193: Jan Kohout | B193: 1970 | C193: Žamberk | D193: CZ/C2 | E193: M
A194: Jan Konecny | B194: 1972 | C194: Rakovník | D194: CZ/C1 | E194: M
A195: Jan Kostka | B195: 1996 | C195: Kladno | D195: CZ/C1 | E195: M
A196: Jan Kotan | B196: 1982 | C196: Letňany | D196: CZ/C1 | E196: M
A197: Jan Kralik | B197: 1991 | C197: Letkov | D197: CZ/C1 | E197: M
A198: Jan Kristof | B198: 1962 | C198: Frýdlant | D198: CZ/M | E198: M
A199: Jan Kulistak | B199: 1990 | C199: Kunovice | D199: CZ/M | E199: M
A200: Jan Lancdorf | B200: 1988 | C200: Panenský Týnec | D200: CZ/C1 | E200: M
... 860 more rows

Sheet Region (hidden)
A1: Aeroklub | B1: Region | C1: Počet | D1: =C70+C37+C2 -> 89
A2: Benešov | B2: CZ/C1 | C2: =COUNTIF(B2:B35,B2) -> 34
A3: Beroun | B3: CZ/C1
A4: Bystřice u Benešova | B4: CZ/C1
A5: Erpužice | B5: CZ/C1
A6: GAC Benešov | B6: CZ/C1
A7: Hořovice | B7: CZ/C1
A8: Hosín | B8: CZ/C1
A9: Jindřichův Hradec | B9: CZ/C1
A10: Karlovy Vary | B10: CZ/C1
A11: Karlštejn | B11: CZ/C1
A12: Kladno | B12: CZ/C1
A13: Klatovy | B13: CZ/C1
A14: Kolín | B14: CZ/C1
A15: Kralupy | B15: CZ/C1
A16: Letkov | B16: CZ/C1
A17: Letňany | B17: CZ/C1
A18: Mladá Boleslav | B18: CZ/C1
A19: Nesvačily | B19: CZ/C1
A20: Panenský Týnec | B20: CZ/C1
A21: Plasy | B21: CZ/C1
A22: Plzeň Bory | B22: CZ/C1
A23: Prachatice | B23: CZ/C1
A24: Příbram | B24: CZ/C1
A25: Rakovník | B25: CZ/C1
A26: Slaný | B26: CZ/C1
A27: Soběslav | B27: CZ/C1
A28: Staňkov | B28: CZ/C1
A29: Strakonice | B29: CZ/C1
A30: Tábor | B30: CZ/C1
A31: Tachov | B31: CZ/C1
A32: Točná | B32: CZ/C1
A33: Toužim | B33: CZ/C1
A34: Vlašim | B34: CZ/C1
A35: Zbraslavice | B35: CZ/C1
A36: - | B36: -
A37: Broumov | B37: CZ/C2 | C37: =COUNTIF(B37:B68,B37) -> 32
A38: Česká Lípa | B38: CZ/C2
A39: Dvůr Králové | B39: CZ/C2
A40: Havlíčkův Brod | B40: CZ/C2
A41: Hodkovice | B41: CZ/C2
A42: Hořice | B42: CZ/C2
A43: Hradčany | B43: CZ/C2
A44: Hronov | B44: CZ/C2
A45: Chomutov | B45: CZ/C2
A46: Chotěboř | B46: CZ/C2
A47: Chrudim | B47: CZ/C2
A48: Jaroměř | B48: CZ/C2
A49: Jičín | B49: CZ/C2
A50: Letecká společnost na Vysočině | B50: CZ/C2
A51: Liberec | B51: CZ/C2
A52: Mnichovo Hradiště | B52: CZ/C2
A53: Most | B53: CZ/C2
A54: Náchod | B54: CZ/C2
A55: Nové Město nad Metují | B55: CZ/C2
A56: Pardubice | B56: CZ/C2
A57: Podhořany | B57: CZ/C2
A58: Polička | B58: CZ/C2
A59: Přibyslav | B59: CZ/C2
A60: Raná | B60: CZ/C2
A61: Roudnice | B61: CZ/C2
A62: Skuteč | B62: CZ/C2
A63: Turnov | B63: CZ/C2
A64: Ústí nad Labem | B64: CZ/C2
A65: Ústí nad Orlicí | B65: CZ/C2
A66: Vrchlabí | B66: CZ/C2
A67: Vysoké Mýto | B67: CZ/C2
A68: Žamberk | B68: CZ/C2
A69: - | B69: -
A70: Bohuňovice | B70: CZ/M | C70: =COUNTIF(B70:B92,B70) -> 23
A71: Břeclav | B71: CZ/M
A72: LK Břeclav | B72: CZ/M
A73: Frýdlant | B73: CZ/M
A74: Hranice | B74: CZ/M
A75: Jeseník | B75: CZ/M
A76: Jihlava | B76: CZ/M
A77: Krnov | B77: CZ/M
A78: Kroměříž | B78: CZ/M
A79: Křižanov | B79: CZ/M
A80: Kunovice | B80: CZ/M
A81: Kyjov | B81: CZ/M
A82: Luhačovice | B82: CZ/M
A83: Medlánky | B83: CZ/M
A84: Moravská Třebová | B84: CZ/M
A85: Olomouc | B85: CZ/M
A86: Prostějov | B86: CZ/M
A87: Slatina | B87: CZ/M
A88: Slavičín | B88: CZ/M
A89: Stichovice | B89: CZ/M
A90: Šumperk | B90: CZ/M
A91: Vyškov | B91: CZ/M
A92: Zábřeh | B92: CZ/M
A94: Aalborg | B94: DK
A95: Air Sympatia | B95: SK
A96: Akaflieg Dresden | B96: DE
A97: Bad Nauheim | B97: DE
A98: Bratislava | B98: SK
A99: Dánsko | B99: DK
A100: Greiz | B100: DE
A101: Japonsko | B101: JP
A102: Jelenia Góra | B102: PL
A103: Martin | B103: SK
A104: Německo | B104: DE
A105: Nitra | B105: SK
A106: Novo Mesto | B106: SI
A107: Poprad | B107: SK
A108: Prešov | B108: SK
A109: Prievidza | B109: SK
A110: Rakousko | B110: AT
A111: Ružomberok | B111: SK
A112: SGC Martin | B112: SK
A113: Slovinsko | B113: SI
A114: Trenčín | B114: SK
A115: Trnava | B115: SK
A116: Žilina | B116: SK

Sheet Temp
A1: Jmeno | B1: Rok narození | C1: M/F | D1: Aeroklub | E1: Region | F1: Soutěž | G1: Stát | H1: Rok | I1: Pořadí ve třídě | J1: Body ve třídě | K1: Kinp | L1: Bi | M1: Bi×Kinp | N1: G | O1: W | P1: Typ | Q1: CN | R1: Junior | S1: Poznámka

Sheet Data
M1: Počet X filtr: | N1: =SUBTOTAL(103,N7:N9235) -> 28 | O1: =SUBTOTAL(103,O7:O9235) -> 4
A2: * | M2: Počet X: | N2: =COUNTIFS(N$7:N$9235,"x",$A$7:$A$9235,$A$2) -> 961 | O2: =COUNTIFS(O$7:O$9235,"x",$A$7:$A$9235,$A$2) -> 61
H3: 2024 | N3: =COUNTIFS(H7:H9934,$H3,N7:N9934,"x",A7:A9934,$A$2) -> 352 | O3: =COUNTIFS(H7:H9934,$H3,O7:O9934,"x",A7:A9934,$A$2) -> 20
H4: 2023 | N4: =COUNTIFS(H7:H9934,$H4,N7:N9934,"x",A7:A9934,$A$2) -> 303 | O4: =COUNTIFS(H7:H9934,$H4,O7:O9934,"x",A7:A9934,$A$2) -> 23
H5: 2022 | N5: =COUNTIFS(H7:H9934,$H5,N7:N9934,"x",A7:A9934,$A$2) -> 306 | O5: =COUNTIFS(H7:H9934,$H5,O7:O9934,"x",A7:A9934,$A$2) -> 18
A6: Jméno | B6: Rok narození | C6: M/F | D6: Aeroklub | E6: Region | F6: Soutěž | G6: Stát | H6: Rok | I6: Pořadí ve třídě | J6: Body ve třídě | K6: Kinp | L6: Bi | M6: Bi×Kinp | N6: G | O6: W | P6: Typ | Q6: CN | R6: Junior | S6: Poznámka
A7: Michal Lesinger | B7: =VLOOKUP(A7,Pilot,2,0) -> 1966 | C7: =VLOOKUP(A7,Pilot,5,0) -> M | D7: =VLOOKUP(A7,Pilot,3,0) -> Moravská Třebová | E7: =VLOOKUP(A7,Pilot,4,0) -> CZ/M | F7: PMČR 2022 - Klub | G7: =VLOOKUP(F7,Soutez!A:B,2,FALSE) -> CZ | H7: =VLOOKUP(F7,Soutez!A:C,3,FALSE) -> 2022 | I7: 1 | J7: 6305 | K7: =VLOOKUP(F7,Soutez,12,0) -> 1.05 | L7: =ROUND(J7/MAX($J$7:$J$22)*10000*0.7+(MAX($I$7:$I$22)-I7)/(MAX($I$7:$I$22)-1)*10000*0.3,0) -> 10000 | M7: =ROUND(K7*L7,0) -> 10500 | N7: x | P7: ASW20 | Q7: LL | R7: =IF(ISERROR(VLOOKUP(A7,Pilot,6,0)),"Není v databázi",VLOOKUP(A7,Pilot,6,0)) -> 
A8: Tomas Suchanek | B8: 1964 | C8: M | D8: GAC Benešov | E8: CZ/C1 | F8: PMČR 2022 - Klub | G8: =VLOOKUP(F8,Soutez!A:B,2,FALSE) -> CZ | H8: =VLOOKUP(F8,Soutez!A:C,3,FALSE) -> 2022 | I8: 2 | J8: 6051 | K8: 1.05 | L8: 9518 | M8: =ROUND(K8*L8,0) -> 9994 | P8: ASW20 | Q8: CX
A9: Pavel Trybenekr | B9: 1990 | C9: M | D9: Hořice | E9: CZ/C2 | F9: PMČR 2022 - Klub | G9: =VLOOKUP(F9,Soutez!A:B,2,FALSE) -> CZ | H9: =VLOOKUP(F9,Soutez!A:C,3,FALSE) -> 2022 | I9: 3 | J9: 5758 | K9: 1.05 | L9: 8993 | M9: 9443 | N9: x | P9: LS4 | Q9: PF
A10: Jiri Kusbach | B10: 1959 | C10: M | D10: Luhačovice | E10: CZ/M | F10: PMČR 2022 - Klub | G10: =VLOOKUP(F10,Soutez!A:B,2,FALSE) -> CZ | H10: =VLOOKUP(F10,Soutez!A:C,3,FALSE) -> 2022 | I10: 4 | J10: 5754 | K10: 1.05 | L10: 8788 | M10: 9227 | N10: x | P10: KKB15FES | Q10: B
A11: David Darnady | B11: 1987 | C11: M | D11: Zbraslavice | E11: CZ/C1 | F11: PMČR 2022 - Klub | G11: =VLOOKUP(F11,Soutez!A:B,2,FALSE) -> CZ | H11: =VLOOKUP(F11,Soutez!A:C,3,FALSE) -> 2022 | I11: 5 | J11: 5734 | K11: 1.05 | L11: 8566 | M11: 8994 | N11: x | P11: ASW20 | Q11: EW
A12: Ivan Novak | B12: 1962 | C12: M | D12: Mladá Boleslav | E12: CZ/C1 | F12: PMČR 2022 - Klub | G12: =VLOOKUP(F12,Soutez!A:B,2,FALSE) -> CZ | H12: =VLOOKUP(F12,Soutez!A:C,3,FALSE) -> 2022 | I12: 6 | J12: 5394 | K12: 1.05 | L12: 7989 | M12: 8388 | P12: Std.Cirrus | Q12: DI
A13: Jan Louda | B13: 1986 | C13: M | D13: Mladá Boleslav | E13: CZ/C1 | F13: PMČR 2022 - Klub | G13: =VLOOKUP(F13,Soutez!A:B,2,FALSE) -> CZ | H13: =VLOOKUP(F13,Soutez!A:C,3,FALSE) -> 2022 | I13: 7 | J13: 5158 | K13: 1.05 | L13: 7527 | M13: =ROUND(K13*L13,0) -> 7903 | P13: ASW19b | Q13: XS
A14: Jan Vavrin | B14: 1987 | C14: M | D14: Vysoké Mýto | E14: CZ/C2 | F14: PMČR 2022 - Klub | G14: =VLOOKUP(F14,Soutez!A:B,2,FALSE) -> CZ | H14: =VLOOKUP(F14,Soutez!A:C,3,FALSE) -> 2022 | I14: 8 | J14: 5072 | K14: 1.05 | L14: 7231 | M14: 7593 | N14: x | P14: ASW19b | Q14: 56
A15: Jan Stastny | B15: 2003 | C15: M | D15: Medlánky | E15: CZ/M | F15: PMČR 2022 - Klub | G15: =VLOOKUP(F15,Soutez!A:B,2,FALSE) -> CZ | H15: =VLOOKUP(F15,Soutez!A:C,3,FALSE) -> 2022 | I15: 9 | J15: 5049 | K15: 1.05 | L15: 7006 | M15: 7356 | P15: LS4 | Q15: IX | R15: Junior v roce 2025
A16: Ivan Tvrdik | B16: 1997 | C16: M | D16: Letňany | E16: CZ/C1 | F16: PMČR 2022 - Klub | G16: =VLOOKUP(F16,Soutez!A:B,2,FALSE) -> CZ | H16: =VLOOKUP(F16,Soutez!A:C,3,FALSE) -> 2022 | I16: 10 | J16: 4729 | K16: 1.05 | L16: 6450 | M16: 6773 | P16: ASW19b | Q16: KZ
A17: Zdenek Balcarek | B17: 1967 | C17: M | D17: Kroměříž | E17: CZ/M | F17: PMČR 2022 - Klub | G17: =VLOOKUP(F17,Soutez!A:B,2,FALSE) -> CZ | H17: =VLOOKUP(F17,Soutez!A:C,3,FALSE) -> 2022 | I17: 11 | J17: 4685 | K17: 1.05 | L17: 6201 | M17: 6511 | P17: Discus b | Q17: OS
A18: Slavomir Piskaty 84 | B18: 1984 | C18: M | D18: Kunovice | E18: CZ/M | F18: PMČR 2022 - Klub | G18: =VLOOKUP(F18,Soutez!A:B,2,FALSE) -> CZ | H18: =VLOOKUP(F18,Soutez!A:C,3,FALSE) -> 2022 | I18: 12 | J18: 4047 | K18: 1.05 | L18: 5293 | M18: 5558 | N18: x | P18: Discus cs | Q18: KAL
A19: Zdenek Boruvka 86 | B19: 1986 | C19: M | D19: Jičín | E19: CZ/C2 | F19: PMČR 2022 - Klub | G19: =VLOOKUP(F19,Soutez!A:B,2,FALSE) -> CZ | H19: =VLOOKUP(F19,Soutez!A:C,3,FALSE) -> 2022 | I19: 13 | J19: 3810 | K19: 1.05 | L19: 4830 | M19: 5072 | P19: Std.Cirrus | Q19: BJ
A20: Martin Kriz | B20: 1968 | C20: M | D20: Přibyslav | E20: CZ/C2 | F20: PMČR 2022 - Klub | G20: =VLOOKUP(F20,Soutez!A:B,2,FALSE) -> CZ | H20: =VLOOKUP(F20,Soutez!A:C,3,FALSE) -> 2022 | I20: 14 | J20: 3583 | K20: 1.05 | L20: 4378 | M20: =ROUND(K20*L20,0) -> 4597 | P20: ASW20 | Q20: 67
A21: Pavlina Horackova | B21: 1965 | C21: F | D21: Šumperk | E21: CZ/M | F21: PMČR 2022 - Klub | G21: =VLOOKUP(F21,Soutez!A:B,2,FALSE) -> CZ | H21: =VLOOKUP(F21,Soutez!A:C,3,FALSE) -> 2022 | I21: 15 | J21: 3271 | K21: 1.05 | L21: 3832 | M21: 4024 | P21: SZD48 Jantar Std2 | Q21: SU
A22: Daniel Ryba | B22: 1994 | C22: M | D22: Dvůr Králové | E22: CZ/C2 | F22: PMČR 2022 - Klub | G22: =VLOOKUP(F22,Soutez!A:B,2,FALSE) -> CZ | H22: =VLOOKUP(F22,Soutez!A:C,3,FALSE) -> 2022 | I22: 16 | J22: 2661 | K22: 1.05 | L22: 2954 | M22: 3102 | N22: x | P22: ASW19b | Q22: L7
A23: Miloslav Cink | B23: 1987 | C23: M | D23: =VLOOKUP(A23,Pilot,3,0) -> Letkov | E23: =VLOOKUP(A23,Pilot,4,0) -> CZ/C1 | F23: PMČR 2022 - Kombi 15m | G23: =VLOOKUP(F23,Soutez!A:B,2,FALSE) -> CZ | H23: =VLOOKUP(F23,Soutez!A:C,3,FALSE) -> 2022 | I23: 1 | J23: 5461 | K23: 1.06 | L23: =ROUND(J23/MAX($J$23:$J$35)*10000*0.7+(MAX($I$23:$I$35)-I23)/(MAX($I$23:$I$35)-1)*10000*0.3,0) -> 10000 | M23: =ROUND(K23*L23,0) -> 10600 | N23: x | P23: LS8 | Q23: JB
A24: Pavel Louzecky | B24: 1957 | C24: M | D24: Přibyslav | E24: CZ/C2 | F24: PMČR 2022 - Kombi 15m | G24: =VLOOKUP(F24,Soutez!A:B,2,FALSE) -> CZ | H24: =VLOOKUP(F24,Soutez!A:C,3,FALSE) -> 2022 | I24: 2 | J24: 5261 | K24: 1.06 | L24: 9494 | M24: =ROUND(K24*L24,0) -> 10064 | N24: x | P24: LS8 | Q24: FX
A25: Jan Pavlik | B25: 1987 | C25: M | D25: Křižanov | E25: CZ/M | F25: PMČR 2022 - Kombi 15m | G25: =VLOOKUP(F25,Soutez!A:B,2,FALSE) -> CZ | H25: =VLOOKUP(F25,Soutez!A:C,3,FALSE) -> 2022 | I25: 3 | J25: 5096 | K25: 1.06 | L25: 9032 | M25: 9574 | P25: LS8 | Q25: JW
A26: Barbora Moravcova | B26: 1994 | C26: F | D26: Zbraslavice | E26: CZ/C1 | F26: PMČR 2022 - Kombi 15m | G26: =VLOOKUP(F26,Soutez!A:B,2,FALSE) -> CZ | H26: =VLOOKUP(F26,Soutez!A:C,3,FALSE) -> 2022 | I26: 4 | J26: 5028 | K26: 1.06 | L26: 8695 | M26: 9217 | P26: LS8 | Q26: EU
A27: Jana Veprekova | B27: 1961 | C27: F | D27: Dvůr Králové | E27: CZ/C2 | F27: PMČR 2022 - Kombi 15m | G27: =VLOOKUP(F27,Soutez!A:B,2,FALSE) -> CZ | H27: =VLOOKUP(F27,Soutez!A:C,3,FALSE) -> 2022 | I27: 5 | J27: 4754 | K27: 1.06 | L27: 8094 | M27: 8580 | N27: x | P27: LS8 | Q27: W8
A28: Lukas Kriz | B28: 2003 | C28: M | D28: Křižanov | E28: CZ/M | F28: PMČR 2022 - Kombi 15m | G28: =VLOOKUP(F28,Soutez!A:B,2,FALSE) -> CZ | H28: =VLOOKUP(F28,Soutez!A:C,3,FALSE) -> 2022 | I28: 6 | J28: 4634 | K28: 1.06 | L28: 7690 | M28: 8151 | P28: LS8 | Q28: SK | R28: Junior v roce 2025
A29: Dana Novakova | B29: 1965 | C29: F | D29: Mladá Boleslav | E29: CZ/C1 | F29: PMČR 2022 - Kombi 15m | G29: =VLOOKUP(F29,Soutez!A:B,2,FALSE) -> CZ | H29: =VLOOKUP(F29,Soutez!A:C,3,FALSE) -> 2022 | I29: 7 | J29: 4525 | K29: 1.06 | L29: 7300 | M29: =ROUND(K29*L29,0) -> 7738 | P29: LS8 | Q29: AU
A30: Eduard Niko | B30: 1988 | C30: M | D30: Zbraslavice | E30: CZ/C1 | F30: PMČR 2022 - Kombi 15m | G30: =VLOOKUP(F30,Soutez!A:B,2,FALSE) -> CZ | H30: =VLOOKUP(F30,Soutez!A:C,3,FALSE) -> 2022 | I30: 8 | J30: 4496 | K30: 1.06 | L30: 7013 | M30: 7434 | P30: DuoDiscus XLT | Q30: DUO
A31: Jan Kotan | B31: 1982 | C31: M | D31: Letňany | E31: CZ/C1 | F31: PMČR 2022 - Kombi 15m | G31: =VLOOKUP(F31,Soutez!A:B,2,FALSE) -> CZ | H31: =VLOOKUP(F31,Soutez!A:C,3,FALSE) -> 2022 | I31: 9 | J31: 4230 | K31: 1.06 | L31: 6422 | M31: 6807 | P31: Ventus 2bx | Q31: YA
A32: Hana Treslova | B32: 1991 | C32: F | D32: Raná | E32: CZ/C2 | F32: PMČR 2022 - Kombi 15m | G32: =VLOOKUP(F32,Soutez!A:B,2,FALSE) -> CZ | H32: =VLOOKUP(F32,Soutez!A:C,3,FALSE) -> 2022 | I32: 10 | J32: 4015 | K32: 1.06 | L32: 5896 | M32: 6250 | P32: Ventus 2ax | Q32: AX
A33: Jan Zapletal | B33: 1997 | C33: M | D33: Břeclav | E33: CZ/M | F33: PMČR 2022 - Kombi 15m | G33: =VLOOKUP(F33,Soutez!A:B,2,FALSE) -> CZ | H33: =VLOOKUP(F33,Soutez!A:C,3,FALSE) -> 2022 | I33: 11 | J33: 3833 | K33: 1.06 | L33: 5413 | M33: 5738 | N33: x | P33: LS8 | Q33: JS
A34: Karel Novak | B34: 1993 | C34: M | D34: Mladá Boleslav | E34: CZ/C1 | F34: PMČR 2022 - Kombi 15m | G34: =VLOOKUP(F34,Soutez!A:B,2,FALSE) -> CZ | H34: =VLOOKUP(F34,Soutez!A:C,3,FALSE) -> 2022 | I34: 12 | J34: 3768 | K34: 1.06 | L34: 5080 | M34: 5385 | P34: JS3 | Q34: ZE
A35: Jana Treslova | B35: 1963 | C35: F | D35: Raná | E35: CZ/C2 | F35: PMČR 2022 - Kombi 15m | G35: =VLOOKUP(F35,Soutez!A:B,2,FALSE) -> CZ | H35: =VLOOKUP(F35,Soutez!A:C,3,FALSE) -> 2022 | I35: 13 | J35: 3421 | K35: 1.06 | L35: 4385 | M35: 4648 | P35: Discus 2a | Q35: GX
A36: Radek Kucirek | B36: 1973 | C36: M | D36: =VLOOKUP(A36,Pilot,3,0) -> Havlíčkův Brod | E36: =VLOOKUP(A36,Pilot,4,0) -> CZ/C2 | F36: PMČR 2022 - Kombi Open | G36: =VLOOKUP(F36,Soutez!A:B,2,FALSE) -> CZ | H36: =VLOOKUP(F36,Soutez!A:C,3,FALSE) -> 2022 | I36: 1 | J36: 5360 | K36: 1.075 | L36: =ROUND(J36/MAX($J$36:$J$54)*10000*0.7+(MAX($I$36:$I$54)-I36)/(MAX($I$36:$I$54)-1)*10000*0.3,0) -> 10000 | M36: =ROUND(K36*L36,0) -> 10750 | N36: x | P36: EB28 Edition | Q36: NA
A37: Tomas Rendla | B37: 1973 | C37: M | D37: Zbraslavice | E37: CZ/C1 | F37: PMČR 2022 - Kombi Open | G37: =VLOOKUP(F37,Soutez!A:B,2,FALSE) -> CZ | H37: =VLOOKUP(F37,Soutez!A:C,3,FALSE) -> 2022 | I37: 2 | J37: 5341 | K37: 1.075 | L37: 9809 | M37: =ROUND(K37*L37,0) -> 10545 | N37: x | P37: EB29R | Q37: EX
A38: Petr Hotovy | B38: 1958 | C38: M | D38: Česká Lípa | E38: CZ/C2 | F38: PMČR 2022 - Kombi Open | G38: =VLOOKUP(F38,Soutez!A:B,2,FALSE) -> CZ | H38: =VLOOKUP(F38,Soutez!A:C,3,FALSE) -> 2022 | I38: 3 | J38: 5163 | K38: 1.075 | L38: 9409 | M38: 10115 | N38: x | P38: JS1B | Q38: IGC
A39: Alena Netusilova | B39: 1970 | C39: F | D39: Zbraslavice | E39: CZ/C1 | F39: PMČR 2022 - Kombi Open | G39: =VLOOKUP(F39,Soutez!A:B,2,FALSE) -> CZ | H39: =VLOOKUP(F39,Soutez!A:C,3,FALSE) -> 2022 | I39: 4 | J39: 5123 | K39: =VLOOKUP(F39,Soutez,12,0) -> 1.075 | L39: 9190 | M39: 9879 | N39: x | P39: JS1C 21m | Q39: JX
A40: Radek Krejcirik | B40: 1991 | C40: M | D40: Hranice | E40: CZ/M | F40: PMČR 2022 - Kombi Open | G40: =VLOOKUP(F40,Soutez!A:B,2,FALSE) -> CZ | H40: =VLOOKUP(F40,Soutez!A:C,3,FALSE) -> 2022 | I40: 5 | J40: 5093 | K40: 1.075 | L40: 8985 | M40: 9659 | P40: JS1C EVO | Q40: ZF
A41: Petr Tichy | B41: 1973 | C41: M | D41: Zbraslavice | E41: CZ/C1 | F41: PMČR 2022 - Kombi Open | G41: =VLOOKUP(F41,Soutez!A:B,2,FALSE) -> CZ | H41: =VLOOKUP(F41,Soutez!A:C,3,FALSE) -> 2022 | I41: 6 | J41: 5083 | K41: 1.075 | L41: 8805 | M41: 9465 | N41: x | P41: ASG29E | Q41: AJ
A42: Pavel Jiranek | B42: 1993 | C42: M | D42: Toužim | E42: CZ/C1 | F42: PMČR 2022 - Kombi Open | G42: =VLOOKUP(F42,Soutez!A:B,2,FALSE) -> CZ | H42: =VLOOKUP(F42,Soutez!A:C,3,FALSE) -> 2022 | I42: 7 | J42: 4963 | K42: 1.075 | L42: 8482 | M42: 9118 | N42: x | P42: Ventus c | Q42: CS
A43: Vladimir Foltin | C43: M | D43: Nitra | E43: SK | F43: PMČR 2022 - Kombi Open | G43: =VLOOKUP(F43,Soutez!A:B,2,FALSE) -> CZ | H43: =VLOOKUP(F43,Soutez!A:C,3,FALSE) -> 2022 | I43: 8 | J43: 4841 | K43: 1.075 | L43: 8156 | M43: 8768 | P43: JS3 | Q43: 3 | R43: Není v databázi
A44: Ondrej Bordovsky | B44: 1983 | C44: M | D44: =VLOOKUP(A44,Pilot,3,0) -> Krnov | E44: =VLOOKUP(A44,Pilot,4,0) -> CZ/M | F44: PMČR 2022 - Kombi Open | G44: =VLOOKUP(F44,Soutez!A:B,2,FALSE) -> CZ | H44: =VLOOKUP(F44,Soutez!A:C,3,FALSE) -> 2022 | I44: 9 | J44: 4650 | K44: 1.075 | L44: 7739 | M44: 8319 | P44: Ventus c | Q44: AD
A45: Marek Pechanec | B45: 1970 | C45: M | D45: Luhačovice | E45: CZ/M | F45: PMČR 2022 - Kombi Open | G45: =VLOOKUP(F45,Soutez!A:B,2,FALSE) -> CZ | H45: =VLOOKUP(F45,Soutez!A:C,3,FALSE) -> 2022 | I45: 10 | J45: 4619 | K45: 1.075 | L45: 7532 | M45: 8097 | N45: x | P45: JS3 | Q45: Q1
A46: Jan Boruvka | B46: 1984 | C46: M | D46: Jičín | E46: CZ/C2 | F46: PMČR 2022 - Kombi Open | G46: =VLOOKUP(F46,Soutez!A:B,2,FALSE) -> CZ | H46: =VLOOKUP(F46,Soutez!A:C,3,FALSE) -> 2022 | I46: 11 | J46: 4567 | K46: 1.075 | L46: 7298 | M46: 7845 | P46: Ventus c | Q46: EG
A47: Radek Zima 78 | B47: 1978 | C47: M | D47: Hodkovice | E47: CZ/C2 | F47: PMČR 2022 - Kombi Open | G47: =VLOOKUP(F47,Soutez!A:B,2,FALSE) -> CZ | H47: =VLOOKUP(F47,Soutez!A:C,3,FALSE) -> 2022 | I47: 12 | J47: 4556 | K47: 1.075 | L47: 7117 | M47: 7651 | N47: x | P47: ASG29E | Q47: XZ
A48: David Mach | B48: 1994 | C48: M | D48: Hronov | E48: CZ/C2 | F48: PMČR 2022 - Kombi Open | G48: =VLOOKUP(F48,Soutez!A:B,2,FALSE) -> CZ | H48: =VLOOKUP(F48,Soutez!A:C,3,FALSE) -> 2022 | I48: 13 | J48: 4188 | K48: 1.075 | L48: 6469 | M48: 6954 | P48: ASG29E | Q48: QZ
A49: Ondrej Dupal | B49: 1966 | C49: M | D49: GAC Benešov | E49: CZ/C1 | F49: PMČR 2022 - Kombi Open | G49: =VLOOKUP(F49,Soutez!A:B,2,FALSE) -> CZ | H49: =VLOOKUP(F49,Soutez!A:C,3,FALSE) -> 2022 | I49: 14 | J49: 4080 | K49: 1.075 | L49: 6162 | M49: =ROUND(K49*L49,0) -> 6624 | P49: ASG29E | Q49: GO
A50: Michaela Rendlova | B50: 2004 | C50: F | D50: Toužim | E50: CZ/C1 | F50: PMČR 2022 - Kombi Open | G50: =VLOOKUP(F50,Soutez!A:B,2,FALSE) -> CZ | H50: =VLOOKUP(F50,Soutez!A:C,3,FALSE) -> 2022 | I50: 15 | J50: 4050 | K50: 1.075 | L50: 5956 | M50: 6403 | P50: AS33ES | Q50: EA | R50: Junior v roce 2025
A51: Petr Koutny | B51: 1971 | C51: M | D51: Křižanov | E51: CZ/M | F51: PMČR 2022 - Kombi Open | G51: =VLOOKUP(F51,Soutez!A:B,2,FALSE) -> CZ | H51: =VLOOKUP(F51,Soutez!A:C,3,FALSE) -> 2022 | I51: 16 | J51: 3940 | K51: 1.075 | L51: 5646 | M51: 6069 | P51: JS3 | Q51: XM
A52: Martin Hrivna | B52: 1978 | C52: M | D52: Zbraslavice | E52: CZ/C1 | F52: PMČR 2022 - Kombi Open | G52: =VLOOKUP(F52,Soutez!A:B,2,FALSE) -> CZ | H52: =VLOOKUP(F52,Soutez!A:C,3,FALSE) -> 2022 | I52: 17 | J52: 3276 | K52: 1.075 | L52: 4612 | M52: 4958 | P52: ASG29E | Q52: NX
A53: Petr Krejcirik | B53: =VLOOKUP(A53,Pilot,2,0) -> 1960 | C53: =VLOOKUP(A53,Pilot,5,0) -> M | D53: Hranice | E53: CZ/M | F53: PMČR 2022 - Kombi Open | G53: =VLOOKUP(F53,Soutez!A:B,2,FALSE) -> CZ | H53: =VLOOKUP(F53,Soutez!A:C,3,FALSE) -> 2022 | I53: 18 | J53: 3100 | K53: 1.075 | L53: 4215 | M53: 4531 | P53: AS33ES | Q53: 12
A54: Takeshi Maruyama | C54: M | D54: Japan Soaring Club | E54: JP | F54: PMČR 2022 - Kombi Open | G54: =VLOOKUP(F54,Soutez!A:B,2,FALSE) -> CZ | H54: =VLOOKUP(F54,Soutez!A:C,3,FALSE) -> 2022 | I54: 19 | J54: 1373 | K54: 1.075 | L54: 1793 | M54: 1927 | P54: JS3 | Q54: AXI | R54: Není v databázi
A55: Josef Novotny | B55: 1983 | C55: M | D55: =VLOOKUP(A55,Pilot,3,0) -> Přibyslav | E55: =VLOOKUP(A55,Pilot,4,0) -> CZ/C2 | F55: JPJ 2022 - Klub | G55: =VLOOKUP(F55,Soutez!A:B,2,FALSE) -> CZ | H55: =VLOOKUP(F55,Soutez!A:C,3,FALSE) -> 2022 | I55: 1 | J55: 3897 | K55: 0.905 | L55: =ROUND(J55/MAX($J$55:$J$93)*10000*0.7+(MAX($I$55:$I$93)-I55)/(MAX($I$55:$I$93)-1)*10000*0.3,0) -> 10000 | M55: =ROUND(K55*L55,0) -> 9050 | N55: x | P55: Std. Cirrus | Q55: AW
A56: Martin Ficnar | B56: 1971 | C56: M | D56: Šumperk | E56: CZ/M | F56: JPJ 2022 - Klub | G56: =VLOOKUP(F56,Soutez!A:B,2,FALSE) -> CZ | H56: =VLOOKUP(F56,Soutez!A:C,3,FALSE) -> 2022 | I56: 2 | J56: 3838 | K56: 0.905 | L56: 9815 | M56: =ROUND(K56*L56,0) -> 8883 | N56: x | P56: LS-3a | Q56: S20 | R56: =IF(ISERROR(VLOOKUP(A56,Pilot,6,0)),"Není v databázi",VLOOKUP(A56,Pilot,6,0)) -> 
A57: Josef Novak | B57: 1981 | C57: M | D57: Kunovice | E57: CZ/M | F57: JPJ 2022 - Klub | G57: =VLOOKUP(F57,Soutez!A:B,2,FALSE) -> CZ | H57: =VLOOKUP(F57,Soutez!A:C,3,FALSE) -> 2022 | I57: 3 | J57: 3745 | K57: 0.905 | L57: 9569 | M57: 8660 | N57: x | P57: LS-1f | Q57: JT
A58: Jan Podhrazsky | B58: 1976 | C58: M | D58: Šumperk | E58: CZ/M | F58: JPJ 2022 - Klub | G58: =VLOOKUP(F58,Soutez!A:B,2,FALSE) -> CZ | H58: =VLOOKUP(F58,Soutez!A:C,3,FALSE) -> 2022 | I58: 4 | J58: 3657 | K58: 0.905 | L58: 9332 | M58: 8445 | N58: x | P58: Discus b | Q58: SJ
A59: Rene Hudak | B59: 1972 | C59: M | D59: Kunovice | E59: CZ/M | F59: JPJ 2022 - Klub | G59: =VLOOKUP(F59,Soutez!A:B,2,FALSE) -> CZ | H59: =VLOOKUP(F59,Soutez!A:C,3,FALSE) -> 2022 | I59: 5 | J59: 3627 | K59: 0.905 | L59: 9199 | M59: 8325 | N59: x | P59: Std. Cirrus WL | Q59: NK
A60: Radim Sobek | B60: 1977 | C60: M | D60: Hranice | E60: CZ/M | F60: JPJ 2022 - Klub | G60: =VLOOKUP(F60,Soutez!A:B,2,FALSE) -> CZ | H60: =VLOOKUP(F60,Soutez!A:C,3,FALSE) -> 2022 | I60: 6 | J60: 3620 | K60: 0.905 | L60: 9108 | M60: 8243 | N60: x | P60: TST-10M Atlas | Q60: 7
A61: Jaroslav Buryan | B61: 1953 | C61: M | D61: Zábřeh | E61: CZ/M | F61: JPJ 2022 - Klub | G61: =VLOOKUP(F61,Soutez!A:B,2,FALSE) -> CZ | H61: =VLOOKUP(F61,Soutez!A:C,3,FALSE) -> 2022 | I61: 7 | J61: 3579 | K61: 0.905 | L61: 8955 | M61: 8104 | N61: x | P61: ASW-20 (A) WL | Q61: NS
A62: Martin Urner | B62: 1974 | C62: M | D62: Letňany | E62: CZ/C1 | F62: JPJ 2022 - Klub | G62: =VLOOKUP(F62,Soutez!A:B,2,FALSE) -> CZ | H62: =VLOOKUP(F62,Soutez!A:C,3,FALSE) -> 2022 | I62: 8 | J62: 3575 | K62: 0.905 | L62: 8869 | M62: 8026 | N62: x | P62: ASW-15B | Q62: JJ
A63: Rostislav Stryk | B63: 1972 | C63: M | D63: Frýdlant | E63: CZ/M | F63: JPJ 2022 - Klub | G63: =VLOOKUP(F63,Soutez!A:B,2,FALSE) -> CZ | H63: =VLOOKUP(F63,Soutez!A:C,3,FALSE) -> 2022 | I63: 9 | J63: 3412 | K63: 0.905 | L63: 8497 | M63: 7690 | N63: x | P63: Std. Cirrus | Q63: 22
A64: Martin Kriz | B64: 1968 | C64: M | D64: Přibyslav | E64: CZ/C2 | F64: JPJ 2022 - Klub | G64: =VLOOKUP(F64,Soutez!A:B,2,FALSE) -> CZ | H64: =VLOOKUP(F64,Soutez!A:C,3,FALSE) -> 2022 | I64: 10 | J64: 3342 | K64: 0.905 | L64: 8293 | M64: 7505 | N64: x | P64: ASW-20 (A) WL | Q64: 67
A65: Stepan Obrovsky | B65: 1990 | C65: M | D65: Frýdlant | E65: CZ/M | F65: JPJ 2022 - Klub | G65: =VLOOKUP(F65,Soutez!A:B,2,FALSE) -> CZ | H65: =VLOOKUP(F65,Soutez!A:C,3,FALSE) -> 2022 | I65: 11 | J65: 3306 | K65: 0.905 | L65: 8149 | M65: =ROUND(K65*L65,0) -> 7375 | N65: x | P65: LS-1f | Q65: EM
A66: Martin Svarc | B66: 1981 | C66: M | D66: Olomouc | E66: CZ/M | F66: JPJ 2022 - Klub | G66: =VLOOKUP(F66,Soutez!A:B,2,FALSE) -> CZ | H66: =VLOOKUP(F66,Soutez!A:C,3,FALSE) -> 2022 | I66: 12 | J66: 3089 | K66: 0.905 | L66: 7680 | M66: 6950 | N66: x | P66: DG-101 G | Q66: IL
A67: Petr Kolomaznik | B67: 1981 | C67: M | D67: Šumperk | E67: CZ/M | F67: JPJ 2022 - Klub | G67: =VLOOKUP(F67,Soutez!A:B,2,FALSE) -> CZ | H67: =VLOOKUP(F67,Soutez!A:C,3,FALSE) -> 2022 | I67: 13 | J67: 3014 | K67: 0.905 | L67: 7467 | M67: 6758 | N67: x | P67: Discus b | Q67: VE
A68: Vojtech Novotny | B68: 1992 | C68: M | D68: Kralupy | E68: CZ/C1 | F68: JPJ 2022 - Klub | G68: =VLOOKUP(F68,Soutez!A:B,2,FALSE) -> CZ | H68: =VLOOKUP(F68,Soutez!A:C,3,FALSE) -> 2022 | I68: 14 | J68: 2991 | K68: 0.905 | L68: 7346 | M68: 6648 | N68: x | P68: LS-1f | Q68: EF
A69: Petr Havrlant | B69: 1965 | C69: M | D69: Šumperk | E69: CZ/M | F69: JPJ 2022 - Klub | G69: =VLOOKUP(F69,Soutez!A:B,2,FALSE) -> CZ | H69: =VLOOKUP(F69,Soutez!A:C,3,FALSE) -> 2022 | I69: 15 | J69: 2942 | K69: 0.905 | L69: 7179 | M69: 6497 | N69: x | P69: ASW-15B | Q69: Q1
A70: David Vrchota | B70: 1976 | C70: M | D70: Jaroměř | E70: CZ/C2 | F70: JPJ 2022 - Klub | G70: =VLOOKUP(F70,Soutez!A:B,2,FALSE) -> CZ | H70: =VLOOKUP(F70,Soutez!A:C,3,FALSE) -> 2022 | I70: 16 | J70: 2904 | K70: 0.905 | L70: 7032 | M70: 6364 | P70: Janus b | Q70: BV
A71: Jiri Koudela | B71: 1974 | C71: M | D71: Vyškov | E71: CZ/M | F71: JPJ 2022 - Klub | G71: =VLOOKUP(F71,Soutez!A:B,2,FALSE) -> CZ | H71: =VLOOKUP(F71,Soutez!A:C,3,FALSE) -> 2022 | I71: 17 | J71: 2799 | K71: =VLOOKUP(F71,Soutez,12,0) -> 0.905 | L71: 6765 | M71: 6122 | P71: ASW-19B | Q71: JK
A72: Petr Lonsky | B72: 1965 | C72: M | D72: Toužim | E72: CZ/C1 | F72: JPJ 2022 - Klub | G72: =VLOOKUP(F72,Soutez!A:B,2,FALSE) -> CZ | H72: =VLOOKUP(F72,Soutez!A:C,3,FALSE) -> 2022 | I72: 18 | J72: 2778 | K72: 0.905 | L72: 6648 | M72: 6016 | P72: Cirrus | Q72: JP
A73: Karel Horalek | B73: 1976 | C73: M | D73: Olomouc | E73: CZ/M | F73: JPJ 2022 - Klub | G73: =VLOOKUP(F73,Soutez!A:B,2,FALSE) -> CZ | H73: =VLOOKUP(F73,Soutez!A:C,3,FALSE) -> 2022 | I73: 19 | J73: 2758 | K73: 0.905 | L73: 6533 | M73: 5912 | N73: x | P73: LS-3 | Q73: Y1
A74: Jiri Prochazka | B74: 1971 | C74: M | D74: Toužim | E74: CZ/C1 | F74: JPJ 2022 - Klub | G74: =VLOOKUP(F74,Soutez!A:B,2,FALSE) -> CZ | H74: =VLOOKUP(F74,Soutez!A:C,3,FALSE) -> 2022 | I74: 20 | J74: 2727 | K74: 0.905 | L74: 6398 | M74: 5790 | P74: Janus CM | Q74: J59
A75: Jan Vozeh | B75: 1995 | C75: M | D75: Rakovník | E75: CZ/C1 | F75: JPJ 2022 - Klub | G75: =VLOOKUP(F75,Soutez!A:B,2,FALSE) -> CZ | H75: =VLOOKUP(F75,Soutez!A:C,3,FALSE) -> 2022 | I75: 21 | J75: 2714 | K75: 0.905 | L75: 6296 | M75: 5698 | N75: x | P75: Std. Cirrus | Q75: OG
A76: Roman Schotli | B76: 1970 | C76: M | D76: Hranice | E76: CZ/M | F76: JPJ 2022 - Klub | G76: =VLOOKUP(F76,Soutez!A:B,2,FALSE) -> CZ | H76: =VLOOKUP(F76,Soutez!A:C,3,FALSE) -> 2022 | I76: 22 | J76: 2573 | K76: 0.905 | L76: 5964 | M76: 5397 | N76: x | P76: ASW-19B | Q76: 19
A77: Jakub Kohn | B77: 1992 | C77: M | D77: Prostějov | E77: CZ/M | F77: JPJ 2022 - Klub | G77: =VLOOKUP(F77,Soutez!A:B,2,FALSE) -> CZ | H77: =VLOOKUP(F77,Soutez!A:C,3,FALSE) -> 2022 | I77: 23 | J77: 2410 | K77: 0.905 | L77: 5592 | M77: 5061 | P77: ASW-15B | Q77: FK
A78: Jan Zezula | B78: 1979 | C78: M | D78: Letňany | E78: CZ/C1 | F78: JPJ 2022 - Klub | G78: =VLOOKUP(F78,Soutez!A:B,2,FALSE) -> CZ | H78: =VLOOKUP(F78,Soutez!A:C,3,FALSE) -> 2022 | I78: 24 | J78: 2384 | K78: 0.905 | L78: 5466 | M78: 4947 | N78: x | P78: ASW-19B | Q78: HD
A79: Boris Bachraty | B79: 1974 | C79: M | D79: =VLOOKUP(A79,Pilot,3,0) -> Kyjov | E79: =VLOOKUP(A79,Pilot,4,0) -> CZ/M | F79: JPJ 2022 - Klub | G79: =VLOOKUP(F79,Soutez!A:B,2,FALSE) -> CZ | H79: =VLOOKUP(F79,Soutez!A:C,3,FALSE) -> 2022 | I79: 25 | J79: 2256 | K79: 0.905 | L79: 5158 | M79: 4668 | N79: x | P79: Std. Cirrus | Q79: 90
A80: Radim Tomala | B80: 1972 | C80: M | D80: Prostějov | E80: CZ/M | F80: JPJ 2022 - Klub | G80: =VLOOKUP(F80,Soutez!A:B,2,FALSE) -> CZ | H80: =VLOOKUP(F80,Soutez!A:C,3,FALSE) -> 2022 | I80: 26 | J80: 2106 | K80: 0.905 | L80: 4809 | M80: 4352 | N80: x | P80: Std. Cirrus | Q80: RT
A81: Peter Kaspar | B81: 1980 | C81: M | D81: Vyškov | E81: CZ/M | F81: JPJ 2022 - Klub | G81: =VLOOKUP(F81,Soutez!A:B,2,FALSE) -> CZ | H81: =VLOOKUP(F81,Soutez!A:C,3,FALSE) -> 2022 | I81: 27 | J81: 2003 | K81: 0.905 | L81: 4545 | M81: 4113 | N81: x | P81: G-102 Astir 77 | Q81: AP
A82: Lukas Petrzela | B82: 1987 | C82: M | D82: Olomouc | E82: CZ/M | F82: JPJ 2022 - Klub | G82: =VLOOKUP(F82,Soutez!A:B,2,FALSE) -> CZ | H82: =VLOOKUP(F82,Soutez!A:C,3,FALSE) -> 2022 | I82: 28 | J82: 1740 | K82: 0.905 | L82: 3994 | M82: 3615 | N82: x | P82: G-102 Astir CS | Q82: AL
A83: Adam Sugl | B83: 1987 | C83: M | D83: Vyškov | E83: CZ/M | F83: JPJ 2022 - Klub | G83: =VLOOKUP(F83,Soutez!A:B,2,FALSE) -> CZ | H83: =VLOOKUP(F83,Soutez!A:C,3,FALSE) -> 2022 | I83: 29 | J83: 1649 | K83: 0.905 | L83: 3751 | M83: 3395 | N83: x | P83: Std. Cirrus | Q83: GT
A84: Yvona Vyhnankova | B84: 1963 | C84: F | D84: Olomouc | E84: CZ/M | F84: JPJ 2022 - Klub | G84: =VLOOKUP(F84,Soutez!A:B,2,FALSE) -> CZ | H84: =VLOOKUP(F84,Soutez!A:C,3,FALSE) -> 2022 | I84: 30 | J84: 1480 | K84: 0.905 | L84: 3369 | M84: 3049 | N84: x | O84: x | P84: ASW-15 | Q84: YZ
A85: Michal Linhart | B85: 1982 | C85: M | D85: Vyškov | E85: CZ/M | F85: JPJ 2022 - Klub | G85: =VLOOKUP(F85,Soutez!A:B,2,FALSE) -> CZ | H85: =VLOOKUP(F85,Soutez!A:C,3,FALSE) -> 2022 | I85: 31 | J85: 1429 | K85: 0.905 | L85: 3198 | M85: 2894 | N85: x | P85: DG-1000S 18m | Q85: 66
A86: Jan Blaha | B86: 1983 | C86: M | D86: Kyjov | E86: CZ/M | F86: JPJ 2022 - Klub | G86: =VLOOKUP(F86,Soutez!A:B,2,FALSE) -> CZ | H86: =VLOOKUP(F86,Soutez!A:C,3,FALSE) -> 2022 | I86: 32 | J86: 1384 | K86: 0.905 | L86: 3039 | M86: 2750 | N86: x | P86: ASW-15B | Q86: E
A87: Jiri Vavrina | B87: 1958 | C87: M | D87: Kyjov | E87: CZ/M | F87: JPJ 2022 - Klub | G87: =VLOOKUP(F87,Soutez!A:B,2,FALSE) -> CZ | H87: =VLOOKUP(F87,Soutez!A:C,3,FALSE) -> 2022 | I87: 33 | J87: 1322 | K87: 0.905 | L87: 2848 | M87: 2577 | N87: x | P87: LS-1f | Q87: BS
A88: Ludek Mikl | B88: 1963 | C88: M | D88: =VLOOKUP(A88,Pilot,3,0) -> Šumperk | E88: =VLOOKUP(A88,Pilot,4,0) -> CZ/M | F88: JPJ 2022 - Klub | G88: =VLOOKUP(F88,Soutez!A:B,2,FALSE) -> CZ | H88: =VLOOKUP(F88,Soutez!A:C,3,FALSE) -> 2022 | I88: 34 | J88: 1292 | K88: 0.905 | L88: 2715 | M88: 2457 | N88: x | P88: Std. Cirrus | Q88: 16
A89: Karel Ertl | B89: 1939 | C89: M | D89: LK Břeclav | E89: CZ/M | F89: JPJ 2022 - Klub | G89: =VLOOKUP(F89,Soutez!A:B,2,FALSE) -> CZ | H89: =VLOOKUP(F89,Soutez!A:C,3,FALSE) -> 2022 | I89: 35 | J89: 1228 | K89: 0.905 | L89: 2522 | M89: 2282 | P89: TST-10M Atlas | Q89: KE
A90: Miroslav Mancik | B90: 1976 | C90: M | D90: Kyjov | E90: CZ/M | F90: JPJ 2022 - Klub | G90: =VLOOKUP(F90,Soutez!A:B,2,FALSE) -> CZ | H90: =VLOOKUP(F90,Soutez!A:C,3,FALSE) -> 2022 | I90: 36 | J90: 1014 | K90: 0.905 | L90: 2058 | M90: 1862 | N90: x | P90: G-103 Twin Astir | Q90: KW
A91: Lukas Zach | B91: 1987 | C91: M | D91: Vyškov | E91: CZ/M | F91: JPJ 2022 - Klub | G91: =VLOOKUP(F91,Soutez!A:B,2,FALSE) -> CZ | H91: =VLOOKUP(F91,Soutez!A:C,3,FALSE) -> 2022 | I91: 37 | J91: 937 | K91: 0.905 | L91: 1841 | M91: =ROUND(K91*L91,0) -> 1666 | N91: x | P91: G-102 Astir 77 | Q91: AS
A92: Josef Hlusek | B92: 1993 | C92: M | D92: Kunovice | E92: CZ/M | F92: JPJ 2022 - Klub | G92: =VLOOKUP(F92,Soutez!A:B,2,FALSE) -> CZ | H92: =VLOOKUP(F92,Soutez!A:C,3,FALSE) -> 2022 | I92: 38 | J92: 806 | K92: 0.905 | L92: 1527 | M92: 1382 | N92: x | P92: Std. Cirrus | Q92: WO
A93: Jan Florian | B93: 1992 | C93: M | D93: Zbraslavice | E93: CZ/C1 | F93: JPJ 2022 - Klub | G93: =VLOOKUP(F93,Soutez!A:B,2,FALSE) -> CZ | H93: =VLOOKUP(F93,Soutez!A:C,3,FALSE) -> 2022 | I93: 39 | J93: 667 | K93: 0.905 | L93: 1198 | M93: 1084 | P93: Std. Cirrus | Q93: C1
A94: Radek Hybl | B94: 1980 | C94: M | D94: =VLOOKUP(A94,Pilot,3,0) -> Šumperk | E94: =VLOOKUP(A94,Pilot,4,0) -> CZ/M | F94: JPJ 2022 - Kombi | G94: =VLOOKUP(F94,Soutez!A:B,2,FALSE) -> CZ | H94: =VLOOKUP(F94,Soutez!A:C,3,FALSE) -> 2022 | I94: 1 | J94: 4147 | K94: 0.91 | L94: =ROUND(J94/MAX($J$94:$J$113)*10000*0.7+(MAX($I$94:$I$113)-I94)/(MAX($I$94:$I$113)-1)*10000*0.3,0) -> 10000 | M94: =ROUND(K94*L94,0) -> 9100 | N94: x | P94: Ventus cm 17,6m | Q94: IHH
A95: Frantisek Vancura | B95: 1966 | C95: M | D95: Hranice | E95: CZ/M | F95: JPJ 2022 - Kombi | G95: =VLOOKUP(F95,Soutez!A:B,2,FALSE) -> CZ | H95: =VLOOKUP(F95,Soutez!A:C,3,FALSE) -> 2022 | I95: 2 | J95: 4071 | K95: 0.91 | L95: 9714 | M95: =ROUND(K95*L95,0) -> 8840 | N95: x | P95: Nimbus 3T 24,5m WL 750kg | Q95: A1
A96: Michal Cechmanek | B96: 1978 | C96: M | D96: Kroměříž | E96: CZ/M | F96: JPJ 2022 - Kombi | G96: =VLOOKUP(F96,Soutez!A:B,2,FALSE) -> CZ | H96: =VLOOKUP(F96,Soutez!A:C,3,FALSE) -> 2022 | I96: 3 | J96: 4020 | K96: 0.91 | L96: 9470 | M96: 8618 | N96: x | P96: ASW-20 L+F 16,6m | Q96: MK
A97: Jan Dersak 69 | B97: 1969 | C97: M | D97: Kralupy | E97: CZ/C1 | F97: JPJ 2022 - Kombi | G97: =VLOOKUP(F97,Soutez!A:B,2,FALSE) -> CZ | H97: =VLOOKUP(F97,Soutez!A:C,3,FALSE) -> 2022 | I97: 4 | J97: 3962 | K97: 0.91 | L97: 9214 | M97: 8385 | N97: x | P97: HpH 304JS 18m 573kg | Q97: DJ
A98: Marek Blatak | B98: 1969 | C98: M | D98: Šumperk | E98: CZ/M | F98: JPJ 2022 - Kombi | G98: =VLOOKUP(F98,Soutez!A:B,2,FALSE) -> CZ | H98: =VLOOKUP(F98,Soutez!A:C,3,FALSE) -> 2022 | I98: 5 | J98: 3911 | K98: 0.91 | L98: 8970 | M98: 8163 | N98: x | P98: DG-808 S 18m WL | Q98: W
A99: Jiri Steiger | B99: 1969 | C99: M | D99: Olomouc | E99: CZ/M | F99: JPJ 2022 - Kombi | G99: =VLOOKUP(F99,Soutez!A:B,2,FALSE) -> CZ | H99: =VLOOKUP(F99,Soutez!A:C,3,FALSE) -> 2022 | I99: 6 | J99: 3887 | K99: 0.91 | L99: 8772 | M99: 7983 | N99: x | P99: Ventus 3M 18m | Q99: JS
A100: Jan Simon | B100: 1970 | C100: M | D100: Kralupy | E100: CZ/C1 | F100: JPJ 2022 - Kombi | G100: =VLOOKUP(F100,Soutez!A:B,2,FALSE) -> CZ | H100: =VLOOKUP(F100,Soutez!A:C,3,FALSE) -> 2022 | I100: 7 | J100: 3440 | K100: 0.91 | L100: 7859 | M100: 7152 | P100: Duo Discus T 700kg | Q100: ZS
A101: Ladislav Jozsa | B101: 1981 | C101: M | D101: Medlánky | E101: CZ/M | F101: JPJ 2022 - Kombi | G101: =VLOOKUP(F101,Soutez!A:B,2,FALSE) -> CZ | H101: =VLOOKUP(F101,Soutez!A:C,3,FALSE) -> 2022 | I101: 8 | J101: 3359 | K101: 0.91 | L101: 7565 | M101: 6884 | N101: x | P101: Ventus c 17,6m | Q101: WW
A102: Zdenek Schenk | B102: 1972 | C102: M | D102: Hranice | E102: CZ/M | F102: JPJ 2022 - Kombi | G102: =VLOOKUP(F102,Soutez!A:B,2,FALSE) -> CZ | H102: =VLOOKUP(F102,Soutez!A:C,3,FALSE) -> 2022 | I102: 9 | J102: 3304 | K102: 0.91 | L102: 7314 | M102: 6656 | N102: x | P102: Ventus cm 17,6m | Q102: ŠNeK
A103: Miroslav Koci | B103: 1961 | C103: M | D103: Žamberk | E103: CZ/C2 | F103: JPJ 2022 - Kombi | G103: =VLOOKUP(F103,Soutez!A:B,2,FALSE) -> CZ | H103: =VLOOKUP(F103,Soutez!A:C,3,FALSE) -> 2022 | I103: 10 | J103: 3089 | K103: =VLOOKUP(F103,Soutez,12,0) -> 0.91 | L103: 6793 | M103: 6182 | N103: x | P103: Ventus 2cxm 18m 565kg | Q103: E8
A104: Tomas Prikryl | B104: 1973 | C104: M | D104: Vyškov | E104: CZ/M | F104: JPJ 2022 - Kombi | G104: =VLOOKUP(F104,Soutez!A:B,2,FALSE) -> CZ | H104: =VLOOKUP(F104,Soutez!A:C,3,FALSE) -> 2022 | I104: 11 | J104: 2976 | K104: 0.91 | L104: 6444 | M104: 5864 | N104: x | P104: Ventus 2cm 18m 525kg | Q104: FN
A105: Petr Babak | B105: 1973 | C105: M | D105: Hořice | E105: CZ/C2 | F105: JPJ 2022 - Kombi | G105: =VLOOKUP(F105,Soutez!A:B,2,FALSE) -> CZ | H105: =VLOOKUP(F105,Soutez!A:C,3,FALSE) -> 2022 | I105: 12 | J105: 2747 | K105: 0.91 | L105: 5900 | M105: 5369 | P105: Ventus c 17,6m | Q105: LS
A106: Antonin Kutalek | B106: 1943 | C106: M | D106: Zábřeh | E106: CZ/M | F106: JPJ 2022 - Kombi | G106: =VLOOKUP(F106,Soutez!A:B,2,FALSE) -> CZ | H106: =VLOOKUP(F106,Soutez!A:C,3,FALSE) -> 2022 | I106: 13 | J106: 2675 | K106: 0.91 | L106: 5621 | M106: =ROUND(K106*L106,0) -> 5115 | P106: LAK-17AT 18m | Q106: GLK
A107: Beat Albrecht | B107: =VLOOKUP(A107,Pilot,2,0) -> 1953 | C107: =VLOOKUP(A107,Pilot,5,0) -> M | D107: Šumperk | E107: CZ/M | F107: JPJ 2022 - Kombi | G107: =VLOOKUP(F107,Soutez!A:B,2,FALSE) -> CZ | H107: =VLOOKUP(F107,Soutez!A:C,3,FALSE) -> 2022 | I107: 14 | J107: 2550 | K107: 0.91 | L107: 5252 | M107: 4779 | N107: x | P107: LS-8-18 18m | Q107: GL
A108: Miroslav Sklenar | B108: 1964 | C108: M | D108: Žamberk | E108: CZ/C2 | F108: JPJ 2022 - Kombi | G108: =VLOOKUP(F108,Soutez!A:B,2,FALSE) -> CZ | H108: =VLOOKUP(F108,Soutez!A:C,3,FALSE) -> 2022 | I108: 15 | J108: 2475 | K108: 0.91 | L108: 4967 | M108: 4520 | N108: x | P108: Duo Discus 700kg | Q108: VP
A109: Pavel Haluza | B109: 1966 | C109: M | D109: Prostějov | E109: CZ/M | F109: JPJ 2022 - Kombi | G109: =VLOOKUP(F109,Soutez!A:B,2,FALSE) -> CZ | H109: =VLOOKUP(F109,Soutez!A:C,3,FALSE) -> 2022 | I109: 16 | J109: 2223 | K109: 0.91 | L109: 4384 | M109: 3989 | N109: x | P109: Nimbus 2b | Q109: HT
A110: Vit Grossmann | B110: 1977 | C110: M | D110: Hranice | E110: CZ/M | F110: JPJ 2022 - Kombi | G110: =VLOOKUP(F110,Soutez!A:B,2,FALSE) -> CZ | H110: =VLOOKUP(F110,Soutez!A:C,3,FALSE) -> 2022 | I110: 17 | J110: 2096 | K110: 0.91 | L110: 4012 | M110: 3651 | N110: x | P110: Duo Discus 700kg | Q110: OK
A111: Michal Hemrle | B111: 1974 | C111: M | D111: Česká Lípa | E111: CZ/C2 | F111: JPJ 2022 - Kombi | G111: =VLOOKUP(F111,Soutez!A:B,2,FALSE) -> CZ | H111: =VLOOKUP(F111,Soutez!A:C,3,FALSE) -> 2022 | I111: 18 | J111: 1826 | K111: 0.91 | L111: 3398 | M111: 3092 | N111: x | P111: ASG-29E 18m | Q111: ET
A112: Olga Mokosova | B112: 1970 | C112: F | D112: Jihlava | E112: CZ/M | F112: JPJ 2022 - Kombi | G112: =VLOOKUP(F112,Soutez!A:B,2,FALSE) -> CZ | H112: =VLOOKUP(F112,Soutez!A:C,3,FALSE) -> 2022 | I112: 19 | J112: 1736 | K112: 0.91 | L112: 3088 | M112: 2810 | P112: LS-6c 18m WL | Q112: MM
A113: Pavel Handl | B113: 1971 | C113: M | D113: Kroměříž | E113: CZ/M | F113: JPJ 2022 - Kombi | G113: =VLOOKUP(F113,Soutez!A:B,2,FALSE) -> CZ | H113: =VLOOKUP(F113,Soutez!A:C,3,FALSE) -> 2022 | I113: 20 | J113: 641 | K113: 0.91 | L113: 1082 | M113: 985 | N113: x | P113: Ventus 2cm 18m 525kg | Q113: VJ
A114: Michal Lesinger | B114: 1966 | C114: M | D114: =VLOOKUP(A114,Pilot,3,0) -> Moravská Třebová | E114: =VLOOKUP(A114,Pilot,4,0) -> CZ/M | F114: PMRg 2022 - Klub | G114: =VLOOKUP(F114,Soutez!A:B,2,FALSE) -> CZ | H114: =VLOOKUP(F114,Soutez!A:C,3,FALSE) -> 2022 | I114: 1 | J114: 3948 | K114: 0.915 | L114: =ROUND(J114/MAX($J$114:$J$126)*10000*0.7+(MAX($I$114:$I$126)-I114)/(MAX($I$114:$I$126)-1)*10000*0.3,0) -> 10000 | M114: =ROUND(K114*L114,0) -> 9150 | P114: ASW 20 | Q114: LL | R114: =IF(ISERROR(VLOOKUP(A114,Pilot,6,0)),"Není v databázi",VLOOKUP(A114,Pilot,6,0)) -> 
A115: Jiri Kusbach | B115: 1959 | C115: M | D115: Luhačovice | E115: CZ/M | F115: PMRg 2022 - Klub | G115: =VLOOKUP(F115,Soutez!A:B,2,FALSE) -> CZ | H115: =VLOOKUP(F115,Soutez!A:C,3,FALSE) -> 2022 | I115: 2 | J115: 3831 | K115: 0.915 | L115: 9543 | M115: =ROUND(K115*L115,0) -> 8732 | P115: KKB-15E FES | Q115: B
A116: Jan Smaha | B116: 1958 | C116: M | D116: Česká Lípa | E116: CZ/C2 | F116: PMRg 2022 - Klub | G116: =VLOOKUP(F116,Soutez!A:B,2,FALSE) -> CZ | H116: =VLOOKUP(F116,Soutez!A:C,3,FALSE) -> 2022 | I116: 3 | J116: 3458 | K116: 0.915 | L116: 8631 | M116: 7897 | N116: x | P116: ASW 15 B | Q116: CW
A117: Lukas Maly | B117: 1998 | C117: M | D117: Vysoké Mýto | E117: CZ/C2 | F117: PMRg 2022 - Klub | G117: =VLOOKUP(F117,Soutez!A:B,2,FALSE) -> CZ | H117: =VLOOKUP(F117,Soutez!A:C,3,FALSE) -> 2022 | I117: 4 | J117: 3447 | K117: 0.915 | L117: 8362 | M117: 7651 | N117: x | P117: Discus b | Q117: 65
A118: Jiri Stepanek | B118: 1956 | C118: M | D118: Moravská Třebová | E118: CZ/M | F118: PMRg 2022 - Klub | G118: =VLOOKUP(F118,Soutez!A:B,2,FALSE) -> CZ | H118: =VLOOKUP(F118,Soutez!A:C,3,FALSE) -> 2022 | I118: 5 | J118: 3387 | K118: 0.915 | L118: 8005 | M118: 7325 | N118: x | P118: ASW 15 B | Q118: LE
A119: Martin Stepanek | B119: 1987 | C119: M | D119: Moravská Třebová | E119: CZ/M | F119: PMRg 2022 - Klub | G119: =VLOOKUP(F119,Soutez!A:B,2,FALSE) -> CZ | H119: =VLOOKUP(F119,Soutez!A:C,3,FALSE) -> 2022 | I119: 6 | J119: 3361 | K119: 0.915 | L119: 7709 | M119: =ROUND(K119*L119,0) -> 7054 | N119: x | P119: ASW 19 B | Q119: AE
A120: Tomas Hynek | B120: 2002 | C120: M | D120: Dvůr Králové | E120: CZ/C2 | F120: PMRg 2022 - Klub | G120: =VLOOKUP(F120,Soutez!A:B,2,FALSE) -> CZ | H120: =VLOOKUP(F120,Soutez!A:C,3,FALSE) -> 2022 | I120: 7 | J120: 3190 | K120: 0.915 | L120: 7156 | M120: 6548 | P120: DG 200 | Q120: HL | R120: Junior v roce 2025
A121: Pavel Koudelka | B121: 1973 | C121: M | D121: Křižanov | E121: CZ/M | F121: PMRg 2022 - Klub | G121: =VLOOKUP(F121,Soutez!A:B,2,FALSE) -> CZ | H121: =VLOOKUP(F121,Soutez!A:C,3,FALSE) -> 2022 | I121: 8 | J121: 3156 | K121: 0.915 | L121: 6846 | M121: 6264 | N121: x | P121: Std. Cirrus | Q121: ZL
A122: Michaela Krizova | B122: 2001 | C122: F | D122: Přibyslav | E122: CZ/C2 | F122: PMRg 2022 - Klub | G122: =VLOOKUP(F122,Soutez!A:B,2,FALSE) -> CZ | H122: =VLOOKUP(F122,Soutez!A:C,3,FALSE) -> 2022 | I122: 9 | J122: 2951 | K122: 0.915 | L122: 6232 | M122: 5702 | P122: ASW 15 B | Q122: BE | R122: Junior v roce 2025
A123: Pavlina Horackova | B123: 1965 | C123: F | D123: Šumperk | E123: CZ/M | F123: PMRg 2022 - Klub | G123: =VLOOKUP(F123,Soutez!A:B,2,FALSE) -> CZ | H123: =VLOOKUP(F123,Soutez!A:C,3,FALSE) -> 2022 | I123: 10 | J123: 2618 | K123: 0.915 | L123: 5392 | M123: 4934 | N123: x | O123: x | P123: SZD-48 Jantar Std. 2 | Q123: SU
A124: Katerina Vancurova | B124: 2002 | C124: F | D124: Hranice | E124: CZ/M | F124: PMRg 2022 - Klub | G124: =VLOOKUP(F124,Soutez!A:B,2,FALSE) -> CZ | H124: =VLOOKUP(F124,Soutez!A:C,3,FALSE) -> 2022 | I124: 11 | J124: 2331 | K124: 0.915 | L124: 4633 | M124: 4239 | N124: x | O124: x | P124: Discus b | Q124: HD | R124: Junior v roce 2025
A125: Jan Florian | B125: 1992 | C125: M | D125: Zbraslavice | E125: CZ/C1 | F125: PMRg 2022 - Klub | G125: =VLOOKUP(F125,Soutez!A:B,2,FALSE) -> CZ | H125: =VLOOKUP(F125,Soutez!A:C,3,FALSE) -> 2022 | I125: 12 | J125: 2188 | K125: 0.915 | L125: 4129 | M125: 3778 | P125: Std. Cirrus | Q125: C1
A126: Jiri Krofta | B126: 1988 | C126: M | D126: Hosín | E126: CZ/C1 | F126: PMRg 2022 - Klub | G126: =VLOOKUP(F126,Soutez!A:B,2,FALSE) -> CZ | H126: =VLOOKUP(F126,Soutez!A:C,3,FALSE) -> 2022 | I126: 13 | J126: 1904 | K126: 0.915 | L126: 3376 | M126: 3089 | N126: x | P126: Std. Cirrus | Q126: YU
A127: Lukas Capek | B127: 1992 | C127: M | D127: =VLOOKUP(A127,Pilot,3,0) -> Letňany | E127: =VLOOKUP(A127,Pilot,4,0) -> CZ/C1 | F127: PMRg 2022 - Kombi | G127: =VLOOKUP(F127,Soutez!A:B,2,FALSE) -> CZ | H127: =VLOOKUP(F127,Soutez!A:C,3,FALSE) -> 2022 | I127: 1 | J127: 3354 | K127: 0.91 | L127: =ROUND(J127/MAX($J$127:$J$137)*10000*0.7+(MAX($I$127:$I$137)-I127)/(MAX($I$127:$I$137)-1)*10000*0.3,0) -> 10000 | M127: =ROUND(K127*L127,0) -> 9100 | N127: x | P127: Mosquito | Q127: LC
A128: Jaroslav Potmesil | B128: 1964 | C128: M | D128: Zbraslavice | E128: CZ/C1 | F128: PMRg 2022 - Kombi | G128: =VLOOKUP(F128,Soutez!A:B,2,FALSE) -> CZ | H128: =VLOOKUP(F128,Soutez!A:C,3,FALSE) -> 2022 | I128: 2 | J128: 2942 | K128: 0.91 | L128: 8807 | M128: =ROUND(K128*L128,0) -> 8014 | N128: x | P128: HpH 304 TS Twin Shark | Q128: TS
A129: Petr Hora | B129: 1948 | C129: M | D129: Hodkovice | E129: CZ/C2 | F129: PMRg 2022 - Kombi | G129: =VLOOKUP(F129,Soutez!A:B,2,FALSE) -> CZ | H129: =VLOOKUP(F129,Soutez!A:C,3,FALSE) -> 2022 | I129: 3 | J129: 2515 | K129: 0.91 | L129: 7582 | M129: 6900 | N129: x | P129: HpH 304 MS Shark | Q129: B1
A130: Tomas Kulhavy | B130: 2001 | C130: M | D130: Liberec | E130: CZ/C2 | F130: PMRg 2022 - Kombi | G130: =VLOOKUP(F130,Soutez!A:B,2,FALSE) -> CZ | H130: =VLOOKUP(F130,Soutez!A:C,3,FALSE) -> 2022 | I130: 4 | J130: 2500 | K130: 0.91 | L130: 7218 | M130: 6568 | N130: x | P130: HpH 304 CZ 17.4m | Q130: IH | R130: Junior v roce 2025
A131: Antonin Kutalek | B131: 1943 | C131: M | D131: Zábřeh | E131: CZ/M | F131: PMRg 2022 - Kombi | G131: =VLOOKUP(F131,Soutez!A:B,2,FALSE) -> CZ | H131: =VLOOKUP(F131,Soutez!A:C,3,FALSE) -> 2022 | I131: 5 | J131: 2340 | K131: 0.91 | L131: 6550 | M131: 5961 | N131: x | P131: LAK-17A T 18m | Q131: GL
A132: Radek Zima 78 | B132: 1978 | C132: M | D132: Hodkovice | E132: CZ/C2 | F132: PMRg 2022 - Kombi | G132: =VLOOKUP(F132,Soutez!A:B,2,FALSE) -> CZ | H132: =VLOOKUP(F132,Soutez!A:C,3,FALSE) -> 2022 | I132: 6 | J132: 1372 | K132: 0.91 | L132: 4197 | M132: 3819 | P132: ASG 29 E 18m | Q132: XZ
A133: Jaromir Macoun | B133: 1999 | C133: M | D133: Jičín | E133: CZ/C2 | F133: PMRg 2022 - Kombi | G133: =VLOOKUP(F133,Soutez!A:B,2,FALSE) -> CZ | H133: =VLOOKUP(F133,Soutez!A:C,3,FALSE) -> 2022 | I133: 7 | J133: 225 | K133: 0.91 | L133: 1470 | M133: 1338 | P133: LS 8 | Q133: EU
A134: Ivan Tvrdik | B134: 1997 | C134: M | D134: Letňany | E134: CZ/C1 | F134: PMRg 2022 - Kombi | G134: =VLOOKUP(F134,Soutez!A:B,2,FALSE) -> CZ | H134: =VLOOKUP(F134,Soutez!A:C,3,FALSE) -> 2022 | I134: 8 | J134: 221 | K134: 0.91 | L134: 1128 | M134: =ROUND(K134*L134,0) -> 1026 | P134: ASW 20 16.6m | Q134: NW
A135: Jan Drbohlav | B135: 1999 | C135: M | D135: Hodkovice | E135: CZ/C2 | F135: PMRg 2022 - Kombi | G135: =VLOOKUP(F135,Soutez!A:B,2,FALSE) -> CZ | H135: =VLOOKUP(F135,Soutez!A:C,3,FALSE) -> 2022 | I135: 9 | J135: 1 | K135: =VLOOKUP(F135,Soutez,12,0) -> 0.91 | L135: 335 | M135: 305 | N135: x | P135: G 103 Twin Astir | Q135: BL
A136: Vojtech Hajek | B136: 1987 | C136: M | D136: Mladá Boleslav | E136: CZ/C1 | F136: PMRg 2022 - Kombi | G136: =VLOOKUP(F136,Soutez!A:B,2,FALSE) -> CZ | H136: =VLOOKUP(F136,Soutez!A:C,3,FALSE) -> 2022 | I136: 10 | J136: 0 | K136: 0.91 | L136: 0 | M136: 0 | P136: Duo Discus | Q136: 777
A137: Karel Novak | B137: 1993 | C137: M | D137: Mladá Boleslav | E137: CZ/C1 | F137: PMRg 2022 - Kombi | G137: =VLOOKUP(F137,Soutez!A:B,2,FALSE) -> CZ | H137: =VLOOKUP(F137,Soutez!A:C,3,FALSE) -> 2022 | I137: 10 | J137: 0 | K137: 0.91 | L137: 0 | M137: 0 | P137: LS 8 | Q137: ID
A138: Lukas Kriz | B138: 2003 | C138: M | D138: =VLOOKUP(A138,Pilot,3,0) -> Křižanov | E138: =VLOOKUP(A138,Pilot,4,0) -> CZ/M | F138: PMČRj 2022 - Klub | G138: =VLOOKUP(F138,Soutez!A:B,2,FALSE) -> CZ | H138: =VLOOKUP(F138,Soutez!A:C,3,FALSE) -> 2022 | I138: 1 | J138: 4452 | K138: 0.915 | L138: =ROUND(J138/MAX($J$138:$J$166)*10000*0.7+(MAX($I$138:$I$166)-I138)/(MAX($I$138:$I$166)-1)*10000*0.3,0) -> 10000 | M138: =ROUND(K138*L138,0) -> 9150 | P138: LS 8a 15m | Q138: AU | R138: Junior v roce 2025
A139: Vladimir Hammer | B139: 2000 | C139: M | D139: Letkov | E139: CZ/C1 | F139: PMČRj 2022 - Klub | G139: =VLOOKUP(F139,Soutez!A:B,2,FALSE) -> CZ | H139: =VLOOKUP(F139,Soutez!A:C,3,FALSE) -> 2022 | I139: 2 | J139: 4170 | K139: 0.915 | L139: 9449 | M139: =ROUND(K139*L139,0) -> 8646 | N139: x | P139: Std. Cirrus | Q139: SB | R139: Junior v roce 2025
A140: Jan Stastny | B140: 2003 | C140: M | D140: Medlánky | E140: CZ/M | F140: PMČRj 2022 - Klub | G140: =VLOOKUP(F140,Soutez!A:B,2,FALSE) -> CZ | H140: =VLOOKUP(F140,Soutez!A:C,3,FALSE) -> 2022 | I140: 3 | J140: 4073 | K140: 0.915 | L140: 9190 | M140: 8409 | P140: Std. Cirrus | Q140: CX | R140: Junior v roce 2025
A141: Vit Morkovsky | B141: 2000 | C141: M | D141: Polička | E141: CZ/C2 | F141: PMČRj 2022 - Klub | G141: =VLOOKUP(F141,Soutez!A:B,2,FALSE) -> CZ | H141: =VLOOKUP(F141,Soutez!A:C,3,FALSE) -> 2022 | I141: 4 | J141: 4051 | K141: 0.915 | L141: 9048 | M141: 8279 | P141: ASW 24 A WL | Q141: SM | R141: Junior v roce 2025
A142: Lukas Volek | B142: 2004 | C142: M | D142: Hodkovice | E142: CZ/C2 | F142: PMČRj 2022 - Klub | G142: =VLOOKUP(F142,Soutez!A:B,2,FALSE) -> CZ | H142: =VLOOKUP(F142,Soutez!A:C,3,FALSE) -> 2022 | I142: 5 | J142: 3982 | K142: 0.915 | L142: 8832 | M142: 8081 | N142: x | P142: Std. Cirrus | Q142: UB | R142: Junior v roce 2025
A143: Tomas Hynek | B143: 2002 | C143: M | D143: Dvůr Králové | E143: CZ/C2 | F143: PMČRj 2022 - Klub | G143: =VLOOKUP(F143,Soutez!A:B,2,FALSE) -> CZ | H143: =VLOOKUP(F143,Soutez!A:C,3,FALSE) -> 2022 | I143: 6 | J143: 3980 | K143: 0.915 | L143: 8722 | M143: 7981 | P143: Std. Cirrus | Q143: HT | R143: Junior v roce 2025
A144: Ivan Tvrdik | B144: 1997 | C144: M | D144: Letňany | E144: CZ/C1 | F144: PMČRj 2022 - Klub | G144: =VLOOKUP(F144,Soutez!A:B,2,FALSE) -> CZ | H144: =VLOOKUP(F144,Soutez!A:C,3,FALSE) -> 2022 | I144: 7 | J144: 3976 | K144: 0.915 | L144: 8609 | M144: 7877 | N144: x | P144: ASW 19B | Q144: KZ
A145: Michaela Krizova | B145: 2001 | C145: F | D145: Přibyslav | E145: CZ/C2 | F145: PMČRj 2022 - Klub | G145: =VLOOKUP(F145,Soutez!A:B,2,FALSE) -> CZ | H145: =VLOOKUP(F145,Soutez!A:C,3,FALSE) -> 2022 | I145: 8 | J145: 3975 | K145: 0.915 | L145: 8500 | M145: 7778 | N145: x | O145: x | P145: ASW 15B | Q145: BE | R145: Junior v roce 2025
A146: Jan Beran | B146: 1999 | C146: M | D146: Kladno | E146: CZ/C1 | F146: PMČRj 2022 - Klub | G146: =VLOOKUP(F146,Soutez!A:B,2,FALSE) -> CZ | H146: =VLOOKUP(F146,Soutez!A:C,3,FALSE) -> 2022 | I146: 9 | J146: 3935 | K146: 0.915 | L146: 8330 | M146: 7622 | N146: x | P146: ASW 19B | Q146: HB
A147: Petr Havelka | B147: 1997 | C147: M | D147: Zbraslavice | E147: CZ/C1 | F147: PMČRj 2022 - Klub | G147: =VLOOKUP(F147,Soutez!A:B,2,FALSE) -> CZ | H147: =VLOOKUP(F147,Soutez!A:C,3,FALSE) -> 2022 | I147: 10 | J147: 3908 | K147: 0.915 | L147: 8180 | M147: 7485 | N147: x | P147: ASW 19B | Q147: PH
A148: Jaromir Macoun | B148: 1999 | C148: M | D148: Jičín | E148: CZ/C2 | F148: PMČRj 2022 - Klub | G148: =VLOOKUP(F148,Soutez!A:B,2,FALSE) -> CZ | H148: =VLOOKUP(F148,Soutez!A:C,3,FALSE) -> 2022 | I148: 11 | J148: 3856 | K148: 0.915 | L148: 7991 | M148: 7312 | P148: LS 8a 15m | Q148: EU
A149: Tereza Koubkova | B149: 1999 | C149: F | D149: Vysoké Mýto | E149: CZ/C2 | F149: PMČRj 2022 - Klub | G149: =VLOOKUP(F149,Soutez!A:B,2,FALSE) -> CZ | H149: =VLOOKUP(F149,Soutez!A:C,3,FALSE) -> 2022 | I149: 12 | J149: 3814 | K149: 0.915 | L149: 7818 | M149: 7153 | P149: ASW 19 B | Q149: XP
A150: Tomas Kulhavy | B150: 2001 | C150: M | D150: Liberec | E150: CZ/C2 | F150: PMČRj 2022 - Klub | G150: =VLOOKUP(F150,Soutez!A:B,2,FALSE) -> CZ | H150: =VLOOKUP(F150,Soutez!A:C,3,FALSE) -> 2022 | I150: 13 | J150: 3053 | K150: 0.915 | L150: 6515 | M150: =ROUND(K150*L150,0) -> 5961 | P150: LS 3 15m | Q150: R9 | R150: Junior v roce 2025
A151: Stepan Filakovsky | B151: 2005 | C151: M | D151: Medlánky | E151: CZ/M | F151: PMČRj 2022 - Klub | G151: =VLOOKUP(F151,Soutez!A:B,2,FALSE) -> CZ | H151: =VLOOKUP(F151,Soutez!A:C,3,FALSE) -> 2022 | I151: 14 | J151: 2964 | K151: 0.915 | L151: 6268 | M151: 5735 | P151: LS 1 f | Q151: FD | R151: Junior v roce 2025
A152: Jakub Malik | B152: 1999 | C152: M | D152: Letňany | E152: CZ/C1 | F152: PMČRj 2022 - Klub | G152: =VLOOKUP(F152,Soutez!A:B,2,FALSE) -> CZ | H152: =VLOOKUP(F152,Soutez!A:C,3,FALSE) -> 2022 | I152: 15 | J152: 2905 | K152: 0.915 | L152: 6068 | M152: 5552 | P152: Discus b WL | Q152: DP
A153: Jiri Maier 99 | B153: 1999 | C153: M | D153: Raná | E153: CZ/C2 | F153: PMČRj 2022 - Klub | G153: =VLOOKUP(F153,Soutez!A:B,2,FALSE) -> CZ | H153: =VLOOKUP(F153,Soutez!A:C,3,FALSE) -> 2022 | I153: 16 | J153: 2746 | K153: 0.915 | L153: 5710 | M153: 5225 | N153: x | P153: Discus bt WL | Q153: TAL
A154: Lukas Maly | B154: 1998 | C154: M | D154: Vysoké Mýto | E154: CZ/C2 | F154: PMČRj 2022 - Klub | G154: =VLOOKUP(F154,Soutez!A:B,2,FALSE) -> CZ | H154: =VLOOKUP(F154,Soutez!A:C,3,FALSE) -> 2022 | I154: 17 | J154: 2601 | K154: 0.915 | L154: 5375 | M154: 4918 | P154: Discus b | Q154: 65
A155: Adam Hepal | B155: 2004 | C155: M | D155: Moravská Třebová | E155: CZ/M | F155: PMČRj 2022 - Klub | G155: =VLOOKUP(F155,Soutez!A:B,2,FALSE) -> CZ | H155: =VLOOKUP(F155,Soutez!A:C,3,FALSE) -> 2022 | I155: 18 | J155: 2570 | K155: 0.915 | L155: 5219 | M155: 4775 | N155: x | P155: ASW 19B | Q155: AE | R155: Junior v roce 2025
A156: Fabian Curda | B156: =VLOOKUP(A156,Pilot,2,0) -> 2004 | C156: =VLOOKUP(A156,Pilot,5,0) -> M | D156: Zábřeh | E156: CZ/M | F156: PMČRj 2022 - Klub | G156: =VLOOKUP(F156,Soutez!A:B,2,FALSE) -> CZ | H156: =VLOOKUP(F156,Soutez!A:C,3,FALSE) -> 2022 | I156: 19 | J156: 2461 | K156: 0.915 | L156: 4941 | M156: 4521 | N156: x | P156: DG 300 | Q156: U7 | R156: Junior v roce 2025
A157: Martin Stastny | B157: 2005 | C157: M | D157: Medlánky | E157: CZ/M | F157: PMČRj 2022 - Klub | G157: =VLOOKUP(F157,Soutez!A:B,2,FALSE) -> CZ | H157: =VLOOKUP(F157,Soutez!A:C,3,FALSE) -> 2022 | I157: 20 | J157: 2330 | K157: 0.915 | L157: 4628 | M157: 4235 | N157: x | P157: ASW 15B | Q157: TW | R157: Junior v roce 2025
A158: Katerina Vancurova | B158: 2002 | C158: F | D158: Hranice | E158: CZ/M | F158: PMČRj 2022 - Klub | G158: =VLOOKUP(F158,Soutez!A:B,2,FALSE) -> CZ | H158: =VLOOKUP(F158,Soutez!A:C,3,FALSE) -> 2022 | I158: 21 | J158: 2190 | K158: 0.915 | L158: 4301 | M158: 3935 | P158: Discus cs | Q158: HD | R158: Junior v roce 2025
A159: Tibor Hezina | B159: 2002 | C159: M | D159: Křižanov | E159: CZ/M | F159: PMČRj 2022 - Klub | G159: =VLOOKUP(F159,Soutez!A:B,2,FALSE) -> CZ | H159: =VLOOKUP(F159,Soutez!A:C,3,FALSE) -> 2022 | I159: 22 | J159: 2174 | K159: 0.915 | L159: 4168 | M159: 3814 | N159: x | P159: Std. Cirrus | Q159: IJ | R159: Junior v roce 2025
A160: Vojtech Vach 03 | B160: 2003 | C160: M | D160: Vrchlabí | E160: CZ/C2 | F160: PMČRj 2022 - Klub | G160: =VLOOKUP(F160,Soutez!A:B,2,FALSE) -> CZ | H160: =VLOOKUP(F160,Soutez!A:C,3,FALSE) -> 2022 | I160: 23 | J160: 2077 | K160: 0.915 | L160: 3909 | M160: 3577 | P160: Cirrus VTC | Q160: 1W | R160: Junior v roce 2025
A161: Petr Hosek | B161: 2001 | C161: M | D161: Beroun | E161: CZ/C1 | F161: PMČRj 2022 - Klub | G161: =VLOOKUP(F161,Soutez!A:B,2,FALSE) -> CZ | H161: =VLOOKUP(F161,Soutez!A:C,3,FALSE) -> 2022 | I161: 24 | J161: 2010 | K161: 0.915 | L161: 3696 | M161: 3382 | N161: x | P161: VSO-10 | Q161: B1 | R161: Junior v roce 2025
A162: Vit Pavelka | B162: 2004 | C162: M | D162: Moravská Třebová | E162: CZ/M | F162: PMČRj 2022 - Klub | G162: =VLOOKUP(F162,Soutez!A:B,2,FALSE) -> CZ | H162: =VLOOKUP(F162,Soutez!A:C,3,FALSE) -> 2022 | I162: 25 | J162: 1924 | K162: 0.915 | L162: 3454 | M162: 3160 | N162: x | P162: ASW 15B | Q162: LE | R162: Junior v roce 2025
A163: Jan Svestka | B163: 2005 | C163: M | D163: Křižanov | E163: CZ/M | F163: PMČRj 2022 - Klub | G163: =VLOOKUP(F163,Soutez!A:B,2,FALSE) -> CZ | H163: =VLOOKUP(F163,Soutez!A:C,3,FALSE) -> 2022 | I163: 26 | J163: 1811 | K163: 0.915 | L163: 3169 | M163: 2900 | N163: x | P163: Std. Cirrus | Q163: EJ | R163: Junior v roce 2025
A164: Petr Masik | B164: 2001 | C164: M | D164: Zábřeh | E164: CZ/M | F164: PMČRj 2022 - Klub | G164: =VLOOKUP(F164,Soutez!A:B,2,FALSE) -> CZ | H164: =VLOOKUP(F164,Soutez!A:C,3,FALSE) -> 2022 | I164: 27 | J164: 1769 | K164: 0.915 | L164: 2996 | M164: 2741 | P164: ASW 15 | Q164: ET | R164: =IF(ISERROR(VLOOKUP(A164,Pilot,6,0)),"Není v databázi",VLOOKUP(A164,Pilot,6,0)) -> Junior v roce 2025
A165: Vojtech Pavek | B165: 2000 | C165: M | D165: Medlánky | E165: CZ/M | F165: PMČRj 2022 - Klub | G165: =VLOOKUP(F165,Soutez!A:B,2,FALSE) -> CZ | H165: =VLOOKUP(F165,Soutez!A:C,3,FALSE) -> 2022 | I165: 28 | J165: 1619 | K165: 0.915 | L165: 2653 | M165: 2427 | P165: Std. Cirrus | Q165: MP | R165: Junior v roce 2025
A166: David Nenicka | B166: 2005 | C166: M | D166: Hranice | E166: CZ/M | F166: PMČRj 2022 - Klub | G166: =VLOOKUP(F166,Soutez!A:B,2,FALSE) -> CZ | H166: =VLOOKUP(F166,Soutez!A:C,3,FALSE) -> 2022 | I166: 29 | J166: 919 | K166: 0.915 | L166: 1445 | M166: 1322 | N166: x | P166: Std. Cirrus | Q166: HC | R166: Junior v roce 2025
A167: Jaroslav Tomana | B167: =VLOOKUP(A167,Pilot,2,0) -> 1975 | C167: =VLOOKUP(A167,Pilot,5,0) -> M | D167: =VLOOKUP(A167,Pilot,3,0) -> Zbraslavice | E167: =VLOOKUP(A167,Pilot,4,0) -> CZ/C1 | F167: GGP MB 2022 - Klub GP | G167: =VLOOKUP(F167,Soutez!A:B,2,FALSE) -> CZ | H167: =VLOOKUP(F167,Soutez!A:C,3,FALSE) -> 2022 | I167: 1 | J167: 41 | K167: =VLOOKUP(F167,Soutez,12,0) -> 0.905 | L167: =ROUND((MAX($I$167:$I$181)-I167)/(MAX($I$167:$I$181)-1)*10000,0) -> 10000 | M167: =ROUND(K167*L167,0) -> 9050 | P167: Pegase Centair C-101BC+WL | Q167: RT | R167: =IF(ISERROR(VLOOKUP(A167,Pilot,6,0)),"Není v databázi",VLOOKUP(A167,Pilot,6,0)) -> 
A168: Jan Louda | B168: 1986 | C168: M | D168: Mladá Boleslav | E168: CZ/C1 | F168: GGP MB 2022 - Klub GP | G168: =VLOOKUP(F168,Soutez!A:B,2,FALSE) -> CZ | H168: =VLOOKUP(F168,Soutez!A:C,3,FALSE) -> 2022 | I168: 2 | J168: 30 | K168: 0.905 | L168: 9231 | M168: =ROUND(K168*L168,0) -> 8354 | N168: x | P168: ASW15b | Q168: MB
A169: David Vrchota | B169: 1976 | C169: M | D169: Jaroměř | E169: CZ/C2 | F169: GGP MB 2022 - Klub GP | G169: =VLOOKUP(F169,Soutez!A:B,2,FALSE) -> CZ | H169: =VLOOKUP(F169,Soutez!A:C,3,FALSE) -> 2022 | I169: 3 | J169: 29 | K169: 0.905 | L169: 8462 | M169: 7658 | N169: x | P169: Std.Cirrus 16m | Q169: GO
A170: David Sachl | B170: 1978 | C170: M | D170: Kralupy | E170: CZ/C1 | F170: GGP MB 2022 - Klub GP | G170: =VLOOKUP(F170,Soutez!A:B,2,FALSE) -> CZ | H170: =VLOOKUP(F170,Soutez!A:C,3,FALSE) -> 2022 | I170: 4 | J170: 24 | K170: 0.905 | L170: 7692 | M170: 6961 | P170: DG 300 Klub Elan WL | Q170: BK
A171: Michal Coufal | B171: 1999 | C171: M | D171: Jičín | E171: CZ/C2 | F171: GGP MB 2022 - Klub GP | G171: =VLOOKUP(F171,Soutez!A:B,2,FALSE) -> CZ | H171: =VLOOKUP(F171,Soutez!A:C,3,FALSE) -> 2022 | I171: 5 | J171: 23 | K171: 0.905 | L171: 6923 | M171: 6265 | N171: x | P171: Janus B 18,2m | Q171: JC
A172: Jiri Hula | B172: 1973 | C172: M | D172: Slaný | E172: CZ/C1 | F172: GGP MB 2022 - Klub GP | G172: =VLOOKUP(F172,Soutez!A:B,2,FALSE) -> CZ | H172: =VLOOKUP(F172,Soutez!A:C,3,FALSE) -> 2022 | I172: 6 | J172: 20 | K172: 0.905 | L172: 6154 | M172: 5569 | N172: x | P172: Std.Cirrus | Q172: IT
A173: Matej Krestes | B173: 1986 | C173: M | D173: Slaný | E173: CZ/C1 | F173: GGP MB 2022 - Klub GP | G173: =VLOOKUP(F173,Soutez!A:B,2,FALSE) -> CZ | H173: =VLOOKUP(F173,Soutez!A:C,3,FALSE) -> 2022 | I173: 7 | J173: 18 | K173: 0.905 | L173: 5385 | M173: 4873 | N173: x | P173: Std.Cirrus | Q173: CON
A174: Lukas Plocek | B174: 1990 | C174: M | D174: Mladá Boleslav | E174: CZ/C1 | F174: GGP MB 2022 - Klub GP | G174: =VLOOKUP(F174,Soutez!A:B,2,FALSE) -> CZ | H174: =VLOOKUP(F174,Soutez!A:C,3,FALSE) -> 2022 | I174: 8 | J174: 12 | K174: 0.905 | L174: 4615 | M174: =ROUND(K174*L174,0) -> 4177 | N174: x | P174: ASW19b | Q174: AH
A175: Linda Vasatova | B175: 1990 | C175: F | D175: Mladá Boleslav | E175: CZ/C1 | F175: GGP MB 2022 - Klub GP | G175: =VLOOKUP(F175,Soutez!A:B,2,FALSE) -> CZ | H175: =VLOOKUP(F175,Soutez!A:C,3,FALSE) -> 2022 | I175: 9 | J175: 10 | K175: 0.905 | L175: 3846 | M175: 3481 | P175: ASW19b | Q175: XS
A176: Katerina Vojtova | B176: 1983 | C176: F | D176: Slaný | E176: CZ/C1 | F176: GGP MB 2022 - Klub GP | G176: =VLOOKUP(F176,Soutez!A:B,2,FALSE) -> CZ | H176: =VLOOKUP(F176,Soutez!A:C,3,FALSE) -> 2022 | I176: 9 | J176: 10 | K176: 0.905 | L176: 3846 | M176: 3481 | P176: Std.Cirrus | Q176: KAC
A177: Jan Hejret | B177: 1976 | C177: M | D177: Jaroměř | E177: CZ/C2 | F177: GGP MB 2022 - Klub GP | G177: =VLOOKUP(F177,Soutez!A:B,2,FALSE) -> CZ | H177: =VLOOKUP(F177,Soutez!A:C,3,FALSE) -> 2022 | I177: 11 | J177: 6 | K177: 0.905 | L177: 2308 | M177: 2089 | P177: Std.Cirrus | Q177: LW
A178: Vojtech Vach 76 | B178: 1976 | C178: M | D178: Nové Město nad Metují | E178: CZ/C2 | F178: GGP MB 2022 - Klub GP | G178: =VLOOKUP(F178,Soutez!A:B,2,FALSE) -> CZ | H178: =VLOOKUP(F178,Soutez!A:C,3,FALSE) -> 2022 | I178: 11 | J178: 6 | K178: 0.905 | L178: 2308 | M178: 2089 | N178: x | P178: VSO10 | Q178: I8
A179: Martin Marek | B179: 1967 | C179: M | D179: Roudnice | E179: CZ/C2 | F179: GGP MB 2022 - Klub GP | G179: =VLOOKUP(F179,Soutez!A:B,2,FALSE) -> CZ | H179: =VLOOKUP(F179,Soutez!A:C,3,FALSE) -> 2022 | I179: 13 | J179: 1 | K179: 0.905 | L179: 769 | M179: 696 | N179: x | P179: Std.Cirrus | Q179: 2X
A180: Libor Kovarik | B180: 1966 | C180: M | D180: Mladá Boleslav | E180: CZ/C1 | F180: GGP MB 2022 - Klub GP | G180: =VLOOKUP(F180,Soutez!A:B,2,FALSE) -> CZ | H180: =VLOOKUP(F180,Soutez!A:C,3,FALSE) -> 2022 | I180: 14 | J180: 0 | K180: 0.905 | L180: 0 | M180: 0 | P180: VSO10 | Q180: C3
A181: Karel Policky | B181: 1950 | C181: M | D181: Kolín | E181: CZ/C1 | F181: GGP MB 2022 - Klub GP | G181: =VLOOKUP(F181,Soutez!A:B,2,FALSE) -> CZ | H181: =VLOOKUP(F181,Soutez!A:C,3,FALSE) -> 2022 | I181: 14 | J181: 0 | K181: 0.905 | L181: 0 | M181: 0 | P181: VSO10 | Q181: 93
A182: Jan Kotan | B182: 1982 | C182: M | D182: =VLOOKUP(A182,Pilot,3,0) -> Letňany | E182: =VLOOKUP(A182,Pilot,4,0) -> CZ/C1 | F182: GGP MB 2022 - Pohár MV - Kombi | G182: =VLOOKUP(F182,Soutez!A:B,2,FALSE) -> CZ | H182: =VLOOKUP(F182,Soutez!A:C,3,FALSE) -> 2022 | I182: 1 | J182: 2886 | K182: 0.915 | L182: =ROUND(J182/MAX($J$182:$J$192)*10000*0.7+(MAX($I$182:$I$192)-I182)/(MAX($I$182:$I$192)-1)*10000*0.3,0) -> 10000 | M182: =ROUND(K182*L182,0) -> 9150 | N182: x | P182: Ventus 2bx | Q182: YA
A183: Dana Novakova | B183: 1965 | C183: F | D183: Mladá Boleslav | E183: CZ/C1 | F183: GGP MB 2022 - Pohár MV - Kombi | G183: =VLOOKUP(F183,Soutez!A:B,2,FALSE) -> CZ | H183: =VLOOKUP(F183,Soutez!A:C,3,FALSE) -> 2022 | I183: 2 | J183: 2878 | K183: 0.915 | L183: 9681 | M183: =ROUND(K183*L183,0) -> 8858 | N183: x | O183: x | P183: LS8 /18m | Q183: FX
A184: Michal Kratochvil | B184: 1984 | C184: M | D184: Slaný | E184: CZ/C1 | F184: GGP MB 2022 - Pohár MV - Kombi | G184: =VLOOKUP(F184,Soutez!A:B,2,FALSE) -> CZ | H184: =VLOOKUP(F184,Soutez!A:C,3,FALSE) -> 2022 | I184: 3 | J184: 2845 | K184: 0.915 | L184: 9301 | M184: 8510 | N184: x | P184: Ventus b/16,6m | Q184: MK
A185: Jan Dersak 69 | B185: 1969 | C185: M | D185: Kralupy | E185: CZ/C1 | F185: GGP MB 2022 - Pohár MV - Kombi | G185: =VLOOKUP(F185,Soutez!A:B,2,FALSE) -> CZ | H185: =VLOOKUP(F185,Soutez!A:C,3,FALSE) -> 2022 | I185: 4 | J185: 2656 | K185: 0.915 | L185: 8542 | M185: 7816 | P185: HpH 304 Shark/18m | Q185: DJ
A186: Karel Novak | B186: 1993 | C186: M | D186: Mladá Boleslav | E186: CZ/C1 | F186: GGP MB 2022 - Pohár MV - Kombi | G186: =VLOOKUP(F186,Soutez!A:B,2,FALSE) -> CZ | H186: =VLOOKUP(F186,Soutez!A:C,3,FALSE) -> 2022 | I186: 5 | J186: 2651 | K186: 0.915 | L186: 8230 | M186: =ROUND(K186*L186,0) -> 7530 | P186: LS8 /18m | Q186: ID
A187: Martin Soucek | B187: 1975 | C187: M | D187: Mladá Boleslav | E187: CZ/C1 | F187: GGP MB 2022 - Pohár MV - Kombi | G187: =VLOOKUP(F187,Soutez!A:B,2,FALSE) -> CZ | H187: =VLOOKUP(F187,Soutez!A:C,3,FALSE) -> 2022 | I187: 6 | J187: 2490 | K187: 0.915 | L187: 7540 | M187: 6899 | N187: x | P187: DG-200/17m | Q187: MS
A188: Radek Zima 78 | B188: 1978 | C188: M | D188: Hodkovice | E188: CZ/C2 | F188: GGP MB 2022 - Pohár MV - Kombi | G188: =VLOOKUP(F188,Soutez!A:B,2,FALSE) -> CZ | H188: =VLOOKUP(F188,Soutez!A:C,3,FALSE) -> 2022 | I188: 7 | J188: 1897 | K188: 0.915 | L188: 5801 | M188: 5308 | P188: ASG 29 E /18m | Q188: XZ
A189: Antonin Bordovsky | B189: 1951 | C189: M | D189: Krnov | E189: CZ/M | F189: GGP MB 2022 - Pohár MV - Kombi | G189: =VLOOKUP(F189,Soutez!A:B,2,FALSE) -> CZ | H189: =VLOOKUP(F189,Soutez!A:C,3,FALSE) -> 2022 | I189: 8 | J189: 1810 | K189: 0.915 | L189: 5290 | M189: 4840 | N189: x | P189: Ventus c /17,6m | Q189: AD
A190: Jan Horak | B190: 1971 | C190: M | D190: Zbraslavice | E190: CZ/C1 | F190: GGP MB 2022 - Pohár MV - Kombi | G190: =VLOOKUP(F190,Soutez!A:B,2,FALSE) -> CZ | H190: =VLOOKUP(F190,Soutez!A:C,3,FALSE) -> 2022 | I190: 9 | J190: 1463 | K190: 0.915 | L190: 4149 | M190: 3796 | P190: ASW20a /15m | Q190: WX
A191: Jan Smekal | B191: 1976 | C191: M | D191: Zbraslavice | E191: CZ/C1 | F191: GGP MB 2022 - Pohár MV - Kombi | G191: =VLOOKUP(F191,Soutez!A:B,2,FALSE) -> CZ | H191: =VLOOKUP(F191,Soutez!A:C,3,FALSE) -> 2022 | I191: 10 | J191: 1217 | K191: 0.915 | L191: 3252 | M191: 2976 | P191: Ventus 2a | Q191: AX
A192: Zdenek Boruvka 86 | B192: 1986 | C192: M | D192: Jičín | E192: CZ/C2 | F192: GGP MB 2022 - Pohár MV - Kombi | G192: =VLOOKUP(F192,Soutez!A:B,2,FALSE) -> CZ | H192: =VLOOKUP(F192,Soutez!A:C,3,FALSE) -> 2022 | I192: 11 | J192: 0 | K192: 0.915 | L192: 0 | M192: 0 | P192: Ventus c /17,6m | Q192: VV
A193: Viktor Tvrdik | B193: 1977 | C193: M | D193: =VLOOKUP(A193,Pilot,3,0) -> Rakovník | E193: =VLOOKUP(A193,Pilot,4,0) -> CZ/C1 | F193: Rakovnická Dlaždice 2022 - Klub | G193: =VLOOKUP(F193,Soutez!A:B,2,FALSE) -> CZ | H193: =VLOOKUP(F193,Soutez!A:C,3,FALSE) -> 2022 | I193: 1 | J193: 4392 | K193: 0 | L193: =ROUND(J193/MAX($J$193:$J$206)*10000*0.7+(MAX($I$193:$I$206)-I193)/(MAX($I$193:$I$206)-1)*10000*0.3,0) -> 10000 | M193: =ROUND(K193*L193,0) -> 0 | P193: DG 800SW/18m | Q193: HF
A194: Jaromir Simunek | B194: 1975 | C194: M | D194: Rakovník | E194: CZ/C1 | F194: Rakovnická Dlaždice 2022 - Klub | G194: =VLOOKUP(F194,Soutez!A:B,2,FALSE) -> CZ | H194: =VLOOKUP(F194,Soutez!A:C,3,FALSE) -> 2022 | I194: 2 | J194: 4049 | K194: 0 | L194: 9223 | M194: =ROUND(K194*L194,0) -> 0 | P194: DG 800SW/18m | Q194: HC
A195: Jan Heroudek | B195: 1970 | C195: M | D195: Rakovník | E195: CZ/C1 | F195: Rakovnická Dlaždice 2022 - Klub | G195: =VLOOKUP(F195,Soutez!A:B,2,FALSE) -> CZ | H195: =VLOOKUP(F195,Soutez!A:C,3,FALSE) -> 2022 | I195: 3 | J195: 3780 | K195: 0 | L195: 8563 | M195: 0 | P195: dg 100 | Q195: 75
A196: Jiri Vondracek | B196: 1989 | C196: M | D196: Kladno | E196: CZ/C1 | F196: Rakovnická Dlaždice 2022 - Klub | G196: =VLOOKUP(F196,Soutez!A:B,2,FALSE) -> CZ | H196: =VLOOKUP(F196,Soutez!A:C,3,FALSE) -> 2022 | I196: 4 | J196: 3575 | K196: 0 | L196: 8006 | M196: 0 | P196: ASW-15b | Q196: 2P
A197: Jan Konecny | B197: 1972 | C197: M | D197: Rakovník | E197: CZ/C1 | F197: Rakovnická Dlaždice 2022 - Klub | G197: =VLOOKUP(F197,Soutez!A:B,2,FALSE) -> CZ | H197: =VLOOKUP(F197,Soutez!A:C,3,FALSE) -> 2022 | I197: 5 | J197: 3550 | K197: 0 | L197: 7735 | M197: 0 | P197: LS 7 | Q197: 72
A198: Jakub Kmosek | B198: 1978 | C198: M | D198: Zbraslavice | E198: CZ/C1 | F198: Rakovnická Dlaždice 2022 - Klub | G198: =VLOOKUP(F198,Soutez!A:B,2,FALSE) -> CZ | H198: =VLOOKUP(F198,Soutez!A:C,3,FALSE) -> 2022 | I198: 6 | J198: 3508 | K198: 0 | L198: 7437 | M198: 0 | P198: std. cirrus | Q198: ST
A199: Jan Hlavacek | F199: Rakovnická Dlaždice 2022 - Klub | G199: =VLOOKUP(F199,Soutez!A:B,2,FALSE) -> CZ | H199: =VLOOKUP(F199,Soutez!A:C,3,FALSE) -> 2022 | I199: 7 | J199: 3498 | K199: =VLOOKUP(F199,Soutez,12,0) -> 0 | L199: 7191 | M199: 0 | P199: Discus | Q199: SJ | R199: Není v databázi
A200: Jan Vozeh | B200: 1995 | C200: M | D200: Rakovník | E200: CZ/C1 | F200: Rakovnická Dlaždice 2022 - Klub | G200: =VLOOKUP(F200,Soutez!A:B,2,FALSE) -> CZ | H200: =VLOOKUP(F200,Soutez!A:C,3,FALSE) -> 2022 | I200: 8 | J200: 3495 | K200: 0 | L200: 6955 | M200: 0 | P200: Std. Cirrus | Q200: OG
... 2787 more rows

Sheet Zebrik G
B1: ="Všeobecný Žebřík pilotů plachtařů PK AeČR "&A6 -> Všeobecný Žebřík pilotů plachtařů PK AeČR 2024 | I1: =Zmeny!A6 -> 2025-02-05 | J1: Rev. | K1: =Zmeny!B6 -> 03 | L1: =Zmeny!C6 -> Final: opravy od soutěžících, přidáno WGC 2024 v Uvalde, odstraněno HOP 2024
B3: G | C3: x | I3: Junior v roce: | J3: Junior v roce: | K3: ="Repre družstvo "&I4 -> Repre družstvo 2025 | L3: ="Repre výběr "&I4 -> Repre výběr 2025 | M3: ="W "&L3 -> W Repre výběr 2025 | N3: Poznámka
I4: =A6+1 -> 2025 | J4: =I4+1 -> 2026 | K4: (RD) | L4: (RV) | M4: (WRV)
A5: Pořadí | G5: Data | I5: =COUNTIF(I7:I939,"Junior v roce "&$I$4) -> 41 | J5: =COUNTIF(J7:J939,"Junior v roce "&$J$4) -> 36 | K5: =COUNTIF(K7:K939,"RD "&$I$4) -> 0 | L5: =COUNTIF(L7:L939,"RV "&$I$4) -> 31 | M5: =COUNTIF(M7:M939,"WRV "&$I$4) -> 10 | N5: =COUNTIF(N7:N939,"<>") -> 0
A6: 2024 | B6: Jméno | C6: Rok narození | D6: M/F | E6: Aeroklub | F6: Region | G6: Součet z Bi×Kinp | H6: Počet G
A7: =RANK(G7,G:G) -> 1 | B7: Jan Pavlik | C7: 1987 | D7: M | E7: Křižanov | F7: CZ/M | G7: 32031 | H7: 3 | I7: =IF(C7="(prázdné)","",IF(($I$4-C7)>25,"","Junior v roce "&$I$4)) ->  | J7: =IF(C7="(prázdné)","",IF(($J$4-C7)>25,"","Junior v roce "&$J$4)) ->  | L7: RV 2025 | M7: =IF(ISERROR(VLOOKUP(B7,'Zebrik W'!$B$7:$L$1000,11,0)),"",IF(VLOOKUP(B7,'Zebrik W'!$B$7:$L$1000,11,0)=0,"--",VLOOKUP(B7,'Zebrik W'!$B$7:$L$1000,11,0))) -> 
A8: =RANK(G8,G:G) -> 2 | B8: Tomas Suchanek | C8: 1964 | D8: M | E8: GAC Benešov | F8: CZ/C1 | G8: 31983 | H8: 3 | I8: =IF(C8="(prázdné)","",IF(($I$4-C8)>25,"","Junior v roce "&$I$4)) ->  | J8: =IF(C8="(prázdné)","",IF(($J$4-C8)>25,"","Junior v roce "&$J$4)) ->  | L8: RV 2025 | M8: =IF(ISERROR(VLOOKUP(B8,'Zebrik W'!$B$7:$L$1000,11,0)),"",IF(VLOOKUP(B8,'Zebrik W'!$B$7:$L$1000,11,0)=0,"--",VLOOKUP(B8,'Zebrik W'!$B$7:$L$1000,11,0))) -> 
A9: =RANK(G9,G:G) -> 3 | B9: Radek Krejcirik | C9: 1991 | D9: M | E9: Hranice | F9: CZ/M | G9: 31449 | H9: 3 | L9: RV 2025 | M9: =IF(ISERROR(VLOOKUP(B9,'Zebrik W'!$B$7:$L$1000,11,0)),"",IF(VLOOKUP(B9,'Zebrik W'!$B$7:$L$1000,11,0)=0,"--",VLOOKUP(B9,'Zebrik W'!$B$7:$L$1000,11,0))) -> 
A10: =RANK(G10,G:G) -> 4 | B10: Lukas Kriz | C10: 2003 | D10: M | E10: Křižanov | F10: CZ/M | G10: 31340 | H10: 3 | I10: Junior v roce 2025 | J10: Junior v roce 2026 | L10: RV 2025 | M10: =IF(ISERROR(VLOOKUP(B10,'Zebrik W'!$B$7:$L$1000,11,0)),"",IF(VLOOKUP(B10,'Zebrik W'!$B$7:$L$1000,11,0)=0,"--",VLOOKUP(B10,'Zebrik W'!$B$7:$L$1000,11,0))) -> 
A11: =RANK(G11,G:G) -> 5 | B11: Miloslav Cink | C11: 1987 | D11: M | E11: Letkov | F11: CZ/C1 | G11: 30974 | H11: 3 | L11: RV 2025 | M11: =IF(ISERROR(VLOOKUP(B11,'Zebrik W'!$B$7:$L$1000,11,0)),"",IF(VLOOKUP(B11,'Zebrik W'!$B$7:$L$1000,11,0)=0,"--",VLOOKUP(B11,'Zebrik W'!$B$7:$L$1000,11,0))) -> 
A12: =RANK(G12,G:G) -> 6 | B12: Jaroslav Tomana | C12: 1975 | D12: M | E12: Zbraslavice | F12: CZ/C1 | G12: 30243 | H12: 3 | L12: RV 2025 | M12: =IF(ISERROR(VLOOKUP(B12,'Zebrik W'!$B$7:$L$1000,11,0)),"",IF(VLOOKUP(B12,'Zebrik W'!$B$7:$L$1000,11,0)=0,"--",VLOOKUP(B12,'Zebrik W'!$B$7:$L$1000,11,0))) -> 
A13: =RANK(G13,G:G) -> 7 | B13: Michal Lesinger | C13: 1966 | D13: M | E13: Moravská Třebová | F13: CZ/M | G13: 30108 | H13: 3 | L13: RV 2025 | M13: =IF(ISERROR(VLOOKUP(B13,'Zebrik W'!$B$7:$L$1000,11,0)),"",IF(VLOOKUP(B13,'Zebrik W'!$B$7:$L$1000,11,0)=0,"--",VLOOKUP(B13,'Zebrik W'!$B$7:$L$1000,11,0))) -> 
A14: =RANK(G14,G:G) -> 8 | B14: Radek Kucirek | C14: 1973 | D14: M | E14: Havlíčkův Brod | F14: CZ/C2 | G14: 29844 | H14: 3 | L14: RV 2025 | M14: =IF(ISERROR(VLOOKUP(B14,'Zebrik W'!$B$7:$L$1000,11,0)),"",IF(VLOOKUP(B14,'Zebrik W'!$B$7:$L$1000,11,0)=0,"--",VLOOKUP(B14,'Zebrik W'!$B$7:$L$1000,11,0))) -> 
A15: =RANK(G15,G:G) -> 9 | B15: Pavel Trybenekr | C15: 1990 | D15: M | E15: Hořice | F15: CZ/C2 | G15: 29378 | H15: 3 | L15: RV 2025 | M15: =IF(ISERROR(VLOOKUP(B15,'Zebrik W'!$B$7:$L$1000,11,0)),"",IF(VLOOKUP(B15,'Zebrik W'!$B$7:$L$1000,11,0)=0,"--",VLOOKUP(B15,'Zebrik W'!$B$7:$L$1000,11,0))) -> 
A16: =RANK(G16,G:G) -> 10 | B16: Jaromir Macoun | C16: 1999 | D16: M | E16: Jičín | F16: CZ/C2 | G16: 29301 | H16: 3 | L16: RV 2025 | M16: =IF(ISERROR(VLOOKUP(B16,'Zebrik W'!$B$7:$L$1000,11,0)),"",IF(VLOOKUP(B16,'Zebrik W'!$B$7:$L$1000,11,0)=0,"--",VLOOKUP(B16,'Zebrik W'!$B$7:$L$1000,11,0))) -> 
A17: =RANK(G17,G:G) -> 11 | B17: Karel Novak | C17: 1993 | D17: M | E17: Mladá Boleslav | F17: CZ/C1 | G17: 29123 | H17: 3 | L17: RV 2025 | M17: =IF(ISERROR(VLOOKUP(B17,'Zebrik W'!$B$7:$L$1000,11,0)),"",IF(VLOOKUP(B17,'Zebrik W'!$B$7:$L$1000,11,0)=0,"--",VLOOKUP(B17,'Zebrik W'!$B$7:$L$1000,11,0))) -> 
A18: =RANK(G18,G:G) -> 12 | B18: Ivan Novak | C18: 1962 | D18: M | E18: Mladá Boleslav | F18: CZ/C1 | G18: 29001 | H18: 3 | L18: RV 2025 | M18: =IF(ISERROR(VLOOKUP(B18,'Zebrik W'!$B$7:$L$1000,11,0)),"",IF(VLOOKUP(B18,'Zebrik W'!$B$7:$L$1000,11,0)=0,"--",VLOOKUP(B18,'Zebrik W'!$B$7:$L$1000,11,0))) -> 
A19: =RANK(G19,G:G) -> 13 | B19: Jiri Kusbach | C19: 1959 | D19: M | E19: Luhačovice | F19: CZ/M | G19: 28909 | H19: 3 | L19: RV 2025 | M19: =IF(ISERROR(VLOOKUP(B19,'Zebrik W'!$B$7:$L$1000,11,0)),"",IF(VLOOKUP(B19,'Zebrik W'!$B$7:$L$1000,11,0)=0,"--",VLOOKUP(B19,'Zebrik W'!$B$7:$L$1000,11,0))) -> 
A20: =RANK(G20,G:G) -> 14 | B20: Michaela Rendlova | C20: 2004 | D20: F | E20: Toužim | F20: CZ/C1 | G20: 28854 | H20: 3 | I20: Junior v roce 2025 | J20: Junior v roce 2026 | L20: RV 2025 | M20: =IF(ISERROR(VLOOKUP(B20,'Zebrik W'!$B$7:$L$1000,11,0)),"",IF(VLOOKUP(B20,'Zebrik W'!$B$7:$L$1000,11,0)=0,"--",VLOOKUP(B20,'Zebrik W'!$B$7:$L$1000,11,0))) -> WRV 2025
A21: =RANK(G21,G:G) -> 15 | B21: Martin Hrivna | C21: 1978 | D21: M | E21: Zbraslavice | F21: CZ/C1 | G21: 28772 | H21: 3 | L21: RV 2025 | M21: =IF(ISERROR(VLOOKUP(B21,'Zebrik W'!$B$7:$L$1000,11,0)),"",IF(VLOOKUP(B21,'Zebrik W'!$B$7:$L$1000,11,0)=0,"--",VLOOKUP(B21,'Zebrik W'!$B$7:$L$1000,11,0))) -> 
A22: =RANK(G22,G:G) -> 16 | B22: Jan Stastny | C22: 2003 | D22: M | E22: Medlánky | F22: CZ/M | G22: 28760 | H22: 3 | I22: Junior v roce 2025 | J22: Junior v roce 2026 | L22: RV 2025 | M22: =IF(ISERROR(VLOOKUP(B22,'Zebrik W'!$B$7:$L$1000,11,0)),"",IF(VLOOKUP(B22,'Zebrik W'!$B$7:$L$1000,11,0)=0,"--",VLOOKUP(B22,'Zebrik W'!$B$7:$L$1000,11,0))) -> 
A23: =RANK(G23,G:G) -> 17 | B23: Petr Tichy | C23: 1973 | D23: M | E23: Zbraslavice | F23: CZ/C1 | G23: 28522 | H23: 3 | L23: RV 2025 | M23: =IF(ISERROR(VLOOKUP(B23,'Zebrik W'!$B$7:$L$1000,11,0)),"",IF(VLOOKUP(B23,'Zebrik W'!$B$7:$L$1000,11,0)=0,"--",VLOOKUP(B23,'Zebrik W'!$B$7:$L$1000,11,0))) -> 
A24: =RANK(G24,G:G) -> 18 | B24: Pavel Louzecky | C24: 1957 | D24: M | E24: Přibyslav | F24: CZ/C2 | G24: 28281 | H24: 3 | L24: RV 2025 | M24: =IF(ISERROR(VLOOKUP(B24,'Zebrik W'!$B$7:$L$1000,11,0)),"",IF(VLOOKUP(B24,'Zebrik W'!$B$7:$L$1000,11,0)=0,"--",VLOOKUP(B24,'Zebrik W'!$B$7:$L$1000,11,0))) -> 
A25: =RANK(G25,G:G) -> 19 | B25: Tomas Rendla | C25: 1973 | D25: M | E25: Zbraslavice | F25: CZ/C1 | G25: 28211 | H25: 3 | L25: RV 2025 | M25: =IF(ISERROR(VLOOKUP(B25,'Zebrik W'!$B$7:$L$1000,11,0)),"",IF(VLOOKUP(B25,'Zebrik W'!$B$7:$L$1000,11,0)=0,"--",VLOOKUP(B25,'Zebrik W'!$B$7:$L$1000,11,0))) -> 
A26: =RANK(G26,G:G) -> 20 | B26: Ivan Harasta 65 | C26: 1965 | D26: M | E26: Toužim | F26: CZ/C1 | G26: 28199 | H26: 3 | L26: RV 2025 | M26: =IF(ISERROR(VLOOKUP(B26,'Zebrik W'!$B$7:$L$1000,11,0)),"",IF(VLOOKUP(B26,'Zebrik W'!$B$7:$L$1000,11,0)=0,"--",VLOOKUP(B26,'Zebrik W'!$B$7:$L$1000,11,0))) -> 
A27: =RANK(G27,G:G) -> 21 | B27: David Mach | C27: 1994 | D27: M | E27: Hronov | F27: CZ/C2 | G27: 28142 | H27: 3 | M27: =IF(ISERROR(VLOOKUP(B27,'Zebrik W'!$B$7:$L$1000,11,0)),"",IF(VLOOKUP(B27,'Zebrik W'!$B$7:$L$1000,11,0)=0,"--",VLOOKUP(B27,'Zebrik W'!$B$7:$L$1000,11,0))) -> 
A28: =RANK(G28,G:G) -> 22 | B28: Petr Krejcirik | C28: 1960 | D28: M | E28: Hranice | F28: CZ/M | G28: 28137 | H28: 3 | M28: =IF(ISERROR(VLOOKUP(B28,'Zebrik W'!$B$7:$L$1000,11,0)),"",IF(VLOOKUP(B28,'Zebrik W'!$B$7:$L$1000,11,0)=0,"--",VLOOKUP(B28,'Zebrik W'!$B$7:$L$1000,11,0))) -> 
A29: =RANK(G29,G:G) -> 23 | B29: Hana Treslova | C29: 1991 | D29: F | E29: Raná | F29: CZ/C2 | G29: 27964 | H29: 3 | L29: RV 2025 | M29: =IF(ISERROR(VLOOKUP(B29,'Zebrik W'!$B$7:$L$1000,11,0)),"",IF(VLOOKUP(B29,'Zebrik W'!$B$7:$L$1000,11,0)=0,"--",VLOOKUP(B29,'Zebrik W'!$B$7:$L$1000,11,0))) -> WRV 2025
A30: =RANK(G30,G:G) -> 24 | B30: Petr Hotovy | C30: 1958 | D30: M | E30: Česká Lípa | F30: CZ/C2 | G30: 27526 | H30: 3 | M30: =IF(ISERROR(VLOOKUP(B30,'Zebrik W'!$B$7:$L$1000,11,0)),"",IF(VLOOKUP(B30,'Zebrik W'!$B$7:$L$1000,11,0)=0,"--",VLOOKUP(B30,'Zebrik W'!$B$7:$L$1000,11,0))) -> 
A31: =RANK(G31,G:G) -> 25 | B31: Jan Kotan | C31: 1982 | D31: M | E31: Letňany | F31: CZ/C1 | G31: 27475 | H31: 3 | M31: =IF(ISERROR(VLOOKUP(B31,'Zebrik W'!$B$7:$L$1000,11,0)),"",IF(VLOOKUP(B31,'Zebrik W'!$B$7:$L$1000,11,0)=0,"--",VLOOKUP(B31,'Zebrik W'!$B$7:$L$1000,11,0))) -> 
A32: =RANK(G32,G:G) -> 26 | B32: Pavel Rericha | C32: 1967 | D32: M | E32: Moravská Třebová | F32: CZ/M | G32: 27321 | H32: 3 | M32: =IF(ISERROR(VLOOKUP(B32,'Zebrik W'!$B$7:$L$1000,11,0)),"",IF(VLOOKUP(B32,'Zebrik W'!$B$7:$L$1000,11,0)=0,"--",VLOOKUP(B32,'Zebrik W'!$B$7:$L$1000,11,0))) -> 
A33: =RANK(G33,G:G) -> 27 | B33: Barbora Moravcova | C33: 1994 | D33: F | E33: Zbraslavice | F33: CZ/C1 | G33: 27158 | H33: 3 | L33: RV 2025 | M33: =IF(ISERROR(VLOOKUP(B33,'Zebrik W'!$B$7:$L$1000,11,0)),"",IF(VLOOKUP(B33,'Zebrik W'!$B$7:$L$1000,11,0)=0,"--",VLOOKUP(B33,'Zebrik W'!$B$7:$L$1000,11,0))) -> WRV 2025
A34: =RANK(G34,G:G) -> 28 | B34: Alena Netusilova | C34: 1970 | D34: F | E34: Zbraslavice | F34: CZ/C1 | G34: 27075 | H34: 3 | L34: RV 2025 | M34: =IF(ISERROR(VLOOKUP(B34,'Zebrik W'!$B$7:$L$1000,11,0)),"",IF(VLOOKUP(B34,'Zebrik W'!$B$7:$L$1000,11,0)=0,"--",VLOOKUP(B34,'Zebrik W'!$B$7:$L$1000,11,0))) -> WRV 2025
A35: =RANK(G35,G:G) -> 29 | B35: Ondrej Bordovsky | C35: 1983 | D35: M | E35: Krnov | F35: CZ/M | G35: 27047 | H35: 3 | M35: =IF(ISERROR(VLOOKUP(B35,'Zebrik W'!$B$7:$L$1000,11,0)),"",IF(VLOOKUP(B35,'Zebrik W'!$B$7:$L$1000,11,0)=0,"--",VLOOKUP(B35,'Zebrik W'!$B$7:$L$1000,11,0))) -> 
A36: =RANK(G36,G:G) -> 30 | B36: Vit Morkovsky | C36: 2000 | D36: M | E36: Polička | F36: CZ/C2 | G36: 26966 | H36: 3 | I36: Junior v roce 2025 | L36: RV 2025 | M36: =IF(ISERROR(VLOOKUP(B36,'Zebrik W'!$B$7:$L$1000,11,0)),"",IF(VLOOKUP(B36,'Zebrik W'!$B$7:$L$1000,11,0)=0,"--",VLOOKUP(B36,'Zebrik W'!$B$7:$L$1000,11,0))) -> 
A37: =RANK(G37,G:G) -> 31 | B37: Ondrej Dupal | C37: 1966 | D37: M | E37: GAC Benešov | F37: CZ/C1 | G37: 26940 | H37: 3 | M37: =IF(ISERROR(VLOOKUP(B37,'Zebrik W'!$B$7:$L$1000,11,0)),"",IF(VLOOKUP(B37,'Zebrik W'!$B$7:$L$1000,11,0)=0,"--",VLOOKUP(B37,'Zebrik W'!$B$7:$L$1000,11,0))) -> 
A38: =RANK(G38,G:G) -> 32 | B38: Jindrich Svorc | C38: 1978 | D38: M | E38: Letňany | F38: CZ/C1 | G38: 26788 | H38: 3 | M38: =IF(ISERROR(VLOOKUP(B38,'Zebrik W'!$B$7:$L$1000,11,0)),"",IF(VLOOKUP(B38,'Zebrik W'!$B$7:$L$1000,11,0)=0,"--",VLOOKUP(B38,'Zebrik W'!$B$7:$L$1000,11,0))) -> 
A39: =RANK(G39,G:G) -> 33 | B39: Jan Boruvka | C39: 1984 | D39: M | E39: Jičín | F39: CZ/C2 | G39: 26732 | H39: 3 | M39: =IF(ISERROR(VLOOKUP(B39,'Zebrik W'!$B$7:$L$1000,11,0)),"",IF(VLOOKUP(B39,'Zebrik W'!$B$7:$L$1000,11,0)=0,"--",VLOOKUP(B39,'Zebrik W'!$B$7:$L$1000,11,0))) -> 
A40: =RANK(G40,G:G) -> 34 | B40: Pavel Jiranek | C40: 1993 | D40: M | E40: Toužim | F40: CZ/C1 | G40: 26601 | H40: 3 | M40: =IF(ISERROR(VLOOKUP(B40,'Zebrik W'!$B$7:$L$1000,11,0)),"",IF(VLOOKUP(B40,'Zebrik W'!$B$7:$L$1000,11,0)=0,"--",VLOOKUP(B40,'Zebrik W'!$B$7:$L$1000,11,0))) -> 
A41: =RANK(G41,G:G) -> 35 | B41: Tereza Koubkova | C41: 1999 | D41: F | E41: Vysoké Mýto | F41: CZ/C2 | G41: 26578 | H41: 3 | L41: RV 2025 | M41: =IF(ISERROR(VLOOKUP(B41,'Zebrik W'!$B$7:$L$1000,11,0)),"",IF(VLOOKUP(B41,'Zebrik W'!$B$7:$L$1000,11,0)=0,"--",VLOOKUP(B41,'Zebrik W'!$B$7:$L$1000,11,0))) -> WRV 2025
A42: =RANK(G42,G:G) -> 36 | B42: Petr Hofman | C42: 1984 | D42: M | E42: Letňany | F42: CZ/C1 | G42: 26542 | H42: 3 | M42: =IF(ISERROR(VLOOKUP(B42,'Zebrik W'!$B$7:$L$1000,11,0)),"",IF(VLOOKUP(B42,'Zebrik W'!$B$7:$L$1000,11,0)=0,"--",VLOOKUP(B42,'Zebrik W'!$B$7:$L$1000,11,0))) -> 
A43: =RANK(G43,G:G) -> 37 | B43: Tomas Hynek | C43: 2002 | D43: M | E43: Dvůr Králové | F43: CZ/C2 | G43: 26463 | H43: 3 | I43: Junior v roce 2025 | J43: Junior v roce 2026 | L43: RV 2025 | M43: =IF(ISERROR(VLOOKUP(B43,'Zebrik W'!$B$7:$L$1000,11,0)),"",IF(VLOOKUP(B43,'Zebrik W'!$B$7:$L$1000,11,0)=0,"--",VLOOKUP(B43,'Zebrik W'!$B$7:$L$1000,11,0))) -> 
A44: =RANK(G44,G:G) -> 37 | B44: Frantisek Vancura | C44: 1966 | D44: M | E44: Hranice | F44: CZ/M | G44: 26463 | H44: 3 | M44: =IF(ISERROR(VLOOKUP(B44,'Zebrik W'!$B$7:$L$1000,11,0)),"",IF(VLOOKUP(B44,'Zebrik W'!$B$7:$L$1000,11,0)=0,"--",VLOOKUP(B44,'Zebrik W'!$B$7:$L$1000,11,0))) -> 
A45: =RANK(G45,G:G) -> 39 | B45: David Darnady | C45: 1987 | D45: M | E45: Zbraslavice | F45: CZ/C1 | G45: 26413 | H45: 3 | M45: =IF(ISERROR(VLOOKUP(B45,'Zebrik W'!$B$7:$L$1000,11,0)),"",IF(VLOOKUP(B45,'Zebrik W'!$B$7:$L$1000,11,0)=0,"--",VLOOKUP(B45,'Zebrik W'!$B$7:$L$1000,11,0))) -> 
A46: =RANK(G46,G:G) -> 40 | B46: Radek Hybl | C46: 1980 | D46: M | E46: Šumperk | F46: CZ/M | G46: 26337 | H46: 3 | M46: =IF(ISERROR(VLOOKUP(B46,'Zebrik W'!$B$7:$L$1000,11,0)),"",IF(VLOOKUP(B46,'Zebrik W'!$B$7:$L$1000,11,0)=0,"--",VLOOKUP(B46,'Zebrik W'!$B$7:$L$1000,11,0))) -> 
A47: =RANK(G47,G:G) -> 41 | B47: Lukas Capek | C47: 1992 | D47: M | E47: Letňany | F47: CZ/C1 | G47: 26196 | H47: 3 | M47: =IF(ISERROR(VLOOKUP(B47,'Zebrik W'!$B$7:$L$1000,11,0)),"",IF(VLOOKUP(B47,'Zebrik W'!$B$7:$L$1000,11,0)=0,"--",VLOOKUP(B47,'Zebrik W'!$B$7:$L$1000,11,0))) -> 
A48: =RANK(G48,G:G) -> 42 | B48: Rene Hudak | C48: 1972 | D48: M | E48: Kunovice | F48: CZ/M | G48: 25868 | H48: 3 | M48: =IF(ISERROR(VLOOKUP(B48,'Zebrik W'!$B$7:$L$1000,11,0)),"",IF(VLOOKUP(B48,'Zebrik W'!$B$7:$L$1000,11,0)=0,"--",VLOOKUP(B48,'Zebrik W'!$B$7:$L$1000,11,0))) -> 
A49: =RANK(G49,G:G) -> 43 | B49: Jan Viskot | C49: 1995 | D49: M | E49: Břeclav | F49: CZ/M | G49: 25719 | H49: 3 | M49: =IF(ISERROR(VLOOKUP(B49,'Zebrik W'!$B$7:$L$1000,11,0)),"",IF(VLOOKUP(B49,'Zebrik W'!$B$7:$L$1000,11,0)=0,"--",VLOOKUP(B49,'Zebrik W'!$B$7:$L$1000,11,0))) -> 
A50: =RANK(G50,G:G) -> 44 | B50: Roman Jokl | C50: 1979 | D50: M | E50: Letkov | F50: CZ/C1 | G50: 25510 | H50: 3 | M50: =IF(ISERROR(VLOOKUP(B50,'Zebrik W'!$B$7:$L$1000,11,0)),"",IF(VLOOKUP(B50,'Zebrik W'!$B$7:$L$1000,11,0)=0,"--",VLOOKUP(B50,'Zebrik W'!$B$7:$L$1000,11,0))) -> 
A51: =RANK(G51,G:G) -> 45 | B51: Jan Kantor | C51: 1983 | D51: M | E51: Letňany | F51: CZ/C1 | G51: 25359 | H51: 3 | M51: =IF(ISERROR(VLOOKUP(B51,'Zebrik W'!$B$7:$L$1000,11,0)),"",IF(VLOOKUP(B51,'Zebrik W'!$B$7:$L$1000,11,0)=0,"--",VLOOKUP(B51,'Zebrik W'!$B$7:$L$1000,11,0))) -> 
A52: =RANK(G52,G:G) -> 46 | B52: Dana Novakova | C52: 1965 | D52: F | E52: Mladá Boleslav | F52: CZ/C1 | G52: 25270 | H52: 3 | L52: RV 2025 | M52: =IF(ISERROR(VLOOKUP(B52,'Zebrik W'!$B$7:$L$1000,11,0)),"",IF(VLOOKUP(B52,'Zebrik W'!$B$7:$L$1000,11,0)=0,"--",VLOOKUP(B52,'Zebrik W'!$B$7:$L$1000,11,0))) -> WRV 2025
A53: =RANK(G53,G:G) -> 47 | B53: Josef Novak | C53: 1981 | D53: M | E53: Kunovice | F53: CZ/M | G53: 25139 | H53: 3 | M53: =IF(ISERROR(VLOOKUP(B53,'Zebrik W'!$B$7:$L$1000,11,0)),"",IF(VLOOKUP(B53,'Zebrik W'!$B$7:$L$1000,11,0)=0,"--",VLOOKUP(B53,'Zebrik W'!$B$7:$L$1000,11,0))) -> 
A54: =RANK(G54,G:G) -> 48 | B54: Jan Hruska | C54: 1988 | D54: M | E54: Tábor | F54: CZ/C1 | G54: 24600 | H54: 3 | M54: =IF(ISERROR(VLOOKUP(B54,'Zebrik W'!$B$7:$L$1000,11,0)),"",IF(VLOOKUP(B54,'Zebrik W'!$B$7:$L$1000,11,0)=0,"--",VLOOKUP(B54,'Zebrik W'!$B$7:$L$1000,11,0))) -> 
A55: =RANK(G55,G:G) -> 49 | B55: Josef Busek | C55: 1967 | D55: M | E55: Hosín | F55: CZ/C1 | G55: 24554 | H55: 3 | M55: =IF(ISERROR(VLOOKUP(B55,'Zebrik W'!$B$7:$L$1000,11,0)),"",IF(VLOOKUP(B55,'Zebrik W'!$B$7:$L$1000,11,0)=0,"--",VLOOKUP(B55,'Zebrik W'!$B$7:$L$1000,11,0))) -> 
A56: =RANK(G56,G:G) -> 50 | B56: Michal Cechmanek | C56: 1978 | D56: M | E56: Kroměříž | F56: CZ/M | G56: 24523 | H56: 3 | M56: =IF(ISERROR(VLOOKUP(B56,'Zebrik W'!$B$7:$L$1000,11,0)),"",IF(VLOOKUP(B56,'Zebrik W'!$B$7:$L$1000,11,0)=0,"--",VLOOKUP(B56,'Zebrik W'!$B$7:$L$1000,11,0))) -> 
A57: =RANK(G57,G:G) -> 51 | B57: Vaclav Marel | C57: 1974 | D57: M | E57: Jaroměř | F57: CZ/C2 | G57: 24264 | H57: 3 | M57: =IF(ISERROR(VLOOKUP(B57,'Zebrik W'!$B$7:$L$1000,11,0)),"",IF(VLOOKUP(B57,'Zebrik W'!$B$7:$L$1000,11,0)=0,"--",VLOOKUP(B57,'Zebrik W'!$B$7:$L$1000,11,0))) -> 
A58: =RANK(G58,G:G) -> 52 | B58: Jiri Steiger | C58: 1969 | D58: M | E58: Olomouc | F58: CZ/M | G58: 24231 | H58: 3 | M58: =IF(ISERROR(VLOOKUP(B58,'Zebrik W'!$B$7:$L$1000,11,0)),"",IF(VLOOKUP(B58,'Zebrik W'!$B$7:$L$1000,11,0)=0,"--",VLOOKUP(B58,'Zebrik W'!$B$7:$L$1000,11,0))) -> 
A59: =RANK(G59,G:G) -> 53 | B59: Martin Urner | C59: 1974 | D59: M | E59: Letňany | F59: CZ/C1 | G59: 24229 | H59: 3 | M59: =IF(ISERROR(VLOOKUP(B59,'Zebrik W'!$B$7:$L$1000,11,0)),"",IF(VLOOKUP(B59,'Zebrik W'!$B$7:$L$1000,11,0)=0,"--",VLOOKUP(B59,'Zebrik W'!$B$7:$L$1000,11,0))) -> 
A60: =RANK(G60,G:G) -> 54 | B60: Petr Koutny | C60: 1971 | D60: M | E60: Křižanov | F60: CZ/M | G60: 24205 | H60: 3 | M60: =IF(ISERROR(VLOOKUP(B60,'Zebrik W'!$B$7:$L$1000,11,0)),"",IF(VLOOKUP(B60,'Zebrik W'!$B$7:$L$1000,11,0)=0,"--",VLOOKUP(B60,'Zebrik W'!$B$7:$L$1000,11,0))) -> 
A61: =RANK(G61,G:G) -> 55 | B61: Vladimir Hammer | C61: 2000 | D61: M | E61: Letkov | F61: CZ/C1 | G61: 24167 | H61: 3 | I61: Junior v roce 2025 | M61: =IF(ISERROR(VLOOKUP(B61,'Zebrik W'!$B$7:$L$1000,11,0)),"",IF(VLOOKUP(B61,'Zebrik W'!$B$7:$L$1000,11,0)=0,"--",VLOOKUP(B61,'Zebrik W'!$B$7:$L$1000,11,0))) -> 
A62: =RANK(G62,G:G) -> 56 | B62: Marek Pechanec | C62: 1970 | D62: M | E62: Luhačovice | F62: CZ/M | G62: 24158 | H62: 3 | M62: =IF(ISERROR(VLOOKUP(B62,'Zebrik W'!$B$7:$L$1000,11,0)),"",IF(VLOOKUP(B62,'Zebrik W'!$B$7:$L$1000,11,0)=0,"--",VLOOKUP(B62,'Zebrik W'!$B$7:$L$1000,11,0))) -> 
A63: =RANK(G63,G:G) -> 57 | B63: Petr Panek | C63: 1975 | D63: M | E63: Dvůr Králové | F63: CZ/C2 | G63: 24049 | H63: 3 | M63: =IF(ISERROR(VLOOKUP(B63,'Zebrik W'!$B$7:$L$1000,11,0)),"",IF(VLOOKUP(B63,'Zebrik W'!$B$7:$L$1000,11,0)=0,"--",VLOOKUP(B63,'Zebrik W'!$B$7:$L$1000,11,0))) -> 
A64: =RANK(G64,G:G) -> 58 | B64: Jakub Malik | C64: 1999 | D64: M | E64: Letňany | F64: CZ/C1 | G64: 23968 | H64: 3 | M64: =IF(ISERROR(VLOOKUP(B64,'Zebrik W'!$B$7:$L$1000,11,0)),"",IF(VLOOKUP(B64,'Zebrik W'!$B$7:$L$1000,11,0)=0,"--",VLOOKUP(B64,'Zebrik W'!$B$7:$L$1000,11,0))) -> 
A65: =RANK(G65,G:G) -> 59 | B65: Jiri Stepanek | C65: 1956 | D65: M | E65: Moravská Třebová | F65: CZ/M | G65: 23821 | H65: 3 | M65: =IF(ISERROR(VLOOKUP(B65,'Zebrik W'!$B$7:$L$1000,11,0)),"",IF(VLOOKUP(B65,'Zebrik W'!$B$7:$L$1000,11,0)=0,"--",VLOOKUP(B65,'Zebrik W'!$B$7:$L$1000,11,0))) -> 
A66: =RANK(G66,G:G) -> 60 | B66: Jan Beran | C66: 1999 | D66: M | E66: Kladno | F66: CZ/C1 | G66: 23766 | H66: 3 | M66: =IF(ISERROR(VLOOKUP(B66,'Zebrik W'!$B$7:$L$1000,11,0)),"",IF(VLOOKUP(B66,'Zebrik W'!$B$7:$L$1000,11,0)=0,"--",VLOOKUP(B66,'Zebrik W'!$B$7:$L$1000,11,0))) -> 
A67: =RANK(G67,G:G) -> 61 | B67: Jaroslav Buryan | C67: 1953 | D67: M | E67: Zábřeh | F67: CZ/M | G67: 23746 | H67: 3 | M67: =IF(ISERROR(VLOOKUP(B67,'Zebrik W'!$B$7:$L$1000,11,0)),"",IF(VLOOKUP(B67,'Zebrik W'!$B$7:$L$1000,11,0)=0,"--",VLOOKUP(B67,'Zebrik W'!$B$7:$L$1000,11,0))) -> 
A68: =RANK(G68,G:G) -> 62 | B68: Zdenek Boruvka 86 | C68: 1986 | D68: M | E68: Jičín | F68: CZ/C2 | G68: 23670 | H68: 3 | M68: =IF(ISERROR(VLOOKUP(B68,'Zebrik W'!$B$7:$L$1000,11,0)),"",IF(VLOOKUP(B68,'Zebrik W'!$B$7:$L$1000,11,0)=0,"--",VLOOKUP(B68,'Zebrik W'!$B$7:$L$1000,11,0))) -> 
A69: =RANK(G69,G:G) -> 63 | B69: Michaela Krizova | C69: 2001 | D69: F | E69: Přibyslav | F69: CZ/C2 | G69: 23631 | H69: 3 | I69: Junior v roce 2025 | J69: Junior v roce 2026 | L69: RV 2025 | M69: =IF(ISERROR(VLOOKUP(B69,'Zebrik W'!$B$7:$L$1000,11,0)),"",IF(VLOOKUP(B69,'Zebrik W'!$B$7:$L$1000,11,0)=0,"--",VLOOKUP(B69,'Zebrik W'!$B$7:$L$1000,11,0))) -> WRV 2025
A70: =RANK(G70,G:G) -> 64 | B70: Stepan Bartos | C70: 2004 | D70: M | E70: Kolín | F70: CZ/C1 | G70: 23332 | H70: 3 | I70: Junior v roce 2025 | J70: Junior v roce 2026 | M70: =IF(ISERROR(VLOOKUP(B70,'Zebrik W'!$B$7:$L$1000,11,0)),"",IF(VLOOKUP(B70,'Zebrik W'!$B$7:$L$1000,11,0)=0,"--",VLOOKUP(B70,'Zebrik W'!$B$7:$L$1000,11,0))) -> 
A71: =RANK(G71,G:G) -> 65 | B71: Martin Urban | C71: 1971 | D71: M | E71: Frýdlant | F71: CZ/M | G71: 23289 | H71: 3 | M71: =IF(ISERROR(VLOOKUP(B71,'Zebrik W'!$B$7:$L$1000,11,0)),"",IF(VLOOKUP(B71,'Zebrik W'!$B$7:$L$1000,11,0)=0,"--",VLOOKUP(B71,'Zebrik W'!$B$7:$L$1000,11,0))) -> 
A72: =RANK(G72,G:G) -> 66 | B72: Jan Dersak 69 | C72: 1969 | D72: M | E72: Kralupy | F72: CZ/C1 | G72: 23287 | H72: 3 | I72: =IF(C72="(prázdné)","",IF(($I$4-C72)>25,"","Junior v roce "&$I$4)) ->  | J72: =IF(C72="(prázdné)","",IF(($J$4-C72)>25,"","Junior v roce "&$J$4)) ->  | M72: =IF(ISERROR(VLOOKUP(B72,'Zebrik W'!$B$7:$L$1000,11,0)),"",IF(VLOOKUP(B72,'Zebrik W'!$B$7:$L$1000,11,0)=0,"--",VLOOKUP(B72,'Zebrik W'!$B$7:$L$1000,11,0))) -> 
A73: =RANK(G73,G:G) -> 67 | B73: Vratislav Sram | C73: 1966 | D73: M | E73: Broumov | F73: CZ/C2 | G73: 23259 | H73: 3 | M73: =IF(ISERROR(VLOOKUP(B73,'Zebrik W'!$B$7:$L$1000,11,0)),"",IF(VLOOKUP(B73,'Zebrik W'!$B$7:$L$1000,11,0)=0,"--",VLOOKUP(B73,'Zebrik W'!$B$7:$L$1000,11,0))) -> 
A74: =RANK(G74,G:G) -> 68 | B74: Jana Treslova | C74: 1963 | D74: F | E74: Raná | F74: CZ/C2 | G74: 23080 | H74: 3 | L74: RV 2025 | M74: =IF(ISERROR(VLOOKUP(B74,'Zebrik W'!$B$7:$L$1000,11,0)),"",IF(VLOOKUP(B74,'Zebrik W'!$B$7:$L$1000,11,0)=0,"--",VLOOKUP(B74,'Zebrik W'!$B$7:$L$1000,11,0))) -> WRV 2025
A75: =RANK(G75,G:G) -> 69 | B75: David Sachl | C75: 1978 | D75: M | E75: Kralupy | F75: CZ/C1 | G75: 23027 | H75: 3 | M75: =IF(ISERROR(VLOOKUP(B75,'Zebrik W'!$B$7:$L$1000,11,0)),"",IF(VLOOKUP(B75,'Zebrik W'!$B$7:$L$1000,11,0)=0,"--",VLOOKUP(B75,'Zebrik W'!$B$7:$L$1000,11,0))) -> 
A76: =RANK(G76,G:G) -> 70 | B76: Zdenek Balcarek | C76: 1967 | D76: M | E76: Kroměříž | F76: CZ/M | G76: 23026 | H76: 3 | M76: =IF(ISERROR(VLOOKUP(B76,'Zebrik W'!$B$7:$L$1000,11,0)),"",IF(VLOOKUP(B76,'Zebrik W'!$B$7:$L$1000,11,0)=0,"--",VLOOKUP(B76,'Zebrik W'!$B$7:$L$1000,11,0))) -> 
A77: =RANK(G77,G:G) -> 71 | B77: Radek Zima 78 | C77: 1978 | D77: M | E77: Hodkovice | F77: CZ/C2 | G77: 22940 | H77: 3 | M77: =IF(ISERROR(VLOOKUP(B77,'Zebrik W'!$B$7:$L$1000,11,0)),"",IF(VLOOKUP(B77,'Zebrik W'!$B$7:$L$1000,11,0)=0,"--",VLOOKUP(B77,'Zebrik W'!$B$7:$L$1000,11,0))) -> 
A78: =RANK(G78,G:G) -> 72 | B78: Jan Simon | C78: 1970 | D78: M | E78: Kralupy | F78: CZ/C1 | G78: 22932 | H78: 3 | M78: =IF(ISERROR(VLOOKUP(B78,'Zebrik W'!$B$7:$L$1000,11,0)),"",IF(VLOOKUP(B78,'Zebrik W'!$B$7:$L$1000,11,0)=0,"--",VLOOKUP(B78,'Zebrik W'!$B$7:$L$1000,11,0))) -> 
A79: =RANK(G79,G:G) -> 73 | B79: Jiri Vondracek | C79: 1989 | D79: M | E79: Kladno | F79: CZ/C1 | G79: 22885 | H79: 3 | M79: =IF(ISERROR(VLOOKUP(B79,'Zebrik W'!$B$7:$L$1000,11,0)),"",IF(VLOOKUP(B79,'Zebrik W'!$B$7:$L$1000,11,0)=0,"--",VLOOKUP(B79,'Zebrik W'!$B$7:$L$1000,11,0))) -> 
A80: =RANK(G80,G:G) -> 74 | B80: Marek Blatak | C80: 1969 | D80: M | E80: Šumperk | F80: CZ/M | G80: 22843 | H80: 3 | M80: =IF(ISERROR(VLOOKUP(B80,'Zebrik W'!$B$7:$L$1000,11,0)),"",IF(VLOOKUP(B80,'Zebrik W'!$B$7:$L$1000,11,0)=0,"--",VLOOKUP(B80,'Zebrik W'!$B$7:$L$1000,11,0))) -> 
A81: =RANK(G81,G:G) -> 75 | B81: David Zapletal | C81: 1970 | D81: M | E81: Mladá Boleslav | F81: CZ/C1 | G81: 22779 | H81: 3 | M81: =IF(ISERROR(VLOOKUP(B81,'Zebrik W'!$B$7:$L$1000,11,0)),"",IF(VLOOKUP(B81,'Zebrik W'!$B$7:$L$1000,11,0)=0,"--",VLOOKUP(B81,'Zebrik W'!$B$7:$L$1000,11,0))) -> 
A82: =RANK(G82,G:G) -> 76 | B82: Radim Sobek | C82: 1977 | D82: M | E82: Hranice | F82: CZ/M | G82: 22599 | H82: 3 | M82: =IF(ISERROR(VLOOKUP(B82,'Zebrik W'!$B$7:$L$1000,11,0)),"",IF(VLOOKUP(B82,'Zebrik W'!$B$7:$L$1000,11,0)=0,"--",VLOOKUP(B82,'Zebrik W'!$B$7:$L$1000,11,0))) -> 
A83: =RANK(G83,G:G) -> 77 | B83: Jan Ratz | C83: 1987 | D83: M | E83: Zbraslavice | F83: CZ/C1 | G83: 22264 | H83: 3 | M83: =IF(ISERROR(VLOOKUP(B83,'Zebrik W'!$B$7:$L$1000,11,0)),"",IF(VLOOKUP(B83,'Zebrik W'!$B$7:$L$1000,11,0)=0,"--",VLOOKUP(B83,'Zebrik W'!$B$7:$L$1000,11,0))) -> 
A84: =RANK(G84,G:G) -> 78 | B84: David Vrchota | C84: 1976 | D84: M | E84: Jaroměř | F84: CZ/C2 | G84: 22261 | H84: 3 | M84: =IF(ISERROR(VLOOKUP(B84,'Zebrik W'!$B$7:$L$1000,11,0)),"",IF(VLOOKUP(B84,'Zebrik W'!$B$7:$L$1000,11,0)=0,"--",VLOOKUP(B84,'Zebrik W'!$B$7:$L$1000,11,0))) -> 
A85: =RANK(G85,G:G) -> 79 | B85: Jan Smaha | C85: 1958 | D85: M | E85: Česká Lípa | F85: CZ/C2 | G85: 22235 | H85: 3 | M85: =IF(ISERROR(VLOOKUP(B85,'Zebrik W'!$B$7:$L$1000,11,0)),"",IF(VLOOKUP(B85,'Zebrik W'!$B$7:$L$1000,11,0)=0,"--",VLOOKUP(B85,'Zebrik W'!$B$7:$L$1000,11,0))) -> 
A86: =RANK(G86,G:G) -> 80 | B86: Milan Svoboda 80 | C86: 1980 | D86: M | E86: Havlíčkův Brod | F86: CZ/C2 | G86: 22009 | H86: 3 | M86: =IF(ISERROR(VLOOKUP(B86,'Zebrik W'!$B$7:$L$1000,11,0)),"",IF(VLOOKUP(B86,'Zebrik W'!$B$7:$L$1000,11,0)=0,"--",VLOOKUP(B86,'Zebrik W'!$B$7:$L$1000,11,0))) -> 
A87: =RANK(G87,G:G) -> 81 | B87: Jan Sponer | C87: 1988 | D87: M | E87: Medlánky | F87: CZ/M | G87: 21791 | H87: 3 | M87: =IF(ISERROR(VLOOKUP(B87,'Zebrik W'!$B$7:$L$1000,11,0)),"",IF(VLOOKUP(B87,'Zebrik W'!$B$7:$L$1000,11,0)=0,"--",VLOOKUP(B87,'Zebrik W'!$B$7:$L$1000,11,0))) -> 
A88: =RANK(G88,G:G) -> 82 | B88: Jan Podhrazsky | C88: 1976 | D88: M | E88: Šumperk | F88: CZ/M | G88: 21688 | H88: 3 | M88: =IF(ISERROR(VLOOKUP(B88,'Zebrik W'!$B$7:$L$1000,11,0)),"",IF(VLOOKUP(B88,'Zebrik W'!$B$7:$L$1000,11,0)=0,"--",VLOOKUP(B88,'Zebrik W'!$B$7:$L$1000,11,0))) -> 
A89: =RANK(G89,G:G) -> 83 | B89: Michal Cupak | C89: 1991 | D89: M | E89: Medlánky | F89: CZ/M | G89: 21502 | H89: 3 | M89: =IF(ISERROR(VLOOKUP(B89,'Zebrik W'!$B$7:$L$1000,11,0)),"",IF(VLOOKUP(B89,'Zebrik W'!$B$7:$L$1000,11,0)=0,"--",VLOOKUP(B89,'Zebrik W'!$B$7:$L$1000,11,0))) -> 
A90: =RANK(G90,G:G) -> 84 | B90: Jan Horak | C90: 1971 | D90: M | E90: Zbraslavice | F90: CZ/C1 | G90: 21347 | H90: 3 | M90: =IF(ISERROR(VLOOKUP(B90,'Zebrik W'!$B$7:$L$1000,11,0)),"",IF(VLOOKUP(B90,'Zebrik W'!$B$7:$L$1000,11,0)=0,"--",VLOOKUP(B90,'Zebrik W'!$B$7:$L$1000,11,0))) -> 
A91: =RANK(G91,G:G) -> 85 | B91: Jiri Fousek | C91: 1990 | D91: M | E91: Raná | F91: CZ/C2 | G91: 21303 | H91: 3 | M91: =IF(ISERROR(VLOOKUP(B91,'Zebrik W'!$B$7:$L$1000,11,0)),"",IF(VLOOKUP(B91,'Zebrik W'!$B$7:$L$1000,11,0)=0,"--",VLOOKUP(B91,'Zebrik W'!$B$7:$L$1000,11,0))) -> 
A92: =RANK(G92,G:G) -> 86 | B92: Martin Ficnar | C92: 1971 | D92: M | E92: Šumperk | F92: CZ/M | G92: 21216 | H92: 3 | M92: =IF(ISERROR(VLOOKUP(B92,'Zebrik W'!$B$7:$L$1000,11,0)),"",IF(VLOOKUP(B92,'Zebrik W'!$B$7:$L$1000,11,0)=0,"--",VLOOKUP(B92,'Zebrik W'!$B$7:$L$1000,11,0))) -> 
A93: =RANK(G93,G:G) -> 87 | B93: Martin Kriz | C93: 1968 | D93: M | E93: Přibyslav | F93: CZ/C2 | G93: 21138 | H93: 3 | M93: =IF(ISERROR(VLOOKUP(B93,'Zebrik W'!$B$7:$L$1000,11,0)),"",IF(VLOOKUP(B93,'Zebrik W'!$B$7:$L$1000,11,0)=0,"--",VLOOKUP(B93,'Zebrik W'!$B$7:$L$1000,11,0))) -> 
A94: =RANK(G94,G:G) -> 88 | B94: Petr Havelka | C94: 1997 | D94: M | E94: Zbraslavice | F94: CZ/C1 | G94: 21127 | H94: 3 | M94: =IF(ISERROR(VLOOKUP(B94,'Zebrik W'!$B$7:$L$1000,11,0)),"",IF(VLOOKUP(B94,'Zebrik W'!$B$7:$L$1000,11,0)=0,"--",VLOOKUP(B94,'Zebrik W'!$B$7:$L$1000,11,0))) -> 
A95: =RANK(G95,G:G) -> 89 | B95: Zdenek Boruvka 54 | C95: 1954 | D95: M | E95: Jičín | F95: CZ/C2 | G95: 21105 | H95: 3 | M95: =IF(ISERROR(VLOOKUP(B95,'Zebrik W'!$B$7:$L$1000,11,0)),"",IF(VLOOKUP(B95,'Zebrik W'!$B$7:$L$1000,11,0)=0,"--",VLOOKUP(B95,'Zebrik W'!$B$7:$L$1000,11,0))) -> 
A96: =RANK(G96,G:G) -> 90 | B96: Martin Svarc | C96: 1981 | D96: M | E96: Olomouc | F96: CZ/M | G96: 20877 | H96: 3 | M96: =IF(ISERROR(VLOOKUP(B96,'Zebrik W'!$B$7:$L$1000,11,0)),"",IF(VLOOKUP(B96,'Zebrik W'!$B$7:$L$1000,11,0)=0,"--",VLOOKUP(B96,'Zebrik W'!$B$7:$L$1000,11,0))) -> 
A97: =RANK(G97,G:G) -> 91 | B97: Jiri Prochazka | C97: 1971 | D97: M | E97: Toužim | F97: CZ/C1 | G97: 20876 | H97: 3 | M97: =IF(ISERROR(VLOOKUP(B97,'Zebrik W'!$B$7:$L$1000,11,0)),"",IF(VLOOKUP(B97,'Zebrik W'!$B$7:$L$1000,11,0)=0,"--",VLOOKUP(B97,'Zebrik W'!$B$7:$L$1000,11,0))) -> 
A98: =RANK(G98,G:G) -> 92 | B98: Martin Zahalka | C98: 1987 | D98: M | E98: Staňkov | F98: CZ/C1 | G98: 20542 | H98: 3 | M98: =IF(ISERROR(VLOOKUP(B98,'Zebrik W'!$B$7:$L$1000,11,0)),"",IF(VLOOKUP(B98,'Zebrik W'!$B$7:$L$1000,11,0)=0,"--",VLOOKUP(B98,'Zebrik W'!$B$7:$L$1000,11,0))) -> 
A99: =RANK(G99,G:G) -> 93 | B99: Jan Pazour | C99: 1979 | D99: M | E99: Dvůr Králové | F99: CZ/C2 | G99: 20360 | H99: 3 | M99: =IF(ISERROR(VLOOKUP(B99,'Zebrik W'!$B$7:$L$1000,11,0)),"",IF(VLOOKUP(B99,'Zebrik W'!$B$7:$L$1000,11,0)=0,"--",VLOOKUP(B99,'Zebrik W'!$B$7:$L$1000,11,0))) -> 
A100: =RANK(G100,G:G) -> 94 | B100: Rostislav Stryk | C100: 1972 | D100: M | E100: Frýdlant | F100: CZ/M | G100: 20312 | H100: 3 | M100: =IF(ISERROR(VLOOKUP(B100,'Zebrik W'!$B$7:$L$1000,11,0)),"",IF(VLOOKUP(B100,'Zebrik W'!$B$7:$L$1000,11,0)=0,"--",VLOOKUP(B100,'Zebrik W'!$B$7:$L$1000,11,0))) -> 
A101: =RANK(G101,G:G) -> 95 | B101: Katerina Vojtova | C101: 1983 | D101: F | E101: Slaný | F101: CZ/C1 | G101: 20303 | H101: 3 | L101: RV 2025 | M101: =IF(ISERROR(VLOOKUP(B101,'Zebrik W'!$B$7:$L$1000,11,0)),"",IF(VLOOKUP(B101,'Zebrik W'!$B$7:$L$1000,11,0)=0,"--",VLOOKUP(B101,'Zebrik W'!$B$7:$L$1000,11,0))) -> WRV 2025
A102: =RANK(G102,G:G) -> 96 | B102: Josef Kolman | C102: 1983 | D102: M | E102: Letňany | F102: CZ/C1 | G102: 20255 | H102: 3 | M102: =IF(ISERROR(VLOOKUP(B102,'Zebrik W'!$B$7:$L$1000,11,0)),"",IF(VLOOKUP(B102,'Zebrik W'!$B$7:$L$1000,11,0)=0,"--",VLOOKUP(B102,'Zebrik W'!$B$7:$L$1000,11,0))) -> 
A103: =RANK(G103,G:G) -> 97 | B103: Marek Kornec | C103: 1957 | D103: M | E103: Dvůr Králové | F103: CZ/C2 | G103: 20249 | H103: 3 | M103: =IF(ISERROR(VLOOKUP(B103,'Zebrik W'!$B$7:$L$1000,11,0)),"",IF(VLOOKUP(B103,'Zebrik W'!$B$7:$L$1000,11,0)=0,"--",VLOOKUP(B103,'Zebrik W'!$B$7:$L$1000,11,0))) -> 
A104: =RANK(G104,G:G) -> 98 | B104: Stepan Obrovsky | C104: 1990 | D104: M | E104: Frýdlant | F104: CZ/M | G104: 20245 | H104: 3 | M104: =IF(ISERROR(VLOOKUP(B104,'Zebrik W'!$B$7:$L$1000,11,0)),"",IF(VLOOKUP(B104,'Zebrik W'!$B$7:$L$1000,11,0)=0,"--",VLOOKUP(B104,'Zebrik W'!$B$7:$L$1000,11,0))) -> 
A105: =RANK(G105,G:G) -> 99 | B105: Jan Smekal | C105: 1976 | D105: M | E105: Zbraslavice | F105: CZ/C1 | G105: 20208 | H105: 3 | M105: =IF(ISERROR(VLOOKUP(B105,'Zebrik W'!$B$7:$L$1000,11,0)),"",IF(VLOOKUP(B105,'Zebrik W'!$B$7:$L$1000,11,0)=0,"--",VLOOKUP(B105,'Zebrik W'!$B$7:$L$1000,11,0))) -> 
A106: =RANK(G106,G:G) -> 100 | B106: Frantisek Myska | C106: 1968 | D106: M | E106: Most | F106: CZ/C2 | G106: 20164 | H106: 3 | M106: =IF(ISERROR(VLOOKUP(B106,'Zebrik W'!$B$7:$L$1000,11,0)),"",IF(VLOOKUP(B106,'Zebrik W'!$B$7:$L$1000,11,0)=0,"--",VLOOKUP(B106,'Zebrik W'!$B$7:$L$1000,11,0))) -> 
A107: =RANK(G107,G:G) -> 101 | B107: Jan Mareth | C107: 1979 | D107: M | E107: Frýdlant | F107: CZ/M | G107: 20128 | H107: 3 | M107: =IF(ISERROR(VLOOKUP(B107,'Zebrik W'!$B$7:$L$1000,11,0)),"",IF(VLOOKUP(B107,'Zebrik W'!$B$7:$L$1000,11,0)=0,"--",VLOOKUP(B107,'Zebrik W'!$B$7:$L$1000,11,0))) -> 
A108: =RANK(G108,G:G) -> 102 | B108: Zdenek Schenk | C108: 1972 | D108: M | E108: Hranice | F108: CZ/M | G108: 20051 | H108: 3 | M108: =IF(ISERROR(VLOOKUP(B108,'Zebrik W'!$B$7:$L$1000,11,0)),"",IF(VLOOKUP(B108,'Zebrik W'!$B$7:$L$1000,11,0)=0,"--",VLOOKUP(B108,'Zebrik W'!$B$7:$L$1000,11,0))) -> 
A109: =RANK(G109,G:G) -> 103 | B109: Petr Setka | C109: 1971 | D109: M | E109: Letkov | F109: CZ/C1 | G109: 19996 | H109: 3 | M109: =IF(ISERROR(VLOOKUP(B109,'Zebrik W'!$B$7:$L$1000,11,0)),"",IF(VLOOKUP(B109,'Zebrik W'!$B$7:$L$1000,11,0)=0,"--",VLOOKUP(B109,'Zebrik W'!$B$7:$L$1000,11,0))) -> 
A110: =RANK(G110,G:G) -> 104 | B110: Viktor Becan | C110: 1979 | D110: M | E110: Vlašim | F110: CZ/C1 | G110: 19921 | H110: 3 | M110: =IF(ISERROR(VLOOKUP(B110,'Zebrik W'!$B$7:$L$1000,11,0)),"",IF(VLOOKUP(B110,'Zebrik W'!$B$7:$L$1000,11,0)=0,"--",VLOOKUP(B110,'Zebrik W'!$B$7:$L$1000,11,0))) -> 
A111: =RANK(G111,G:G) -> 105 | B111: Stepan Filakovsky | C111: 2005 | D111: M | E111: Medlánky | F111: CZ/M | G111: 19803 | H111: 3 | I111: Junior v roce 2025 | J111: Junior v roce 2026 | M111: =IF(ISERROR(VLOOKUP(B111,'Zebrik W'!$B$7:$L$1000,11,0)),"",IF(VLOOKUP(B111,'Zebrik W'!$B$7:$L$1000,11,0)=0,"--",VLOOKUP(B111,'Zebrik W'!$B$7:$L$1000,11,0))) -> 
A112: =RANK(G112,G:G) -> 106 | B112: Michal Drab | C112: 1969 | D112: M | E112: Letkov | F112: CZ/C1 | G112: 19766 | H112: 3 | M112: =IF(ISERROR(VLOOKUP(B112,'Zebrik W'!$B$7:$L$1000,11,0)),"",IF(VLOOKUP(B112,'Zebrik W'!$B$7:$L$1000,11,0)=0,"--",VLOOKUP(B112,'Zebrik W'!$B$7:$L$1000,11,0))) -> 
A113: =RANK(G113,G:G) -> 107 | B113: Daniel Dvorak | C113: 1980 | D113: M | E113: Letkov | F113: CZ/C1 | G113: 19751 | H113: 3 | M113: =IF(ISERROR(VLOOKUP(B113,'Zebrik W'!$B$7:$L$1000,11,0)),"",IF(VLOOKUP(B113,'Zebrik W'!$B$7:$L$1000,11,0)=0,"--",VLOOKUP(B113,'Zebrik W'!$B$7:$L$1000,11,0))) -> 
A114: =RANK(G114,G:G) -> 108 | B114: Alex Gulich | C114: 2005 | D114: M | E114: Slaný | F114: CZ/C1 | G114: 19731 | H114: 3 | I114: Junior v roce 2025 | J114: Junior v roce 2026 | M114: =IF(ISERROR(VLOOKUP(B114,'Zebrik W'!$B$7:$L$1000,11,0)),"",IF(VLOOKUP(B114,'Zebrik W'!$B$7:$L$1000,11,0)=0,"--",VLOOKUP(B114,'Zebrik W'!$B$7:$L$1000,11,0))) -> 
A115: =RANK(G115,G:G) -> 109 | B115: Pavel Liska | C115: 1965 | D115: M | E115: Roudnice | F115: CZ/C2 | G115: 19700 | H115: 3 | M115: =IF(ISERROR(VLOOKUP(B115,'Zebrik W'!$B$7:$L$1000,11,0)),"",IF(VLOOKUP(B115,'Zebrik W'!$B$7:$L$1000,11,0)=0,"--",VLOOKUP(B115,'Zebrik W'!$B$7:$L$1000,11,0))) -> 
A116: =RANK(G116,G:G) -> 110 | B116: Tomas Kulhavy | C116: 2001 | D116: M | E116: Liberec | F116: CZ/C2 | G116: 19570 | H116: 3 | I116: Junior v roce 2025 | J116: Junior v roce 2026 | M116: =IF(ISERROR(VLOOKUP(B116,'Zebrik W'!$B$7:$L$1000,11,0)),"",IF(VLOOKUP(B116,'Zebrik W'!$B$7:$L$1000,11,0)=0,"--",VLOOKUP(B116,'Zebrik W'!$B$7:$L$1000,11,0))) -> 
A117: =RANK(G117,G:G) -> 111 | B117: Wolfgang Sluka | C117: 1942 | D117: M | E117: Liberec | F117: CZ/C2 | G117: 19534 | H117: 3 | M117: =IF(ISERROR(VLOOKUP(B117,'Zebrik W'!$B$7:$L$1000,11,0)),"",IF(VLOOKUP(B117,'Zebrik W'!$B$7:$L$1000,11,0)=0,"--",VLOOKUP(B117,'Zebrik W'!$B$7:$L$1000,11,0))) -> 
A118: =RANK(G118,G:G) -> 112 | B118: Karel Horalek | C118: 1976 | D118: M | E118: Olomouc | F118: CZ/M | G118: 19398 | H118: 3 | M118: =IF(ISERROR(VLOOKUP(B118,'Zebrik W'!$B$7:$L$1000,11,0)),"",IF(VLOOKUP(B118,'Zebrik W'!$B$7:$L$1000,11,0)=0,"--",VLOOKUP(B118,'Zebrik W'!$B$7:$L$1000,11,0))) -> 
A119: =RANK(G119,G:G) -> 113 | B119: Eliska Kudejova | C119: 2006 | D119: F | E119: Strakonice | F119: CZ/C1 | G119: 19318 | H119: 3 | I119: Junior v roce 2025 | J119: Junior v roce 2026 | M119: =IF(ISERROR(VLOOKUP(B119,'Zebrik W'!$B$7:$L$1000,11,0)),"",IF(VLOOKUP(B119,'Zebrik W'!$B$7:$L$1000,11,0)=0,"--",VLOOKUP(B119,'Zebrik W'!$B$7:$L$1000,11,0))) -> --
A120: =RANK(G120,G:G) -> 114 | B120: Vojtech Vach 03 | C120: 2003 | D120: M | E120: Vrchlabí | F120: CZ/C2 | G120: 19297 | H120: 3 | I120: Junior v roce 2025 | J120: Junior v roce 2026 | M120: =IF(ISERROR(VLOOKUP(B120,'Zebrik W'!$B$7:$L$1000,11,0)),"",IF(VLOOKUP(B120,'Zebrik W'!$B$7:$L$1000,11,0)=0,"--",VLOOKUP(B120,'Zebrik W'!$B$7:$L$1000,11,0))) -> 
A121: =RANK(G121,G:G) -> 115 | B121: Jiri Koudela | C121: 1974 | D121: M | E121: Vyškov | F121: CZ/M | G121: 19235 | H121: 3 | M121: =IF(ISERROR(VLOOKUP(B121,'Zebrik W'!$B$7:$L$1000,11,0)),"",IF(VLOOKUP(B121,'Zebrik W'!$B$7:$L$1000,11,0)=0,"--",VLOOKUP(B121,'Zebrik W'!$B$7:$L$1000,11,0))) -> 
A122: =RANK(G122,G:G) -> 116 | B122: Jiri Hula | C122: 1973 | D122: M | E122: Slaný | F122: CZ/C1 | G122: 19224 | H122: 3 | M122: =IF(ISERROR(VLOOKUP(B122,'Zebrik W'!$B$7:$L$1000,11,0)),"",IF(VLOOKUP(B122,'Zebrik W'!$B$7:$L$1000,11,0)=0,"--",VLOOKUP(B122,'Zebrik W'!$B$7:$L$1000,11,0))) -> 
A123: =RANK(G123,G:G) -> 117 | B123: Petr Babak | C123: 1973 | D123: M | E123: Hořice | F123: CZ/C2 | G123: 19194 | H123: 3 | M123: =IF(ISERROR(VLOOKUP(B123,'Zebrik W'!$B$7:$L$1000,11,0)),"",IF(VLOOKUP(B123,'Zebrik W'!$B$7:$L$1000,11,0)=0,"--",VLOOKUP(B123,'Zebrik W'!$B$7:$L$1000,11,0))) -> 
A124: =RANK(G124,G:G) -> 118 | B124: Lukas Maly | C124: 1998 | D124: M | E124: Vysoké Mýto | F124: CZ/C2 | G124: 19008 | H124: 3 | M124: =IF(ISERROR(VLOOKUP(B124,'Zebrik W'!$B$7:$L$1000,11,0)),"",IF(VLOOKUP(B124,'Zebrik W'!$B$7:$L$1000,11,0)=0,"--",VLOOKUP(B124,'Zebrik W'!$B$7:$L$1000,11,0))) -> 
A125: =RANK(G125,G:G) -> 119 | B125: Petr Rozhon | C125: 1972 | D125: M | E125: Hosín | F125: CZ/C1 | G125: 18983 | H125: 3 | M125: =IF(ISERROR(VLOOKUP(B125,'Zebrik W'!$B$7:$L$1000,11,0)),"",IF(VLOOKUP(B125,'Zebrik W'!$B$7:$L$1000,11,0)=0,"--",VLOOKUP(B125,'Zebrik W'!$B$7:$L$1000,11,0))) -> 
A126: =RANK(G126,G:G) -> 120 | B126: Ondrej Teichman | C126: 1984 | D126: M | E126: Dvůr Králové | F126: CZ/C2 | G126: 18969 | H126: 3 | M126: =IF(ISERROR(VLOOKUP(B126,'Zebrik W'!$B$7:$L$1000,11,0)),"",IF(VLOOKUP(B126,'Zebrik W'!$B$7:$L$1000,11,0)=0,"--",VLOOKUP(B126,'Zebrik W'!$B$7:$L$1000,11,0))) -> 
A127: =RANK(G127,G:G) -> 121 | B127: Jaroslav Potmesil | C127: 1964 | D127: M | E127: Zbraslavice | F127: CZ/C1 | G127: 18967 | H127: 3 | M127: =IF(ISERROR(VLOOKUP(B127,'Zebrik W'!$B$7:$L$1000,11,0)),"",IF(VLOOKUP(B127,'Zebrik W'!$B$7:$L$1000,11,0)=0,"--",VLOOKUP(B127,'Zebrik W'!$B$7:$L$1000,11,0))) -> 
A128: =RANK(G128,G:G) -> 122 | B128: Jan Vozeh | C128: 1995 | D128: M | E128: Rakovník | F128: CZ/C1 | G128: 18828 | H128: 3 | M128: =IF(ISERROR(VLOOKUP(B128,'Zebrik W'!$B$7:$L$1000,11,0)),"",IF(VLOOKUP(B128,'Zebrik W'!$B$7:$L$1000,11,0)=0,"--",VLOOKUP(B128,'Zebrik W'!$B$7:$L$1000,11,0))) -> 
A129: =RANK(G129,G:G) -> 123 | B129: Jaroslav Sima | C129: 1972 | D129: M | E129: Chomutov | F129: CZ/C2 | G129: 18735 | H129: 3 | M129: =IF(ISERROR(VLOOKUP(B129,'Zebrik W'!$B$7:$L$1000,11,0)),"",IF(VLOOKUP(B129,'Zebrik W'!$B$7:$L$1000,11,0)=0,"--",VLOOKUP(B129,'Zebrik W'!$B$7:$L$1000,11,0))) -> 
A130: =RANK(G130,G:G) -> 124 | B130: Tomas Ditrt | C130: 1969 | D130: M | E130: Podhořany | F130: CZ/C2 | G130: 18654 | H130: 3 | M130: =IF(ISERROR(VLOOKUP(B130,'Zebrik W'!$B$7:$L$1000,11,0)),"",IF(VLOOKUP(B130,'Zebrik W'!$B$7:$L$1000,11,0)=0,"--",VLOOKUP(B130,'Zebrik W'!$B$7:$L$1000,11,0))) -> 
A131: =RANK(G131,G:G) -> 125 | B131: Miloslav Hulmak | C131: 1963 | D131: M | E131: Hosín | F131: CZ/C1 | G131: 18624 | H131: 3 | M131: =IF(ISERROR(VLOOKUP(B131,'Zebrik W'!$B$7:$L$1000,11,0)),"",IF(VLOOKUP(B131,'Zebrik W'!$B$7:$L$1000,11,0)=0,"--",VLOOKUP(B131,'Zebrik W'!$B$7:$L$1000,11,0))) -> 
A132: =RANK(G132,G:G) -> 126 | B132: Ladislav Prokes | C132: 1954 | D132: M | E132: Vrchlabí | F132: CZ/C2 | G132: 18564 | H132: 3 | M132: =IF(ISERROR(VLOOKUP(B132,'Zebrik W'!$B$7:$L$1000,11,0)),"",IF(VLOOKUP(B132,'Zebrik W'!$B$7:$L$1000,11,0)=0,"--",VLOOKUP(B132,'Zebrik W'!$B$7:$L$1000,11,0))) -> 
A133: =RANK(G133,G:G) -> 127 | B133: Jaromir Pauer | C133: 1974 | D133: M | E133: Hosín | F133: CZ/C1 | G133: 18432 | H133: 3 | M133: =IF(ISERROR(VLOOKUP(B133,'Zebrik W'!$B$7:$L$1000,11,0)),"",IF(VLOOKUP(B133,'Zebrik W'!$B$7:$L$1000,11,0)=0,"--",VLOOKUP(B133,'Zebrik W'!$B$7:$L$1000,11,0))) -> 
A134: =RANK(G134,G:G) -> 128 | B134: Petr Kolomaznik | C134: 1981 | D134: M | E134: Šumperk | F134: CZ/M | G134: 18324 | H134: 3 | M134: =IF(ISERROR(VLOOKUP(B134,'Zebrik W'!$B$7:$L$1000,11,0)),"",IF(VLOOKUP(B134,'Zebrik W'!$B$7:$L$1000,11,0)=0,"--",VLOOKUP(B134,'Zebrik W'!$B$7:$L$1000,11,0))) -> 
A135: =RANK(G135,G:G) -> 129 | B135: Vaclav Svoboda | C135: 1970 | D135: M | E135: Letkov | F135: CZ/C1 | G135: 18272 | H135: 3 | M135: =IF(ISERROR(VLOOKUP(B135,'Zebrik W'!$B$7:$L$1000,11,0)),"",IF(VLOOKUP(B135,'Zebrik W'!$B$7:$L$1000,11,0)=0,"--",VLOOKUP(B135,'Zebrik W'!$B$7:$L$1000,11,0))) -> 
A136: =RANK(G136,G:G) -> 130 | B136: Petr Bartak | C136: 1984 | D136: M | E136: Letkov | F136: CZ/C1 | G136: 18268 | H136: 3 | I136: =IF(C136="(prázdné)","",IF(($I$4-C136)>25,"","Junior v roce "&$I$4)) ->  | J136: =IF(C136="(prázdné)","",IF(($J$4-C136)>25,"","Junior v roce "&$J$4)) ->  | M136: =IF(ISERROR(VLOOKUP(B136,'Zebrik W'!$B$7:$L$1000,11,0)),"",IF(VLOOKUP(B136,'Zebrik W'!$B$7:$L$1000,11,0)=0,"--",VLOOKUP(B136,'Zebrik W'!$B$7:$L$1000,11,0))) -> 
A137: =RANK(G137,G:G) -> 131 | B137: Jiri Maier 66 | C137: 1966 | D137: M | E137: Raná | F137: CZ/C2 | G137: 18256 | H137: 3 | M137: =IF(ISERROR(VLOOKUP(B137,'Zebrik W'!$B$7:$L$1000,11,0)),"",IF(VLOOKUP(B137,'Zebrik W'!$B$7:$L$1000,11,0)=0,"--",VLOOKUP(B137,'Zebrik W'!$B$7:$L$1000,11,0))) -> 
A138: =RANK(G138,G:G) -> 132 | B138: Josef Novotny | C138: 1983 | D138: M | E138: Přibyslav | F138: CZ/C2 | G138: 18100 | H138: 2 | M138: =IF(ISERROR(VLOOKUP(B138,'Zebrik W'!$B$7:$L$1000,11,0)),"",IF(VLOOKUP(B138,'Zebrik W'!$B$7:$L$1000,11,0)=0,"--",VLOOKUP(B138,'Zebrik W'!$B$7:$L$1000,11,0))) -> 
A139: =RANK(G139,G:G) -> 133 | B139: David Popovsky | C139: 1976 | D139: M | E139: Rakovník | F139: CZ/C1 | G139: 18059 | H139: 3 | M139: =IF(ISERROR(VLOOKUP(B139,'Zebrik W'!$B$7:$L$1000,11,0)),"",IF(VLOOKUP(B139,'Zebrik W'!$B$7:$L$1000,11,0)=0,"--",VLOOKUP(B139,'Zebrik W'!$B$7:$L$1000,11,0))) -> 
A140: =RANK(G140,G:G) -> 134 | B140: Petr Lonsky | C140: 1965 | D140: M | E140: Toužim | F140: CZ/C1 | G140: 17920 | H140: 3 | M140: =IF(ISERROR(VLOOKUP(B140,'Zebrik W'!$B$7:$L$1000,11,0)),"",IF(VLOOKUP(B140,'Zebrik W'!$B$7:$L$1000,11,0)=0,"--",VLOOKUP(B140,'Zebrik W'!$B$7:$L$1000,11,0))) -> 
A141: =RANK(G141,G:G) -> 135 | B141: Jan Hybner | C141: 1977 | D141: M | E141: Liberec | F141: CZ/C2 | G141: 17888 | H141: 3 | M141: =IF(ISERROR(VLOOKUP(B141,'Zebrik W'!$B$7:$L$1000,11,0)),"",IF(VLOOKUP(B141,'Zebrik W'!$B$7:$L$1000,11,0)=0,"--",VLOOKUP(B141,'Zebrik W'!$B$7:$L$1000,11,0))) -> 
A142: =RANK(G142,G:G) -> 136 | B142: Vojtech Hajek | C142: 1987 | D142: M | E142: Mladá Boleslav | F142: CZ/C1 | G142: 17838 | H142: 3 | M142: =IF(ISERROR(VLOOKUP(B142,'Zebrik W'!$B$7:$L$1000,11,0)),"",IF(VLOOKUP(B142,'Zebrik W'!$B$7:$L$1000,11,0)=0,"--",VLOOKUP(B142,'Zebrik W'!$B$7:$L$1000,11,0))) -> 
A143: =RANK(G143,G:G) -> 137 | B143: Pavlina Horackova | C143: 1965 | D143: F | E143: Šumperk | F143: CZ/M | G143: 17765 | H143: 3 | M143: =IF(ISERROR(VLOOKUP(B143,'Zebrik W'!$B$7:$L$1000,11,0)),"",IF(VLOOKUP(B143,'Zebrik W'!$B$7:$L$1000,11,0)=0,"--",VLOOKUP(B143,'Zebrik W'!$B$7:$L$1000,11,0))) -> --
A144: =RANK(G144,G:G) -> 138 | B144: Jan Florian | C144: 1992 | D144: M | E144: Zbraslavice | F144: CZ/C1 | G144: 17754 | H144: 3 | M144: =IF(ISERROR(VLOOKUP(B144,'Zebrik W'!$B$7:$L$1000,11,0)),"",IF(VLOOKUP(B144,'Zebrik W'!$B$7:$L$1000,11,0)=0,"--",VLOOKUP(B144,'Zebrik W'!$B$7:$L$1000,11,0))) -> 
A145: =RANK(G145,G:G) -> 139 | B145: Jakub Kohn | C145: 1992 | D145: M | E145: Prostějov | F145: CZ/M | G145: 17573 | H145: 3 | M145: =IF(ISERROR(VLOOKUP(B145,'Zebrik W'!$B$7:$L$1000,11,0)),"",IF(VLOOKUP(B145,'Zebrik W'!$B$7:$L$1000,11,0)=0,"--",VLOOKUP(B145,'Zebrik W'!$B$7:$L$1000,11,0))) -> 
A146: =RANK(G146,G:G) -> 140 | B146: Petr Havrlant | C146: 1965 | D146: M | E146: Šumperk | F146: CZ/M | G146: 17354 | H146: 3 | M146: =IF(ISERROR(VLOOKUP(B146,'Zebrik W'!$B$7:$L$1000,11,0)),"",IF(VLOOKUP(B146,'Zebrik W'!$B$7:$L$1000,11,0)=0,"--",VLOOKUP(B146,'Zebrik W'!$B$7:$L$1000,11,0))) -> 
A147: =RANK(G147,G:G) -> 141 | B147: Eduard Niko | C147: 1988 | D147: M | E147: Zbraslavice | F147: CZ/C1 | G147: 17332 | H147: 2 | M147: =IF(ISERROR(VLOOKUP(B147,'Zebrik W'!$B$7:$L$1000,11,0)),"",IF(VLOOKUP(B147,'Zebrik W'!$B$7:$L$1000,11,0)=0,"--",VLOOKUP(B147,'Zebrik W'!$B$7:$L$1000,11,0))) -> 
A148: =RANK(G148,G:G) -> 142 | B148: Jan Louda | C148: 1986 | D148: M | E148: Mladá Boleslav | F148: CZ/C1 | G148: 17229 | H148: 2 | M148: =IF(ISERROR(VLOOKUP(B148,'Zebrik W'!$B$7:$L$1000,11,0)),"",IF(VLOOKUP(B148,'Zebrik W'!$B$7:$L$1000,11,0)=0,"--",VLOOKUP(B148,'Zebrik W'!$B$7:$L$1000,11,0))) -> 
A149: =RANK(G149,G:G) -> 143 | B149: Frantisek Suna | C149: 1983 | D149: M | E149: Hosín | F149: CZ/C1 | G149: 17103 | H149: 3 | M149: =IF(ISERROR(VLOOKUP(B149,'Zebrik W'!$B$7:$L$1000,11,0)),"",IF(VLOOKUP(B149,'Zebrik W'!$B$7:$L$1000,11,0)=0,"--",VLOOKUP(B149,'Zebrik W'!$B$7:$L$1000,11,0))) -> 
A150: =RANK(G150,G:G) -> 144 | B150: Petr Masik | C150: 2001 | D150: M | E150: Zábřeh | F150: CZ/M | G150: 16938 | H150: 3 | I150: Junior v roce 2025 | J150: Junior v roce 2026 | M150: =IF(ISERROR(VLOOKUP(B150,'Zebrik W'!$B$7:$L$1000,11,0)),"",IF(VLOOKUP(B150,'Zebrik W'!$B$7:$L$1000,11,0)=0,"--",VLOOKUP(B150,'Zebrik W'!$B$7:$L$1000,11,0))) -> 
A151: =RANK(G151,G:G) -> 145 | B151: Radek Zima 75 | C151: 1975 | D151: M | E151: Břeclav | F151: CZ/M | G151: 16877 | H151: 3 | M151: =IF(ISERROR(VLOOKUP(B151,'Zebrik W'!$B$7:$L$1000,11,0)),"",IF(VLOOKUP(B151,'Zebrik W'!$B$7:$L$1000,11,0)=0,"--",VLOOKUP(B151,'Zebrik W'!$B$7:$L$1000,11,0))) -> 
A152: =RANK(G152,G:G) -> 146 | B152: Tomas Prikryl | C152: 1973 | D152: M | E152: Vyškov | F152: CZ/M | G152: 16835 | H152: 3 | M152: =IF(ISERROR(VLOOKUP(B152,'Zebrik W'!$B$7:$L$1000,11,0)),"",IF(VLOOKUP(B152,'Zebrik W'!$B$7:$L$1000,11,0)=0,"--",VLOOKUP(B152,'Zebrik W'!$B$7:$L$1000,11,0))) -> 
A153: =RANK(G153,G:G) -> 147 | B153: Milan Meisner | C153: 1961 | D153: M | E153: Dvůr Králové | F153: CZ/C2 | G153: 16748 | H153: 3 | M153: =IF(ISERROR(VLOOKUP(B153,'Zebrik W'!$B$7:$L$1000,11,0)),"",IF(VLOOKUP(B153,'Zebrik W'!$B$7:$L$1000,11,0)=0,"--",VLOOKUP(B153,'Zebrik W'!$B$7:$L$1000,11,0))) -> 
A154: =RANK(G154,G:G) -> 148 | B154: Petr Malcek | C154: 1965 | D154: M | E154: Letňany | F154: CZ/C1 | G154: 16727 | H154: 3 | M154: =IF(ISERROR(VLOOKUP(B154,'Zebrik W'!$B$7:$L$1000,11,0)),"",IF(VLOOKUP(B154,'Zebrik W'!$B$7:$L$1000,11,0)=0,"--",VLOOKUP(B154,'Zebrik W'!$B$7:$L$1000,11,0))) -> 
A155: =RANK(G155,G:G) -> 149 | B155: Roman Lanzendorf | C155: 1964 | D155: M | E155: Letkov | F155: CZ/C1 | G155: 16703 | H155: 3 | M155: =IF(ISERROR(VLOOKUP(B155,'Zebrik W'!$B$7:$L$1000,11,0)),"",IF(VLOOKUP(B155,'Zebrik W'!$B$7:$L$1000,11,0)=0,"--",VLOOKUP(B155,'Zebrik W'!$B$7:$L$1000,11,0))) -> 
A156: =RANK(G156,G:G) -> 150 | B156: Leos Strnadek | C156: 1983 | D156: M | E156: Hodkovice | F156: CZ/C2 | G156: 16563 | H156: 2 | M156: =IF(ISERROR(VLOOKUP(B156,'Zebrik W'!$B$7:$L$1000,11,0)),"",IF(VLOOKUP(B156,'Zebrik W'!$B$7:$L$1000,11,0)=0,"--",VLOOKUP(B156,'Zebrik W'!$B$7:$L$1000,11,0))) -> 
A157: =RANK(G157,G:G) -> 151 | B157: Martin Cicvarek | C157: 1966 | D157: M | E157: Liberec | F157: CZ/C2 | G157: 16474 | H157: 3 | M157: =IF(ISERROR(VLOOKUP(B157,'Zebrik W'!$B$7:$L$1000,11,0)),"",IF(VLOOKUP(B157,'Zebrik W'!$B$7:$L$1000,11,0)=0,"--",VLOOKUP(B157,'Zebrik W'!$B$7:$L$1000,11,0))) -> 
A158: =RANK(G158,G:G) -> 152 | B158: Radoslav Pur | C158: 1973 | D158: M | E158: Hosín | F158: CZ/C1 | G158: 16412 | H158: 3 | M158: =IF(ISERROR(VLOOKUP(B158,'Zebrik W'!$B$7:$L$1000,11,0)),"",IF(VLOOKUP(B158,'Zebrik W'!$B$7:$L$1000,11,0)=0,"--",VLOOKUP(B158,'Zebrik W'!$B$7:$L$1000,11,0))) -> 
A159: =RANK(G159,G:G) -> 153 | B159: Martin Fric | C159: 1967 | D159: M | E159: Raná | F159: CZ/C2 | G159: 16335 | H159: 3 | M159: =IF(ISERROR(VLOOKUP(B159,'Zebrik W'!$B$7:$L$1000,11,0)),"",IF(VLOOKUP(B159,'Zebrik W'!$B$7:$L$1000,11,0)=0,"--",VLOOKUP(B159,'Zebrik W'!$B$7:$L$1000,11,0))) -> 
A160: =RANK(G160,G:G) -> 154 | B160: Frantisek Komarek | C160: 1985 | D160: M | E160: Zbraslavice | F160: CZ/C1 | G160: 16184 | H160: 3 | M160: =IF(ISERROR(VLOOKUP(B160,'Zebrik W'!$B$7:$L$1000,11,0)),"",IF(VLOOKUP(B160,'Zebrik W'!$B$7:$L$1000,11,0)=0,"--",VLOOKUP(B160,'Zebrik W'!$B$7:$L$1000,11,0))) -> 
A161: =RANK(G161,G:G) -> 155 | B161: Tibor Hezina | C161: 2002 | D161: M | E161: Křižanov | F161: CZ/M | G161: 16063 | H161: 3 | I161: Junior v roce 2025 | J161: Junior v roce 2026 | M161: =IF(ISERROR(VLOOKUP(B161,'Zebrik W'!$B$7:$L$1000,11,0)),"",IF(VLOOKUP(B161,'Zebrik W'!$B$7:$L$1000,11,0)=0,"--",VLOOKUP(B161,'Zebrik W'!$B$7:$L$1000,11,0))) -> 
A162: =RANK(G162,G:G) -> 156 | B162: Martin Picka | C162: 1974 | D162: M | E162: Tábor | F162: CZ/C1 | G162: 16055 | H162: 3 | M162: =IF(ISERROR(VLOOKUP(B162,'Zebrik W'!$B$7:$L$1000,11,0)),"",IF(VLOOKUP(B162,'Zebrik W'!$B$7:$L$1000,11,0)=0,"--",VLOOKUP(B162,'Zebrik W'!$B$7:$L$1000,11,0))) -> 
A163: =RANK(G163,G:G) -> 157 | B163: Tomas Ptacovsky | C163: 1981 | D163: M | E163: Letňany | F163: CZ/C1 | G163: 15976 | H163: 3 | M163: =IF(ISERROR(VLOOKUP(B163,'Zebrik W'!$B$7:$L$1000,11,0)),"",IF(VLOOKUP(B163,'Zebrik W'!$B$7:$L$1000,11,0)=0,"--",VLOOKUP(B163,'Zebrik W'!$B$7:$L$1000,11,0))) -> 
A164: =RANK(G164,G:G) -> 158 | B164: Jan Zanda | C164: 1983 | D164: M | E164: Letkov | F164: CZ/C1 | G164: 15914 | H164: 3 | M164: =IF(ISERROR(VLOOKUP(B164,'Zebrik W'!$B$7:$L$1000,11,0)),"",IF(VLOOKUP(B164,'Zebrik W'!$B$7:$L$1000,11,0)=0,"--",VLOOKUP(B164,'Zebrik W'!$B$7:$L$1000,11,0))) -> 
A165: =RANK(G165,G:G) -> 159 | B165: Olga Mokosova | C165: 1970 | D165: F | E165: Jihlava | F165: CZ/M | G165: 15852 | H165: 3 | M165: =IF(ISERROR(VLOOKUP(B165,'Zebrik W'!$B$7:$L$1000,11,0)),"",IF(VLOOKUP(B165,'Zebrik W'!$B$7:$L$1000,11,0)=0,"--",VLOOKUP(B165,'Zebrik W'!$B$7:$L$1000,11,0))) -> --
A166: =RANK(G166,G:G) -> 160 | B166: Jiri Maier 99 | C166: 1999 | D166: M | E166: Raná | F166: CZ/C2 | G166: 15770 | H166: 3 | M166: =IF(ISERROR(VLOOKUP(B166,'Zebrik W'!$B$7:$L$1000,11,0)),"",IF(VLOOKUP(B166,'Zebrik W'!$B$7:$L$1000,11,0)=0,"--",VLOOKUP(B166,'Zebrik W'!$B$7:$L$1000,11,0))) -> 
A167: =RANK(G167,G:G) -> 161 | B167: Ales Vyhnal | C167: 1989 | D167: M | E167: Kralupy | F167: CZ/C1 | G167: 15589 | H167: 3 | M167: =IF(ISERROR(VLOOKUP(B167,'Zebrik W'!$B$7:$L$1000,11,0)),"",IF(VLOOKUP(B167,'Zebrik W'!$B$7:$L$1000,11,0)=0,"--",VLOOKUP(B167,'Zebrik W'!$B$7:$L$1000,11,0))) -> 
A168: =RANK(G168,G:G) -> 162 | B168: Petr Stepanek | C168: 1989 | D168: M | E168: Moravská Třebová | F168: CZ/M | G168: 15586 | H168: 2 | M168: =IF(ISERROR(VLOOKUP(B168,'Zebrik W'!$B$7:$L$1000,11,0)),"",IF(VLOOKUP(B168,'Zebrik W'!$B$7:$L$1000,11,0)=0,"--",VLOOKUP(B168,'Zebrik W'!$B$7:$L$1000,11,0))) -> 
A169: =RANK(G169,G:G) -> 163 | B169: Martin Stastny | C169: 2005 | D169: M | E169: Medlánky | F169: CZ/M | G169: 15561 | H169: 3 | I169: Junior v roce 2025 | J169: Junior v roce 2026 | M169: =IF(ISERROR(VLOOKUP(B169,'Zebrik W'!$B$7:$L$1000,11,0)),"",IF(VLOOKUP(B169,'Zebrik W'!$B$7:$L$1000,11,0)=0,"--",VLOOKUP(B169,'Zebrik W'!$B$7:$L$1000,11,0))) -> 
A170: =RANK(G170,G:G) -> 164 | B170: Radim Tomala | C170: 1972 | D170: M | E170: Prostějov | F170: CZ/M | G170: 15502 | H170: 3 | M170: =IF(ISERROR(VLOOKUP(B170,'Zebrik W'!$B$7:$L$1000,11,0)),"",IF(VLOOKUP(B170,'Zebrik W'!$B$7:$L$1000,11,0)=0,"--",VLOOKUP(B170,'Zebrik W'!$B$7:$L$1000,11,0))) -> 
A171: =RANK(G171,G:G) -> 165 | B171: Lubomir Motl | C171: 1959 | D171: M | E171: Kyjov | F171: CZ/M | G171: 15429 | H171: 2 | M171: =IF(ISERROR(VLOOKUP(B171,'Zebrik W'!$B$7:$L$1000,11,0)),"",IF(VLOOKUP(B171,'Zebrik W'!$B$7:$L$1000,11,0)=0,"--",VLOOKUP(B171,'Zebrik W'!$B$7:$L$1000,11,0))) -> 
A172: =RANK(G172,G:G) -> 166 | B172: Vaclav Hruza | C172: 1965 | D172: M | E172: Břeclav | F172: CZ/M | G172: 15085 | H172: 3 | M172: =IF(ISERROR(VLOOKUP(B172,'Zebrik W'!$B$7:$L$1000,11,0)),"",IF(VLOOKUP(B172,'Zebrik W'!$B$7:$L$1000,11,0)=0,"--",VLOOKUP(B172,'Zebrik W'!$B$7:$L$1000,11,0))) -> 
A173: =RANK(G173,G:G) -> 167 | B173: Miroslav Koci | C173: 1961 | D173: M | E173: Žamberk | F173: CZ/C2 | G173: 14847 | H173: 3 | M173: =IF(ISERROR(VLOOKUP(B173,'Zebrik W'!$B$7:$L$1000,11,0)),"",IF(VLOOKUP(B173,'Zebrik W'!$B$7:$L$1000,11,0)=0,"--",VLOOKUP(B173,'Zebrik W'!$B$7:$L$1000,11,0))) -> 
A174: =RANK(G174,G:G) -> 168 | B174: Vit Prokop | C174: 1987 | D174: M | E174: Medlánky | F174: CZ/M | G174: 14826 | H174: 3 | M174: =IF(ISERROR(VLOOKUP(B174,'Zebrik W'!$B$7:$L$1000,11,0)),"",IF(VLOOKUP(B174,'Zebrik W'!$B$7:$L$1000,11,0)=0,"--",VLOOKUP(B174,'Zebrik W'!$B$7:$L$1000,11,0))) -> 
A175: =RANK(G175,G:G) -> 169 | B175: Martin Suchy | C175: 1969 | D175: M | E175: Hranice | F175: CZ/M | G175: 14805 | H175: 2 | M175: =IF(ISERROR(VLOOKUP(B175,'Zebrik W'!$B$7:$L$1000,11,0)),"",IF(VLOOKUP(B175,'Zebrik W'!$B$7:$L$1000,11,0)=0,"--",VLOOKUP(B175,'Zebrik W'!$B$7:$L$1000,11,0))) -> 
A176: =RANK(G176,G:G) -> 170 | B176: Petr Jiranek 63 | C176: 1962 | D176: M | E176: Toužim | F176: CZ/C1 | G176: 14746 | H176: 3 | M176: =IF(ISERROR(VLOOKUP(B176,'Zebrik W'!$B$7:$L$1000,11,0)),"",IF(VLOOKUP(B176,'Zebrik W'!$B$7:$L$1000,11,0)=0,"--",VLOOKUP(B176,'Zebrik W'!$B$7:$L$1000,11,0))) -> 
A177: =RANK(G177,G:G) -> 171 | B177: Roman Schotli | C177: 1970 | D177: M | E177: Hranice | F177: CZ/M | G177: 14743 | H177: 3 | M177: =IF(ISERROR(VLOOKUP(B177,'Zebrik W'!$B$7:$L$1000,11,0)),"",IF(VLOOKUP(B177,'Zebrik W'!$B$7:$L$1000,11,0)=0,"--",VLOOKUP(B177,'Zebrik W'!$B$7:$L$1000,11,0))) -> 
A178: =RANK(G178,G:G) -> 172 | B178: Marek Svancara | C178: 1976 | D178: M | E178: GAC Benešov | F178: CZ/C1 | G178: 14652 | H178: 2 | M178: =IF(ISERROR(VLOOKUP(B178,'Zebrik W'!$B$7:$L$1000,11,0)),"",IF(VLOOKUP(B178,'Zebrik W'!$B$7:$L$1000,11,0)=0,"--",VLOOKUP(B178,'Zebrik W'!$B$7:$L$1000,11,0))) -> 
A179: =RANK(G179,G:G) -> 173 | B179: Katerina Vancurova | C179: 2002 | D179: F | E179: Hranice | F179: CZ/M | G179: 14586 | H179: 3 | I179: Junior v roce 2025 | J179: Junior v roce 2026 | M179: =IF(ISERROR(VLOOKUP(B179,'Zebrik W'!$B$7:$L$1000,11,0)),"",IF(VLOOKUP(B179,'Zebrik W'!$B$7:$L$1000,11,0)=0,"--",VLOOKUP(B179,'Zebrik W'!$B$7:$L$1000,11,0))) -> --
A180: =RANK(G180,G:G) -> 174 | B180: Jan Zahradka | C180: 1981 | D180: M | E180: Hodkovice | F180: CZ/C2 | G180: 14522 | H180: 3 | M180: =IF(ISERROR(VLOOKUP(B180,'Zebrik W'!$B$7:$L$1000,11,0)),"",IF(VLOOKUP(B180,'Zebrik W'!$B$7:$L$1000,11,0)=0,"--",VLOOKUP(B180,'Zebrik W'!$B$7:$L$1000,11,0))) -> 
A181: =RANK(G181,G:G) -> 175 | B181: Lukas Koukal | C181: 1991 | D181: M | E181: Letkov | F181: CZ/C1 | G181: 14487 | H181: 2 | M181: =IF(ISERROR(VLOOKUP(B181,'Zebrik W'!$B$7:$L$1000,11,0)),"",IF(VLOOKUP(B181,'Zebrik W'!$B$7:$L$1000,11,0)=0,"--",VLOOKUP(B181,'Zebrik W'!$B$7:$L$1000,11,0))) -> 
A182: =RANK(G182,G:G) -> 176 | B182: Michal Vranek | C182: 1993 | D182: M | E182: Hosín | F182: CZ/C1 | G182: 14453 | H182: 3 | M182: =IF(ISERROR(VLOOKUP(B182,'Zebrik W'!$B$7:$L$1000,11,0)),"",IF(VLOOKUP(B182,'Zebrik W'!$B$7:$L$1000,11,0)=0,"--",VLOOKUP(B182,'Zebrik W'!$B$7:$L$1000,11,0))) -> 
A183: =RANK(G183,G:G) -> 177 | B183: Jan Zezula | C183: 1979 | D183: M | E183: Letňany | F183: CZ/C1 | G183: 14441 | H183: 3 | M183: =IF(ISERROR(VLOOKUP(B183,'Zebrik W'!$B$7:$L$1000,11,0)),"",IF(VLOOKUP(B183,'Zebrik W'!$B$7:$L$1000,11,0)=0,"--",VLOOKUP(B183,'Zebrik W'!$B$7:$L$1000,11,0))) -> 
A184: =RANK(G184,G:G) -> 178 | B184: Pavel Foldyna | C184: 1976 | D184: M | E184: Frýdlant | F184: CZ/M | G184: 14405 | H184: 2 | M184: =IF(ISERROR(VLOOKUP(B184,'Zebrik W'!$B$7:$L$1000,11,0)),"",IF(VLOOKUP(B184,'Zebrik W'!$B$7:$L$1000,11,0)=0,"--",VLOOKUP(B184,'Zebrik W'!$B$7:$L$1000,11,0))) -> 
A185: =RANK(G185,G:G) -> 179 | B185: Adam Sugl | C185: 1987 | D185: M | E185: Vyškov | F185: CZ/M | G185: 14351 | H185: 3 | M185: =IF(ISERROR(VLOOKUP(B185,'Zebrik W'!$B$7:$L$1000,11,0)),"",IF(VLOOKUP(B185,'Zebrik W'!$B$7:$L$1000,11,0)=0,"--",VLOOKUP(B185,'Zebrik W'!$B$7:$L$1000,11,0))) -> 
A186: =RANK(G186,G:G) -> 180 | B186: Pavel Haluza | C186: 1966 | D186: M | E186: Prostějov | F186: CZ/M | G186: 14184 | H186: 3 | M186: =IF(ISERROR(VLOOKUP(B186,'Zebrik W'!$B$7:$L$1000,11,0)),"",IF(VLOOKUP(B186,'Zebrik W'!$B$7:$L$1000,11,0)=0,"--",VLOOKUP(B186,'Zebrik W'!$B$7:$L$1000,11,0))) -> 
A187: =RANK(G187,G:G) -> 181 | B187: Karel Benisek 76 | C187: 1976 | D187: M | E187: Toužim | F187: CZ/C1 | G187: 13894 | H187: 2 | M187: =IF(ISERROR(VLOOKUP(B187,'Zebrik W'!$B$7:$L$1000,11,0)),"",IF(VLOOKUP(B187,'Zebrik W'!$B$7:$L$1000,11,0)=0,"--",VLOOKUP(B187,'Zebrik W'!$B$7:$L$1000,11,0))) -> 
A188: =RANK(G188,G:G) -> 182 | B188: Danes Grula | C188: 1961 | D188: M | E188: Medlánky | F188: CZ/M | G188: 13884 | H188: 2 | M188: =IF(ISERROR(VLOOKUP(B188,'Zebrik W'!$B$7:$L$1000,11,0)),"",IF(VLOOKUP(B188,'Zebrik W'!$B$7:$L$1000,11,0)=0,"--",VLOOKUP(B188,'Zebrik W'!$B$7:$L$1000,11,0))) -> 
A189: =RANK(G189,G:G) -> 183 | B189: Pavel Koudelka | C189: 1973 | D189: M | E189: Křižanov | F189: CZ/M | G189: 13866 | H189: 3 | M189: =IF(ISERROR(VLOOKUP(B189,'Zebrik W'!$B$7:$L$1000,11,0)),"",IF(VLOOKUP(B189,'Zebrik W'!$B$7:$L$1000,11,0)=0,"--",VLOOKUP(B189,'Zebrik W'!$B$7:$L$1000,11,0))) -> 
A190: =RANK(G190,G:G) -> 184 | B190: Lukas Hynek | C190: 1979 | D190: M | E190: Dvůr Králové | F190: CZ/C2 | G190: 13853 | H190: 2 | M190: =IF(ISERROR(VLOOKUP(B190,'Zebrik W'!$B$7:$L$1000,11,0)),"",IF(VLOOKUP(B190,'Zebrik W'!$B$7:$L$1000,11,0)=0,"--",VLOOKUP(B190,'Zebrik W'!$B$7:$L$1000,11,0))) -> 
A191: =RANK(G191,G:G) -> 185 | B191: Miroslav Sklenar | C191: 1964 | D191: M | E191: Žamberk | F191: CZ/C2 | G191: 13716 | H191: 3 | M191: =IF(ISERROR(VLOOKUP(B191,'Zebrik W'!$B$7:$L$1000,11,0)),"",IF(VLOOKUP(B191,'Zebrik W'!$B$7:$L$1000,11,0)=0,"--",VLOOKUP(B191,'Zebrik W'!$B$7:$L$1000,11,0))) -> 
A192: =RANK(G192,G:G) -> 186 | B192: Slavomir Piskaty 84 | C192: 1984 | D192: M | E192: Kunovice | F192: CZ/M | G192: 13704 | H192: 2 | M192: =IF(ISERROR(VLOOKUP(B192,'Zebrik W'!$B$7:$L$1000,11,0)),"",IF(VLOOKUP(B192,'Zebrik W'!$B$7:$L$1000,11,0)=0,"--",VLOOKUP(B192,'Zebrik W'!$B$7:$L$1000,11,0))) -> 
A193: =RANK(G193,G:G) -> 187 | B193: Jan Vavrin | C193: 1987 | D193: M | E193: Vysoké Mýto | F193: CZ/C2 | G193: 13689 | H193: 2 | M193: =IF(ISERROR(VLOOKUP(B193,'Zebrik W'!$B$7:$L$1000,11,0)),"",IF(VLOOKUP(B193,'Zebrik W'!$B$7:$L$1000,11,0)=0,"--",VLOOKUP(B193,'Zebrik W'!$B$7:$L$1000,11,0))) -> 
A194: =RANK(G194,G:G) -> 188 | B194: Matej Krestes | C194: 1986 | D194: M | E194: Slaný | F194: CZ/C1 | G194: 13618 | H194: 3 | M194: =IF(ISERROR(VLOOKUP(B194,'Zebrik W'!$B$7:$L$1000,11,0)),"",IF(VLOOKUP(B194,'Zebrik W'!$B$7:$L$1000,11,0)=0,"--",VLOOKUP(B194,'Zebrik W'!$B$7:$L$1000,11,0))) -> 
A195: =RANK(G195,G:G) -> 189 | B195: Jiri Krofta | C195: 1988 | D195: M | E195: Hosín | F195: CZ/C1 | G195: 13573 | H195: 3 | M195: =IF(ISERROR(VLOOKUP(B195,'Zebrik W'!$B$7:$L$1000,11,0)),"",IF(VLOOKUP(B195,'Zebrik W'!$B$7:$L$1000,11,0)=0,"--",VLOOKUP(B195,'Zebrik W'!$B$7:$L$1000,11,0))) -> 
A196: =RANK(G196,G:G) -> 190 | B196: Antonin Kutalek | C196: 1943 | D196: M | E196: Zábřeh | F196: CZ/M | G196: 13513 | H196: 3 | M196: =IF(ISERROR(VLOOKUP(B196,'Zebrik W'!$B$7:$L$1000,11,0)),"",IF(VLOOKUP(B196,'Zebrik W'!$B$7:$L$1000,11,0)=0,"--",VLOOKUP(B196,'Zebrik W'!$B$7:$L$1000,11,0))) -> 
A197: =RANK(G197,G:G) -> 191 | B197: Adam Hepal | C197: 2004 | D197: M | E197: Moravská Třebová | F197: CZ/M | G197: 13465 | H197: 3 | I197: Junior v roce 2025 | J197: Junior v roce 2026 | M197: =IF(ISERROR(VLOOKUP(B197,'Zebrik W'!$B$7:$L$1000,11,0)),"",IF(VLOOKUP(B197,'Zebrik W'!$B$7:$L$1000,11,0)=0,"--",VLOOKUP(B197,'Zebrik W'!$B$7:$L$1000,11,0))) -> 
A198: =RANK(G198,G:G) -> 192 | B198: Petr Starek | C198: 1974 | D198: M | E198: Zbraslavice | F198: CZ/C1 | G198: 13423 | H198: 2 | M198: =IF(ISERROR(VLOOKUP(B198,'Zebrik W'!$B$7:$L$1000,11,0)),"",IF(VLOOKUP(B198,'Zebrik W'!$B$7:$L$1000,11,0)=0,"--",VLOOKUP(B198,'Zebrik W'!$B$7:$L$1000,11,0))) -> 
A199: =RANK(G199,G:G) -> 193 | B199: Petra Piskata | C199: 1989 | D199: F | E199: Luhačovice | F199: CZ/M | G199: 13250 | H199: 2 | L199: RV 2025 | M199: =IF(ISERROR(VLOOKUP(B199,'Zebrik W'!$B$7:$L$1000,11,0)),"",IF(VLOOKUP(B199,'Zebrik W'!$B$7:$L$1000,11,0)=0,"--",VLOOKUP(B199,'Zebrik W'!$B$7:$L$1000,11,0))) -> WRV 2025
A200: =RANK(G200,G:G) -> 194 | B200: Filip Mrstny | C200: 2006 | D200: M | E200: Beroun | F200: CZ/C1 | G200: 13239 | H200: 2 | I200: =IF(C200="(prázdné)","",IF(($I$4-C200)>25,"","Junior v roce "&$I$4)) -> Junior v roce 2025 | J200: =IF(C200="(prázdné)","",IF(($J$4-C200)>25,"","Junior v roce "&$J$4)) -> Junior v roce 2026 | M200: =IF(ISERROR(VLOOKUP(B200,'Zebrik W'!$B$7:$L$1000,11,0)),"",IF(VLOOKUP(B200,'Zebrik W'!$B$7:$L$1000,11,0)=0,"--",VLOOKUP(B200,'Zebrik W'!$B$7:$L$1000,11,0))) -> 
A201: =RANK(G201,G:G) -> 195 | B201: Jan Kohout | C201: 1970 | D201: M | E201: Žamberk | F201: CZ/C2 | G201: 13193 | H201: 2 | M201: =IF(ISERROR(VLOOKUP(B201,'Zebrik W'!$B$7:$L$1000,11,0)),"",IF(VLOOKUP(B201,'Zebrik W'!$B$7:$L$1000,11,0)=0,"--",VLOOKUP(B201,'Zebrik W'!$B$7:$L$1000,11,0))) -> 
... 251 more rows

Sheet Zebrik W
B1: ="Ženský Žebřík pilotek plachtařek PK AeČR "&A6 -> Ženský Žebřík pilotek plachtařek PK AeČR 2024 | I1: ='Zebrik G'!I1 -> 2025-02-05 | J1: Rev. | K1: ='Zebrik G'!K1 -> 03 | L1: ='Zebrik G'!L1 -> Final: opravy od soutěžících, přidáno WGC 2024 v Uvalde, odstraněno HOP 2024
B3: W | C3: x | I3: Juniorka v roce: | J3: Juniorka v roce: | K3: ="W Repre družstvo "&I4 -> W Repre družstvo 2025 | L3: ="W Repre výběr "&I4 -> W Repre výběr 2025 | M3: Poznámka
I4: =A6+1 -> 2025 | J4: =A6+2 -> 2026 | K4: (WRD) | L4: (WRV)
A5: Pořadí | G5: Data | I5: =COUNTIF(I7:I489,"Juniorka v roce "&$I$4) -> 5 | J5: =COUNTIF(J7:J489,"Juniorka v roce "&$J$4) -> 5 | K5: =COUNTIF(K7:K489,"WRD "&$I$4) -> 0 | L5: =COUNTIF(L7:L489,"WRV "&$I$4) -> 11 | M5: =COUNTIF(M7:M489,"<>") -> 0
A6: ='Zebrik G'!A6 -> 2024 | B6: Jméno | C6: Rok narození | D6: M/F | E6: Aeroklub | F6: Region | G6: Součet z Bi×Kinp | H6: Počet W
A7: =RANK(G7,G:G) -> 1 | B7: Alena Netusilova | C7: 1970 | D7: F | E7: Zbraslavice | F7: CZ/C1 | G7: 29868 | H7: 3 | I7: =IF(C7="(prázdné)","",IF(($I$4-C7)>25,"","Juniorka v roce "&$I$4)) ->  | J7: =IF(C7="(prázdné)","",IF(($J$4-C7)>25,"","Juniorka v roce "&$J$4)) ->  | L7: WRV 2025
A8: 2 | B8: Barbora Moravcova | C8: 1994 | D8: F | E8: Zbraslavice | F8: CZ/C1 | G8: 29377 | H8: 3 | I8: =IF(C8="(prázdné)","",IF(($I$4-C8)>25,"","Juniorka v roce "&$I$4)) ->  | J8: =IF(C8="(prázdné)","",IF(($J$4-C8)>25,"","Juniorka v roce "&$J$4)) ->  | L8: WRV 2025
A9: 3 | B9: Michaela Rendlova | C9: 2004 | D9: F | E9: Toužim | F9: CZ/C1 | G9: 28854 | H9: 3 | I9: Juniorka v roce 2025 | J9: Juniorka v roce 2026 | L9: WRV 2025
A10: 4 | B10: Hana Treslova | C10: 1991 | D10: F | E10: Raná | F10: CZ/C2 | G10: 27964 | H10: 3 | L10: WRV 2025
A11: 5 | B11: Tereza Koubkova | C11: 1999 | D11: F | E11: Vysoké Mýto | F11: CZ/C2 | G11: 27515 | H11: 3 | L11: WRV 2025
A12: 6 | B12: Michaela Krizova | C12: 2001 | D12: F | E12: Přibyslav | F12: CZ/C2 | G12: 27106 | H12: 3 | I12: Juniorka v roce 2025 | J12: Juniorka v roce 2026 | L12: WRV 2025
A13: 7 | B13: Dana Novakova | C13: 1965 | D13: F | E13: Mladá Boleslav | F13: CZ/C1 | G13: 26952 | H13: 3 | L13: WRV 2025
A14: 8 | B14: Petra Piskata | C14: 1989 | D14: F | E14: Luhačovice | F14: CZ/M | G14: 26436 | H14: 3 | L14: WRV 2025
A15: 9 | B15: Jana Treslova | C15: 1963 | D15: F | E15: Raná | F15: CZ/C2 | G15: 25204 | H15: 3 | L15: WRV 2025
A16: 10 | B16: Katerina Vojtova | C16: 1983 | D16: F | E16: Slaný | F16: CZ/C1 | G16: 20303 | H16: 3 | L16: WRV 2025
A17: 11 | B17: Eliska Kudejova | C17: 2006 | D17: F | E17: Strakonice | F17: CZ/C1 | G17: 19318 | H17: 3 | I17: Juniorka v roce 2025 | J17: Juniorka v roce 2026
A18: 12 | B18: Pavlina Horackova | C18: 1965 | D18: F | E18: Šumperk | F18: CZ/M | G18: 17765 | H18: 3
A19: 13 | B19: Olga Mokosova | C19: 1970 | D19: F | E19: Jihlava | F19: CZ/M | G19: 15852 | H19: 3
A20: 14 | B20: Katerina Vancurova | C20: 2002 | D20: F | E20: Hranice | F20: CZ/M | G20: 14586 | H20: 3 | I20: Juniorka v roce 2025 | J20: Juniorka v roce 2026
A21: 15 | B21: Jana Veprekova | C21: 1961 | D21: F | E21: Dvůr Králové | F21: CZ/C2 | G21: 9314 | H21: 1
A22: 16 | B22: Klara Teichmannova | C22: 1993 | D22: F | E22: Hronov | F22: CZ/C2 | G22: 7851 | H22: 1 | L22: WRV 2025
A23: 17 | B23: Yvona Vyhnankova | C23: 1963 | D23: F | E23: Olomouc | F23: CZ/M | G23: 7661 | H23: 3
A24: 18 | B24: Anna Bordovska | C24: 1989 | D24: F | E24: Mladá Boleslav | F24: CZ/C1 | G24: 7324 | H24: 1
A25: 19 | B25: Jana Mezerova | C25: 1975 | D25: F | E25: Raná | F25: CZ/C2 | G25: 6542 | H25: 2
A26: 20 | B26: Sarka Lochova | C26: 1966 | D26: F | E26: Šumperk | F26: CZ/M | G26: 5818 | H26: 2
A27: 21 | B27: Tereza Ludvikova | C27: 1997 | D27: F | E27: Jaroměř | F27: CZ/C2 | G27: 5772 | H27: 1
A28: 22 | B28: Tereza Novakova | C28: 1993 | D28: F | E28: Chrudim | F28: CZ/C2 | G28: 5377 | H28: 2
A29: 23 | B29: Anna Lanzendorfova | C29: 2005 | D29: F | E29: Letkov | F29: CZ/C1 | G29: 4981 | H29: 1 | I29: Juniorka v roce 2025 | J29: Juniorka v roce 2026
A30: 24 | B30: Linda Vasatova | C30: 1990 | D30: F | E30: Mladá Boleslav | F30: CZ/C1 | G30: 4951 | H30: 1
A31: 25 | B31: Eva Klapkova | C31: 1993 | D31: F | E31: Raná | F31: CZ/C2 | G31: 4620 | H31: 2
A32: 26 | B32: Marie Vesela | C32: 1999 | D32: F | E32: Staňkov | F32: CZ/C1 | G32: 2222 | H32: 2
I33: =IF(C33="(prázdné)","",IF(($I$4-C33)>25,"","Juniorka v roce "&$I$4)) ->  | J33: =IF(C33="(prázdné)","",IF(($J$4-C33)>25,"","Juniorka v roce "&$J$4)) -> 

Sheet KB PMRg 2022
A1: PMRg 2022 - Hodkovice - Korigované body
A2: Pořadí v KB | B2: Jméno | C2: Rok narození | D2: M/F | E2: Aeroklub | F2: Region | G2: Soutěž | H2: Pořadí ve třídě | I2: Body ve třídě | J2: Bi | K2: Typ | L2: CN | M2: Junior
A3: =RANK(J3,J:J) -> 1 | B3: Michal Lesinger | C3: =VLOOKUP(B3,Pilot,2,0) -> 1966 | D3: =VLOOKUP(B3,Pilot,5,0) -> M | E3: =VLOOKUP(B3,Pilot,3,0) -> Moravská Třebová | F3: =VLOOKUP(B3,Pilot,4,0) -> CZ/M | G3: PMRg 2022 - Klub | H3: 1 | I3: 3948 | J3: 10000 | K3: ASW 20 | L3: LL | M3: =IF(ISERROR(VLOOKUP(B3,Pilot,6,0)),"Není v databázi",VLOOKUP(B3,Pilot,6,0)) -> 
A4: 1 | B4: Lukas Capek | C4: 1992 | D4: M | E4: Letňany | F4: CZ/C1 | G4: PMRg 2022 - Kombi | H4: 1 | I4: 3354 | J4: 10000 | K4: Mosquito | L4: LC
A5: 3 | B5: Jiri Kusbach | C5: 1959 | D5: M | E5: Luhačovice | F5: CZ/M | G5: PMRg 2022 - Klub | H5: 2 | I5: 3831 | J5: 9543 | K5: KKB-15E FES | L5: B
A6: 4 | B6: Jaroslav Potmesil | C6: 1964 | D6: M | E6: Zbraslavice | F6: CZ/C1 | G6: PMRg 2022 - Kombi | H6: 2 | I6: 2942 | J6: 8807 | K6: HpH 304 TS Twin Shark | L6: TS
A7: 5 | B7: Jan Smaha | C7: 1958 | D7: M | E7: Česká Lípa | F7: CZ/C2 | G7: PMRg 2022 - Klub | H7: 3 | I7: 3458 | J7: 8631 | K7: ASW 15 B | L7: CW
A8: 6 | B8: Lukas Maly | C8: 1998 | D8: M | E8: Vysoké Mýto | F8: CZ/C2 | G8: PMRg 2022 - Klub | H8: 4 | I8: 3447 | J8: 8362 | K8: Discus b | L8: 65
A9: 7 | B9: Jiri Stepanek | C9: 1956 | D9: M | E9: Moravská Třebová | F9: CZ/M | G9: PMRg 2022 - Klub | H9: 5 | I9: 3387 | J9: 8005 | K9: ASW 15 B | L9: LE
A10: 8 | B10: Martin Stepanek | C10: 1987 | D10: M | E10: Moravská Třebová | F10: CZ/M | G10: PMRg 2022 - Klub | H10: 6 | I10: 3361 | J10: 7709 | K10: ASW 19 B | L10: AE
A11: 9 | B11: Petr Hora | C11: 1948 | D11: M | E11: Hodkovice | F11: CZ/C2 | G11: PMRg 2022 - Kombi | H11: 3 | I11: 2515 | J11: 7582 | K11: HpH 304 MS Shark | L11: B1
A12: 10 | B12: Tomas Kulhavy | C12: 2001 | D12: M | E12: Liberec | F12: CZ/C2 | G12: PMRg 2022 - Kombi | H12: 4 | I12: 2500 | J12: 7218 | K12: HpH 304 CZ 17.4m | L12: IH | M12: Junior v roce 2025
A13: 11 | B13: Tomas Hynek | C13: 2002 | D13: M | E13: Dvůr Králové | F13: CZ/C2 | G13: PMRg 2022 - Klub | H13: 7 | I13: 3190 | J13: 7156 | K13: DG 200 | L13: HL | M13: Junior v roce 2025
A14: 12 | B14: Pavel Koudelka | C14: 1973 | D14: M | E14: Křižanov | F14: CZ/M | G14: PMRg 2022 - Klub | H14: 8 | I14: 3156 | J14: 6846 | K14: Std. Cirrus | L14: ZL
A15: 13 | B15: Antonin Kutalek | C15: 1943 | D15: M | E15: Zábřeh | F15: CZ/M | G15: PMRg 2022 - Kombi | H15: 5 | I15: 2340 | J15: 6550 | K15: LAK-17A T 18m | L15: GL
A16: 14 | B16: Michaela Krizova | C16: 2001 | D16: F | E16: Přibyslav | F16: CZ/C2 | G16: PMRg 2022 - Klub | H16: 9 | I16: 2951 | J16: 6232 | K16: ASW 15 B | L16: BE | M16: Junior v roce 2025
A17: 15 | B17: Pavlina Horackova | C17: 1965 | D17: F | E17: Šumperk | F17: CZ/M | G17: PMRg 2022 - Klub | H17: 10 | I17: 2618 | J17: 5392 | K17: SZD-48 Jantar Std. 2 | L17: SU
A18: 16 | B18: Katerina Vancurova | C18: 2002 | D18: F | E18: Hranice | F18: CZ/M | G18: PMRg 2022 - Klub | H18: 11 | I18: 2331 | J18: 4633 | K18: Discus b | L18: HD | M18: Junior v roce 2025
A19: 17 | B19: Radek Zima 78 | C19: 1978 | D19: M | E19: Hodkovice | F19: CZ/C2 | G19: PMRg 2022 - Kombi | H19: 6 | I19: 1372 | J19: 4197 | K19: ASG 29 E 18m | L19: XZ
A20: 18 | B20: Jan Florian | C20: 1992 | D20: M | E20: Zbraslavice | F20: CZ/C1 | G20: PMRg 2022 - Klub | H20: 12 | I20: 2188 | J20: 4129 | K20: Std. Cirrus | L20: C1
A21: 19 | B21: Jiri Krofta | C21: 1988 | D21: M | E21: Hosín | F21: CZ/C1 | G21: PMRg 2022 - Klub | H21: 13 | I21: 1904 | J21: 3376 | K21: Std. Cirrus | L21: YU
A22: 20 | B22: Jaromir Macoun | C22: 1999 | D22: M | E22: Jičín | F22: CZ/C2 | G22: PMRg 2022 - Kombi | H22: 7 | I22: 225 | J22: 1470 | K22: LS 8 | L22: EU
A23: 21 | B23: Ivan Tvrdik | C23: 1997 | D23: M | E23: Letňany | F23: CZ/C1 | G23: PMRg 2022 - Kombi | H23: 8 | I23: 221 | J23: 1128 | K23: ASW 20 16.6m | L23: NW
A24: 22 | B24: Jan Drbohlav | C24: 1999 | D24: M | E24: Hodkovice | F24: CZ/C2 | G24: PMRg 2022 - Kombi | H24: 9 | I24: 1 | J24: 335 | K24: G 103 Twin Astir | L24: BL
A25: 23 | B25: Vojtech Hajek | C25: 1987 | D25: M | E25: Mladá Boleslav | F25: CZ/C1 | G25: PMRg 2022 - Kombi | H25: 10 | I25: 0 | J25: 0 | K25: Duo Discus | L25: 777
A26: 23 | B26: Karel Novak | C26: 1993 | D26: M | E26: Mladá Boleslav | F26: CZ/C1 | G26: PMRg 2022 - Kombi | H26: 10 | I26: 0 | J26: 0 | K26: LS 8 | L26: ID

Sheet KB PMRg 2023
A1: PMRg 2023 - Hosín - Korigované body
A2: Pořadí v KB | B2: Jméno | C2: Rok narození | D2: M/F | E2: Aeroklub | F2: Region | G2: Soutěž | H2: Pořadí ve třídě | I2: Body ve třídě | J2: Bi | K2: Typ | L2: CN | M2: Junior
A3: =RANK(J3,J:J) -> 1 | B3: Pavel Rericha | C3: =VLOOKUP(B3,Pilot,2,0) -> 1967 | D3: =VLOOKUP(B3,Pilot,5,0) -> M | E3: =VLOOKUP(B3,Pilot,3,0) -> Moravská Třebová | F3: =VLOOKUP(B3,Pilot,4,0) -> CZ/M | G3: PMRg 2023 - Klub | H3: 1 | I3: 8730 | J3: 10000 | K3: ASW-19B | L3: NO | M3: =IF(ISERROR(VLOOKUP(B3,Pilot,6,0)),"Není v databázi",VLOOKUP(B3,Pilot,6,0)) -> 
A4: 1 | B4: Lukas Kriz | C4: =VLOOKUP(B4,Pilot,2,0) -> 2003 | D4: =VLOOKUP(B4,Pilot,5,0) -> M | E4: =VLOOKUP(B4,Pilot,3,0) -> Křižanov | F4: =VLOOKUP(B4,Pilot,4,0) -> CZ/M | G4: PMRg, PMČRj 2023 - Kombi | H4: 1 | I4: 9417 | J4: 10000 | K4: LS 8 15m | L4: AU | M4: Junior v roce 2025
A5: 3 | B5: Jaromir Macoun | C5: 1999 | D5: M | E5: Jičín | F5: CZ/C2 | G5: PMRg, PMČRj 2023 - Kombi | H5: 2 | I5: 9221 | J5: 9554 | K5: LS 8A | L5: EU
A6: 4 | B6: Jan Louda | C6: 1986 | D6: M | E6: Mladá Boleslav | F6: CZ/C1 | G6: PMRg 2023 - Klub | H6: 2 | I6: 8448 | J6: 9543 | K6: ASW-19 | L6: XS
A7: 5 | B7: Josef Busek | C7: 1967 | D7: M | E7: Hosín | F7: CZ/C1 | G7: PMRg, PMČRj 2023 - Kombi | H7: 3 | I7: 8601 | J7: 8793 | K7: Duo Discus | L7: BB
A8: 6 | B8: Marek Svancara | C8: 1976 | D8: M | E8: GAC Benešov | F8: CZ/C1 | G8: PMRg 2023 - Klub | H8: 3 | I8: 7660 | J8: 8681 | K8: Std. Cirrus | L8: GT
A9: 7 | B9: Jan Smaha | C9: 1958 | D9: M | E9: Česká Lípa | F9: CZ/C2 | G9: PMRg 2023 - Klub | H9: 4 | I9: 7225 | J9: 8101 | K9: ASW-15B | L9: CW
A10: 8 | B10: Théo Manfredi | E10: Association Aéronautique du Val d\'Oise | F10: FR | G10: PMRg, PMČRj 2023 - Kombi | H10: 4 | I10: 7258 | J10: 7495 | K10: LAK-17A WL 15m | L10: LE | M10: Není v databázi
A11: 9 | B11: Jaromir Pauer | C11: =VLOOKUP(B11,Pilot,2,0) -> 1974 | D11: =VLOOKUP(B11,Pilot,5,0) -> M | E11: =VLOOKUP(B11,Pilot,3,0) -> Hosín | F11: =VLOOKUP(B11,Pilot,4,0) -> CZ/C1 | G11: PMRg, PMČRj 2023 - Kombi | H11: 5 | I11: 6880 | J11: 6914 | K11: Ventus B 16.6m WL | L11: 7F
A12: 10 | B12: Petr Rozhon | C12: 1972 | D12: M | E12: Hosín | F12: CZ/C1 | G12: PMRg 2023 - Klub | H12: 5 | I12: 5980 | J12: 6872 | K12: VSO-10 | L12: 9
A13: 11 | B13: Pavel Koudelka | C13: 1973 | D13: M | E13: Křižanov | F13: CZ/M | G13: PMRg 2023 - Klub | H13: 6 | I13: 5915 | J13: 6589 | K13: STD. Cirrus | L13: ZL
A14: 12 | B14: Michael Fik | C14: 1972 | D14: M | E14: Strakonice | F14: CZ/C1 | G14: PMRg, PMČRj 2023 - Kombi | H14: 6 | I14: 6702 | J14: 6482 | K14: Ventus 2c | L14: ZR
A15: 13 | B15: Jiri Krofta | C15: 1988 | D15: M | E15: Hosín | F15: CZ/C1 | G15: PMRg 2023 - Klub | H15: 7 | I15: 5909 | J15: 6353 | K15: Std. Cirrus | L15: UY
A16: 14 | B16: Michal Vranek | C16: 1993 | D16: M | E16: Hosín | F16: CZ/C1 | G16: PMRg 2023 - Klub | H16: 8 | I16: 5599 | J16: 5874 | K16: DG-100 | L16: 8W
A17: 15 | B17: Karel Mares | C17: 1974 | D17: M | E17: Slaný | F17: CZ/C1 | G17: PMRg, PMČRj 2023 - Kombi | H17: 7 | I17: 5894 | J17: 5581 | K17: Duo Discus XT | L17: DD
A18: 16 | B18: Miloslav Hulmak | C18: 1963 | D18: M | E18: Hosín | F18: CZ/C1 | G18: PMRg 2023 - Klub | H18: 9 | I18: 4969 | J18: 5138 | K18: ASW-15B | L18: HH
A19: 17 | B19: Radek Zima 78 | C19: 1978 | D19: M | E19: Hodkovice | F19: CZ/C2 | G19: PMRg, PMČRj 2023 - Kombi | H19: 8 | I19: 5577 | J19: 5046 | K19: DG 500 22m | L19: YA
A20: 18 | B20: Daniel Marek | C20: 1983 | D20: M | E20: Hosín | F20: CZ/C1 | G20: PMRg 2023 - Klub | H20: 10 | I20: 4846 | J20: 4809 | K20: Std. Cirrus | L20: XII
A21: 19 | B21: Frantisek Suna | C21: 1983 | D21: M | E21: Hosín | F21: CZ/C1 | G21: PMRg 2023 - Klub | H21: 11 | I21: 4331 | J21: 4165 | K21: DG-100 | L21: 78
A22: 20 | B22: Peter Janoska | E22: Nitra | F22: SK | G22: PMRg, PMČRj 2023 - Kombi | H22: 9 | I22: 4662 | J22: 4065 | K22: LS 6C /17,5m | L22: N6 | M22: Není v databázi
A23: 21 | B23: Michal Hemrle | C23: =VLOOKUP(B23,Pilot,2,0) -> 1974 | D23: =VLOOKUP(B23,Pilot,5,0) -> M | E23: =VLOOKUP(B23,Pilot,3,0) -> Česká Lípa | F23: =VLOOKUP(B23,Pilot,4,0) -> CZ/C2 | G23: PMRg, PMČRj 2023 - Kombi | H23: 10 | I23: 4036 | J23: 3300 | K23: ASG 29 Es 18m | L23: ET
A24: 22 | B24: Radoslav Pur | C24: 1973 | D24: M | E24: Hosín | F24: CZ/C1 | G24: PMRg 2023 - Klub | H24: 12 | I24: 3358 | J24: 3154 | K24: DG-200 | L24: EK
A25: 23 | B25: Jiri Holcman | C25: 1976 | D25: M | E25: Hosín | F25: CZ/C1 | G25: PMRg 2023 - Klub | H25: 13 | I25: 2234 | J25: 2022 | K25: ASW-19 | L25: BO
A26: 24 | B26: Tomas Vaclavik | C26: 1974 | D26: M | E26: Hosín | F26: CZ/C1 | G26: PMRg, PMČRj 2023 - Kombi | H26: 11 | I26: 1238 | J26: 920 | K26: LAK-12 | L26: 12
A27: 25 | B27: Petr Sochor | C27: 1986 | D27: M | E27: Hosín | F27: CZ/C1 | G27: PMRg 2023 - Klub | H27: 14 | I27: 0 | J27: 0 | K27: ASW-15B | L27: 6Y

Sheet KB PMRg 2024
A1: PMRg 2024 - Hodkovice - Korigované body
A2: Pořadí v KB | B2: Jméno | C2: Rok narození | D2: M/F | E2: Aeroklub | F2: Region | G2: Soutěž | H2: Pořadí ve třídě | I2: Body ve třídě | J2: Bi | K2: Typ | L2: CN | M2: Junior
A3: =RANK(J3,J:J) -> 1 | B3: Jan Hruska | C3: =VLOOKUP(B3,Pilot,2,0) -> 1988 | D3: =VLOOKUP(B3,Pilot,5,0) -> M | E3: =VLOOKUP(B3,Pilot,3,0) -> Tábor | F3: =VLOOKUP(B3,Pilot,4,0) -> CZ/C1 | G3: PMRg 2024 - Klub | H3: 1 | I3: 1293 | J3: 10000 | K3: ASW 15 B | L3: LF | M3: =IF(ISERROR(VLOOKUP(B3,Pilot,6,0)),"Není v databázi",VLOOKUP(B3,Pilot,6,0)) -> 
A4: =RANK(J4,J:J) -> 1 | B4: Petr Panek | C4: 1975 | D4: M | E4: Dvůr Králové | F4: CZ/C2 | G4: PMRg 2024 - Kombi | H4: 1 | I4: 1018 | J4: 10000 | K4: JS-1b EVO JET | L4: IGC | M4: =IF(ISERROR(VLOOKUP(B4,Pilot,6,0)),"Není v databázi",VLOOKUP(B4,Pilot,6,0)) -> 
A5: =RANK(J5,J:J) -> 3 | B5: Lukas Capek | C5: 1992 | D5: M | E5: Letňany | F5: CZ/C1 | G5: PMRg 2024 - Klub | H5: 2 | I5: 1292 | J5: 9858 | K5: Mosquito | L5: LC | M5: =IF(ISERROR(VLOOKUP(B5,Pilot,6,0)),"Není v databázi",VLOOKUP(B5,Pilot,6,0)) -> 
A6: =RANK(J6,J:J) -> 4 | B6: Radek Zima 78 | C6: 1978 | D6: M | E6: Hodkovice | F6: CZ/C2 | G6: PMRg 2024 - Kombi | H6: 2 | I6: 1004 | J6: 9604 | K6: ASG 29 E 18m | L6: XZ | M6: =IF(ISERROR(VLOOKUP(B6,Pilot,6,0)),"Není v databázi",VLOOKUP(B6,Pilot,6,0)) -> 
A7: =RANK(J7,J:J) -> 5 | B7: Leos Strnadek | C7: 1983 | D7: M | E7: Hodkovice | F7: CZ/C2 | G7: PMRg 2024 - Klub | H7: 3 | I7: 1259 | J7: 9543 | K7: ASW 19 B | L7: XP | M7: =IF(ISERROR(VLOOKUP(B7,Pilot,6,0)),"Není v databázi",VLOOKUP(B7,Pilot,6,0)) -> 
A8: =RANK(J8,J:J) -> 5 | B8: Pavlina Horackova | C8: 1965 | D8: F | E8: Šumperk | F8: CZ/M | G8: PMRg 2024 - Klub | H8: 3 | I8: 1259 | J8: 9543 | K8: SZD-48 Jantar Std. 2 | L8: SU | M8: =IF(ISERROR(VLOOKUP(B8,Pilot,6,0)),"Není v databázi",VLOOKUP(B8,Pilot,6,0)) -> 
A9: =RANK(J9,J:J) -> 7 | B9: Michaela Rendlova | C9: 2004 | D9: F | E9: Toužim | F9: CZ/C1 | G9: PMRg 2024 - Kombi | H9: 3 | I9: 916 | J9: 8699 | K9: LS 8 | L9: W8 | M9: =IF(ISERROR(VLOOKUP(B9,Pilot,6,0)),"Není v databázi",VLOOKUP(B9,Pilot,6,0)) -> Junior v roce 2025
A10: =RANK(J10,J:J) -> 8 | B10: Michal Kares | C10: 1987 | D10: M | E10: Ústí nad Orlicí | F10: CZ/C2 | G10: PMRg 2024 - Klub | H10: 5 | I10: 1103 | J10: 8426 | K10: Std. Cirrus | L10: J3 | M10: =IF(ISERROR(VLOOKUP(B10,Pilot,6,0)),"Není v databázi",VLOOKUP(B10,Pilot,6,0)) -> 
A11: =RANK(J11,J:J) -> 9 | B11: Jiri Maier 66 | C11: 1966 | D11: M | E11: Raná | F11: CZ/C2 | G11: PMRg 2024 - Klub | H11: 6 | I11: 1096 | J11: 8252 | K11: ASW 24 E | L11: JM | M11: =IF(ISERROR(VLOOKUP(B11,Pilot,6,0)),"Není v databázi",VLOOKUP(B11,Pilot,6,0)) -> 
A12: =RANK(J12,J:J) -> 10 | B12: Katerina Vojtova | C12: 1983 | D12: F | E12: Slaný | F12: CZ/C1 | G12: PMRg 2024 - Klub | H12: 7 | I12: 1070 | J12: 7975 | K12: Std. Cirrus | L12: KAC | M12: =IF(ISERROR(VLOOKUP(B12,Pilot,6,0)),"Není v databázi",VLOOKUP(B12,Pilot,6,0)) -> 
A13: =RANK(J13,J:J) -> 11 | B13: Jaromir Macoun | C13: 1999 | D13: M | E13: Jičín | F13: CZ/C2 | G13: PMRg 2024 - Kombi | H13: 4 | I13: 832 | J13: 7821 | K13: LS 8 | L13: EU | M13: =IF(ISERROR(VLOOKUP(B13,Pilot,6,0)),"Není v databázi",VLOOKUP(B13,Pilot,6,0)) -> 
A14: =RANK(J14,J:J) -> 12 | B14: Jiri Hula | C14: 1973 | D14: M | E14: Slaný | F14: CZ/C1 | G14: PMRg 2024 - Klub | H14: 8 | I14: 1062 | J14: 7795 | K14: Std. Cirrus WL | L14: IT | M14: =IF(ISERROR(VLOOKUP(B14,Pilot,6,0)),"Není v databázi",VLOOKUP(B14,Pilot,6,0)) -> 
A15: =RANK(J15,J:J) -> 13 | B15: Zdenek Balcarek | C15: 1967 | D15: M | E15: Kroměříž | F15: CZ/M | G15: PMRg 2024 - Klub | H15: 9 | I15: 1035 | J15: 7512 | K15: Discus b | L15: AI | M15: =IF(ISERROR(VLOOKUP(B15,Pilot,6,0)),"Není v databázi",VLOOKUP(B15,Pilot,6,0)) -> 
A16: =RANK(J16,J:J) -> 14 | B16: Lukas Kriz | C16: 2003 | D16: M | E16: Křižanov | F16: CZ/M | G16: PMRg 2024 - Kombi | H16: 5 | I16: 820 | J16: 7439 | K16: LS 8 | L16: AU | M16: =IF(ISERROR(VLOOKUP(B16,Pilot,6,0)),"Není v databázi",VLOOKUP(B16,Pilot,6,0)) -> Junior v roce 2025
A17: =RANK(J17,J:J) -> 15 | B17: Jan Smaha | C17: 1958 | D17: M | E17: Česká Lípa | F17: CZ/C2 | G17: PMRg 2024 - Klub | H17: 10 | I17: 1000 | J17: 7186 | K17: ASW 15 B | L17: CW | M17: =IF(ISERROR(VLOOKUP(B17,Pilot,6,0)),"Není v databázi",VLOOKUP(B17,Pilot,6,0)) -> 
A18: =RANK(J18,J:J) -> 16 | B18: Stanislav Poslusny | C18: 1965 | D18: M | E18: GAC Benešov | F18: CZ/C1 | G18: PMRg 2024 - Klub | H18: 11 | I18: 974 | J18: 6909 | K18: Std. Cirrus | L18: SP | M18: =IF(ISERROR(VLOOKUP(B18,Pilot,6,0)),"Není v databázi",VLOOKUP(B18,Pilot,6,0)) -> 
A19: =RANK(J19,J:J) -> 17 | B19: Vaclav Zak | C19: 1962 | D19: M | E19: GAC Benešov | F19: CZ/C1 | G19: PMRg 2024 - Klub | H19: 12 | I19: 944 | J19: 6611 | K19: Std. Cirrus | L19: TSI | M19: =IF(ISERROR(VLOOKUP(B19,Pilot,6,0)),"Není v databázi",VLOOKUP(B19,Pilot,6,0)) -> 
A20: =RANK(J20,J:J) -> 18 | B20: Matej Krestes | C20: 1986 | D20: M | E20: Slaný | F20: CZ/C1 | G20: PMRg 2024 - Klub | H20: 13 | I20: 912 | J20: 6301 | K20: Std. Cirrus | L20: CON | M20: =IF(ISERROR(VLOOKUP(B20,Pilot,6,0)),"Není v databázi",VLOOKUP(B20,Pilot,6,0)) -> 
A21: =RANK(J21,J:J) -> 19 | B21: Jaroslav Potmesil | C21: 1964 | D21: M | E21: Zbraslavice | F21: CZ/C1 | G21: PMRg 2024 - Kombi | H21: 6 | I21: 626 | J21: 5805 | K21: TwinShark | L21: TS | M21: =IF(ISERROR(VLOOKUP(B21,Pilot,6,0)),"Není v databázi",VLOOKUP(B21,Pilot,6,0)) -> 
A22: =RANK(J22,J:J) -> 20 | B22: Matej Bartos | C22: 1998 | D22: M | E22: Hodkovice | F22: CZ/C2 | G22: PMRg 2024 - Klub | H22: 14 | I22: 832 | J22: 5732 | K22: ASW 15 B | L22: BF | M22: =IF(ISERROR(VLOOKUP(B22,Pilot,6,0)),"Není v databázi",VLOOKUP(B22,Pilot,6,0)) -> 
A23: =RANK(J23,J:J) -> 21 | B23: Matej Plch | C23: 1987 | D23: M | E23: Letkov | F23: CZ/C1 | G23: PMRg 2024 - Kombi | H23: 7 | I23: 588 | J23: 5243 | K23: LS 8 18m | L23: EJ | M23: =IF(ISERROR(VLOOKUP(B23,Pilot,6,0)),"Není v databázi",VLOOKUP(B23,Pilot,6,0)) -> 
A24: =RANK(J24,J:J) -> 22 | B24: Jiri Krofta | C24: 1988 | D24: M | E24: Hosín | F24: CZ/C1 | G24: PMRg 2024 - Klub | H24: 15 | I24: 759 | J24: 5200 | K24: Std. Cirrus | L24: UB | M24: =IF(ISERROR(VLOOKUP(B24,Pilot,6,0)),"Není v databázi",VLOOKUP(B24,Pilot,6,0)) -> 
A25: =RANK(J25,J:J) -> 23 | B25: David Riha | C25: 1983 | D25: M | E25: Vlašim | F25: CZ/C1 | G25: PMRg 2024 - Klub | H25: 16 | I25: 744 | J25: 4982 | K25: ASW 15 B | L25: XE | M25: =IF(ISERROR(VLOOKUP(B25,Pilot,6,0)),"Není v databázi",VLOOKUP(B25,Pilot,6,0)) -> 
A26: =RANK(J26,J:J) -> 24 | B26: Pavel Svetlik | C26: 1968 | D26: M | E26: Kunovice | F26: CZ/M | G26: PMRg 2024 - Kombi | H26: 8 | I26: 581 | J26: 4895 | K26: DG 500 22m | L26: YA | M26: =IF(ISERROR(VLOOKUP(B26,Pilot,6,0)),"Není v databázi",VLOOKUP(B26,Pilot,6,0)) -> 
A27: =RANK(J27,J:J) -> 25 | B27: Premysl Muzik | C27: 1990 | D27: M | E27: Tábor | F27: CZ/C1 | G27: PMRg 2024 - Klub | H27: 17 | I27: 737 | J27: 4808 | K27: Std. Cirrus | L27: IMI | M27: =IF(ISERROR(VLOOKUP(B27,Pilot,6,0)),"Není v databázi",VLOOKUP(B27,Pilot,6,0)) -> 
A28: =RANK(J28,J:J) -> 26 | B28: Lukas Maly | C28: 1998 | D28: M | E28: Vysoké Mýto | F28: CZ/C2 | G28: PMRg 2024 - Klub | H28: 18 | I28: 684 | J28: 4385 | K28: Discus CS | L28: 65 | M28: =IF(ISERROR(VLOOKUP(B28,Pilot,6,0)),"Není v databázi",VLOOKUP(B28,Pilot,6,0)) -> 
A29: =RANK(J29,J:J) -> 27 | B29: Martin Kriz | C29: 1968 | D29: M | E29: Přibyslav | F29: CZ/C2 | G29: PMRg 2024 - Klub | H29: 19 | I29: 628 | J29: 3945 | K29: ASW 20 | L29: 67 | M29: =IF(ISERROR(VLOOKUP(B29,Pilot,6,0)),"Není v databázi",VLOOKUP(B29,Pilot,6,0)) -> 
A30: =RANK(J30,J:J) -> 28 | B30: Michal Fortik | C30: 1976 | D30: M | E30: Točná | F30: CZ/C1 | G30: PMRg 2024 - Klub | H30: 20 | I30: 618 | J30: 3755 | K30: ASW 15 B | L30: B | M30: =IF(ISERROR(VLOOKUP(B30,Pilot,6,0)),"Není v databázi",VLOOKUP(B30,Pilot,6,0)) -> 
A31: =RANK(J31,J:J) -> 29 | B31: Antonin Kutalek | C31: 1943 | D31: M | E31: Zábřeh | F31: CZ/M | G31: PMRg 2024 - Kombi | H31: 9 | I31: 378 | J31: 3199 | K31: LAK-17A T 15m | L31: GL | M31: =IF(ISERROR(VLOOKUP(B31,Pilot,6,0)),"Není v databázi",VLOOKUP(B31,Pilot,6,0)) -> 
A32: =RANK(J32,J:J) -> 30 | B32: Michael Fik | C32: 1972 | D32: M | E32: Strakonice | F32: CZ/C1 | G32: PMRg 2024 - Kombi | H32: 10 | I32: 259 | J32: 2081 | K32: Duo Discus | L32: DD | M32: =IF(ISERROR(VLOOKUP(B32,Pilot,6,0)),"Není v databázi",VLOOKUP(B32,Pilot,6,0)) -> 
A33: =RANK(J33,J:J) -> 31 | B33: Pavel Koudelka | C33: 1973 | D33: M | E33: Křižanov | F33: CZ/M | G33: PMRg 2024 - Klub | H33: 21 | I33: 259 | J33: 1675 | K33: Std. Cirrus | L33: ZL | M33: =IF(ISERROR(VLOOKUP(B33,Pilot,6,0)),"Není v databázi",VLOOKUP(B33,Pilot,6,0)) -> 
A34: =RANK(J34,J:J) -> 32 | B34: Jan Zahradka | C34: 1981 | D34: M | E34: Hodkovice | F34: CZ/C2 | G34: PMRg 2024 - Klub | H34: 22 | I34: 156 | J34: 981 | K34: Std. Cirrus | L34: AR | M34: =IF(ISERROR(VLOOKUP(B34,Pilot,6,0)),"Není v databázi",VLOOKUP(B34,Pilot,6,0)) -> 
A35: =RANK(J35,J:J) -> 33 | B35: Petr Weinhauer | C35: 1977 | D35: M | E35: Tábor | F35: CZ/C1 | G35: PMRg 2024 - Klub | H35: 23 | I35: 0 | J35: 0 | K35: VSO-10 | L35: F3 | M35: =IF(ISERROR(VLOOKUP(B35,Pilot,6,0)),"Není v databázi",VLOOKUP(B35,Pilot,6,0)) -> 
A36: =RANK(J36,J:J) -> 33 | B36: Michal Vranek | C36: 1993 | D36: M | E36: Hosín | F36: CZ/C1 | G36: PMRg 2024 - Klub | H36: 23 | I36: 0 | J36: 0 | K36: DG 100 | L36: 8W | M36: =IF(ISERROR(VLOOKUP(B36,Pilot,6,0)),"Není v databázi",VLOOKUP(B36,Pilot,6,0)) -> 
A37: =RANK(J37,J:J) -> 33 | B37: Eva Klapkova | C37: 1993 | D37: F | E37: Raná | F37: CZ/C2 | G37: PMRg 2024 - Klub | H37: 23 | I37: 0 | J37: 0 | K37: ASW 15 | L37: TZ | M37: =IF(ISERROR(VLOOKUP(B37,Pilot,6,0)),"Není v databázi",VLOOKUP(B37,Pilot,6,0)) -> 
A38: =RANK(J38,J:J) -> 33 | B38: Jan Louda | C38: 1986 | D38: M | E38: Mladá Boleslav | F38: CZ/C1 | G38: PMRg 2024 - Klub | H38: 23 | I38: 0 | J38: 0 | K38: ASW 19 B | L38: XS | M38: =IF(ISERROR(VLOOKUP(B38,Pilot,6,0)),"Není v databázi",VLOOKUP(B38,Pilot,6,0)) -> 
A39: =RANK(J39,J:J) -> 33 | B39: Daniel Devecka | C39: 1981 | D39: M | E39: Vlašim | F39: CZ/C1 | G39: PMRg 2024 - Klub | H39: 23 | I39: 0 | J39: 0 | K39: LS 3a | L39: 2G | M39: =IF(ISERROR(VLOOKUP(B39,Pilot,6,0)),"Není v databázi",VLOOKUP(B39,Pilot,6,0)) -> 
A40: =RANK(J40,J:J) -> 33 | B40: Zdenek Buben | C40: 1978 | D40: M | E40: Hodkovice | F40: CZ/C2 | G40: PMRg 2024 - Kombi | H40: 11 | I40: 0 | J40: 0 | K40: ASW 27 B WL | L40: MF | M40: =IF(ISERROR(VLOOKUP(B40,Pilot,6,0)),"Není v databázi",VLOOKUP(B40,Pilot,6,0)) -> 
A41: =RANK(J41,J:J) -> 33 | B41: Ondrej Dvorak 87 | C41: 1987 | D41: M | E41: Raná | F41: CZ/C2 | G41: PMRg 2024 - Kombi | H41: 11 | I41: 0 | J41: 0 | K41: Ventus a 15 WL | L41: FW

Sheet N PMČR 2025
B1: Nominace na PMČR 2025 | H1: Kontrola: | I1: Počet | J1: Nominace | K1: Počet | L1: Nominace | M1: Počet | N1: Nominace | O1: M: | P1: F: | Q1: M+F:
A2: No | B2: Jméno | C2: Aeroklub | D2: Rok narození | E2: M/F | F2: Junior | G2: No | I2: PMČR | J2: PMČR | K2: PMRg | L2: PMRg | M2: PMČRj | N2: PMČRj | O2: =COUNTIF(E:E,"M") -> 82 | P2: =COUNTIF(E:E,"F") -> 13 | Q2: =O2+P2 -> 95 | R2: S náhradníky
A3: 6.6.5. | B3: Nominace na PMČR - všeobecně (dle SŘ ZM11) | N3: Celkem řádně nominováno: | O3: =O2-COUNTIF(E58:E62,"M")-COUNTIF(E104:E113,"M") -> 68 | P3: =P2-COUNTIF(E58:E62,"F")-COUNTIF(E104:E113,"F") -> 12 | Q3: =O3+P3 -> 80 | R3: Bez náhradníků
B4: Na PMČR nominuje PK minimálně 80 pilotů/pilotek a příslušný počet náhradníků pro stanovená nominační kritéria.
B5: PMČR se mohou zúčastnit pouze soutěžící nominovaní dle jednotlivých bodů odstavců 6.6.6., 6.6.7. a 6.6.8.
B6: Pořadatel soutěže nemůže doplnit soutěžící na základě jiných kritérií.
A7: 6.6.6. | B7: Řádná nominace - Na PMČR jsou nominováni:
B8: Všichni členové reprezentačního výběru (RV) ČR stanoveného pro daný soutěžní ročník (bez náhradníků):
A9: 1 | B9: Jan Pavlik | C9: =VLOOKUP(B9,Pilot!A:C,3,0) -> Křižanov | D9: =VLOOKUP(B9,Pilot!A:B,2,0) -> 1987 | E9: =VLOOKUP(B9,Pilot!A:E,5,0) -> M | F9: =VLOOKUP(B9,Pilot!A:F,6,0) ->  | G9: =A9 -> 1 | I9: =COUNTIF(B:B,B9) -> 1 | J9: =IF(ISERROR(VLOOKUP(B9,B:G,6,0)),"-",VLOOKUP(B9,B:G,6,0)) -> 1 | K9: =IF(COUNTIF('N PMRg 2025'!B:B,B9)=0,"-",COUNTIF('N PMRg 2025'!B:B,B9)) -> - | L9: =IF(ISERROR(VLOOKUP(B9,'N PMRg 2025'!B:G,6,0)),"-",VLOOKUP(B9,'N PMRg 2025'!B:G,6,0)) -> - | M9: =IF(COUNTIF('N PMČRj 2025'!B:B,B9)=0,"-",COUNTIF('N PMČRj 2025'!B:B,B9)) -> - | N9: =IF(ISERROR(VLOOKUP(B9,'N PMČRj 2025'!B:G,6,0)),"-",VLOOKUP(B9,'N PMČRj 2025'!B:G,6,0)) -> -
A10: =A9+1 -> 2 | B10: Tomas Suchanek | C10: =VLOOKUP(B10,Pilot!A:C,3,0) -> GAC Benešov | D10: =VLOOKUP(B10,Pilot!A:B,2,0) -> 1964 | E10: =VLOOKUP(B10,Pilot!A:E,5,0) -> M | F10: =VLOOKUP(B10,Pilot!A:F,6,0) ->  | G10: =A10 -> 2 | I10: =COUNTIF(B:B,B10) -> 1 | J10: =IF(ISERROR(VLOOKUP(B10,B:G,6,0)),"-",VLOOKUP(B10,B:G,6,0)) -> 2 | K10: =IF(COUNTIF('N PMRg 2025'!B:B,B10)=0,"-",COUNTIF('N PMRg 2025'!B:B,B10)) -> - | L10: =IF(ISERROR(VLOOKUP(B10,'N PMRg 2025'!B:G,6,0)),"-",VLOOKUP(B10,'N PMRg 2025'!B:G,6,0)) -> - | M10: =IF(COUNTIF('N PMČRj 2025'!B:B,B10)=0,"-",COUNTIF('N PMČRj 2025'!B:B,B10)) -> - | N10: =IF(ISERROR(VLOOKUP(B10,'N PMČRj 2025'!B:G,6,0)),"-",VLOOKUP(B10,'N PMČRj 2025'!B:G,6,0)) -> -
A11: =A10+1 -> 3 | B11: Radek Krejcirik | C11: =VLOOKUP(B11,Pilot!A:C,3,0) -> Hranice | D11: =VLOOKUP(B11,Pilot!A:B,2,0) -> 1991 | E11: =VLOOKUP(B11,Pilot!A:E,5,0) -> M | F11: =VLOOKUP(B11,Pilot!A:F,6,0) ->  | G11: 3 | I11: =COUNTIF(B:B,B11) -> 1 | J11: =IF(ISERROR(VLOOKUP(B11,B:G,6,0)),"-",VLOOKUP(B11,B:G,6,0)) -> 3 | K11: =IF(COUNTIF('N PMRg 2025'!B:B,B11)=0,"-",COUNTIF('N PMRg 2025'!B:B,B11)) -> - | L11: =IF(ISERROR(VLOOKUP(B11,'N PMRg 2025'!B:G,6,0)),"-",VLOOKUP(B11,'N PMRg 2025'!B:G,6,0)) -> - | M11: =IF(COUNTIF('N PMČRj 2025'!B:B,B11)=0,"-",COUNTIF('N PMČRj 2025'!B:B,B11)) -> - | N11: =IF(ISERROR(VLOOKUP(B11,'N PMČRj 2025'!B:G,6,0)),"-",VLOOKUP(B11,'N PMČRj 2025'!B:G,6,0)) -> -
A12: 4 | B12: Lukas Kriz | C12: =VLOOKUP(B12,Pilot!A:C,3,0) -> Křižanov | D12: =VLOOKUP(B12,Pilot!A:B,2,0) -> 2003 | E12: =VLOOKUP(B12,Pilot!A:E,5,0) -> M | F12: =VLOOKUP(B12,Pilot!A:F,6,0) -> Junior v roce 2025 | G12: 4 | I12: =COUNTIF(B:B,B12) -> 1 | J12: =IF(ISERROR(VLOOKUP(B12,B:G,6,0)),"-",VLOOKUP(B12,B:G,6,0)) -> 4 | K12: =IF(COUNTIF('N PMRg 2025'!B:B,B12)=0,"-",COUNTIF('N PMRg 2025'!B:B,B12)) -> - | L12: =IF(ISERROR(VLOOKUP(B12,'N PMRg 2025'!B:G,6,0)),"-",VLOOKUP(B12,'N PMRg 2025'!B:G,6,0)) -> - | M12: =IF(COUNTIF('N PMČRj 2025'!B:B,B12)=0,"-",COUNTIF('N PMČRj 2025'!B:B,B12)) -> 1 | N12: =IF(ISERROR(VLOOKUP(B12,'N PMČRj 2025'!B:G,6,0)),"-",VLOOKUP(B12,'N PMČRj 2025'!B:G,6,0)) -> 1
A13: 5 | B13: Miloslav Cink | C13: =VLOOKUP(B13,Pilot!A:C,3,0) -> Letkov | D13: =VLOOKUP(B13,Pilot!A:B,2,0) -> 1987 | E13: =VLOOKUP(B13,Pilot!A:E,5,0) -> M | F13: =VLOOKUP(B13,Pilot!A:F,6,0) ->  | G13: 5 | I13: =COUNTIF(B:B,B13) -> 1 | J13: =IF(ISERROR(VLOOKUP(B13,B:G,6,0)),"-",VLOOKUP(B13,B:G,6,0)) -> 5 | K13: =IF(COUNTIF('N PMRg 2025'!B:B,B13)=0,"-",COUNTIF('N PMRg 2025'!B:B,B13)) -> - | L13: =IF(ISERROR(VLOOKUP(B13,'N PMRg 2025'!B:G,6,0)),"-",VLOOKUP(B13,'N PMRg 2025'!B:G,6,0)) -> - | M13: =IF(COUNTIF('N PMČRj 2025'!B:B,B13)=0,"-",COUNTIF('N PMČRj 2025'!B:B,B13)) -> - | N13: =IF(ISERROR(VLOOKUP(B13,'N PMČRj 2025'!B:G,6,0)),"-",VLOOKUP(B13,'N PMČRj 2025'!B:G,6,0)) -> -
A14: 6 | B14: Jaroslav Tomana | C14: =VLOOKUP(B14,Pilot!A:C,3,0) -> Zbraslavice | D14: =VLOOKUP(B14,Pilot!A:B,2,0) -> 1975 | E14: =VLOOKUP(B14,Pilot!A:E,5,0) -> M | F14: =VLOOKUP(B14,Pilot!A:F,6,0) ->  | G14: 6 | I14: =COUNTIF(B:B,B14) -> 1 | J14: =IF(ISERROR(VLOOKUP(B14,B:G,6,0)),"-",VLOOKUP(B14,B:G,6,0)) -> 6 | K14: =IF(COUNTIF('N PMRg 2025'!B:B,B14)=0,"-",COUNTIF('N PMRg 2025'!B:B,B14)) -> - | L14: =IF(ISERROR(VLOOKUP(B14,'N PMRg 2025'!B:G,6,0)),"-",VLOOKUP(B14,'N PMRg 2025'!B:G,6,0)) -> - | M14: =IF(COUNTIF('N PMČRj 2025'!B:B,B14)=0,"-",COUNTIF('N PMČRj 2025'!B:B,B14)) -> - | N14: =IF(ISERROR(VLOOKUP(B14,'N PMČRj 2025'!B:G,6,0)),"-",VLOOKUP(B14,'N PMČRj 2025'!B:G,6,0)) -> -
A15: 7 | B15: Michal Lesinger | C15: =VLOOKUP(B15,Pilot!A:C,3,0) -> Moravská Třebová | D15: =VLOOKUP(B15,Pilot!A:B,2,0) -> 1966 | E15: =VLOOKUP(B15,Pilot!A:E,5,0) -> M | F15: =VLOOKUP(B15,Pilot!A:F,6,0) ->  | G15: 7 | I15: =COUNTIF(B:B,B15) -> 1 | J15: =IF(ISERROR(VLOOKUP(B15,B:G,6,0)),"-",VLOOKUP(B15,B:G,6,0)) -> 7 | K15: =IF(COUNTIF('N PMRg 2025'!B:B,B15)=0,"-",COUNTIF('N PMRg 2025'!B:B,B15)) -> - | L15: =IF(ISERROR(VLOOKUP(B15,'N PMRg 2025'!B:G,6,0)),"-",VLOOKUP(B15,'N PMRg 2025'!B:G,6,0)) -> - | M15: =IF(COUNTIF('N PMČRj 2025'!B:B,B15)=0,"-",COUNTIF('N PMČRj 2025'!B:B,B15)) -> - | N15: =IF(ISERROR(VLOOKUP(B15,'N PMČRj 2025'!B:G,6,0)),"-",VLOOKUP(B15,'N PMČRj 2025'!B:G,6,0)) -> -
A16: 8 | B16: Radek Kucirek | C16: =VLOOKUP(B16,Pilot!A:C,3,0) -> Havlíčkův Brod | D16: =VLOOKUP(B16,Pilot!A:B,2,0) -> 1973 | E16: =VLOOKUP(B16,Pilot!A:E,5,0) -> M | F16: =VLOOKUP(B16,Pilot!A:F,6,0) ->  | G16: 8 | I16: =COUNTIF(B:B,B16) -> 1 | J16: =IF(ISERROR(VLOOKUP(B16,B:G,6,0)),"-",VLOOKUP(B16,B:G,6,0)) -> 8 | K16: =IF(COUNTIF('N PMRg 2025'!B:B,B16)=0,"-",COUNTIF('N PMRg 2025'!B:B,B16)) -> - | L16: =IF(ISERROR(VLOOKUP(B16,'N PMRg 2025'!B:G,6,0)),"-",VLOOKUP(B16,'N PMRg 2025'!B:G,6,0)) -> - | M16: =IF(COUNTIF('N PMČRj 2025'!B:B,B16)=0,"-",COUNTIF('N PMČRj 2025'!B:B,B16)) -> - | N16: =IF(ISERROR(VLOOKUP(B16,'N PMČRj 2025'!B:G,6,0)),"-",VLOOKUP(B16,'N PMČRj 2025'!B:G,6,0)) -> -
A17: 9 | B17: Pavel Trybenekr | C17: =VLOOKUP(B17,Pilot!A:C,3,0) -> Hořice | D17: =VLOOKUP(B17,Pilot!A:B,2,0) -> 1990 | E17: =VLOOKUP(B17,Pilot!A:E,5,0) -> M | F17: =VLOOKUP(B17,Pilot!A:F,6,0) ->  | G17: 9 | I17: =COUNTIF(B:B,B17) -> 1 | J17: =IF(ISERROR(VLOOKUP(B17,B:G,6,0)),"-",VLOOKUP(B17,B:G,6,0)) -> 9 | K17: =IF(COUNTIF('N PMRg 2025'!B:B,B17)=0,"-",COUNTIF('N PMRg 2025'!B:B,B17)) -> - | L17: =IF(ISERROR(VLOOKUP(B17,'N PMRg 2025'!B:G,6,0)),"-",VLOOKUP(B17,'N PMRg 2025'!B:G,6,0)) -> - | M17: =IF(COUNTIF('N PMČRj 2025'!B:B,B17)=0,"-",COUNTIF('N PMČRj 2025'!B:B,B17)) -> - | N17: =IF(ISERROR(VLOOKUP(B17,'N PMČRj 2025'!B:G,6,0)),"-",VLOOKUP(B17,'N PMČRj 2025'!B:G,6,0)) -> -
A18: 10 | B18: Jaromir Macoun | C18: =VLOOKUP(B18,Pilot!A:C,3,0) -> Jičín | D18: =VLOOKUP(B18,Pilot!A:B,2,0) -> 1999 | E18: =VLOOKUP(B18,Pilot!A:E,5,0) -> M | F18: =VLOOKUP(B18,Pilot!A:F,6,0) ->  | G18: =A18 -> 10 | I18: =COUNTIF(B:B,B18) -> 1 | J18: =IF(ISERROR(VLOOKUP(B18,B:G,6,0)),"-",VLOOKUP(B18,B:G,6,0)) -> 10 | K18: =IF(COUNTIF('N PMRg 2025'!B:B,B18)=0,"-",COUNTIF('N PMRg 2025'!B:B,B18)) -> - | L18: =IF(ISERROR(VLOOKUP(B18,'N PMRg 2025'!B:G,6,0)),"-",VLOOKUP(B18,'N PMRg 2025'!B:G,6,0)) -> - | M18: =IF(COUNTIF('N PMČRj 2025'!B:B,B18)=0,"-",COUNTIF('N PMČRj 2025'!B:B,B18)) -> - | N18: =IF(ISERROR(VLOOKUP(B18,'N PMČRj 2025'!B:G,6,0)),"-",VLOOKUP(B18,'N PMČRj 2025'!B:G,6,0)) -> -
A19: 11 | B19: Karel Novak | C19: =VLOOKUP(B19,Pilot!A:C,3,0) -> Mladá Boleslav | D19: =VLOOKUP(B19,Pilot!A:B,2,0) -> 1993 | E19: =VLOOKUP(B19,Pilot!A:E,5,0) -> M | F19: =VLOOKUP(B19,Pilot!A:F,6,0) ->  | G19: 11 | I19: =COUNTIF(B:B,B19) -> 1 | J19: =IF(ISERROR(VLOOKUP(B19,B:G,6,0)),"-",VLOOKUP(B19,B:G,6,0)) -> 11 | K19: =IF(COUNTIF('N PMRg 2025'!B:B,B19)=0,"-",COUNTIF('N PMRg 2025'!B:B,B19)) -> - | L19: =IF(ISERROR(VLOOKUP(B19,'N PMRg 2025'!B:G,6,0)),"-",VLOOKUP(B19,'N PMRg 2025'!B:G,6,0)) -> - | M19: =IF(COUNTIF('N PMČRj 2025'!B:B,B19)=0,"-",COUNTIF('N PMČRj 2025'!B:B,B19)) -> - | N19: =IF(ISERROR(VLOOKUP(B19,'N PMČRj 2025'!B:G,6,0)),"-",VLOOKUP(B19,'N PMČRj 2025'!B:G,6,0)) -> -
A20: 12 | B20: Ivan Novak | C20: =VLOOKUP(B20,Pilot!A:C,3,0) -> Mladá Boleslav | D20: =VLOOKUP(B20,Pilot!A:B,2,0) -> 1962 | E20: =VLOOKUP(B20,Pilot!A:E,5,0) -> M | F20: =VLOOKUP(B20,Pilot!A:F,6,0) ->  | G20: 12 | I20: =COUNTIF(B:B,B20) -> 1 | J20: =IF(ISERROR(VLOOKUP(B20,B:G,6,0)),"-",VLOOKUP(B20,B:G,6,0)) -> 12 | K20: =IF(COUNTIF('N PMRg 2025'!B:B,B20)=0,"-",COUNTIF('N PMRg 2025'!B:B,B20)) -> - | L20: =IF(ISERROR(VLOOKUP(B20,'N PMRg 2025'!B:G,6,0)),"-",VLOOKUP(B20,'N PMRg 2025'!B:G,6,0)) -> - | M20: =IF(COUNTIF('N PMČRj 2025'!B:B,B20)=0,"-",COUNTIF('N PMČRj 2025'!B:B,B20)) -> - | N20: =IF(ISERROR(VLOOKUP(B20,'N PMČRj 2025'!B:G,6,0)),"-",VLOOKUP(B20,'N PMČRj 2025'!B:G,6,0)) -> -
A21: 13 | B21: Jiri Kusbach | C21: =VLOOKUP(B21,Pilot!A:C,3,0) -> Luhačovice | D21: =VLOOKUP(B21,Pilot!A:B,2,0) -> 1959 | E21: =VLOOKUP(B21,Pilot!A:E,5,0) -> M | F21: =VLOOKUP(B21,Pilot!A:F,6,0) ->  | G21: =A21 -> 13 | I21: =COUNTIF(B:B,B21) -> 1 | J21: =IF(ISERROR(VLOOKUP(B21,B:G,6,0)),"-",VLOOKUP(B21,B:G,6,0)) -> 13 | K21: =IF(COUNTIF('N PMRg 2025'!B:B,B21)=0,"-",COUNTIF('N PMRg 2025'!B:B,B21)) -> - | L21: =IF(ISERROR(VLOOKUP(B21,'N PMRg 2025'!B:G,6,0)),"-",VLOOKUP(B21,'N PMRg 2025'!B:G,6,0)) -> - | M21: =IF(COUNTIF('N PMČRj 2025'!B:B,B21)=0,"-",COUNTIF('N PMČRj 2025'!B:B,B21)) -> - | N21: =IF(ISERROR(VLOOKUP(B21,'N PMČRj 2025'!B:G,6,0)),"-",VLOOKUP(B21,'N PMČRj 2025'!B:G,6,0)) -> -
A22: 14 | B22: Michaela Rendlova | C22: =VLOOKUP(B22,Pilot!A:C,3,0) -> Toužim | D22: =VLOOKUP(B22,Pilot!A:B,2,0) -> 2004 | E22: =VLOOKUP(B22,Pilot!A:E,5,0) -> F | F22: =VLOOKUP(B22,Pilot!A:F,6,0) -> Junior v roce 2025 | G22: 14 | I22: =COUNTIF(B:B,B22) -> 1 | J22: =IF(ISERROR(VLOOKUP(B22,B:G,6,0)),"-",VLOOKUP(B22,B:G,6,0)) -> 14 | K22: =IF(COUNTIF('N PMRg 2025'!B:B,B22)=0,"-",COUNTIF('N PMRg 2025'!B:B,B22)) -> - | L22: =IF(ISERROR(VLOOKUP(B22,'N PMRg 2025'!B:G,6,0)),"-",VLOOKUP(B22,'N PMRg 2025'!B:G,6,0)) -> - | M22: =IF(COUNTIF('N PMČRj 2025'!B:B,B22)=0,"-",COUNTIF('N PMČRj 2025'!B:B,B22)) -> 1 | N22: =IF(ISERROR(VLOOKUP(B22,'N PMČRj 2025'!B:G,6,0)),"-",VLOOKUP(B22,'N PMČRj 2025'!B:G,6,0)) -> 2
A23: 15 | B23: Martin Hrivna | C23: =VLOOKUP(B23,Pilot!A:C,3,0) -> Zbraslavice | D23: =VLOOKUP(B23,Pilot!A:B,2,0) -> 1978 | E23: =VLOOKUP(B23,Pilot!A:E,5,0) -> M | F23: =VLOOKUP(B23,Pilot!A:F,6,0) ->  | G23: 15 | I23: =COUNTIF(B:B,B23) -> 1 | J23: =IF(ISERROR(VLOOKUP(B23,B:G,6,0)),"-",VLOOKUP(B23,B:G,6,0)) -> 15 | K23: =IF(COUNTIF('N PMRg 2025'!B:B,B23)=0,"-",COUNTIF('N PMRg 2025'!B:B,B23)) -> - | L23: =IF(ISERROR(VLOOKUP(B23,'N PMRg 2025'!B:G,6,0)),"-",VLOOKUP(B23,'N PMRg 2025'!B:G,6,0)) -> - | M23: =IF(COUNTIF('N PMČRj 2025'!B:B,B23)=0,"-",COUNTIF('N PMČRj 2025'!B:B,B23)) -> - | N23: =IF(ISERROR(VLOOKUP(B23,'N PMČRj 2025'!B:G,6,0)),"-",VLOOKUP(B23,'N PMČRj 2025'!B:G,6,0)) -> -
A24: 16 | B24: Jan Stastny | C24: =VLOOKUP(B24,Pilot!A:C,3,0) -> Medlánky | D24: =VLOOKUP(B24,Pilot!A:B,2,0) -> 2003 | E24: =VLOOKUP(B24,Pilot!A:E,5,0) -> M | F24: =VLOOKUP(B24,Pilot!A:F,6,0) -> Junior v roce 2025 | G24: 16 | I24: =COUNTIF(B:B,B24) -> 1 | J24: =IF(ISERROR(VLOOKUP(B24,B:G,6,0)),"-",VLOOKUP(B24,B:G,6,0)) -> 16 | K24: =IF(COUNTIF('N PMRg 2025'!B:B,B24)=0,"-",COUNTIF('N PMRg 2025'!B:B,B24)) -> - | L24: =IF(ISERROR(VLOOKUP(B24,'N PMRg 2025'!B:G,6,0)),"-",VLOOKUP(B24,'N PMRg 2025'!B:G,6,0)) -> - | M24: =IF(COUNTIF('N PMČRj 2025'!B:B,B24)=0,"-",COUNTIF('N PMČRj 2025'!B:B,B24)) -> 1 | N24: =IF(ISERROR(VLOOKUP(B24,'N PMČRj 2025'!B:G,6,0)),"-",VLOOKUP(B24,'N PMČRj 2025'!B:G,6,0)) -> 3
A25: 17 | B25: Petr Tichy | C25: =VLOOKUP(B25,Pilot!A:C,3,0) -> Zbraslavice | D25: =VLOOKUP(B25,Pilot!A:B,2,0) -> 1973 | E25: =VLOOKUP(B25,Pilot!A:E,5,0) -> M | F25: =VLOOKUP(B25,Pilot!A:F,6,0) ->  | G25: 17 | I25: =COUNTIF(B:B,B25) -> 1 | J25: =IF(ISERROR(VLOOKUP(B25,B:G,6,0)),"-",VLOOKUP(B25,B:G,6,0)) -> 17 | K25: =IF(COUNTIF('N PMRg 2025'!B:B,B25)=0,"-",COUNTIF('N PMRg 2025'!B:B,B25)) -> - | L25: =IF(ISERROR(VLOOKUP(B25,'N PMRg 2025'!B:G,6,0)),"-",VLOOKUP(B25,'N PMRg 2025'!B:G,6,0)) -> - | M25: =IF(COUNTIF('N PMČRj 2025'!B:B,B25)=0,"-",COUNTIF('N PMČRj 2025'!B:B,B25)) -> - | N25: =IF(ISERROR(VLOOKUP(B25,'N PMČRj 2025'!B:G,6,0)),"-",VLOOKUP(B25,'N PMČRj 2025'!B:G,6,0)) -> -
A26: 18 | B26: Pavel Louzecky | C26: =VLOOKUP(B26,Pilot!A:C,3,0) -> Přibyslav | D26: =VLOOKUP(B26,Pilot!A:B,2,0) -> 1957 | E26: =VLOOKUP(B26,Pilot!A:E,5,0) -> M | F26: =VLOOKUP(B26,Pilot!A:F,6,0) ->  | G26: 18 | I26: =COUNTIF(B:B,B26) -> 1 | J26: =IF(ISERROR(VLOOKUP(B26,B:G,6,0)),"-",VLOOKUP(B26,B:G,6,0)) -> 18 | K26: =IF(COUNTIF('N PMRg 2025'!B:B,B26)=0,"-",COUNTIF('N PMRg 2025'!B:B,B26)) -> - | L26: =IF(ISERROR(VLOOKUP(B26,'N PMRg 2025'!B:G,6,0)),"-",VLOOKUP(B26,'N PMRg 2025'!B:G,6,0)) -> - | M26: =IF(COUNTIF('N PMČRj 2025'!B:B,B26)=0,"-",COUNTIF('N PMČRj 2025'!B:B,B26)) -> - | N26: =IF(ISERROR(VLOOKUP(B26,'N PMČRj 2025'!B:G,6,0)),"-",VLOOKUP(B26,'N PMČRj 2025'!B:G,6,0)) -> -
A27: 19 | B27: Tomas Rendla | C27: =VLOOKUP(B27,Pilot!A:C,3,0) -> Zbraslavice | D27: =VLOOKUP(B27,Pilot!A:B,2,0) -> 1973 | E27: =VLOOKUP(B27,Pilot!A:E,5,0) -> M | F27: =VLOOKUP(B27,Pilot!A:F,6,0) ->  | G27: 19 | I27: =COUNTIF(B:B,B27) -> 1 | J27: =IF(ISERROR(VLOOKUP(B27,B:G,6,0)),"-",VLOOKUP(B27,B:G,6,0)) -> 19 | K27: =IF(COUNTIF('N PMRg 2025'!B:B,B27)=0,"-",COUNTIF('N PMRg 2025'!B:B,B27)) -> - | L27: =IF(ISERROR(VLOOKUP(B27,'N PMRg 2025'!B:G,6,0)),"-",VLOOKUP(B27,'N PMRg 2025'!B:G,6,0)) -> - | M27: =IF(COUNTIF('N PMČRj 2025'!B:B,B27)=0,"-",COUNTIF('N PMČRj 2025'!B:B,B27)) -> - | N27: =IF(ISERROR(VLOOKUP(B27,'N PMČRj 2025'!B:G,6,0)),"-",VLOOKUP(B27,'N PMČRj 2025'!B:G,6,0)) -> -
A28: 20 | B28: Ivan Harasta 65 | C28: =VLOOKUP(B28,Pilot!A:C,3,0) -> Toužim | D28: =VLOOKUP(B28,Pilot!A:B,2,0) -> 1965 | E28: =VLOOKUP(B28,Pilot!A:E,5,0) -> M | F28: =VLOOKUP(B28,Pilot!A:F,6,0) ->  | G28: 20 | I28: =COUNTIF(B:B,B28) -> 1 | J28: =IF(ISERROR(VLOOKUP(B28,B:G,6,0)),"-",VLOOKUP(B28,B:G,6,0)) -> 20 | K28: =IF(COUNTIF('N PMRg 2025'!B:B,B28)=0,"-",COUNTIF('N PMRg 2025'!B:B,B28)) -> - | L28: =IF(ISERROR(VLOOKUP(B28,'N PMRg 2025'!B:G,6,0)),"-",VLOOKUP(B28,'N PMRg 2025'!B:G,6,0)) -> - | M28: =IF(COUNTIF('N PMČRj 2025'!B:B,B28)=0,"-",COUNTIF('N PMČRj 2025'!B:B,B28)) -> - | N28: =IF(ISERROR(VLOOKUP(B28,'N PMČRj 2025'!B:G,6,0)),"-",VLOOKUP(B28,'N PMČRj 2025'!B:G,6,0)) -> -
A29: 21 | B29: Hana Treslova | C29: =VLOOKUP(B29,Pilot!A:C,3,0) -> Raná | D29: =VLOOKUP(B29,Pilot!A:B,2,0) -> 1991 | E29: =VLOOKUP(B29,Pilot!A:E,5,0) -> F | F29: =VLOOKUP(B29,Pilot!A:F,6,0) ->  | G29: 21 | I29: =COUNTIF(B:B,B29) -> 1 | J29: =IF(ISERROR(VLOOKUP(B29,B:G,6,0)),"-",VLOOKUP(B29,B:G,6,0)) -> 21 | K29: =IF(COUNTIF('N PMRg 2025'!B:B,B29)=0,"-",COUNTIF('N PMRg 2025'!B:B,B29)) -> - | L29: =IF(ISERROR(VLOOKUP(B29,'N PMRg 2025'!B:G,6,0)),"-",VLOOKUP(B29,'N PMRg 2025'!B:G,6,0)) -> - | M29: =IF(COUNTIF('N PMČRj 2025'!B:B,B29)=0,"-",COUNTIF('N PMČRj 2025'!B:B,B29)) -> - | N29: =IF(ISERROR(VLOOKUP(B29,'N PMČRj 2025'!B:G,6,0)),"-",VLOOKUP(B29,'N PMČRj 2025'!B:G,6,0)) -> -
A30: 22 | B30: Barbora Moravcova | C30: =VLOOKUP(B30,Pilot!A:C,3,0) -> Zbraslavice | D30: =VLOOKUP(B30,Pilot!A:B,2,0) -> 1994 | E30: =VLOOKUP(B30,Pilot!A:E,5,0) -> F | F30: =VLOOKUP(B30,Pilot!A:F,6,0) ->  | G30: 22 | I30: =COUNTIF(B:B,B30) -> 1 | J30: =IF(ISERROR(VLOOKUP(B30,B:G,6,0)),"-",VLOOKUP(B30,B:G,6,0)) -> 22 | K30: =IF(COUNTIF('N PMRg 2025'!B:B,B30)=0,"-",COUNTIF('N PMRg 2025'!B:B,B30)) -> - | L30: =IF(ISERROR(VLOOKUP(B30,'N PMRg 2025'!B:G,6,0)),"-",VLOOKUP(B30,'N PMRg 2025'!B:G,6,0)) -> - | M30: =IF(COUNTIF('N PMČRj 2025'!B:B,B30)=0,"-",COUNTIF('N PMČRj 2025'!B:B,B30)) -> - | N30: =IF(ISERROR(VLOOKUP(B30,'N PMČRj 2025'!B:G,6,0)),"-",VLOOKUP(B30,'N PMČRj 2025'!B:G,6,0)) -> -
A31: 23 | B31: Alena Netusilova | C31: =VLOOKUP(B31,Pilot!A:C,3,0) -> Zbraslavice | D31: =VLOOKUP(B31,Pilot!A:B,2,0) -> 1970 | E31: =VLOOKUP(B31,Pilot!A:E,5,0) -> F | F31: =VLOOKUP(B31,Pilot!A:F,6,0) ->  | G31: 23 | I31: =COUNTIF(B:B,B31) -> 1 | J31: =IF(ISERROR(VLOOKUP(B31,B:G,6,0)),"-",VLOOKUP(B31,B:G,6,0)) -> 23 | K31: =IF(COUNTIF('N PMRg 2025'!B:B,B31)=0,"-",COUNTIF('N PMRg 2025'!B:B,B31)) -> - | L31: =IF(ISERROR(VLOOKUP(B31,'N PMRg 2025'!B:G,6,0)),"-",VLOOKUP(B31,'N PMRg 2025'!B:G,6,0)) -> - | M31: =IF(COUNTIF('N PMČRj 2025'!B:B,B31)=0,"-",COUNTIF('N PMČRj 2025'!B:B,B31)) -> - | N31: =IF(ISERROR(VLOOKUP(B31,'N PMČRj 2025'!B:G,6,0)),"-",VLOOKUP(B31,'N PMČRj 2025'!B:G,6,0)) -> -
A32: 24 | B32: Vit Morkovsky | C32: =VLOOKUP(B32,Pilot!A:C,3,0) -> Polička | D32: =VLOOKUP(B32,Pilot!A:B,2,0) -> 2000 | E32: =VLOOKUP(B32,Pilot!A:E,5,0) -> M | F32: =VLOOKUP(B32,Pilot!A:F,6,0) -> Junior v roce 2025 | G32: 24 | I32: =COUNTIF(B:B,B32) -> 1 | J32: =IF(ISERROR(VLOOKUP(B32,B:G,6,0)),"-",VLOOKUP(B32,B:G,6,0)) -> 24 | K32: =IF(COUNTIF('N PMRg 2025'!B:B,B32)=0,"-",COUNTIF('N PMRg 2025'!B:B,B32)) -> - | L32: =IF(ISERROR(VLOOKUP(B32,'N PMRg 2025'!B:G,6,0)),"-",VLOOKUP(B32,'N PMRg 2025'!B:G,6,0)) -> - | M32: =IF(COUNTIF('N PMČRj 2025'!B:B,B32)=0,"-",COUNTIF('N PMČRj 2025'!B:B,B32)) -> 1 | N32: =IF(ISERROR(VLOOKUP(B32,'N PMČRj 2025'!B:G,6,0)),"-",VLOOKUP(B32,'N PMČRj 2025'!B:G,6,0)) -> 4
A33: 25 | B33: Tereza Koubkova | C33: =VLOOKUP(B33,Pilot!A:C,3,0) -> Vysoké Mýto | D33: =VLOOKUP(B33,Pilot!A:B,2,0) -> 1999 | E33: =VLOOKUP(B33,Pilot!A:E,5,0) -> F | F33: =VLOOKUP(B33,Pilot!A:F,6,0) ->  | G33: 25 | I33: =COUNTIF(B:B,B33) -> 1 | J33: =IF(ISERROR(VLOOKUP(B33,B:G,6,0)),"-",VLOOKUP(B33,B:G,6,0)) -> 25 | K33: =IF(COUNTIF('N PMRg 2025'!B:B,B33)=0,"-",COUNTIF('N PMRg 2025'!B:B,B33)) -> - | L33: =IF(ISERROR(VLOOKUP(B33,'N PMRg 2025'!B:G,6,0)),"-",VLOOKUP(B33,'N PMRg 2025'!B:G,6,0)) -> - | M33: =IF(COUNTIF('N PMČRj 2025'!B:B,B33)=0,"-",COUNTIF('N PMČRj 2025'!B:B,B33)) -> 1 | N33: =IF(ISERROR(VLOOKUP(B33,'N PMČRj 2025'!B:G,6,0)),"-",VLOOKUP(B33,'N PMČRj 2025'!B:G,6,0)) -> 10
A34: 26 | B34: Tomas Hynek | C34: =VLOOKUP(B34,Pilot!A:C,3,0) -> Dvůr Králové | D34: =VLOOKUP(B34,Pilot!A:B,2,0) -> 2002 | E34: =VLOOKUP(B34,Pilot!A:E,5,0) -> M | F34: =VLOOKUP(B34,Pilot!A:F,6,0) -> Junior v roce 2025 | G34: =A34 -> 26 | I34: =COUNTIF(B:B,B34) -> 1 | J34: =IF(ISERROR(VLOOKUP(B34,B:G,6,0)),"-",VLOOKUP(B34,B:G,6,0)) -> 26 | K34: =IF(COUNTIF('N PMRg 2025'!B:B,B34)=0,"-",COUNTIF('N PMRg 2025'!B:B,B34)) -> - | L34: =IF(ISERROR(VLOOKUP(B34,'N PMRg 2025'!B:G,6,0)),"-",VLOOKUP(B34,'N PMRg 2025'!B:G,6,0)) -> - | M34: =IF(COUNTIF('N PMČRj 2025'!B:B,B34)=0,"-",COUNTIF('N PMČRj 2025'!B:B,B34)) -> 1 | N34: =IF(ISERROR(VLOOKUP(B34,'N PMČRj 2025'!B:G,6,0)),"-",VLOOKUP(B34,'N PMČRj 2025'!B:G,6,0)) -> 5
A35: 27 | B35: Dana Novakova | C35: =VLOOKUP(B35,Pilot!A:C,3,0) -> Mladá Boleslav | D35: =VLOOKUP(B35,Pilot!A:B,2,0) -> 1965 | E35: =VLOOKUP(B35,Pilot!A:E,5,0) -> F | F35: =VLOOKUP(B35,Pilot!A:F,6,0) ->  | G35: 27 | I35: =COUNTIF(B:B,B35) -> 1 | J35: =IF(ISERROR(VLOOKUP(B35,B:G,6,0)),"-",VLOOKUP(B35,B:G,6,0)) -> 27 | K35: =IF(COUNTIF('N PMRg 2025'!B:B,B35)=0,"-",COUNTIF('N PMRg 2025'!B:B,B35)) -> - | L35: =IF(ISERROR(VLOOKUP(B35,'N PMRg 2025'!B:G,6,0)),"-",VLOOKUP(B35,'N PMRg 2025'!B:G,6,0)) -> - | M35: =IF(COUNTIF('N PMČRj 2025'!B:B,B35)=0,"-",COUNTIF('N PMČRj 2025'!B:B,B35)) -> - | N35: =IF(ISERROR(VLOOKUP(B35,'N PMČRj 2025'!B:G,6,0)),"-",VLOOKUP(B35,'N PMČRj 2025'!B:G,6,0)) -> -
A36: 28 | B36: Michaela Krizova | C36: =VLOOKUP(B36,Pilot!A:C,3,0) -> Přibyslav | D36: =VLOOKUP(B36,Pilot!A:B,2,0) -> 2001 | E36: =VLOOKUP(B36,Pilot!A:E,5,0) -> F | F36: =VLOOKUP(B36,Pilot!A:F,6,0) -> Junior v roce 2025 | G36: 28 | I36: =COUNTIF(B:B,B36) -> 1 | J36: =IF(ISERROR(VLOOKUP(B36,B:G,6,0)),"-",VLOOKUP(B36,B:G,6,0)) -> 28 | K36: =IF(COUNTIF('N PMRg 2025'!B:B,B36)=0,"-",COUNTIF('N PMRg 2025'!B:B,B36)) -> - | L36: =IF(ISERROR(VLOOKUP(B36,'N PMRg 2025'!B:G,6,0)),"-",VLOOKUP(B36,'N PMRg 2025'!B:G,6,0)) -> - | M36: =IF(COUNTIF('N PMČRj 2025'!B:B,B36)=0,"-",COUNTIF('N PMČRj 2025'!B:B,B36)) -> 1 | N36: =IF(ISERROR(VLOOKUP(B36,'N PMČRj 2025'!B:G,6,0)),"-",VLOOKUP(B36,'N PMČRj 2025'!B:G,6,0)) -> 6
A37: 29 | B37: Jana Treslova | C37: =VLOOKUP(B37,Pilot!A:C,3,0) -> Raná | D37: =VLOOKUP(B37,Pilot!A:B,2,0) -> 1963 | E37: =VLOOKUP(B37,Pilot!A:E,5,0) -> F | F37: =VLOOKUP(B37,Pilot!A:F,6,0) ->  | G37: 29 | I37: =COUNTIF(B:B,B37) -> 1 | J37: =IF(ISERROR(VLOOKUP(B37,B:G,6,0)),"-",VLOOKUP(B37,B:G,6,0)) -> 29 | K37: =IF(COUNTIF('N PMRg 2025'!B:B,B37)=0,"-",COUNTIF('N PMRg 2025'!B:B,B37)) -> - | L37: =IF(ISERROR(VLOOKUP(B37,'N PMRg 2025'!B:G,6,0)),"-",VLOOKUP(B37,'N PMRg 2025'!B:G,6,0)) -> - | M37: =IF(COUNTIF('N PMČRj 2025'!B:B,B37)=0,"-",COUNTIF('N PMČRj 2025'!B:B,B37)) -> - | N37: =IF(ISERROR(VLOOKUP(B37,'N PMČRj 2025'!B:G,6,0)),"-",VLOOKUP(B37,'N PMČRj 2025'!B:G,6,0)) -> -
A38: 30 | B38: Katerina Vojtova | C38: =VLOOKUP(B38,Pilot!A:C,3,0) -> Slaný | D38: =VLOOKUP(B38,Pilot!A:B,2,0) -> 1983 | E38: =VLOOKUP(B38,Pilot!A:E,5,0) -> F | F38: =VLOOKUP(B38,Pilot!A:F,6,0) ->  | G38: 30 | I38: =COUNTIF(B:B,B38) -> 1 | J38: =IF(ISERROR(VLOOKUP(B38,B:G,6,0)),"-",VLOOKUP(B38,B:G,6,0)) -> 30 | K38: =IF(COUNTIF('N PMRg 2025'!B:B,B38)=0,"-",COUNTIF('N PMRg 2025'!B:B,B38)) -> - | L38: =IF(ISERROR(VLOOKUP(B38,'N PMRg 2025'!B:G,6,0)),"-",VLOOKUP(B38,'N PMRg 2025'!B:G,6,0)) -> - | M38: =IF(COUNTIF('N PMČRj 2025'!B:B,B38)=0,"-",COUNTIF('N PMČRj 2025'!B:B,B38)) -> - | N38: =IF(ISERROR(VLOOKUP(B38,'N PMČRj 2025'!B:G,6,0)),"-",VLOOKUP(B38,'N PMČRj 2025'!B:G,6,0)) -> -
A39: 31 | B39: Petra Piskata | C39: =VLOOKUP(B39,Pilot!A:C,3,0) -> Luhačovice | D39: =VLOOKUP(B39,Pilot!A:B,2,0) -> 1989 | E39: =VLOOKUP(B39,Pilot!A:E,5,0) -> F | F39: =VLOOKUP(B39,Pilot!A:F,6,0) ->  | G39: =A39 -> 31 | I39: =COUNTIF(B:B,B39) -> 1 | J39: =IF(ISERROR(VLOOKUP(B39,B:G,6,0)),"-",VLOOKUP(B39,B:G,6,0)) -> 31 | K39: =IF(COUNTIF('N PMRg 2025'!B:B,B39)=0,"-",COUNTIF('N PMRg 2025'!B:B,B39)) -> - | L39: =IF(ISERROR(VLOOKUP(B39,'N PMRg 2025'!B:G,6,0)),"-",VLOOKUP(B39,'N PMRg 2025'!B:G,6,0)) -> - | M39: =IF(COUNTIF('N PMČRj 2025'!B:B,B39)=0,"-",COUNTIF('N PMČRj 2025'!B:B,B39)) -> - | N39: =IF(ISERROR(VLOOKUP(B39,'N PMČRj 2025'!B:G,6,0)),"-",VLOOKUP(B39,'N PMČRj 2025'!B:G,6,0)) -> -
A40: 32 | B40: Klara Teichmannova | C40: =VLOOKUP(B40,Pilot!A:C,3,0) -> Hronov | D40: =VLOOKUP(B40,Pilot!A:B,2,0) -> 1993 | E40: =VLOOKUP(B40,Pilot!A:E,5,0) -> F | F40: =VLOOKUP(B40,Pilot!A:F,6,0) ->  | G40: 32 | I40: =COUNTIF(B:B,B40) -> 1 | J40: =IF(ISERROR(VLOOKUP(B40,B:G,6,0)),"-",VLOOKUP(B40,B:G,6,0)) -> 32 | K40: =IF(COUNTIF('N PMRg 2025'!B:B,B40)=0,"-",COUNTIF('N PMRg 2025'!B:B,B40)) -> - | L40: =IF(ISERROR(VLOOKUP(B40,'N PMRg 2025'!B:G,6,0)),"-",VLOOKUP(B40,'N PMRg 2025'!B:G,6,0)) -> - | M40: =IF(COUNTIF('N PMČRj 2025'!B:B,B40)=0,"-",COUNTIF('N PMČRj 2025'!B:B,B40)) -> - | N40: =IF(ISERROR(VLOOKUP(B40,'N PMČRj 2025'!B:G,6,0)),"-",VLOOKUP(B40,'N PMČRj 2025'!B:G,6,0)) -> -
B41: Další soutěžící, kteří se umístili v konečném pořadí na posledním platném PMČR ve své třídě nejhůře v první polovině celkového pořadí (bez náhradníků):
B42: PMČR 2024 - Toužim - Klub
A43: =MAX(A9:A42)+1 -> 33 | B43: Jiri Stepanek | C43: =VLOOKUP(B43,Pilot!A:C,3,0) -> Moravská Třebová | D43: =VLOOKUP(B43,Pilot!A:B,2,0) -> 1956 | E43: =VLOOKUP(B43,Pilot!A:E,5,0) -> M | F43: =VLOOKUP(B43,Pilot!A:F,6,0) ->  | G43: =A43 -> 33 | I43: =COUNTIF(B:B,B43) -> 1 | J43: =IF(ISERROR(VLOOKUP(B43,B:G,6,0)),"-",VLOOKUP(B43,B:G,6,0)) -> 33 | K43: =IF(COUNTIF('N PMRg 2025'!B:B,B43)=0,"-",COUNTIF('N PMRg 2025'!B:B,B43)) -> - | L43: =IF(ISERROR(VLOOKUP(B43,'N PMRg 2025'!B:G,6,0)),"-",VLOOKUP(B43,'N PMRg 2025'!B:G,6,0)) -> - | M43: =IF(COUNTIF('N PMČRj 2025'!B:B,B43)=0,"-",COUNTIF('N PMČRj 2025'!B:B,B43)) -> - | N43: =IF(ISERROR(VLOOKUP(B43,'N PMČRj 2025'!B:G,6,0)),"-",VLOOKUP(B43,'N PMČRj 2025'!B:G,6,0)) -> -
A44: =A43+1 -> 34 | B44: Petr Stepanek | C44: =VLOOKUP(B44,Pilot!A:C,3,0) -> Moravská Třebová | D44: =VLOOKUP(B44,Pilot!A:B,2,0) -> 1989 | E44: =VLOOKUP(B44,Pilot!A:E,5,0) -> M | F44: =VLOOKUP(B44,Pilot!A:F,6,0) ->  | G44: 34 | I44: =COUNTIF(B:B,B44) -> 1 | J44: =IF(ISERROR(VLOOKUP(B44,B:G,6,0)),"-",VLOOKUP(B44,B:G,6,0)) -> 34 | K44: =IF(COUNTIF('N PMRg 2025'!B:B,B44)=0,"-",COUNTIF('N PMRg 2025'!B:B,B44)) -> - | L44: =IF(ISERROR(VLOOKUP(B44,'N PMRg 2025'!B:G,6,0)),"-",VLOOKUP(B44,'N PMRg 2025'!B:G,6,0)) -> - | M44: =IF(COUNTIF('N PMČRj 2025'!B:B,B44)=0,"-",COUNTIF('N PMČRj 2025'!B:B,B44)) -> - | N44: =IF(ISERROR(VLOOKUP(B44,'N PMČRj 2025'!B:G,6,0)),"-",VLOOKUP(B44,'N PMČRj 2025'!B:G,6,0)) -> -
B45: PMČR 2024 - Toužim - Kombi 15m
A46: - | B46: - | C46: =VLOOKUP(B46,Pilot!A:C,3,0) ->  | D46: =VLOOKUP(B46,Pilot!A:B,2,0) ->  | E46: =VLOOKUP(B46,Pilot!A:E,5,0) ->  | F46: =VLOOKUP(B46,Pilot!A:F,6,0) ->  | G46: =A46 -> - | I46: =COUNTIF(B:B,B46) -> 6 | J46: =IF(ISERROR(VLOOKUP(B46,B:G,6,0)),"-",VLOOKUP(B46,B:G,6,0)) -> - | K46: =IF(COUNTIF('N PMRg 2025'!B:B,B46)=0,"-",COUNTIF('N PMRg 2025'!B:B,B46)) -> 76 | L46: =IF(ISERROR(VLOOKUP(B46,'N PMRg 2025'!B:G,6,0)),"-",VLOOKUP(B46,'N PMRg 2025'!B:G,6,0)) -> 1 | M46: =IF(COUNTIF('N PMČRj 2025'!B:B,B46)=0,"-",COUNTIF('N PMČRj 2025'!B:B,B46)) -> 31 | N46: =IF(ISERROR(VLOOKUP(B46,'N PMČRj 2025'!B:G,6,0)),"-",VLOOKUP(B46,'N PMČRj 2025'!B:G,6,0)) -> 20
B47: PMČR 2024 - Toužim - Kombi Open
A48: =MAX(A9:A47)+1 -> 35 | B48: Jan Boruvka | C48: =VLOOKUP(B48,Pilot!A:C,3,0) -> Jičín | D48: =VLOOKUP(B48,Pilot!A:B,2,0) -> 1984 | E48: =VLOOKUP(B48,Pilot!A:E,5,0) -> M | F48: =VLOOKUP(B48,Pilot!A:F,6,0) ->  | G48: =A48 -> 35 | I48: =COUNTIF(B:B,B48) -> 1 | J48: =IF(ISERROR(VLOOKUP(B48,B:G,6,0)),"-",VLOOKUP(B48,B:G,6,0)) -> 35 | K48: =IF(COUNTIF('N PMRg 2025'!B:B,B48)=0,"-",COUNTIF('N PMRg 2025'!B:B,B48)) -> - | L48: =IF(ISERROR(VLOOKUP(B48,'N PMRg 2025'!B:G,6,0)),"-",VLOOKUP(B48,'N PMRg 2025'!B:G,6,0)) -> - | M48: =IF(COUNTIF('N PMČRj 2025'!B:B,B48)=0,"-",COUNTIF('N PMČRj 2025'!B:B,B48)) -> - | N48: =IF(ISERROR(VLOOKUP(B48,'N PMČRj 2025'!B:G,6,0)),"-",VLOOKUP(B48,'N PMČRj 2025'!B:G,6,0)) -> -
A49: =A48+1 -> 36 | B49: Ondrej Dupal | C49: =VLOOKUP(B49,Pilot!A:C,3,0) -> GAC Benešov | D49: =VLOOKUP(B49,Pilot!A:B,2,0) -> 1966 | E49: =VLOOKUP(B49,Pilot!A:E,5,0) -> M | F49: =VLOOKUP(B49,Pilot!A:F,6,0) ->  | G49: =A49 -> 36 | I49: =COUNTIF(B:B,B49) -> 1 | J49: =IF(ISERROR(VLOOKUP(B49,B:G,6,0)),"-",VLOOKUP(B49,B:G,6,0)) -> 36 | K49: =IF(COUNTIF('N PMRg 2025'!B:B,B49)=0,"-",COUNTIF('N PMRg 2025'!B:B,B49)) -> - | L49: =IF(ISERROR(VLOOKUP(B49,'N PMRg 2025'!B:G,6,0)),"-",VLOOKUP(B49,'N PMRg 2025'!B:G,6,0)) -> - | M49: =IF(COUNTIF('N PMČRj 2025'!B:B,B49)=0,"-",COUNTIF('N PMČRj 2025'!B:B,B49)) -> - | N49: =IF(ISERROR(VLOOKUP(B49,'N PMČRj 2025'!B:G,6,0)),"-",VLOOKUP(B49,'N PMČRj 2025'!B:G,6,0)) -> -
A50: =A49+1 -> 37 | B50: David Mach | C50: =VLOOKUP(B50,Pilot!A:C,3,0) -> Hronov | D50: =VLOOKUP(B50,Pilot!A:B,2,0) -> 1994 | E50: =VLOOKUP(B50,Pilot!A:E,5,0) -> M | F50: =VLOOKUP(B50,Pilot!A:F,6,0) ->  | G50: 37 | I50: =COUNTIF(B:B,B50) -> 1 | J50: =IF(ISERROR(VLOOKUP(B50,B:G,6,0)),"-",VLOOKUP(B50,B:G,6,0)) -> 37 | K50: =IF(COUNTIF('N PMRg 2025'!B:B,B50)=0,"-",COUNTIF('N PMRg 2025'!B:B,B50)) -> - | L50: =IF(ISERROR(VLOOKUP(B50,'N PMRg 2025'!B:G,6,0)),"-",VLOOKUP(B50,'N PMRg 2025'!B:G,6,0)) -> - | M50: =IF(COUNTIF('N PMČRj 2025'!B:B,B50)=0,"-",COUNTIF('N PMČRj 2025'!B:B,B50)) -> - | N50: =IF(ISERROR(VLOOKUP(B50,'N PMČRj 2025'!B:G,6,0)),"-",VLOOKUP(B50,'N PMČRj 2025'!B:G,6,0)) -> -
B51: Prvních 5 soutěžících z posledního platného PMČRj mimo RV (+ 5 náhradníků):
B52: PMČRj 2024 - Hodkovice - Klub
A53: =MAX(A9:A52)+1 -> 38 | B53: Alex Gulich | C53: =VLOOKUP(B53,Pilot!A:C,3,0) -> Slaný | D53: =VLOOKUP(B53,Pilot!A:B,2,0) -> 2005 | E53: =VLOOKUP(B53,Pilot!A:E,5,0) -> M | F53: =VLOOKUP(B53,Pilot!A:F,6,0) -> Junior v roce 2025 | G53: =A53 -> 38 | I53: =COUNTIF(B:B,B53) -> 1 | J53: =IF(ISERROR(VLOOKUP(B53,B:G,6,0)),"-",VLOOKUP(B53,B:G,6,0)) -> 38 | K53: =IF(COUNTIF('N PMRg 2025'!B:B,B53)=0,"-",COUNTIF('N PMRg 2025'!B:B,B53)) -> - | L53: =IF(ISERROR(VLOOKUP(B53,'N PMRg 2025'!B:G,6,0)),"-",VLOOKUP(B53,'N PMRg 2025'!B:G,6,0)) -> - | M53: =IF(COUNTIF('N PMČRj 2025'!B:B,B53)=0,"-",COUNTIF('N PMČRj 2025'!B:B,B53)) -> 1 | N53: =IF(ISERROR(VLOOKUP(B53,'N PMČRj 2025'!B:G,6,0)),"-",VLOOKUP(B53,'N PMČRj 2025'!B:G,6,0)) -> 11
A54: =A53+1 -> 39 | B54: Jan Beran | C54: =VLOOKUP(B54,Pilot!A:C,3,0) -> Kladno | D54: =VLOOKUP(B54,Pilot!A:B,2,0) -> 1999 | E54: =VLOOKUP(B54,Pilot!A:E,5,0) -> M | F54: =VLOOKUP(B54,Pilot!A:F,6,0) ->  | G54: 39 | I54: =COUNTIF(B:B,B54) -> 1 | J54: =IF(ISERROR(VLOOKUP(B54,B:G,6,0)),"-",VLOOKUP(B54,B:G,6,0)) -> 39 | K54: =IF(COUNTIF('N PMRg 2025'!B:B,B54)=0,"-",COUNTIF('N PMRg 2025'!B:B,B54)) -> - | L54: =IF(ISERROR(VLOOKUP(B54,'N PMRg 2025'!B:G,6,0)),"-",VLOOKUP(B54,'N PMRg 2025'!B:G,6,0)) -> - | M54: =IF(COUNTIF('N PMČRj 2025'!B:B,B54)=0,"-",COUNTIF('N PMČRj 2025'!B:B,B54)) -> 1 | N54: =IF(ISERROR(VLOOKUP(B54,'N PMČRj 2025'!B:G,6,0)),"-",VLOOKUP(B54,'N PMČRj 2025'!B:G,6,0)) -> 12
A55: =A54+1 -> 40 | B55: Vit Tvrdik | C55: =VLOOKUP(B55,Pilot!A:C,3,0) -> Letňany | D55: =VLOOKUP(B55,Pilot!A:B,2,0) -> 2000 | E55: =VLOOKUP(B55,Pilot!A:E,5,0) -> M | F55: =VLOOKUP(B55,Pilot!A:F,6,0) -> Junior v roce 2025 | G55: 40 | I55: =COUNTIF(B:B,B55) -> 1 | J55: =IF(ISERROR(VLOOKUP(B55,B:G,6,0)),"-",VLOOKUP(B55,B:G,6,0)) -> 40 | K55: =IF(COUNTIF('N PMRg 2025'!B:B,B55)=0,"-",COUNTIF('N PMRg 2025'!B:B,B55)) -> - | L55: =IF(ISERROR(VLOOKUP(B55,'N PMRg 2025'!B:G,6,0)),"-",VLOOKUP(B55,'N PMRg 2025'!B:G,6,0)) -> - | M55: =IF(COUNTIF('N PMČRj 2025'!B:B,B55)=0,"-",COUNTIF('N PMČRj 2025'!B:B,B55)) -> 1 | N55: =IF(ISERROR(VLOOKUP(B55,'N PMČRj 2025'!B:G,6,0)),"-",VLOOKUP(B55,'N PMČRj 2025'!B:G,6,0)) -> 13
A56: =A55+1 -> 41 | B56: Stepan Bartos | C56: =VLOOKUP(B56,Pilot!A:C,3,0) -> Kolín | D56: =VLOOKUP(B56,Pilot!A:B,2,0) -> 2004 | E56: =VLOOKUP(B56,Pilot!A:E,5,0) -> M | F56: =VLOOKUP(B56,Pilot!A:F,6,0) -> Junior v roce 2025 | G56: 41 | I56: =COUNTIF(B:B,B56) -> 1 | J56: =IF(ISERROR(VLOOKUP(B56,B:G,6,0)),"-",VLOOKUP(B56,B:G,6,0)) -> 41 | K56: =IF(COUNTIF('N PMRg 2025'!B:B,B56)=0,"-",COUNTIF('N PMRg 2025'!B:B,B56)) -> - | L56: =IF(ISERROR(VLOOKUP(B56,'N PMRg 2025'!B:G,6,0)),"-",VLOOKUP(B56,'N PMRg 2025'!B:G,6,0)) -> - | M56: =IF(COUNTIF('N PMČRj 2025'!B:B,B56)=0,"-",COUNTIF('N PMČRj 2025'!B:B,B56)) -> 1 | N56: =IF(ISERROR(VLOOKUP(B56,'N PMČRj 2025'!B:G,6,0)),"-",VLOOKUP(B56,'N PMČRj 2025'!B:G,6,0)) -> 9
A57: =A56+1 -> 42 | B57: Tibor Hezina | C57: =VLOOKUP(B57,Pilot!A:C,3,0) -> Křižanov | D57: =VLOOKUP(B57,Pilot!A:B,2,0) -> 2002 | E57: =VLOOKUP(B57,Pilot!A:E,5,0) -> M | F57: =VLOOKUP(B57,Pilot!A:F,6,0) -> Junior v roce 2025 | G57: 42 | I57: =COUNTIF(B:B,B57) -> 1 | J57: =IF(ISERROR(VLOOKUP(B57,B:G,6,0)),"-",VLOOKUP(B57,B:G,6,0)) -> 42 | K57: =IF(COUNTIF('N PMRg 2025'!B:B,B57)=0,"-",COUNTIF('N PMRg 2025'!B:B,B57)) -> - | L57: =IF(ISERROR(VLOOKUP(B57,'N PMRg 2025'!B:G,6,0)),"-",VLOOKUP(B57,'N PMRg 2025'!B:G,6,0)) -> - | M57: =IF(COUNTIF('N PMČRj 2025'!B:B,B57)=0,"-",COUNTIF('N PMČRj 2025'!B:B,B57)) -> 1 | N57: =IF(ISERROR(VLOOKUP(B57,'N PMČRj 2025'!B:G,6,0)),"-",VLOOKUP(B57,'N PMČRj 2025'!B:G,6,0)) -> 14
A58: N1 | B58: Eliska Kudejova | C58: =VLOOKUP(B58,Pilot!A:C,3,0) -> Strakonice | D58: =VLOOKUP(B58,Pilot!A:B,2,0) -> 2006 | E58: =VLOOKUP(B58,Pilot!A:E,5,0) -> F | F58: =VLOOKUP(B58,Pilot!A:F,6,0) -> Junior v roce 2025 | G58: N1 | I58: =COUNTIF(B:B,B58) -> 1 | J58: N1 | K58: =IF(COUNTIF('N PMRg 2025'!B:B,B58)=0,"-",COUNTIF('N PMRg 2025'!B:B,B58)) -> - | L58: =IF(ISERROR(VLOOKUP(B58,'N PMRg 2025'!B:G,6,0)),"-",VLOOKUP(B58,'N PMRg 2025'!B:G,6,0)) -> - | M58: =IF(COUNTIF('N PMČRj 2025'!B:B,B58)=0,"-",COUNTIF('N PMČRj 2025'!B:B,B58)) -> 1 | N58: =IF(ISERROR(VLOOKUP(B58,'N PMČRj 2025'!B:G,6,0)),"-",VLOOKUP(B58,'N PMČRj 2025'!B:G,6,0)) -> 15
A59: N2 | B59: Vladimir Hammer | C59: =VLOOKUP(B59,Pilot!A:C,3,0) -> Letkov | D59: =VLOOKUP(B59,Pilot!A:B,2,0) -> 2000 | E59: =VLOOKUP(B59,Pilot!A:E,5,0) -> M | F59: =VLOOKUP(B59,Pilot!A:F,6,0) -> Junior v roce 2025 | G59: N2 | I59: =COUNTIF(B:B,B59) -> 1 | J59: N2 | K59: =IF(COUNTIF('N PMRg 2025'!B:B,B59)=0,"-",COUNTIF('N PMRg 2025'!B:B,B59)) -> - | L59: =IF(ISERROR(VLOOKUP(B59,'N PMRg 2025'!B:G,6,0)),"-",VLOOKUP(B59,'N PMRg 2025'!B:G,6,0)) -> - | M59: =IF(COUNTIF('N PMČRj 2025'!B:B,B59)=0,"-",COUNTIF('N PMČRj 2025'!B:B,B59)) -> 1 | N59: =IF(ISERROR(VLOOKUP(B59,'N PMČRj 2025'!B:G,6,0)),"-",VLOOKUP(B59,'N PMČRj 2025'!B:G,6,0)) -> 16
A60: N3 | B60: Martin Stastny | C60: =VLOOKUP(B60,Pilot!A:C,3,0) -> Medlánky | D60: =VLOOKUP(B60,Pilot!A:B,2,0) -> 2005 | E60: =VLOOKUP(B60,Pilot!A:E,5,0) -> M | F60: =VLOOKUP(B60,Pilot!A:F,6,0) -> Junior v roce 2025 | G60: N3 | I60: =COUNTIF(B:B,B60) -> 1 | J60: N3 | K60: =IF(COUNTIF('N PMRg 2025'!B:B,B60)=0,"-",COUNTIF('N PMRg 2025'!B:B,B60)) -> - | L60: =IF(ISERROR(VLOOKUP(B60,'N PMRg 2025'!B:G,6,0)),"-",VLOOKUP(B60,'N PMRg 2025'!B:G,6,0)) -> - | M60: =IF(COUNTIF('N PMČRj 2025'!B:B,B60)=0,"-",COUNTIF('N PMČRj 2025'!B:B,B60)) -> 1 | N60: =IF(ISERROR(VLOOKUP(B60,'N PMČRj 2025'!B:G,6,0)),"-",VLOOKUP(B60,'N PMČRj 2025'!B:G,6,0)) -> 17
A61: N4 | B61: Filip Mrstny | C61: =VLOOKUP(B61,Pilot!A:C,3,0) -> Beroun | D61: =VLOOKUP(B61,Pilot!A:B,2,0) -> 2006 | E61: =VLOOKUP(B61,Pilot!A:E,5,0) -> M | F61: =VLOOKUP(B61,Pilot!A:F,6,0) -> Junior v roce 2025 | G61: N4 | I61: =COUNTIF(B:B,B61) -> 1 | J61: N4 | K61: =IF(COUNTIF('N PMRg 2025'!B:B,B61)=0,"-",COUNTIF('N PMRg 2025'!B:B,B61)) -> - | L61: =IF(ISERROR(VLOOKUP(B61,'N PMRg 2025'!B:G,6,0)),"-",VLOOKUP(B61,'N PMRg 2025'!B:G,6,0)) -> - | M61: =IF(COUNTIF('N PMČRj 2025'!B:B,B61)=0,"-",COUNTIF('N PMČRj 2025'!B:B,B61)) -> 1 | N61: =IF(ISERROR(VLOOKUP(B61,'N PMČRj 2025'!B:G,6,0)),"-",VLOOKUP(B61,'N PMČRj 2025'!B:G,6,0)) -> 18
A62: N5 | B62: Ivan Morkovsky | C62: =VLOOKUP(B62,Pilot!A:C,3,0) -> Polička | D62: =VLOOKUP(B62,Pilot!A:B,2,0) -> 2008 | E62: =VLOOKUP(B62,Pilot!A:E,5,0) -> M | F62: =VLOOKUP(B62,Pilot!A:F,6,0) -> Junior v roce 2025 | G62: N5 | I62: =COUNTIF(B:B,B62) -> 1 | J62: N5 | K62: =IF(COUNTIF('N PMRg 2025'!B:B,B62)=0,"-",COUNTIF('N PMRg 2025'!B:B,B62)) -> - | L62: =IF(ISERROR(VLOOKUP(B62,'N PMRg 2025'!B:G,6,0)),"-",VLOOKUP(B62,'N PMRg 2025'!B:G,6,0)) -> - | M62: =IF(COUNTIF('N PMČRj 2025'!B:B,B62)=0,"-",COUNTIF('N PMČRj 2025'!B:B,B62)) -> 1 | N62: =IF(ISERROR(VLOOKUP(B62,'N PMČRj 2025'!B:G,6,0)),"-",VLOOKUP(B62,'N PMČRj 2025'!B:G,6,0)) -> 19
B63: Ostatní soutěžící z posledního platného PMRg v pořadí podle umístění, do naplnění celkového počtu nominovaných dle 6.6.5. (+ 10 náhradníků). Je-li PMRg pořádáno ve více třídách, a/nebo ve více regionech, pak jsou na PMČR nominováni soutěžící podle korigovaných bodů z jednotlivých tříd/regionů do naplnění celkového počtu nominovaných dle 6.6.5. V případě neplatnosti některé ze soutěžních tříd posledního PMRg budou pro výpočet korigovaných bodů použity výsledky z posledního platného PMRg v dané třídě:
B64: PMRg 2024 - Hodkovice - Korigované body
A65: =MAX(A9:A64)+1 -> 43 | B65: Jan Hruska | C65: =VLOOKUP(B65,Pilot!A:C,3,0) -> Tábor | D65: =VLOOKUP(B65,Pilot!A:B,2,0) -> 1988 | E65: =VLOOKUP(B65,Pilot!A:E,5,0) -> M | F65: =VLOOKUP(B65,Pilot!A:F,6,0) ->  | G65: =A65 -> 43 | I65: =COUNTIF(B:B,B65) -> 1 | J65: =IF(ISERROR(VLOOKUP(B65,B:G,6,0)),"-",VLOOKUP(B65,B:G,6,0)) -> 43 | K65: =IF(COUNTIF('N PMRg 2025'!B:B,B65)=0,"-",COUNTIF('N PMRg 2025'!B:B,B65)) -> - | L65: =IF(ISERROR(VLOOKUP(B65,'N PMRg 2025'!B:G,6,0)),"-",VLOOKUP(B65,'N PMRg 2025'!B:G,6,0)) -> - | M65: =IF(COUNTIF('N PMČRj 2025'!B:B,B65)=0,"-",COUNTIF('N PMČRj 2025'!B:B,B65)) -> - | N65: =IF(ISERROR(VLOOKUP(B65,'N PMČRj 2025'!B:G,6,0)),"-",VLOOKUP(B65,'N PMČRj 2025'!B:G,6,0)) -> -
A66: =A65+1 -> 44 | B66: Petr Panek | C66: =VLOOKUP(B66,Pilot!A:C,3,0) -> Dvůr Králové | D66: =VLOOKUP(B66,Pilot!A:B,2,0) -> 1975 | E66: =VLOOKUP(B66,Pilot!A:E,5,0) -> M | F66: =VLOOKUP(B66,Pilot!A:F,6,0) ->  | G66: =A66 -> 44 | I66: =COUNTIF(B:B,B66) -> 1 | J66: =IF(ISERROR(VLOOKUP(B66,B:G,6,0)),"-",VLOOKUP(B66,B:G,6,0)) -> 44 | K66: =IF(COUNTIF('N PMRg 2025'!B:B,B66)=0,"-",COUNTIF('N PMRg 2025'!B:B,B66)) -> - | L66: =IF(ISERROR(VLOOKUP(B66,'N PMRg 2025'!B:G,6,0)),"-",VLOOKUP(B66,'N PMRg 2025'!B:G,6,0)) -> - | M66: =IF(COUNTIF('N PMČRj 2025'!B:B,B66)=0,"-",COUNTIF('N PMČRj 2025'!B:B,B66)) -> - | N66: =IF(ISERROR(VLOOKUP(B66,'N PMČRj 2025'!B:G,6,0)),"-",VLOOKUP(B66,'N PMČRj 2025'!B:G,6,0)) -> -
A67: =A66+1 -> 45 | B67: Lukas Capek | C67: =VLOOKUP(B67,Pilot!A:C,3,0) -> Letňany | D67: =VLOOKUP(B67,Pilot!A:B,2,0) -> 1992 | E67: =VLOOKUP(B67,Pilot!A:E,5,0) -> M | F67: =VLOOKUP(B67,Pilot!A:F,6,0) ->  | G67: 45 | I67: =COUNTIF(B:B,B67) -> 1 | J67: =IF(ISERROR(VLOOKUP(B67,B:G,6,0)),"-",VLOOKUP(B67,B:G,6,0)) -> 45 | K67: =IF(COUNTIF('N PMRg 2025'!B:B,B67)=0,"-",COUNTIF('N PMRg 2025'!B:B,B67)) -> - | L67: =IF(ISERROR(VLOOKUP(B67,'N PMRg 2025'!B:G,6,0)),"-",VLOOKUP(B67,'N PMRg 2025'!B:G,6,0)) -> - | M67: =IF(COUNTIF('N PMČRj 2025'!B:B,B67)=0,"-",COUNTIF('N PMČRj 2025'!B:B,B67)) -> - | N67: =IF(ISERROR(VLOOKUP(B67,'N PMČRj 2025'!B:G,6,0)),"-",VLOOKUP(B67,'N PMČRj 2025'!B:G,6,0)) -> -
A68: 46 | B68: Radek Zima 78 | C68: =VLOOKUP(B68,Pilot!A:C,3,0) -> Hodkovice | D68: =VLOOKUP(B68,Pilot!A:B,2,0) -> 1978 | E68: =VLOOKUP(B68,Pilot!A:E,5,0) -> M | F68: =VLOOKUP(B68,Pilot!A:F,6,0) ->  | G68: 46 | I68: =COUNTIF(B:B,B68) -> 1 | J68: =IF(ISERROR(VLOOKUP(B68,B:G,6,0)),"-",VLOOKUP(B68,B:G,6,0)) -> 46 | K68: =IF(COUNTIF('N PMRg 2025'!B:B,B68)=0,"-",COUNTIF('N PMRg 2025'!B:B,B68)) -> - | L68: =IF(ISERROR(VLOOKUP(B68,'N PMRg 2025'!B:G,6,0)),"-",VLOOKUP(B68,'N PMRg 2025'!B:G,6,0)) -> - | M68: =IF(COUNTIF('N PMČRj 2025'!B:B,B68)=0,"-",COUNTIF('N PMČRj 2025'!B:B,B68)) -> - | N68: =IF(ISERROR(VLOOKUP(B68,'N PMČRj 2025'!B:G,6,0)),"-",VLOOKUP(B68,'N PMČRj 2025'!B:G,6,0)) -> -
A69: 47 | B69: Leos Strnadek | C69: =VLOOKUP(B69,Pilot!A:C,3,0) -> Hodkovice | D69: =VLOOKUP(B69,Pilot!A:B,2,0) -> 1983 | E69: =VLOOKUP(B69,Pilot!A:E,5,0) -> M | F69: =VLOOKUP(B69,Pilot!A:F,6,0) ->  | G69: 47 | I69: =COUNTIF(B:B,B69) -> 1 | J69: =IF(ISERROR(VLOOKUP(B69,B:G,6,0)),"-",VLOOKUP(B69,B:G,6,0)) -> 47 | K69: =IF(COUNTIF('N PMRg 2025'!B:B,B69)=0,"-",COUNTIF('N PMRg 2025'!B:B,B69)) -> - | L69: =IF(ISERROR(VLOOKUP(B69,'N PMRg 2025'!B:G,6,0)),"-",VLOOKUP(B69,'N PMRg 2025'!B:G,6,0)) -> - | M69: =IF(COUNTIF('N PMČRj 2025'!B:B,B69)=0,"-",COUNTIF('N PMČRj 2025'!B:B,B69)) -> - | N69: =IF(ISERROR(VLOOKUP(B69,'N PMČRj 2025'!B:G,6,0)),"-",VLOOKUP(B69,'N PMČRj 2025'!B:G,6,0)) -> -
A70: 48 | B70: Pavlina Horackova | C70: =VLOOKUP(B70,Pilot!A:C,3,0) -> Šumperk | D70: =VLOOKUP(B70,Pilot!A:B,2,0) -> 1965 | E70: =VLOOKUP(B70,Pilot!A:E,5,0) -> F | F70: =VLOOKUP(B70,Pilot!A:F,6,0) ->  | G70: 48 | I70: =COUNTIF(B:B,B70) -> 1 | J70: =IF(ISERROR(VLOOKUP(B70,B:G,6,0)),"-",VLOOKUP(B70,B:G,6,0)) -> 48 | K70: =IF(COUNTIF('N PMRg 2025'!B:B,B70)=0,"-",COUNTIF('N PMRg 2025'!B:B,B70)) -> - | L70: =IF(ISERROR(VLOOKUP(B70,'N PMRg 2025'!B:G,6,0)),"-",VLOOKUP(B70,'N PMRg 2025'!B:G,6,0)) -> - | M70: =IF(COUNTIF('N PMČRj 2025'!B:B,B70)=0,"-",COUNTIF('N PMČRj 2025'!B:B,B70)) -> - | N70: =IF(ISERROR(VLOOKUP(B70,'N PMČRj 2025'!B:G,6,0)),"-",VLOOKUP(B70,'N PMČRj 2025'!B:G,6,0)) -> -
A71: 49 | B71: Michal Kares | C71: =VLOOKUP(B71,Pilot!A:C,3,0) -> Ústí nad Orlicí | D71: =VLOOKUP(B71,Pilot!A:B,2,0) -> 1987 | E71: =VLOOKUP(B71,Pilot!A:E,5,0) -> M | F71: =VLOOKUP(B71,Pilot!A:F,6,0) ->  | G71: 49 | I71: =COUNTIF(B:B,B71) -> 1 | J71: =IF(ISERROR(VLOOKUP(B71,B:G,6,0)),"-",VLOOKUP(B71,B:G,6,0)) -> 49 | K71: =IF(COUNTIF('N PMRg 2025'!B:B,B71)=0,"-",COUNTIF('N PMRg 2025'!B:B,B71)) -> - | L71: =IF(ISERROR(VLOOKUP(B71,'N PMRg 2025'!B:G,6,0)),"-",VLOOKUP(B71,'N PMRg 2025'!B:G,6,0)) -> - | M71: =IF(COUNTIF('N PMČRj 2025'!B:B,B71)=0,"-",COUNTIF('N PMČRj 2025'!B:B,B71)) -> - | N71: =IF(ISERROR(VLOOKUP(B71,'N PMČRj 2025'!B:G,6,0)),"-",VLOOKUP(B71,'N PMČRj 2025'!B:G,6,0)) -> -
A72: 50 | B72: Jiri Maier 66 | C72: =VLOOKUP(B72,Pilot!A:C,3,0) -> Raná | D72: =VLOOKUP(B72,Pilot!A:B,2,0) -> 1966 | E72: =VLOOKUP(B72,Pilot!A:E,5,0) -> M | F72: =VLOOKUP(B72,Pilot!A:F,6,0) ->  | G72: 50 | I72: =COUNTIF(B:B,B72) -> 1 | J72: =IF(ISERROR(VLOOKUP(B72,B:G,6,0)),"-",VLOOKUP(B72,B:G,6,0)) -> 50 | K72: =IF(COUNTIF('N PMRg 2025'!B:B,B72)=0,"-",COUNTIF('N PMRg 2025'!B:B,B72)) -> - | L72: =IF(ISERROR(VLOOKUP(B72,'N PMRg 2025'!B:G,6,0)),"-",VLOOKUP(B72,'N PMRg 2025'!B:G,6,0)) -> - | M72: =IF(COUNTIF('N PMČRj 2025'!B:B,B72)=0,"-",COUNTIF('N PMČRj 2025'!B:B,B72)) -> - | N72: =IF(ISERROR(VLOOKUP(B72,'N PMČRj 2025'!B:G,6,0)),"-",VLOOKUP(B72,'N PMČRj 2025'!B:G,6,0)) -> -
A73: 51 | B73: Jiri Hula | C73: =VLOOKUP(B73,Pilot!A:C,3,0) -> Slaný | D73: =VLOOKUP(B73,Pilot!A:B,2,0) -> 1973 | E73: =VLOOKUP(B73,Pilot!A:E,5,0) -> M | F73: =VLOOKUP(B73,Pilot!A:F,6,0) ->  | G73: 51 | I73: =COUNTIF(B:B,B73) -> 1 | J73: =IF(ISERROR(VLOOKUP(B73,B:G,6,0)),"-",VLOOKUP(B73,B:G,6,0)) -> 51 | K73: =IF(COUNTIF('N PMRg 2025'!B:B,B73)=0,"-",COUNTIF('N PMRg 2025'!B:B,B73)) -> - | L73: =IF(ISERROR(VLOOKUP(B73,'N PMRg 2025'!B:G,6,0)),"-",VLOOKUP(B73,'N PMRg 2025'!B:G,6,0)) -> - | M73: =IF(COUNTIF('N PMČRj 2025'!B:B,B73)=0,"-",COUNTIF('N PMČRj 2025'!B:B,B73)) -> - | N73: =IF(ISERROR(VLOOKUP(B73,'N PMČRj 2025'!B:G,6,0)),"-",VLOOKUP(B73,'N PMČRj 2025'!B:G,6,0)) -> -
A74: 52 | B74: Zdenek Balcarek | C74: =VLOOKUP(B74,Pilot!A:C,3,0) -> Kroměříž | D74: =VLOOKUP(B74,Pilot!A:B,2,0) -> 1967 | E74: =VLOOKUP(B74,Pilot!A:E,5,0) -> M | F74: =VLOOKUP(B74,Pilot!A:F,6,0) ->  | G74: 52 | I74: =COUNTIF(B:B,B74) -> 1 | J74: =IF(ISERROR(VLOOKUP(B74,B:G,6,0)),"-",VLOOKUP(B74,B:G,6,0)) -> 52 | K74: =IF(COUNTIF('N PMRg 2025'!B:B,B74)=0,"-",COUNTIF('N PMRg 2025'!B:B,B74)) -> - | L74: =IF(ISERROR(VLOOKUP(B74,'N PMRg 2025'!B:G,6,0)),"-",VLOOKUP(B74,'N PMRg 2025'!B:G,6,0)) -> - | M74: =IF(COUNTIF('N PMČRj 2025'!B:B,B74)=0,"-",COUNTIF('N PMČRj 2025'!B:B,B74)) -> - | N74: =IF(ISERROR(VLOOKUP(B74,'N PMČRj 2025'!B:G,6,0)),"-",VLOOKUP(B74,'N PMČRj 2025'!B:G,6,0)) -> -
A75: 53 | B75: Jan Smaha | C75: =VLOOKUP(B75,Pilot!A:C,3,0) -> Česká Lípa | D75: =VLOOKUP(B75,Pilot!A:B,2,0) -> 1958 | E75: =VLOOKUP(B75,Pilot!A:E,5,0) -> M | F75: =VLOOKUP(B75,Pilot!A:F,6,0) ->  | G75: 53 | I75: =COUNTIF(B:B,B75) -> 1 | J75: =IF(ISERROR(VLOOKUP(B75,B:G,6,0)),"-",VLOOKUP(B75,B:G,6,0)) -> 53 | K75: =IF(COUNTIF('N PMRg 2025'!B:B,B75)=0,"-",COUNTIF('N PMRg 2025'!B:B,B75)) -> - | L75: =IF(ISERROR(VLOOKUP(B75,'N PMRg 2025'!B:G,6,0)),"-",VLOOKUP(B75,'N PMRg 2025'!B:G,6,0)) -> - | M75: =IF(COUNTIF('N PMČRj 2025'!B:B,B75)=0,"-",COUNTIF('N PMČRj 2025'!B:B,B75)) -> - | N75: =IF(ISERROR(VLOOKUP(B75,'N PMČRj 2025'!B:G,6,0)),"-",VLOOKUP(B75,'N PMČRj 2025'!B:G,6,0)) -> -
A76: 54 | B76: Stanislav Poslusny | C76: =VLOOKUP(B76,Pilot!A:C,3,0) -> GAC Benešov | D76: =VLOOKUP(B76,Pilot!A:B,2,0) -> 1965 | E76: =VLOOKUP(B76,Pilot!A:E,5,0) -> M | F76: =VLOOKUP(B76,Pilot!A:F,6,0) ->  | G76: 54 | I76: =COUNTIF(B:B,B76) -> 1 | J76: =IF(ISERROR(VLOOKUP(B76,B:G,6,0)),"-",VLOOKUP(B76,B:G,6,0)) -> 54 | K76: =IF(COUNTIF('N PMRg 2025'!B:B,B76)=0,"-",COUNTIF('N PMRg 2025'!B:B,B76)) -> - | L76: =IF(ISERROR(VLOOKUP(B76,'N PMRg 2025'!B:G,6,0)),"-",VLOOKUP(B76,'N PMRg 2025'!B:G,6,0)) -> - | M76: =IF(COUNTIF('N PMČRj 2025'!B:B,B76)=0,"-",COUNTIF('N PMČRj 2025'!B:B,B76)) -> - | N76: =IF(ISERROR(VLOOKUP(B76,'N PMČRj 2025'!B:G,6,0)),"-",VLOOKUP(B76,'N PMČRj 2025'!B:G,6,0)) -> -
A77: 55 | B77: Vaclav Zak | C77: =VLOOKUP(B77,Pilot!A:C,3,0) -> GAC Benešov | D77: =VLOOKUP(B77,Pilot!A:B,2,0) -> 1962 | E77: =VLOOKUP(B77,Pilot!A:E,5,0) -> M | F77: =VLOOKUP(B77,Pilot!A:F,6,0) ->  | G77: 55 | I77: =COUNTIF(B:B,B77) -> 1 | J77: =IF(ISERROR(VLOOKUP(B77,B:G,6,0)),"-",VLOOKUP(B77,B:G,6,0)) -> 55 | K77: =IF(COUNTIF('N PMRg 2025'!B:B,B77)=0,"-",COUNTIF('N PMRg 2025'!B:B,B77)) -> - | L77: =IF(ISERROR(VLOOKUP(B77,'N PMRg 2025'!B:G,6,0)),"-",VLOOKUP(B77,'N PMRg 2025'!B:G,6,0)) -> - | M77: =IF(COUNTIF('N PMČRj 2025'!B:B,B77)=0,"-",COUNTIF('N PMČRj 2025'!B:B,B77)) -> - | N77: =IF(ISERROR(VLOOKUP(B77,'N PMČRj 2025'!B:G,6,0)),"-",VLOOKUP(B77,'N PMČRj 2025'!B:G,6,0)) -> -
A78: 56 | B78: Matej Krestes | C78: =VLOOKUP(B78,Pilot!A:C,3,0) -> Slaný | D78: =VLOOKUP(B78,Pilot!A:B,2,0) -> 1986 | E78: =VLOOKUP(B78,Pilot!A:E,5,0) -> M | F78: =VLOOKUP(B78,Pilot!A:F,6,0) ->  | G78: 56 | I78: =COUNTIF(B:B,B78) -> 1 | J78: =IF(ISERROR(VLOOKUP(B78,B:G,6,0)),"-",VLOOKUP(B78,B:G,6,0)) -> 56 | K78: =IF(COUNTIF('N PMRg 2025'!B:B,B78)=0,"-",COUNTIF('N PMRg 2025'!B:B,B78)) -> - | L78: =IF(ISERROR(VLOOKUP(B78,'N PMRg 2025'!B:G,6,0)),"-",VLOOKUP(B78,'N PMRg 2025'!B:G,6,0)) -> - | M78: =IF(COUNTIF('N PMČRj 2025'!B:B,B78)=0,"-",COUNTIF('N PMČRj 2025'!B:B,B78)) -> - | N78: =IF(ISERROR(VLOOKUP(B78,'N PMČRj 2025'!B:G,6,0)),"-",VLOOKUP(B78,'N PMČRj 2025'!B:G,6,0)) -> -
A79: 57 | B79: Jaroslav Potmesil | C79: =VLOOKUP(B79,Pilot!A:C,3,0) -> Zbraslavice | D79: =VLOOKUP(B79,Pilot!A:B,2,0) -> 1964 | E79: =VLOOKUP(B79,Pilot!A:E,5,0) -> M | F79: =VLOOKUP(B79,Pilot!A:F,6,0) ->  | G79: =A79 -> 57 | I79: =COUNTIF(B:B,B79) -> 1 | J79: =IF(ISERROR(VLOOKUP(B79,B:G,6,0)),"-",VLOOKUP(B79,B:G,6,0)) -> 57 | K79: =IF(COUNTIF('N PMRg 2025'!B:B,B79)=0,"-",COUNTIF('N PMRg 2025'!B:B,B79)) -> - | L79: =IF(ISERROR(VLOOKUP(B79,'N PMRg 2025'!B:G,6,0)),"-",VLOOKUP(B79,'N PMRg 2025'!B:G,6,0)) -> - | M79: =IF(COUNTIF('N PMČRj 2025'!B:B,B79)=0,"-",COUNTIF('N PMČRj 2025'!B:B,B79)) -> - | N79: =IF(ISERROR(VLOOKUP(B79,'N PMČRj 2025'!B:G,6,0)),"-",VLOOKUP(B79,'N PMČRj 2025'!B:G,6,0)) -> -
A80: 58 | B80: Matej Bartos | C80: =VLOOKUP(B80,Pilot!A:C,3,0) -> Hodkovice | D80: =VLOOKUP(B80,Pilot!A:B,2,0) -> 1998 | E80: =VLOOKUP(B80,Pilot!A:E,5,0) -> M | F80: =VLOOKUP(B80,Pilot!A:F,6,0) ->  | G80: 58 | I80: =COUNTIF(B:B,B80) -> 1 | J80: =IF(ISERROR(VLOOKUP(B80,B:G,6,0)),"-",VLOOKUP(B80,B:G,6,0)) -> 58 | K80: =IF(COUNTIF('N PMRg 2025'!B:B,B80)=0,"-",COUNTIF('N PMRg 2025'!B:B,B80)) -> - | L80: =IF(ISERROR(VLOOKUP(B80,'N PMRg 2025'!B:G,6,0)),"-",VLOOKUP(B80,'N PMRg 2025'!B:G,6,0)) -> - | M80: =IF(COUNTIF('N PMČRj 2025'!B:B,B80)=0,"-",COUNTIF('N PMČRj 2025'!B:B,B80)) -> - | N80: =IF(ISERROR(VLOOKUP(B80,'N PMČRj 2025'!B:G,6,0)),"-",VLOOKUP(B80,'N PMČRj 2025'!B:G,6,0)) -> -
A81: 59 | B81: Matej Plch | C81: =VLOOKUP(B81,Pilot!A:C,3,0) -> Letkov | D81: =VLOOKUP(B81,Pilot!A:B,2,0) -> 1987 | E81: =VLOOKUP(B81,Pilot!A:E,5,0) -> M | F81: =VLOOKUP(B81,Pilot!A:F,6,0) ->  | G81: 59 | I81: =COUNTIF(B:B,B81) -> 1 | J81: =IF(ISERROR(VLOOKUP(B81,B:G,6,0)),"-",VLOOKUP(B81,B:G,6,0)) -> 59 | K81: =IF(COUNTIF('N PMRg 2025'!B:B,B81)=0,"-",COUNTIF('N PMRg 2025'!B:B,B81)) -> - | L81: =IF(ISERROR(VLOOKUP(B81,'N PMRg 2025'!B:G,6,0)),"-",VLOOKUP(B81,'N PMRg 2025'!B:G,6,0)) -> - | M81: =IF(COUNTIF('N PMČRj 2025'!B:B,B81)=0,"-",COUNTIF('N PMČRj 2025'!B:B,B81)) -> - | N81: =IF(ISERROR(VLOOKUP(B81,'N PMČRj 2025'!B:G,6,0)),"-",VLOOKUP(B81,'N PMČRj 2025'!B:G,6,0)) -> -
A82: 60 | B82: Jiri Krofta | C82: =VLOOKUP(B82,Pilot!A:C,3,0) -> Hosín | D82: =VLOOKUP(B82,Pilot!A:B,2,0) -> 1988 | E82: =VLOOKUP(B82,Pilot!A:E,5,0) -> M | F82: =VLOOKUP(B82,Pilot!A:F,6,0) ->  | G82: =A82 -> 60 | I82: =COUNTIF(B:B,B82) -> 1 | J82: =IF(ISERROR(VLOOKUP(B82,B:G,6,0)),"-",VLOOKUP(B82,B:G,6,0)) -> 60 | K82: =IF(COUNTIF('N PMRg 2025'!B:B,B82)=0,"-",COUNTIF('N PMRg 2025'!B:B,B82)) -> - | L82: =IF(ISERROR(VLOOKUP(B82,'N PMRg 2025'!B:G,6,0)),"-",VLOOKUP(B82,'N PMRg 2025'!B:G,6,0)) -> - | M82: =IF(COUNTIF('N PMČRj 2025'!B:B,B82)=0,"-",COUNTIF('N PMČRj 2025'!B:B,B82)) -> - | N82: =IF(ISERROR(VLOOKUP(B82,'N PMČRj 2025'!B:G,6,0)),"-",VLOOKUP(B82,'N PMČRj 2025'!B:G,6,0)) -> -
A83: 61 | B83: David Riha | C83: =VLOOKUP(B83,Pilot!A:C,3,0) -> Vlašim | D83: =VLOOKUP(B83,Pilot!A:B,2,0) -> 1983 | E83: =VLOOKUP(B83,Pilot!A:E,5,0) -> M | F83: =VLOOKUP(B83,Pilot!A:F,6,0) ->  | G83: 61 | I83: =COUNTIF(B:B,B83) -> 1 | J83: =IF(ISERROR(VLOOKUP(B83,B:G,6,0)),"-",VLOOKUP(B83,B:G,6,0)) -> 61 | K83: =IF(COUNTIF('N PMRg 2025'!B:B,B83)=0,"-",COUNTIF('N PMRg 2025'!B:B,B83)) -> - | L83: =IF(ISERROR(VLOOKUP(B83,'N PMRg 2025'!B:G,6,0)),"-",VLOOKUP(B83,'N PMRg 2025'!B:G,6,0)) -> - | M83: =IF(COUNTIF('N PMČRj 2025'!B:B,B83)=0,"-",COUNTIF('N PMČRj 2025'!B:B,B83)) -> - | N83: =IF(ISERROR(VLOOKUP(B83,'N PMČRj 2025'!B:G,6,0)),"-",VLOOKUP(B83,'N PMČRj 2025'!B:G,6,0)) -> -
A84: 62 | B84: Pavel Svetlik | C84: =VLOOKUP(B84,Pilot!A:C,3,0) -> Kunovice | D84: =VLOOKUP(B84,Pilot!A:B,2,0) -> 1968 | E84: =VLOOKUP(B84,Pilot!A:E,5,0) -> M | F84: =VLOOKUP(B84,Pilot!A:F,6,0) ->  | G84: 62 | I84: =COUNTIF(B:B,B84) -> 1 | J84: =IF(ISERROR(VLOOKUP(B84,B:G,6,0)),"-",VLOOKUP(B84,B:G,6,0)) -> 62 | K84: =IF(COUNTIF('N PMRg 2025'!B:B,B84)=0,"-",COUNTIF('N PMRg 2025'!B:B,B84)) -> - | L84: =IF(ISERROR(VLOOKUP(B84,'N PMRg 2025'!B:G,6,0)),"-",VLOOKUP(B84,'N PMRg 2025'!B:G,6,0)) -> - | M84: =IF(COUNTIF('N PMČRj 2025'!B:B,B84)=0,"-",COUNTIF('N PMČRj 2025'!B:B,B84)) -> - | N84: =IF(ISERROR(VLOOKUP(B84,'N PMČRj 2025'!B:G,6,0)),"-",VLOOKUP(B84,'N PMČRj 2025'!B:G,6,0)) -> -
A85: 63 | B85: Premysl Muzik | C85: =VLOOKUP(B85,Pilot!A:C,3,0) -> Tábor | D85: =VLOOKUP(B85,Pilot!A:B,2,0) -> 1990 | E85: =VLOOKUP(B85,Pilot!A:E,5,0) -> M | F85: =VLOOKUP(B85,Pilot!A:F,6,0) ->  | G85: 63 | I85: =COUNTIF(B:B,B85) -> 1 | J85: =IF(ISERROR(VLOOKUP(B85,B:G,6,0)),"-",VLOOKUP(B85,B:G,6,0)) -> 63 | K85: =IF(COUNTIF('N PMRg 2025'!B:B,B85)=0,"-",COUNTIF('N PMRg 2025'!B:B,B85)) -> - | L85: =IF(ISERROR(VLOOKUP(B85,'N PMRg 2025'!B:G,6,0)),"-",VLOOKUP(B85,'N PMRg 2025'!B:G,6,0)) -> - | M85: =IF(COUNTIF('N PMČRj 2025'!B:B,B85)=0,"-",COUNTIF('N PMČRj 2025'!B:B,B85)) -> - | N85: =IF(ISERROR(VLOOKUP(B85,'N PMČRj 2025'!B:G,6,0)),"-",VLOOKUP(B85,'N PMČRj 2025'!B:G,6,0)) -> -
A86: 64 | B86: Lukas Maly | C86: =VLOOKUP(B86,Pilot!A:C,3,0) -> Vysoké Mýto | D86: =VLOOKUP(B86,Pilot!A:B,2,0) -> 1998 | E86: =VLOOKUP(B86,Pilot!A:E,5,0) -> M | F86: =VLOOKUP(B86,Pilot!A:F,6,0) ->  | G86: =A86 -> 64 | I86: =COUNTIF(B:B,B86) -> 1 | J86: =IF(ISERROR(VLOOKUP(B86,B:G,6,0)),"-",VLOOKUP(B86,B:G,6,0)) -> 64 | K86: =IF(COUNTIF('N PMRg 2025'!B:B,B86)=0,"-",COUNTIF('N PMRg 2025'!B:B,B86)) -> - | L86: =IF(ISERROR(VLOOKUP(B86,'N PMRg 2025'!B:G,6,0)),"-",VLOOKUP(B86,'N PMRg 2025'!B:G,6,0)) -> - | M86: =IF(COUNTIF('N PMČRj 2025'!B:B,B86)=0,"-",COUNTIF('N PMČRj 2025'!B:B,B86)) -> - | N86: =IF(ISERROR(VLOOKUP(B86,'N PMČRj 2025'!B:G,6,0)),"-",VLOOKUP(B86,'N PMČRj 2025'!B:G,6,0)) -> -
A87: 65 | B87: Martin Kriz | C87: =VLOOKUP(B87,Pilot!A:C,3,0) -> Přibyslav | D87: =VLOOKUP(B87,Pilot!A:B,2,0) -> 1968 | E87: =VLOOKUP(B87,Pilot!A:E,5,0) -> M | F87: =VLOOKUP(B87,Pilot!A:F,6,0) ->  | G87: 65 | I87: =COUNTIF(B:B,B87) -> 1 | J87: =IF(ISERROR(VLOOKUP(B87,B:G,6,0)),"-",VLOOKUP(B87,B:G,6,0)) -> 65 | K87: =IF(COUNTIF('N PMRg 2025'!B:B,B87)=0,"-",COUNTIF('N PMRg 2025'!B:B,B87)) -> - | L87: =IF(ISERROR(VLOOKUP(B87,'N PMRg 2025'!B:G,6,0)),"-",VLOOKUP(B87,'N PMRg 2025'!B:G,6,0)) -> - | M87: =IF(COUNTIF('N PMČRj 2025'!B:B,B87)=0,"-",COUNTIF('N PMČRj 2025'!B:B,B87)) -> - | N87: =IF(ISERROR(VLOOKUP(B87,'N PMČRj 2025'!B:G,6,0)),"-",VLOOKUP(B87,'N PMČRj 2025'!B:G,6,0)) -> -
A88: 66 | B88: Michal Fortik | C88: =VLOOKUP(B88,Pilot!A:C,3,0) -> Točná | D88: =VLOOKUP(B88,Pilot!A:B,2,0) -> 1976 | E88: =VLOOKUP(B88,Pilot!A:E,5,0) -> M | F88: =VLOOKUP(B88,Pilot!A:F,6,0) ->  | G88: 66 | I88: =COUNTIF(B:B,B88) -> 1 | J88: =IF(ISERROR(VLOOKUP(B88,B:G,6,0)),"-",VLOOKUP(B88,B:G,6,0)) -> 66 | K88: =IF(COUNTIF('N PMRg 2025'!B:B,B88)=0,"-",COUNTIF('N PMRg 2025'!B:B,B88)) -> - | L88: =IF(ISERROR(VLOOKUP(B88,'N PMRg 2025'!B:G,6,0)),"-",VLOOKUP(B88,'N PMRg 2025'!B:G,6,0)) -> - | M88: =IF(COUNTIF('N PMČRj 2025'!B:B,B88)=0,"-",COUNTIF('N PMČRj 2025'!B:B,B88)) -> - | N88: =IF(ISERROR(VLOOKUP(B88,'N PMČRj 2025'!B:G,6,0)),"-",VLOOKUP(B88,'N PMČRj 2025'!B:G,6,0)) -> -
A89: 67 | B89: Antonin Kutalek | C89: =VLOOKUP(B89,Pilot!A:C,3,0) -> Zábřeh | D89: =VLOOKUP(B89,Pilot!A:B,2,0) -> 1943 | E89: =VLOOKUP(B89,Pilot!A:E,5,0) -> M | F89: =VLOOKUP(B89,Pilot!A:F,6,0) ->  | G89: 67 | I89: =COUNTIF(B:B,B89) -> 1 | J89: =IF(ISERROR(VLOOKUP(B89,B:G,6,0)),"-",VLOOKUP(B89,B:G,6,0)) -> 67 | K89: =IF(COUNTIF('N PMRg 2025'!B:B,B89)=0,"-",COUNTIF('N PMRg 2025'!B:B,B89)) -> - | L89: =IF(ISERROR(VLOOKUP(B89,'N PMRg 2025'!B:G,6,0)),"-",VLOOKUP(B89,'N PMRg 2025'!B:G,6,0)) -> - | M89: =IF(COUNTIF('N PMČRj 2025'!B:B,B89)=0,"-",COUNTIF('N PMČRj 2025'!B:B,B89)) -> - | N89: =IF(ISERROR(VLOOKUP(B89,'N PMČRj 2025'!B:G,6,0)),"-",VLOOKUP(B89,'N PMČRj 2025'!B:G,6,0)) -> -
A90: 68 | B90: Michael Fik | C90: =VLOOKUP(B90,Pilot!A:C,3,0) -> Strakonice | D90: =VLOOKUP(B90,Pilot!A:B,2,0) -> 1972 | E90: =VLOOKUP(B90,Pilot!A:E,5,0) -> M | F90: =VLOOKUP(B90,Pilot!A:F,6,0) ->  | G90: 68 | I90: =COUNTIF(B:B,B90) -> 1 | J90: =IF(ISERROR(VLOOKUP(B90,B:G,6,0)),"-",VLOOKUP(B90,B:G,6,0)) -> 68 | K90: =IF(COUNTIF('N PMRg 2025'!B:B,B90)=0,"-",COUNTIF('N PMRg 2025'!B:B,B90)) -> - | L90: =IF(ISERROR(VLOOKUP(B90,'N PMRg 2025'!B:G,6,0)),"-",VLOOKUP(B90,'N PMRg 2025'!B:G,6,0)) -> - | M90: =IF(COUNTIF('N PMČRj 2025'!B:B,B90)=0,"-",COUNTIF('N PMČRj 2025'!B:B,B90)) -> - | N90: =IF(ISERROR(VLOOKUP(B90,'N PMČRj 2025'!B:G,6,0)),"-",VLOOKUP(B90,'N PMČRj 2025'!B:G,6,0)) -> -
A91: 69 | B91: Pavel Koudelka | C91: =VLOOKUP(B91,Pilot!A:C,3,0) -> Křižanov | D91: =VLOOKUP(B91,Pilot!A:B,2,0) -> 1973 | E91: =VLOOKUP(B91,Pilot!A:E,5,0) -> M | F91: =VLOOKUP(B91,Pilot!A:F,6,0) ->  | G91: 69 | I91: =COUNTIF(B:B,B91) -> 1 | J91: =IF(ISERROR(VLOOKUP(B91,B:G,6,0)),"-",VLOOKUP(B91,B:G,6,0)) -> 69 | K91: =IF(COUNTIF('N PMRg 2025'!B:B,B91)=0,"-",COUNTIF('N PMRg 2025'!B:B,B91)) -> - | L91: =IF(ISERROR(VLOOKUP(B91,'N PMRg 2025'!B:G,6,0)),"-",VLOOKUP(B91,'N PMRg 2025'!B:G,6,0)) -> - | M91: =IF(COUNTIF('N PMČRj 2025'!B:B,B91)=0,"-",COUNTIF('N PMČRj 2025'!B:B,B91)) -> - | N91: =IF(ISERROR(VLOOKUP(B91,'N PMČRj 2025'!B:G,6,0)),"-",VLOOKUP(B91,'N PMČRj 2025'!B:G,6,0)) -> -
A92: 70 | B92: Jan Zahradka | C92: =VLOOKUP(B92,Pilot!A:C,3,0) -> Hodkovice | D92: =VLOOKUP(B92,Pilot!A:B,2,0) -> 1981 | E92: =VLOOKUP(B92,Pilot!A:E,5,0) -> M | F92: =VLOOKUP(B92,Pilot!A:F,6,0) ->  | G92: 70 | I92: =COUNTIF(B:B,B92) -> 1 | J92: =IF(ISERROR(VLOOKUP(B92,B:G,6,0)),"-",VLOOKUP(B92,B:G,6,0)) -> 70 | K92: =IF(COUNTIF('N PMRg 2025'!B:B,B92)=0,"-",COUNTIF('N PMRg 2025'!B:B,B92)) -> - | L92: =IF(ISERROR(VLOOKUP(B92,'N PMRg 2025'!B:G,6,0)),"-",VLOOKUP(B92,'N PMRg 2025'!B:G,6,0)) -> - | M92: =IF(COUNTIF('N PMČRj 2025'!B:B,B92)=0,"-",COUNTIF('N PMČRj 2025'!B:B,B92)) -> - | N92: =IF(ISERROR(VLOOKUP(B92,'N PMČRj 2025'!B:G,6,0)),"-",VLOOKUP(B92,'N PMČRj 2025'!B:G,6,0)) -> -
B93: Ostatní soutěžící z posledního platného Všeobecného žebříku v pořadí podle umístění, do naplnění celkového počtu 80 nominovaných dle 6.6.5. (+ 10 náhradníků):
A94: =MAX(A9:A93)+1 -> 71 | B94: Petr Krejcirik | C94: =VLOOKUP(B94,Pilot!A:C,3,0) -> Hranice | D94: =VLOOKUP(B94,Pilot!A:B,2,0) -> 1960 | E94: =VLOOKUP(B94,Pilot!A:E,5,0) -> M | F94: =VLOOKUP(B94,Pilot!A:F,6,0) ->  | G94: 71 | I94: =COUNTIF(B:B,B94) -> 1 | J94: =IF(ISERROR(VLOOKUP(B94,B:G,6,0)),"-",VLOOKUP(B94,B:G,6,0)) -> 71 | K94: =IF(COUNTIF('N PMRg 2025'!B:B,B94)=0,"-",COUNTIF('N PMRg 2025'!B:B,B94)) -> - | L94: =IF(ISERROR(VLOOKUP(B94,'N PMRg 2025'!B:G,6,0)),"-",VLOOKUP(B94,'N PMRg 2025'!B:G,6,0)) -> - | M94: =IF(COUNTIF('N PMČRj 2025'!B:B,B94)=0,"-",COUNTIF('N PMČRj 2025'!B:B,B94)) -> - | N94: =IF(ISERROR(VLOOKUP(B94,'N PMČRj 2025'!B:G,6,0)),"-",VLOOKUP(B94,'N PMČRj 2025'!B:G,6,0)) -> -
A95: =A94+1 -> 72 | B95: Petr Hotovy | C95: =VLOOKUP(B95,Pilot!A:C,3,0) -> Česká Lípa | D95: =VLOOKUP(B95,Pilot!A:B,2,0) -> 1958 | E95: =VLOOKUP(B95,Pilot!A:E,5,0) -> M | F95: =VLOOKUP(B95,Pilot!A:F,6,0) ->  | G95: =A95 -> 72 | I95: =COUNTIF(B:B,B95) -> 1 | J95: =IF(ISERROR(VLOOKUP(B95,B:G,6,0)),"-",VLOOKUP(B95,B:G,6,0)) -> 72 | K95: =IF(COUNTIF('N PMRg 2025'!B:B,B95)=0,"-",COUNTIF('N PMRg 2025'!B:B,B95)) -> - | L95: =IF(ISERROR(VLOOKUP(B95,'N PMRg 2025'!B:G,6,0)),"-",VLOOKUP(B95,'N PMRg 2025'!B:G,6,0)) -> - | M95: =IF(COUNTIF('N PMČRj 2025'!B:B,B95)=0,"-",COUNTIF('N PMČRj 2025'!B:B,B95)) -> - | N95: =IF(ISERROR(VLOOKUP(B95,'N PMČRj 2025'!B:G,6,0)),"-",VLOOKUP(B95,'N PMČRj 2025'!B:G,6,0)) -> -
A96: 73 | B96: Jan Kotan | C96: =VLOOKUP(B96,Pilot!A:C,3,0) -> Letňany | D96: =VLOOKUP(B96,Pilot!A:B,2,0) -> 1982 | E96: =VLOOKUP(B96,Pilot!A:E,5,0) -> M | F96: =VLOOKUP(B96,Pilot!A:F,6,0) ->  | G96: 73 | I96: =COUNTIF(B:B,B96) -> 1 | J96: =IF(ISERROR(VLOOKUP(B96,B:G,6,0)),"-",VLOOKUP(B96,B:G,6,0)) -> 73 | K96: =IF(COUNTIF('N PMRg 2025'!B:B,B96)=0,"-",COUNTIF('N PMRg 2025'!B:B,B96)) -> - | L96: =IF(ISERROR(VLOOKUP(B96,'N PMRg 2025'!B:G,6,0)),"-",VLOOKUP(B96,'N PMRg 2025'!B:G,6,0)) -> - | M96: =IF(COUNTIF('N PMČRj 2025'!B:B,B96)=0,"-",COUNTIF('N PMČRj 2025'!B:B,B96)) -> - | N96: =IF(ISERROR(VLOOKUP(B96,'N PMČRj 2025'!B:G,6,0)),"-",VLOOKUP(B96,'N PMČRj 2025'!B:G,6,0)) -> -
A97: 74 | B97: Pavel Rericha | C97: =VLOOKUP(B97,Pilot!A:C,3,0) -> Moravská Třebová | D97: =VLOOKUP(B97,Pilot!A:B,2,0) -> 1967 | E97: =VLOOKUP(B97,Pilot!A:E,5,0) -> M | F97: =VLOOKUP(B97,Pilot!A:F,6,0) ->  | G97: 74 | I97: =COUNTIF(B:B,B97) -> 1 | J97: =IF(ISERROR(VLOOKUP(B97,B:G,6,0)),"-",VLOOKUP(B97,B:G,6,0)) -> 74 | K97: =IF(COUNTIF('N PMRg 2025'!B:B,B97)=0,"-",COUNTIF('N PMRg 2025'!B:B,B97)) -> - | L97: =IF(ISERROR(VLOOKUP(B97,'N PMRg 2025'!B:G,6,0)),"-",VLOOKUP(B97,'N PMRg 2025'!B:G,6,0)) -> - | M97: =IF(COUNTIF('N PMČRj 2025'!B:B,B97)=0,"-",COUNTIF('N PMČRj 2025'!B:B,B97)) -> - | N97: =IF(ISERROR(VLOOKUP(B97,'N PMČRj 2025'!B:G,6,0)),"-",VLOOKUP(B97,'N PMČRj 2025'!B:G,6,0)) -> -
A98: 75 | B98: Ondrej Bordovsky | C98: =VLOOKUP(B98,Pilot!A:C,3,0) -> Krnov | D98: =VLOOKUP(B98,Pilot!A:B,2,0) -> 1983 | E98: =VLOOKUP(B98,Pilot!A:E,5,0) -> M | F98: =VLOOKUP(B98,Pilot!A:F,6,0) ->  | G98: =A98 -> 75 | I98: =COUNTIF(B:B,B98) -> 1 | J98: =IF(ISERROR(VLOOKUP(B98,B:G,6,0)),"-",VLOOKUP(B98,B:G,6,0)) -> 75 | K98: =IF(COUNTIF('N PMRg 2025'!B:B,B98)=0,"-",COUNTIF('N PMRg 2025'!B:B,B98)) -> - | L98: =IF(ISERROR(VLOOKUP(B98,'N PMRg 2025'!B:G,6,0)),"-",VLOOKUP(B98,'N PMRg 2025'!B:G,6,0)) -> - | M98: =IF(COUNTIF('N PMČRj 2025'!B:B,B98)=0,"-",COUNTIF('N PMČRj 2025'!B:B,B98)) -> - | N98: =IF(ISERROR(VLOOKUP(B98,'N PMČRj 2025'!B:G,6,0)),"-",VLOOKUP(B98,'N PMČRj 2025'!B:G,6,0)) -> -
A99: 76 | B99: Jindrich Svorc | C99: =VLOOKUP(B99,Pilot!A:C,3,0) -> Letňany | D99: =VLOOKUP(B99,Pilot!A:B,2,0) -> 1978 | E99: =VLOOKUP(B99,Pilot!A:E,5,0) -> M | F99: =VLOOKUP(B99,Pilot!A:F,6,0) ->  | G99: =A99 -> 76 | I99: =COUNTIF(B:B,B99) -> 1 | J99: =IF(ISERROR(VLOOKUP(B99,B:G,6,0)),"-",VLOOKUP(B99,B:G,6,0)) -> 76 | K99: =IF(COUNTIF('N PMRg 2025'!B:B,B99)=0,"-",COUNTIF('N PMRg 2025'!B:B,B99)) -> - | L99: =IF(ISERROR(VLOOKUP(B99,'N PMRg 2025'!B:G,6,0)),"-",VLOOKUP(B99,'N PMRg 2025'!B:G,6,0)) -> - | M99: =IF(COUNTIF('N PMČRj 2025'!B:B,B99)=0,"-",COUNTIF('N PMČRj 2025'!B:B,B99)) -> - | N99: =IF(ISERROR(VLOOKUP(B99,'N PMČRj 2025'!B:G,6,0)),"-",VLOOKUP(B99,'N PMČRj 2025'!B:G,6,0)) -> -
A100: 77 | B100: Pavel Jiranek | C100: =VLOOKUP(B100,Pilot!A:C,3,0) -> Toužim | D100: =VLOOKUP(B100,Pilot!A:B,2,0) -> 1993 | E100: =VLOOKUP(B100,Pilot!A:E,5,0) -> M | F100: =VLOOKUP(B100,Pilot!A:F,6,0) ->  | G100: =A100 -> 77 | I100: =COUNTIF(B:B,B100) -> 1 | J100: =IF(ISERROR(VLOOKUP(B100,B:G,6,0)),"-",VLOOKUP(B100,B:G,6,0)) -> 77 | K100: =IF(COUNTIF('N PMRg 2025'!B:B,B100)=0,"-",COUNTIF('N PMRg 2025'!B:B,B100)) -> - | L100: =IF(ISERROR(VLOOKUP(B100,'N PMRg 2025'!B:G,6,0)),"-",VLOOKUP(B100,'N PMRg 2025'!B:G,6,0)) -> - | M100: =IF(COUNTIF('N PMČRj 2025'!B:B,B100)=0,"-",COUNTIF('N PMČRj 2025'!B:B,B100)) -> - | N100: =IF(ISERROR(VLOOKUP(B100,'N PMČRj 2025'!B:G,6,0)),"-",VLOOKUP(B100,'N PMČRj 2025'!B:G,6,0)) -> -
A101: 78 | B101: Petr Hofman | C101: =VLOOKUP(B101,Pilot!A:C,3,0) -> Letňany | D101: =VLOOKUP(B101,Pilot!A:B,2,0) -> 1984 | E101: =VLOOKUP(B101,Pilot!A:E,5,0) -> M | F101: =VLOOKUP(B101,Pilot!A:F,6,0) ->  | G101: 78 | I101: =COUNTIF(B:B,B101) -> 1 | J101: =IF(ISERROR(VLOOKUP(B101,B:G,6,0)),"-",VLOOKUP(B101,B:G,6,0)) -> 78 | K101: =IF(COUNTIF('N PMRg 2025'!B:B,B101)=0,"-",COUNTIF('N PMRg 2025'!B:B,B101)) -> - | L101: =IF(ISERROR(VLOOKUP(B101,'N PMRg 2025'!B:G,6,0)),"-",VLOOKUP(B101,'N PMRg 2025'!B:G,6,0)) -> - | M101: =IF(COUNTIF('N PMČRj 2025'!B:B,B101)=0,"-",COUNTIF('N PMČRj 2025'!B:B,B101)) -> - | N101: =IF(ISERROR(VLOOKUP(B101,'N PMČRj 2025'!B:G,6,0)),"-",VLOOKUP(B101,'N PMČRj 2025'!B:G,6,0)) -> -
A102: 79 | B102: Frantisek Vancura | C102: =VLOOKUP(B102,Pilot!A:C,3,0) -> Hranice | D102: =VLOOKUP(B102,Pilot!A:B,2,0) -> 1966 | E102: =VLOOKUP(B102,Pilot!A:E,5,0) -> M | F102: =VLOOKUP(B102,Pilot!A:F,6,0) ->  | G102: 79 | I102: =COUNTIF(B:B,B102) -> 1 | J102: =IF(ISERROR(VLOOKUP(B102,B:G,6,0)),"-",VLOOKUP(B102,B:G,6,0)) -> 79 | K102: =IF(COUNTIF('N PMRg 2025'!B:B,B102)=0,"-",COUNTIF('N PMRg 2025'!B:B,B102)) -> - | L102: =IF(ISERROR(VLOOKUP(B102,'N PMRg 2025'!B:G,6,0)),"-",VLOOKUP(B102,'N PMRg 2025'!B:G,6,0)) -> - | M102: =IF(COUNTIF('N PMČRj 2025'!B:B,B102)=0,"-",COUNTIF('N PMČRj 2025'!B:B,B102)) -> - | N102: =IF(ISERROR(VLOOKUP(B102,'N PMČRj 2025'!B:G,6,0)),"-",VLOOKUP(B102,'N PMČRj 2025'!B:G,6,0)) -> -
A103: 80 | B103: David Darnady | C103: =VLOOKUP(B103,Pilot!A:C,3,0) -> Zbraslavice | D103: =VLOOKUP(B103,Pilot!A:B,2,0) -> 1987 | E103: =VLOOKUP(B103,Pilot!A:E,5,0) -> M | F103: =VLOOKUP(B103,Pilot!A:F,6,0) ->  | G103: 80 | I103: =COUNTIF(B:B,B103) -> 1 | J103: =IF(ISERROR(VLOOKUP(B103,B:G,6,0)),"-",VLOOKUP(B103,B:G,6,0)) -> 80 | K103: =IF(COUNTIF('N PMRg 2025'!B:B,B103)=0,"-",COUNTIF('N PMRg 2025'!B:B,B103)) -> - | L103: =IF(ISERROR(VLOOKUP(B103,'N PMRg 2025'!B:G,6,0)),"-",VLOOKUP(B103,'N PMRg 2025'!B:G,6,0)) -> - | M103: =IF(COUNTIF('N PMČRj 2025'!B:B,B103)=0,"-",COUNTIF('N PMČRj 2025'!B:B,B103)) -> - | N103: =IF(ISERROR(VLOOKUP(B103,'N PMČRj 2025'!B:G,6,0)),"-",VLOOKUP(B103,'N PMČRj 2025'!B:G,6,0)) -> -
A104: N1 | B104: Radek Hybl | C104: =VLOOKUP(B104,Pilot!A:C,3,0) -> Šumperk | D104: =VLOOKUP(B104,Pilot!A:B,2,0) -> 1980 | E104: =VLOOKUP(B104,Pilot!A:E,5,0) -> M | F104: =VLOOKUP(B104,Pilot!A:F,6,0) ->  | G104: =A104 -> N1 | I104: =COUNTIF(B:B,B104) -> 1 | J104: =IF(ISERROR(VLOOKUP(B104,B:G,6,0)),"-",VLOOKUP(B104,B:G,6,0)) -> N1 | K104: =IF(COUNTIF('N PMRg 2025'!B:B,B104)=0,"-",COUNTIF('N PMRg 2025'!B:B,B104)) -> - | L104: =IF(ISERROR(VLOOKUP(B104,'N PMRg 2025'!B:G,6,0)),"-",VLOOKUP(B104,'N PMRg 2025'!B:G,6,0)) -> - | M104: =IF(COUNTIF('N PMČRj 2025'!B:B,B104)=0,"-",COUNTIF('N PMČRj 2025'!B:B,B104)) -> - | N104: =IF(ISERROR(VLOOKUP(B104,'N PMČRj 2025'!B:G,6,0)),"-",VLOOKUP(B104,'N PMČRj 2025'!B:G,6,0)) -> -
A105: N2 | B105: Rene Hudak | C105: =VLOOKUP(B105,Pilot!A:C,3,0) -> Kunovice | D105: =VLOOKUP(B105,Pilot!A:B,2,0) -> 1972 | E105: =VLOOKUP(B105,Pilot!A:E,5,0) -> M | F105: =VLOOKUP(B105,Pilot!A:F,6,0) ->  | G105: N2 | I105: =COUNTIF(B:B,B105) -> 1 | J105: =IF(ISERROR(VLOOKUP(B105,B:G,6,0)),"-",VLOOKUP(B105,B:G,6,0)) -> N2 | K105: =IF(COUNTIF('N PMRg 2025'!B:B,B105)=0,"-",COUNTIF('N PMRg 2025'!B:B,B105)) -> - | L105: =IF(ISERROR(VLOOKUP(B105,'N PMRg 2025'!B:G,6,0)),"-",VLOOKUP(B105,'N PMRg 2025'!B:G,6,0)) -> - | M105: =IF(COUNTIF('N PMČRj 2025'!B:B,B105)=0,"-",COUNTIF('N PMČRj 2025'!B:B,B105)) -> - | N105: =IF(ISERROR(VLOOKUP(B105,'N PMČRj 2025'!B:G,6,0)),"-",VLOOKUP(B105,'N PMČRj 2025'!B:G,6,0)) -> -
A106: N3 | B106: Jan Viskot | C106: =VLOOKUP(B106,Pilot!A:C,3,0) -> Břeclav | D106: =VLOOKUP(B106,Pilot!A:B,2,0) -> 1995 | E106: =VLOOKUP(B106,Pilot!A:E,5,0) -> M | F106: =VLOOKUP(B106,Pilot!A:F,6,0) ->  | G106: N3 | I106: =COUNTIF(B:B,B106) -> 1 | J106: =IF(ISERROR(VLOOKUP(B106,B:G,6,0)),"-",VLOOKUP(B106,B:G,6,0)) -> N3 | K106: =IF(COUNTIF('N PMRg 2025'!B:B,B106)=0,"-",COUNTIF('N PMRg 2025'!B:B,B106)) -> - | L106: =IF(ISERROR(VLOOKUP(B106,'N PMRg 2025'!B:G,6,0)),"-",VLOOKUP(B106,'N PMRg 2025'!B:G,6,0)) -> - | M106: =IF(COUNTIF('N PMČRj 2025'!B:B,B106)=0,"-",COUNTIF('N PMČRj 2025'!B:B,B106)) -> - | N106: =IF(ISERROR(VLOOKUP(B106,'N PMČRj 2025'!B:G,6,0)),"-",VLOOKUP(B106,'N PMČRj 2025'!B:G,6,0)) -> -
A107: N4 | B107: Roman Jokl | C107: =VLOOKUP(B107,Pilot!A:C,3,0) -> Letkov | D107: =VLOOKUP(B107,Pilot!A:B,2,0) -> 1979 | E107: =VLOOKUP(B107,Pilot!A:E,5,0) -> M | F107: =VLOOKUP(B107,Pilot!A:F,6,0) ->  | G107: N4 | I107: =COUNTIF(B:B,B107) -> 1 | J107: =IF(ISERROR(VLOOKUP(B107,B:G,6,0)),"-",VLOOKUP(B107,B:G,6,0)) -> N4 | K107: =IF(COUNTIF('N PMRg 2025'!B:B,B107)=0,"-",COUNTIF('N PMRg 2025'!B:B,B107)) -> - | L107: =IF(ISERROR(VLOOKUP(B107,'N PMRg 2025'!B:G,6,0)),"-",VLOOKUP(B107,'N PMRg 2025'!B:G,6,0)) -> - | M107: =IF(COUNTIF('N PMČRj 2025'!B:B,B107)=0,"-",COUNTIF('N PMČRj 2025'!B:B,B107)) -> - | N107: =IF(ISERROR(VLOOKUP(B107,'N PMČRj 2025'!B:G,6,0)),"-",VLOOKUP(B107,'N PMČRj 2025'!B:G,6,0)) -> -
A108: N5 | B108: Jan Kantor | C108: =VLOOKUP(B108,Pilot!A:C,3,0) -> Letňany | D108: =VLOOKUP(B108,Pilot!A:B,2,0) -> 1983 | E108: =VLOOKUP(B108,Pilot!A:E,5,0) -> M | F108: =VLOOKUP(B108,Pilot!A:F,6,0) ->  | G108: N5 | I108: =COUNTIF(B:B,B108) -> 1 | J108: =IF(ISERROR(VLOOKUP(B108,B:G,6,0)),"-",VLOOKUP(B108,B:G,6,0)) -> N5 | K108: =IF(COUNTIF('N PMRg 2025'!B:B,B108)=0,"-",COUNTIF('N PMRg 2025'!B:B,B108)) -> - | L108: =IF(ISERROR(VLOOKUP(B108,'N PMRg 2025'!B:G,6,0)),"-",VLOOKUP(B108,'N PMRg 2025'!B:G,6,0)) -> - | M108: =IF(COUNTIF('N PMČRj 2025'!B:B,B108)=0,"-",COUNTIF('N PMČRj 2025'!B:B,B108)) -> - | N108: =IF(ISERROR(VLOOKUP(B108,'N PMČRj 2025'!B:G,6,0)),"-",VLOOKUP(B108,'N PMČRj 2025'!B:G,6,0)) -> -
A109: N6 | B109: Josef Novak | C109: =VLOOKUP(B109,Pilot!A:C,3,0) -> Kunovice | D109: =VLOOKUP(B109,Pilot!A:B,2,0) -> 1981 | E109: =VLOOKUP(B109,Pilot!A:E,5,0) -> M | F109: =VLOOKUP(B109,Pilot!A:F,6,0) ->  | G109: N6 | I109: =COUNTIF(B:B,B109) -> 1 | J109: =IF(ISERROR(VLOOKUP(B109,B:G,6,0)),"-",VLOOKUP(B109,B:G,6,0)) -> N6 | K109: =IF(COUNTIF('N PMRg 2025'!B:B,B109)=0,"-",COUNTIF('N PMRg 2025'!B:B,B109)) -> - | L109: =IF(ISERROR(VLOOKUP(B109,'N PMRg 2025'!B:G,6,0)),"-",VLOOKUP(B109,'N PMRg 2025'!B:G,6,0)) -> - | M109: =IF(COUNTIF('N PMČRj 2025'!B:B,B109)=0,"-",COUNTIF('N PMČRj 2025'!B:B,B109)) -> - | N109: =IF(ISERROR(VLOOKUP(B109,'N PMČRj 2025'!B:G,6,0)),"-",VLOOKUP(B109,'N PMČRj 2025'!B:G,6,0)) -> -
A110: N7 | B110: Josef Busek | C110: =VLOOKUP(B110,Pilot!A:C,3,0) -> Hosín | D110: =VLOOKUP(B110,Pilot!A:B,2,0) -> 1967 | E110: =VLOOKUP(B110,Pilot!A:E,5,0) -> M | F110: =VLOOKUP(B110,Pilot!A:F,6,0) ->  | G110: N7 | I110: =COUNTIF(B:B,B110) -> 1 | J110: =IF(ISERROR(VLOOKUP(B110,B:G,6,0)),"-",VLOOKUP(B110,B:G,6,0)) -> N7 | K110: =IF(COUNTIF('N PMRg 2025'!B:B,B110)=0,"-",COUNTIF('N PMRg 2025'!B:B,B110)) -> - | L110: =IF(ISERROR(VLOOKUP(B110,'N PMRg 2025'!B:G,6,0)),"-",VLOOKUP(B110,'N PMRg 2025'!B:G,6,0)) -> - | M110: =IF(COUNTIF('N PMČRj 2025'!B:B,B110)=0,"-",COUNTIF('N PMČRj 2025'!B:B,B110)) -> - | N110: =IF(ISERROR(VLOOKUP(B110,'N PMČRj 2025'!B:G,6,0)),"-",VLOOKUP(B110,'N PMČRj 2025'!B:G,6,0)) -> -
A111: N8 | B111: Michal Cechmanek | C111: =VLOOKUP(B111,Pilot!A:C,3,0) -> Kroměříž | D111: =VLOOKUP(B111,Pilot!A:B,2,0) -> 1978 | E111: =VLOOKUP(B111,Pilot!A:E,5,0) -> M | F111: =VLOOKUP(B111,Pilot!A:F,6,0) ->  | G111: N8 | I111: =COUNTIF(B:B,B111) -> 1 | J111: =IF(ISERROR(VLOOKUP(B111,B:G,6,0)),"-",VLOOKUP(B111,B:G,6,0)) -> N8 | K111: =IF(COUNTIF('N PMRg 2025'!B:B,B111)=0,"-",COUNTIF('N PMRg 2025'!B:B,B111)) -> - | L111: =IF(ISERROR(VLOOKUP(B111,'N PMRg 2025'!B:G,6,0)),"-",VLOOKUP(B111,'N PMRg 2025'!B:G,6,0)) -> - | M111: =IF(COUNTIF('N PMČRj 2025'!B:B,B111)=0,"-",COUNTIF('N PMČRj 2025'!B:B,B111)) -> - | N111: =IF(ISERROR(VLOOKUP(B111,'N PMČRj 2025'!B:G,6,0)),"-",VLOOKUP(B111,'N PMČRj 2025'!B:G,6,0)) -> -
A112: N9 | B112: Vaclav Marel | C112: =VLOOKUP(B112,Pilot!A:C,3,0) -> Jaroměř | D112: =VLOOKUP(B112,Pilot!A:B,2,0) -> 1974 | E112: =VLOOKUP(B112,Pilot!A:E,5,0) -> M | F112: =VLOOKUP(B112,Pilot!A:F,6,0) ->  | G112: N9 | I112: =COUNTIF(B:B,B112) -> 1 | J112: =IF(ISERROR(VLOOKUP(B112,B:G,6,0)),"-",VLOOKUP(B112,B:G,6,0)) -> N9 | K112: =IF(COUNTIF('N PMRg 2025'!B:B,B112)=0,"-",COUNTIF('N PMRg 2025'!B:B,B112)) -> - | L112: =IF(ISERROR(VLOOKUP(B112,'N PMRg 2025'!B:G,6,0)),"-",VLOOKUP(B112,'N PMRg 2025'!B:G,6,0)) -> - | M112: =IF(COUNTIF('N PMČRj 2025'!B:B,B112)=0,"-",COUNTIF('N PMČRj 2025'!B:B,B112)) -> - | N112: =IF(ISERROR(VLOOKUP(B112,'N PMČRj 2025'!B:G,6,0)),"-",VLOOKUP(B112,'N PMČRj 2025'!B:G,6,0)) -> -
A113: N10 | B113: Jiri Steiger | C113: =VLOOKUP(B113,Pilot!A:C,3,0) -> Olomouc | D113: =VLOOKUP(B113,Pilot!A:B,2,0) -> 1969 | E113: =VLOOKUP(B113,Pilot!A:E,5,0) -> M | F113: =VLOOKUP(B113,Pilot!A:F,6,0) ->  | G113: N10 | I113: =COUNTIF(B:B,B113) -> 1 | J113: =IF(ISERROR(VLOOKUP(B113,B:G,6,0)),"-",VLOOKUP(B113,B:G,6,0)) -> N10 | K113: =IF(COUNTIF('N PMRg 2025'!B:B,B113)=0,"-",COUNTIF('N PMRg 2025'!B:B,B113)) -> - | L113: =IF(ISERROR(VLOOKUP(B113,'N PMRg 2025'!B:G,6,0)),"-",VLOOKUP(B113,'N PMRg 2025'!B:G,6,0)) -> - | M113: =IF(COUNTIF('N PMČRj 2025'!B:B,B113)=0,"-",COUNTIF('N PMČRj 2025'!B:B,B113)) -> - | N113: =IF(ISERROR(VLOOKUP(B113,'N PMČRj 2025'!B:G,6,0)),"-",VLOOKUP(B113,'N PMČRj 2025'!B:G,6,0)) -> -
B114: Další soutěžící může navrhnout PK podle jiných kritérií dle odstavce 9. (bez náhradníků):
A115: 81. | B115: - | C115: =VLOOKUP(B115,Pilot!A:C,3,0) ->  | D115: =VLOOKUP(B115,Pilot!A:B,2,0) ->  | E115: =VLOOKUP(B115,Pilot!A:E,5,0) ->  | F115: =VLOOKUP(B115,Pilot!A:F,6,0) ->  | G115: =A115 -> 81. | I115: =COUNTIF(B:B,B115) -> 6 | J115: =IF(ISERROR(VLOOKUP(B115,B:G,6,0)),"-",VLOOKUP(B115,B:G,6,0)) -> - | K115: =IF(COUNTIF('N PMRg 2025'!B:B,B115)=0,"-",COUNTIF('N PMRg 2025'!B:B,B115)) -> 76 | L115: =IF(ISERROR(VLOOKUP(B115,'N PMRg 2025'!B:G,6,0)),"-",VLOOKUP(B115,'N PMRg 2025'!B:G,6,0)) -> 1 | M115: =IF(COUNTIF('N PMČRj 2025'!B:B,B115)=0,"-",COUNTIF('N PMČRj 2025'!B:B,B115)) -> 31 | N115: =IF(ISERROR(VLOOKUP(B115,'N PMČRj 2025'!B:G,6,0)),"-",VLOOKUP(B115,'N PMČRj 2025'!B:G,6,0)) -> 20
A116: 82. | B116: - | C116: =VLOOKUP(B116,Pilot!A:C,3,0) ->  | D116: =VLOOKUP(B116,Pilot!A:B,2,0) ->  | E116: =VLOOKUP(B116,Pilot!A:E,5,0) ->  | F116: =VLOOKUP(B116,Pilot!A:F,6,0) ->  | G116: =A116 -> 82. | I116: =COUNTIF(B:B,B116) -> 6 | J116: =IF(ISERROR(VLOOKUP(B116,B:G,6,0)),"-",VLOOKUP(B116,B:G,6,0)) -> - | K116: =IF(COUNTIF('N PMRg 2025'!B:B,B116)=0,"-",COUNTIF('N PMRg 2025'!B:B,B116)) -> 76 | L116: =IF(ISERROR(VLOOKUP(B116,'N PMRg 2025'!B:G,6,0)),"-",VLOOKUP(B116,'N PMRg 2025'!B:G,6,0)) -> 1 | M116: =IF(COUNTIF('N PMČRj 2025'!B:B,B116)=0,"-",COUNTIF('N PMČRj 2025'!B:B,B116)) -> 31 | N116: =IF(ISERROR(VLOOKUP(B116,'N PMČRj 2025'!B:G,6,0)),"-",VLOOKUP(B116,'N PMČRj 2025'!B:G,6,0)) -> 20
A117: 83. | B117: - | C117: =VLOOKUP(B117,Pilot!A:C,3,0) ->  | D117: =VLOOKUP(B117,Pilot!A:B,2,0) ->  | E117: =VLOOKUP(B117,Pilot!A:E,5,0) ->  | F117: =VLOOKUP(B117,Pilot!A:F,6,0) ->  | G117: =A117 -> 83. | I117: =COUNTIF(B:B,B117) -> 6 | J117: =IF(ISERROR(VLOOKUP(B117,B:G,6,0)),"-",VLOOKUP(B117,B:G,6,0)) -> - | K117: =IF(COUNTIF('N PMRg 2025'!B:B,B117)=0,"-",COUNTIF('N PMRg 2025'!B:B,B117)) -> 76 | L117: =IF(ISERROR(VLOOKUP(B117,'N PMRg 2025'!B:G,6,0)),"-",VLOOKUP(B117,'N PMRg 2025'!B:G,6,0)) -> 1 | M117: =IF(COUNTIF('N PMČRj 2025'!B:B,B117)=0,"-",COUNTIF('N PMČRj 2025'!B:B,B117)) -> 31 | N117: =IF(ISERROR(VLOOKUP(B117,'N PMČRj 2025'!B:G,6,0)),"-",VLOOKUP(B117,'N PMČRj 2025'!B:G,6,0)) -> 20
A118: 84. | B118: - | C118: =VLOOKUP(B118,Pilot!A:C,3,0) ->  | D118: =VLOOKUP(B118,Pilot!A:B,2,0) ->  | E118: =VLOOKUP(B118,Pilot!A:E,5,0) ->  | F118: =VLOOKUP(B118,Pilot!A:F,6,0) ->  | G118: =A118 -> 84. | I118: =COUNTIF(B:B,B118) -> 6 | J118: =IF(ISERROR(VLOOKUP(B118,B:G,6,0)),"-",VLOOKUP(B118,B:G,6,0)) -> - | K118: =IF(COUNTIF('N PMRg 2025'!B:B,B118)=0,"-",COUNTIF('N PMRg 2025'!B:B,B118)) -> 76 | L118: =IF(ISERROR(VLOOKUP(B118,'N PMRg 2025'!B:G,6,0)),"-",VLOOKUP(B118,'N PMRg 2025'!B:G,6,0)) -> 1 | M118: =IF(COUNTIF('N PMČRj 2025'!B:B,B118)=0,"-",COUNTIF('N PMČRj 2025'!B:B,B118)) -> 31 | N118: =IF(ISERROR(VLOOKUP(B118,'N PMČRj 2025'!B:G,6,0)),"-",VLOOKUP(B118,'N PMČRj 2025'!B:G,6,0)) -> 20
A119: 85. | B119: - | C119: =VLOOKUP(B119,Pilot!A:C,3,0) ->  | D119: =VLOOKUP(B119,Pilot!A:B,2,0) ->  | E119: =VLOOKUP(B119,Pilot!A:E,5,0) ->  | F119: =VLOOKUP(B119,Pilot!A:F,6,0) ->  | G119: =A119 -> 85. | I119: =COUNTIF(B:B,B119) -> 6 | J119: =IF(ISERROR(VLOOKUP(B119,B:G,6,0)),"-",VLOOKUP(B119,B:G,6,0)) -> - | K119: =IF(COUNTIF('N PMRg 2025'!B:B,B119)=0,"-",COUNTIF('N PMRg 2025'!B:B,B119)) -> 76 | L119: =IF(ISERROR(VLOOKUP(B119,'N PMRg 2025'!B:G,6,0)),"-",VLOOKUP(B119,'N PMRg 2025'!B:G,6,0)) -> 1 | M119: =IF(COUNTIF('N PMČRj 2025'!B:B,B119)=0,"-",COUNTIF('N PMČRj 2025'!B:B,B119)) -> 31 | N119: =IF(ISERROR(VLOOKUP(B119,'N PMČRj 2025'!B:G,6,0)),"-",VLOOKUP(B119,'N PMČRj 2025'!B:G,6,0)) -> 20
A120: 6.6.7. | B120: Nominace zahraničních účastníků:
B121: PMČR se mohou zúčastnit zahraniční účastníci pouze v případě, že nebude omezen počet řádně nominovaných soutěžících z ČR a soutěžící splňuje podmínky odstavce 6.1. a 6.6.1. SŘ.
B122: V případě pořádání společného PMČR s plachtařským mistrovstvím některého ze suverénních států může PK stanovit zvláštní pravidla pro nominaci.
A123: 6.6.8. | B123: Volná nominace:
B124: Volnou nominaci je možné využít pouze v tom případě, že pilot na PMČR nepostupuje podle žádného z bodů odstavce 6.6.6.
B125: Umožňuje-li to kapacita pořádajícího letiště, mohou se z členů AeČR mimo řádně nominovaných do soutěže přihlásit také piloti/pilotky, kteří se:
B126: - v posledních 3 letech před rokem konání soutěže zúčastnili MS, ME, WAG nebo Světové Grand Prix jako velitel kluzáku,
B127: - umístili v aktuálním Všeobecném Žebříku do 100. místa.
B128: Při větším počtu přihlášek, než je kapacita letiště Pořadatele, rozhoduje o přijetí do soutěže pořadí soutěžícího v aktuálním Všeobecném Žebříku s podmínkou zaplacení vkladu v termínu stanoveném Pořadatelem.

Sheet N PMČRj 2025
B1: Nominace na PMČRj 2025 | H1: Kontrola: | I1: Počet | J1: Nominace | K1: Počet | L1: Nominace | M1: Počet | N1: Nominace | O1: M: | P1: F: | Q1: M+F: | R1: ="Limit juniora "&Pilot!G1&":" -> Limit juniora 2025: | S1: =Pilot!I1 -> 2000
A2: No | B2: Jméno | C2: Aeroklub | D2: Rok narození | E2: M/F | F2: Junior | G2: No | I2: PMČRj | J2: PMČRj | K2: PMČR | L2: PMČR | M2: PMRg | N2: PMRg | O2: =COUNTIF(E:E,"M") -> 15 | P2: =COUNTIF(E:E,"F") -> 4 | Q2: =O2+P2 -> 19 | R2: S náhradníky
A3: 6.7.5. | B3: Nominace na PMČRj (dle SŘ ZM11) | N3: Celkem řádně nominováno: | O3: =O2-COUNTIF(E53:E57,"M") -> 15 | P3: =P2-COUNTIF(E53:E57,"F") -> 4 | Q3: =O3+P3 -> 19 | R3: Bez náhradníků
B4: Na PMČRj nominuje PK celkem 40 pilotů/pilotek a stanovený počet náhradníků pro každé nominační kritérium.
B5: Na PMČRj jsou nominováni soutěžící splňující statut juniora:
B6: Na PMČRj jsou nominováni soutěžící (splňující statut juniora):
B7: Všichni členové reprezentačního výběru ČR (bez náhradníků):
A8: 1 | B8: Lukas Kriz | C8: =VLOOKUP(B8,Pilot!A:C,3,0) -> Křižanov | D8: =VLOOKUP(B8,Pilot!A:C,2,0) -> 2003 | E8: =VLOOKUP(B8,Pilot!A:E,5,0) -> M | F8: =VLOOKUP(B8,Pilot!A:F,6,0) -> Junior v roce 2025 | G8: =A8 -> 1 | I8: =COUNTIF(B:B,B8) -> 1 | J8: =IF(ISERROR(VLOOKUP(B8,B:G,6,0)),"-",VLOOKUP(B8,B:G,6,0)) -> 1 | K8: =IF(COUNTIF('N PMČR 2025'!B:B,B8)=0,"-",COUNTIF('N PMČR 2025'!B:B,B8)) -> 1 | L8: =IF(ISERROR(VLOOKUP(B8,'N PMČR 2025'!B:G,6,0)),"-",VLOOKUP(B8,'N PMČR 2025'!B:G,6,0)) -> 4 | M8: =IF(COUNTIF('N PMRg 2025'!B:B,B8)=0,"-",COUNTIF('N PMRg 2025'!B:B,B8)) -> - | N8: =IF(ISERROR(VLOOKUP(B8,'N PMRg 2025'!B:G,6,0)),"-",VLOOKUP(B8,'N PMRg 2025'!B:G,6,0)) -> -
A9: =A8+1 -> 2 | B9: Michaela Rendlova | C9: =VLOOKUP(B9,Pilot!A:C,3,0) -> Toužim | D9: =VLOOKUP(B9,Pilot!A:C,2,0) -> 2004 | E9: =VLOOKUP(B9,Pilot!A:E,5,0) -> F | F9: =VLOOKUP(B9,Pilot!A:F,6,0) -> Junior v roce 2025 | G9: =A9 -> 2 | I9: =COUNTIF(B:B,B9) -> 1 | J9: =IF(ISERROR(VLOOKUP(B9,B:G,6,0)),"-",VLOOKUP(B9,B:G,6,0)) -> 2 | K9: =IF(COUNTIF('N PMČR 2025'!B:B,B9)=0,"-",COUNTIF('N PMČR 2025'!B:B,B9)) -> 1 | L9: =IF(ISERROR(VLOOKUP(B9,'N PMČR 2025'!B:G,6,0)),"-",VLOOKUP(B9,'N PMČR 2025'!B:G,6,0)) -> 14 | M9: =IF(COUNTIF('N PMRg 2025'!B:B,B9)=0,"-",COUNTIF('N PMRg 2025'!B:B,B9)) -> - | N9: =IF(ISERROR(VLOOKUP(B9,'N PMRg 2025'!B:G,6,0)),"-",VLOOKUP(B9,'N PMRg 2025'!B:G,6,0)) -> -
A10: =A9+1 -> 3 | B10: Jan Stastny | C10: =VLOOKUP(B10,Pilot!A:C,3,0) -> Medlánky | D10: =VLOOKUP(B10,Pilot!A:C,2,0) -> 2003 | E10: =VLOOKUP(B10,Pilot!A:E,5,0) -> M | F10: =VLOOKUP(B10,Pilot!A:F,6,0) -> Junior v roce 2025 | G10: 3 | I10: =COUNTIF(B:B,B10) -> 1 | J10: =IF(ISERROR(VLOOKUP(B10,B:G,6,0)),"-",VLOOKUP(B10,B:G,6,0)) -> 3 | K10: =IF(COUNTIF('N PMČR 2025'!B:B,B10)=0,"-",COUNTIF('N PMČR 2025'!B:B,B10)) -> 1 | L10: =IF(ISERROR(VLOOKUP(B10,'N PMČR 2025'!B:G,6,0)),"-",VLOOKUP(B10,'N PMČR 2025'!B:G,6,0)) -> 16 | M10: =IF(COUNTIF('N PMRg 2025'!B:B,B10)=0,"-",COUNTIF('N PMRg 2025'!B:B,B10)) -> - | N10: =IF(ISERROR(VLOOKUP(B10,'N PMRg 2025'!B:G,6,0)),"-",VLOOKUP(B10,'N PMRg 2025'!B:G,6,0)) -> -
A11: 4 | B11: Vit Morkovsky | C11: =VLOOKUP(B11,Pilot!A:C,3,0) -> Polička | D11: =VLOOKUP(B11,Pilot!A:C,2,0) -> 2000 | E11: =VLOOKUP(B11,Pilot!A:E,5,0) -> M | F11: =VLOOKUP(B11,Pilot!A:F,6,0) -> Junior v roce 2025 | G11: 4 | I11: =COUNTIF(B:B,B11) -> 1 | J11: =IF(ISERROR(VLOOKUP(B11,B:G,6,0)),"-",VLOOKUP(B11,B:G,6,0)) -> 4 | K11: =IF(COUNTIF('N PMČR 2025'!B:B,B11)=0,"-",COUNTIF('N PMČR 2025'!B:B,B11)) -> 1 | L11: =IF(ISERROR(VLOOKUP(B11,'N PMČR 2025'!B:G,6,0)),"-",VLOOKUP(B11,'N PMČR 2025'!B:G,6,0)) -> 24 | M11: =IF(COUNTIF('N PMRg 2025'!B:B,B11)=0,"-",COUNTIF('N PMRg 2025'!B:B,B11)) -> - | N11: =IF(ISERROR(VLOOKUP(B11,'N PMRg 2025'!B:G,6,0)),"-",VLOOKUP(B11,'N PMRg 2025'!B:G,6,0)) -> -
A12: 5 | B12: Tomas Hynek | C12: =VLOOKUP(B12,Pilot!A:C,3,0) -> Dvůr Králové | D12: =VLOOKUP(B12,Pilot!A:C,2,0) -> 2002 | E12: =VLOOKUP(B12,Pilot!A:E,5,0) -> M | F12: =VLOOKUP(B12,Pilot!A:F,6,0) -> Junior v roce 2025 | G12: 5 | I12: =COUNTIF(B:B,B12) -> 1 | J12: =IF(ISERROR(VLOOKUP(B12,B:G,6,0)),"-",VLOOKUP(B12,B:G,6,0)) -> 5 | K12: =IF(COUNTIF('N PMČR 2025'!B:B,B12)=0,"-",COUNTIF('N PMČR 2025'!B:B,B12)) -> 1 | L12: =IF(ISERROR(VLOOKUP(B12,'N PMČR 2025'!B:G,6,0)),"-",VLOOKUP(B12,'N PMČR 2025'!B:G,6,0)) -> 26 | M12: =IF(COUNTIF('N PMRg 2025'!B:B,B12)=0,"-",COUNTIF('N PMRg 2025'!B:B,B12)) -> - | N12: =IF(ISERROR(VLOOKUP(B12,'N PMRg 2025'!B:G,6,0)),"-",VLOOKUP(B12,'N PMRg 2025'!B:G,6,0)) -> -
A13: 6 | B13: Michaela Krizova | C13: =VLOOKUP(B13,Pilot!A:C,3,0) -> Přibyslav | D13: =VLOOKUP(B13,Pilot!A:C,2,0) -> 2001 | E13: =VLOOKUP(B13,Pilot!A:E,5,0) -> F | F13: =VLOOKUP(B13,Pilot!A:F,6,0) -> Junior v roce 2025 | G13: 6 | I13: =COUNTIF(B:B,B13) -> 1 | J13: =IF(ISERROR(VLOOKUP(B13,B:G,6,0)),"-",VLOOKUP(B13,B:G,6,0)) -> 6 | K13: =IF(COUNTIF('N PMČR 2025'!B:B,B13)=0,"-",COUNTIF('N PMČR 2025'!B:B,B13)) -> 1 | L13: =IF(ISERROR(VLOOKUP(B13,'N PMČR 2025'!B:G,6,0)),"-",VLOOKUP(B13,'N PMČR 2025'!B:G,6,0)) -> 28 | M13: =IF(COUNTIF('N PMRg 2025'!B:B,B13)=0,"-",COUNTIF('N PMRg 2025'!B:B,B13)) -> - | N13: =IF(ISERROR(VLOOKUP(B13,'N PMRg 2025'!B:G,6,0)),"-",VLOOKUP(B13,'N PMRg 2025'!B:G,6,0)) -> -
B14: Všichni soutěžící - účastníci posledního platného PMČR (bez náhradníků):
B15: PMČR 2024 - Toužim - Klub, Kombi 15m, Kombi Open
A16: =MAX(A8:A15)+1 -> 7 | B16: Stepan Filakovsky | C16: =VLOOKUP(B16,Pilot!A:C,3,0) -> Medlánky | D16: =VLOOKUP(B16,Pilot!A:C,2,0) -> 2005 | E16: =VLOOKUP(B16,Pilot!A:E,5,0) -> M | F16: =VLOOKUP(B16,Pilot!A:F,6,0) -> Junior v roce 2025 | G16: =A16 -> 7 | I16: =COUNTIF(B:B,B16) -> 1 | J16: =IF(ISERROR(VLOOKUP(B16,B:G,6,0)),"-",VLOOKUP(B16,B:G,6,0)) -> 7 | K16: =IF(COUNTIF('N PMČR 2025'!B:B,B16)=0,"-",COUNTIF('N PMČR 2025'!B:B,B16)) -> - | L16: =IF(ISERROR(VLOOKUP(B16,'N PMČR 2025'!B:G,6,0)),"-",VLOOKUP(B16,'N PMČR 2025'!B:G,6,0)) -> - | M16: =IF(COUNTIF('N PMRg 2025'!B:B,B16)=0,"-",COUNTIF('N PMRg 2025'!B:B,B16)) -> - | N16: =IF(ISERROR(VLOOKUP(B16,'N PMRg 2025'!B:G,6,0)),"-",VLOOKUP(B16,'N PMRg 2025'!B:G,6,0)) -> -
A17: =A16+1 -> 8 | B17: Petr Masik | C17: =VLOOKUP(B17,Pilot!A:C,3,0) -> Zábřeh | D17: =VLOOKUP(B17,Pilot!A:C,2,0) -> 2001 | E17: =VLOOKUP(B17,Pilot!A:E,5,0) -> M | F17: =VLOOKUP(B17,Pilot!A:F,6,0) -> Junior v roce 2025 | G17: =A17 -> 8 | I17: =COUNTIF(B:B,B17) -> 1 | J17: =IF(ISERROR(VLOOKUP(B17,B:G,6,0)),"-",VLOOKUP(B17,B:G,6,0)) -> 8 | K17: =IF(COUNTIF('N PMČR 2025'!B:B,B17)=0,"-",COUNTIF('N PMČR 2025'!B:B,B17)) -> - | L17: =IF(ISERROR(VLOOKUP(B17,'N PMČR 2025'!B:G,6,0)),"-",VLOOKUP(B17,'N PMČR 2025'!B:G,6,0)) -> - | M17: =IF(COUNTIF('N PMRg 2025'!B:B,B17)=0,"-",COUNTIF('N PMRg 2025'!B:B,B17)) -> - | N17: =IF(ISERROR(VLOOKUP(B17,'N PMRg 2025'!B:G,6,0)),"-",VLOOKUP(B17,'N PMRg 2025'!B:G,6,0)) -> -
A18: =A17+1 -> 9 | B18: Stepan Bartos | C18: =VLOOKUP(B18,Pilot!A:C,3,0) -> Kolín | D18: =VLOOKUP(B18,Pilot!A:C,2,0) -> 2004 | E18: =VLOOKUP(B18,Pilot!A:E,5,0) -> M | F18: =VLOOKUP(B18,Pilot!A:F,6,0) -> Junior v roce 2025 | G18: 9 | I18: =COUNTIF(B:B,B18) -> 1 | J18: =IF(ISERROR(VLOOKUP(B18,B:G,6,0)),"-",VLOOKUP(B18,B:G,6,0)) -> 9 | K18: =IF(COUNTIF('N PMČR 2025'!B:B,B18)=0,"-",COUNTIF('N PMČR 2025'!B:B,B18)) -> 1 | L18: =IF(ISERROR(VLOOKUP(B18,'N PMČR 2025'!B:G,6,0)),"-",VLOOKUP(B18,'N PMČR 2025'!B:G,6,0)) -> 41 | M18: =IF(COUNTIF('N PMRg 2025'!B:B,B18)=0,"-",COUNTIF('N PMRg 2025'!B:B,B18)) -> - | N18: =IF(ISERROR(VLOOKUP(B18,'N PMRg 2025'!B:G,6,0)),"-",VLOOKUP(B18,'N PMRg 2025'!B:G,6,0)) -> -
B19: Další soutěžící, kteří se umístili v konečném pořadí na posledním platném PMČRj ve své třídě nejhůře v první polovině celkového pořadí pilotů ČR (bez náhradníků):
B20: PMČRj 2024 - Hodkovice - Klub
A21: =MAX(A8:A20)+1 -> 10 | B21: Tereza Koubkova | C21: =VLOOKUP(B21,Pilot!A:C,3,0) -> Vysoké Mýto | D21: =VLOOKUP(B21,Pilot!A:C,2,0) -> 1999 | E21: =VLOOKUP(B21,Pilot!A:E,5,0) -> F | F21: =VLOOKUP(B21,Pilot!A:F,6,0) ->  | G21: =A21 -> 10 | I21: =COUNTIF(B:B,B21) -> 1 | J21: =IF(ISERROR(VLOOKUP(B21,B:G,6,0)),"-",VLOOKUP(B21,B:G,6,0)) -> 10 | K21: =IF(COUNTIF('N PMČR 2025'!B:B,B21)=0,"-",COUNTIF('N PMČR 2025'!B:B,B21)) -> 1 | L21: =IF(ISERROR(VLOOKUP(B21,'N PMČR 2025'!B:G,6,0)),"-",VLOOKUP(B21,'N PMČR 2025'!B:G,6,0)) -> 25 | M21: =IF(COUNTIF('N PMRg 2025'!B:B,B21)=0,"-",COUNTIF('N PMRg 2025'!B:B,B21)) -> - | N21: =IF(ISERROR(VLOOKUP(B21,'N PMRg 2025'!B:G,6,0)),"-",VLOOKUP(B21,'N PMRg 2025'!B:G,6,0)) -> -
A22: =A21+1 -> 11 | B22: Alex Gulich | C22: =VLOOKUP(B22,Pilot!A:C,3,0) -> Slaný | D22: =VLOOKUP(B22,Pilot!A:C,2,0) -> 2005 | E22: =VLOOKUP(B22,Pilot!A:E,5,0) -> M | F22: =VLOOKUP(B22,Pilot!A:F,6,0) -> Junior v roce 2025 | G22: 11 | I22: =COUNTIF(B:B,B22) -> 1 | J22: =IF(ISERROR(VLOOKUP(B22,B:G,6,0)),"-",VLOOKUP(B22,B:G,6,0)) -> 11 | K22: =IF(COUNTIF('N PMČR 2025'!B:B,B22)=0,"-",COUNTIF('N PMČR 2025'!B:B,B22)) -> 1 | L22: =IF(ISERROR(VLOOKUP(B22,'N PMČR 2025'!B:G,6,0)),"-",VLOOKUP(B22,'N PMČR 2025'!B:G,6,0)) -> 38 | M22: =IF(COUNTIF('N PMRg 2025'!B:B,B22)=0,"-",COUNTIF('N PMRg 2025'!B:B,B22)) -> - | N22: =IF(ISERROR(VLOOKUP(B22,'N PMRg 2025'!B:G,6,0)),"-",VLOOKUP(B22,'N PMRg 2025'!B:G,6,0)) -> -
A23: =A22+1 -> 12 | B23: Jan Beran | C23: =VLOOKUP(B23,Pilot!A:C,3,0) -> Kladno | D23: =VLOOKUP(B23,Pilot!A:C,2,0) -> 1999 | E23: =VLOOKUP(B23,Pilot!A:E,5,0) -> M | F23: =VLOOKUP(B23,Pilot!A:F,6,0) ->  | G23: 12 | I23: =COUNTIF(B:B,B23) -> 1 | J23: =IF(ISERROR(VLOOKUP(B23,B:G,6,0)),"-",VLOOKUP(B23,B:G,6,0)) -> 12 | K23: =IF(COUNTIF('N PMČR 2025'!B:B,B23)=0,"-",COUNTIF('N PMČR 2025'!B:B,B23)) -> 1 | L23: =IF(ISERROR(VLOOKUP(B23,'N PMČR 2025'!B:G,6,0)),"-",VLOOKUP(B23,'N PMČR 2025'!B:G,6,0)) -> 39 | M23: =IF(COUNTIF('N PMRg 2025'!B:B,B23)=0,"-",COUNTIF('N PMRg 2025'!B:B,B23)) -> - | N23: =IF(ISERROR(VLOOKUP(B23,'N PMRg 2025'!B:G,6,0)),"-",VLOOKUP(B23,'N PMRg 2025'!B:G,6,0)) -> -
A24: 13 | B24: Vit Tvrdik | C24: =VLOOKUP(B24,Pilot!A:C,3,0) -> Letňany | D24: =VLOOKUP(B24,Pilot!A:C,2,0) -> 2000 | E24: =VLOOKUP(B24,Pilot!A:E,5,0) -> M | F24: =VLOOKUP(B24,Pilot!A:F,6,0) -> Junior v roce 2025 | G24: =A24 -> 13 | I24: =COUNTIF(B:B,B24) -> 1 | J24: =IF(ISERROR(VLOOKUP(B24,B:G,6,0)),"-",VLOOKUP(B24,B:G,6,0)) -> 13 | K24: =IF(COUNTIF('N PMČR 2025'!B:B,B24)=0,"-",COUNTIF('N PMČR 2025'!B:B,B24)) -> 1 | L24: =IF(ISERROR(VLOOKUP(B24,'N PMČR 2025'!B:G,6,0)),"-",VLOOKUP(B24,'N PMČR 2025'!B:G,6,0)) -> 40 | M24: =IF(COUNTIF('N PMRg 2025'!B:B,B24)=0,"-",COUNTIF('N PMRg 2025'!B:B,B24)) -> - | N24: =IF(ISERROR(VLOOKUP(B24,'N PMRg 2025'!B:G,6,0)),"-",VLOOKUP(B24,'N PMRg 2025'!B:G,6,0)) -> -
A25: 14 | B25: Tibor Hezina | C25: =VLOOKUP(B25,Pilot!A:C,3,0) -> Křižanov | D25: =VLOOKUP(B25,Pilot!A:C,2,0) -> 2002 | E25: =VLOOKUP(B25,Pilot!A:E,5,0) -> M | F25: =VLOOKUP(B25,Pilot!A:F,6,0) -> Junior v roce 2025 | G25: =A25 -> 14 | I25: =COUNTIF(B:B,B25) -> 1 | J25: =IF(ISERROR(VLOOKUP(B25,B:G,6,0)),"-",VLOOKUP(B25,B:G,6,0)) -> 14 | K25: =IF(COUNTIF('N PMČR 2025'!B:B,B25)=0,"-",COUNTIF('N PMČR 2025'!B:B,B25)) -> 1 | L25: =IF(ISERROR(VLOOKUP(B25,'N PMČR 2025'!B:G,6,0)),"-",VLOOKUP(B25,'N PMČR 2025'!B:G,6,0)) -> 42 | M25: =IF(COUNTIF('N PMRg 2025'!B:B,B25)=0,"-",COUNTIF('N PMRg 2025'!B:B,B25)) -> - | N25: =IF(ISERROR(VLOOKUP(B25,'N PMRg 2025'!B:G,6,0)),"-",VLOOKUP(B25,'N PMRg 2025'!B:G,6,0)) -> -
A26: 15 | B26: Eliska Kudejova | C26: =VLOOKUP(B26,Pilot!A:C,3,0) -> Strakonice | D26: =VLOOKUP(B26,Pilot!A:C,2,0) -> 2006 | E26: =VLOOKUP(B26,Pilot!A:E,5,0) -> F | F26: =VLOOKUP(B26,Pilot!A:F,6,0) -> Junior v roce 2025 | G26: 15 | I26: =COUNTIF(B:B,B26) -> 1 | J26: =IF(ISERROR(VLOOKUP(B26,B:G,6,0)),"-",VLOOKUP(B26,B:G,6,0)) -> 15 | K26: =IF(COUNTIF('N PMČR 2025'!B:B,B26)=0,"-",COUNTIF('N PMČR 2025'!B:B,B26)) -> 1 | L26: =IF(ISERROR(VLOOKUP(B26,'N PMČR 2025'!B:G,6,0)),"-",VLOOKUP(B26,'N PMČR 2025'!B:G,6,0)) -> N1 | M26: =IF(COUNTIF('N PMRg 2025'!B:B,B26)=0,"-",COUNTIF('N PMRg 2025'!B:B,B26)) -> - | N26: =IF(ISERROR(VLOOKUP(B26,'N PMRg 2025'!B:G,6,0)),"-",VLOOKUP(B26,'N PMRg 2025'!B:G,6,0)) -> -
A27: 16 | B27: Vladimir Hammer | C27: =VLOOKUP(B27,Pilot!A:C,3,0) -> Letkov | D27: =VLOOKUP(B27,Pilot!A:C,2,0) -> 2000 | E27: =VLOOKUP(B27,Pilot!A:E,5,0) -> M | F27: =VLOOKUP(B27,Pilot!A:F,6,0) -> Junior v roce 2025 | G27: 16 | I27: =COUNTIF(B:B,B27) -> 1 | J27: =IF(ISERROR(VLOOKUP(B27,B:G,6,0)),"-",VLOOKUP(B27,B:G,6,0)) -> 16 | K27: =IF(COUNTIF('N PMČR 2025'!B:B,B27)=0,"-",COUNTIF('N PMČR 2025'!B:B,B27)) -> 1 | L27: =IF(ISERROR(VLOOKUP(B27,'N PMČR 2025'!B:G,6,0)),"-",VLOOKUP(B27,'N PMČR 2025'!B:G,6,0)) -> N2 | M27: =IF(COUNTIF('N PMRg 2025'!B:B,B27)=0,"-",COUNTIF('N PMRg 2025'!B:B,B27)) -> - | N27: =IF(ISERROR(VLOOKUP(B27,'N PMRg 2025'!B:G,6,0)),"-",VLOOKUP(B27,'N PMRg 2025'!B:G,6,0)) -> -
A28: 17 | B28: Martin Stastny | C28: =VLOOKUP(B28,Pilot!A:C,3,0) -> Medlánky | D28: =VLOOKUP(B28,Pilot!A:C,2,0) -> 2005 | E28: =VLOOKUP(B28,Pilot!A:E,5,0) -> M | F28: =VLOOKUP(B28,Pilot!A:F,6,0) -> Junior v roce 2025 | G28: 17 | I28: =COUNTIF(B:B,B28) -> 1 | J28: =IF(ISERROR(VLOOKUP(B28,B:G,6,0)),"-",VLOOKUP(B28,B:G,6,0)) -> 17 | K28: =IF(COUNTIF('N PMČR 2025'!B:B,B28)=0,"-",COUNTIF('N PMČR 2025'!B:B,B28)) -> 1 | L28: =IF(ISERROR(VLOOKUP(B28,'N PMČR 2025'!B:G,6,0)),"-",VLOOKUP(B28,'N PMČR 2025'!B:G,6,0)) -> N3 | M28: =IF(COUNTIF('N PMRg 2025'!B:B,B28)=0,"-",COUNTIF('N PMRg 2025'!B:B,B28)) -> - | N28: =IF(ISERROR(VLOOKUP(B28,'N PMRg 2025'!B:G,6,0)),"-",VLOOKUP(B28,'N PMRg 2025'!B:G,6,0)) -> -
